Workbook

Sheet Operacional (hidden)
A3: REPORTE DE ACTIVIDADES MENSUALES DE LA ETAPA DE VIDA ADOLESCENTE
A5: DIRESA: | E5: DEPARTAMENTO | I5: PERÍODO: DEL
A6: RED: | E6: PROVINCIA | I6: AL
A7: MICRORED: | E7: DISTRITO
A8: ESTABLECIMIENTO: | J8: AÑO
A10: MORBILIDAD DEL ADOLESCENTE | P10: Mensual
A11: CIE10 | B11: DIAGNÓSTICOS | F11: GRUPOS DE EDAD
F12: Total | K12: 18a-29a
A13: M400 | B13: Cifosis Postural | F13: SUMA | K13: M400 / D + EDAD >=18 Y <=29
A14: M405 | B14: Lordosis no Especificada | F14: SUMA | K14: M405 /D + EDAD >=18 Y <=29
A15: M411 | B15: Escoliosis Idiopática Juvenil | F15: SUMA | K15: M411 /D + EDAD >=18 Y <=29
A16: M419 | B16: Escoliosis, no Especificada | F16: SUMA | K16: M429 /D + EDAD >=18 Y <=29
A17: H919 | B17: Disminución de la Agudeza Auditiva sin Especificación | F17: SUMA | K17: H929 /D + EDAD >=18 Y <=29
A18: H547 | B18: Disminución de la Agudeza Visual sin Especificación | F18: SUMA | K18: H547 /D + EDAD >=18 Y <=29
A19: L709 | B19: Acné no Especificado | F19: SUMA | K19: L709 /D + EDAD >=18 Y <=29
A20: M214 | B20: Pie Plano | F20: SUMA | K20: M229 /D + EDAD >=18 Y <=29
A21: D509 | B21: Anemia por deficiencia de Hierro | F21: SUMA | K21: D509 /D + EDAD >=18 Y <=29
A22: --- | B22: Parasitosis Intestinal | F22: SUMA | K22: (B829+B680+B681+B689+B70+B710+B719+B760+B761+B769+B779+B780+B79+B779+B780+B79+B80+B820+B829+A071+A070+A06) /D + EDAD >=18 Y <=29
A23: --- | B23: Infecciones Respiratorias Agudas Complicadas | F23: SUMA | K23: (A37+ J180+J050+J051+J90+J851+J86+J18+J11+J939+J188+J189+J181+J18+J13+J29+J18+J16+J229+J450+J459+J46+J448+J449) / D / EDAD >=18 Y <=29
A24: --- | B24: Infecciones Respiratorias Agudas No Complicadas | F24: SUMA | K24: (J020+J0309+H660+H669+J00+J01+J028+J029+J040+J041+J042+J069+J209) / D / EDAD >=18 Y <=29
A25: --- | B25: Enfermedades Diarreicas Agudas Complicadas | F25: SUMA | K25: (A018+E86 /D) + (A011+E86 /D) + (A018+E86 /D) + (A013+E86 / D) + (A029+E86, D) + (A020 + E86 / D) + (A05+E86 /D) + (A07+E86 /D) + (A080+E86 /D) + (A082+E86 /D ) + (A083+E86 /D) + (A084+E86 /D)+(A00+E86 /D) + (A049+E86 /D) + (A030+E86 /D) + (A039+E86 /D) + (A045+E86 /D) + (A060+E86 /D) + (A062+E86 /D) + (A018+R571 /D) + (A011+R571 /D) + (A018+R571 /D) + (A013+R571 /D) + (A029+R571 /D) + (A020+R571 /D) + (A05+R571 /D) + (A07+R571 /D) + (A080+R571 /D) + (A082+R571 /D ) + (A083+R571 /D) + (A084+R571 /D) + (A00+R571 /D) + (A099+R571 /D) + EDAD >=18 Y <=29
A26: --- | B26: Enfermedades Diarreicas Agudas No Complicadas | F26: SUMA | K26: (A018+A011+A018+A013+A029+A020+A05+A07+A080+A082+A083+A084+A00+A049+A030+A039+A045+A060+A062) /D + EDAD >=18 Y <=29
A28: RIESGOS | F28: Total | G28: 10a- 14a | H28: 15a-19a | J28: 12a-17a | K28: 18a-29a
A29: Z7251 | B29: Riesgo de Embarazo por la Conducta Sexual de Alto Riesgo | F29: SUMA | K29: Z7251 /D + EDAD >=18 Y <=29
A30: Z7252 | B30: Riesgo de ETS por la Conducta Sexual de Alto Riesgo | F30: SUMA | K30: Z7252 /D + EDAD >=18 Y <=29
A31: Z7253 | B31: Riesgo de SIDA por la Conducta Sexual de Alto Riesgo | F31: SUMA | K31: Z7253 /D + EDAD >=18 Y <=29
A32: Z7254 | B32: Riesgo de SIDA por la Conducta NO Sexual de Alto Riesgo | F32: SUMA | K32: Z7254 /D + EDAD >=18 Y <=29
A33: Z7281 | B33: Riesgo de Lesiones y Accidentes | F33: SUMA | K33: Z7281 /D + EDAD >=18 Y <=29
A34: Z726 | B34: Problemas Relacionados con el Juego y las Apuestas | F34: SUMA | K34: Z726 /D + EDAD >=18 Y <=29
A35: Z728 | B35: Otros Problemas Relacionados con el Estilo de Vida | F35: SUMA | K35: Z728 /D + EDAD >=18 Y <=29
A36: Z639 | B36: Otros Problemas Relacionados con el Grupo Primario de Apoyo, Inclusive Circunstancias Familiares (RelacFamiliar) | F36: SUMA | K36: Z639 /D + EDAD >=18 Y <=29
A37: Z651 | B37: Problemas Relacionados con otras Circunstancias Psciosociales VIH/SIDA (Sociales, Familiares, Laborales y Acad) | F37: SUMA | K37: Z651 /D + EDAD >=18 Y <=29
A38: Z659 | B38: Problemas Relacionados con otras Circunstancias Psciosociales (Problemas en el Desarrollo Psicosocial) | F38: SUMA | K38: Z659 /D + EDAD >=18 Y <=29
A40: ESTADO NUTRICIONAL | F40: Total | G40: 10a- 14a | H40: 15a-19a | J40: 12a-17a | K40: 18a-29a
A41: E669 | B41: Índice de Masa Corporal (IMC) | E41: Obesidad | F41: SUMA | K41: E669/D + LAB=IMC + EDAD >=18 Y <=29
A42: E660 | E42: Sobrepeso | F42: SUMA | K42: E660/D + LAB=IMC + EDAD >=18 Y <=29
A43: Z006 | E43: Normal | F43: SUMA | K43: Z006/D + LAB=IMC + EDAD >=18 Y <=29
A44: E660 | E44: Delgadez | F44: SUMA | K44: E440/D + LAB=IMC + EDAD >=18 Y <=29
A45: E43X | E45: Delgadez Severa | F45: SUMA | K45: E43X/D + LAB=IMC + EDAD >=18 Y <=29
A46: E344 | B46: Talla / Edad | E46: Talla Alta | F46: SUMA | K46: E344X/D + LAB=TE + EDAD >=18 Y <=29
A47: Z006 | E47: Normal | F47: SUMA | K47: Z006/D + LAB=TE + EDAD >=18 Y <=29
A48: E45X | E48: Talla Baja | F48: SUMA | K48: E45X/D + LAB=TE + EDAD >=18 Y <=29
A50: ENTREVISTA DE TAMIZAJE | F50: Total | G50: 10a- 14a | H50: 15a-19a | J50: 12a-17a | K50: 18a-29a
A51: U140 | B51: Entrevista de Tamizaje | D51: VIF | E51: Violencia Familiar | F51: SUMA | K51: U140 / D /LAB=VIF + EDAD >=18 Y <=29
D52: VSX | E52: Violencia Sexual | F52: SUMA | K52: U140 / D /LAB=VSX + EDAD >=18 Y <=29
D53: VS | E53: Violencia Social | F53: SUMA | K53: U140 / D /LAB=VS + EDAD >=18 Y <=29
D54: AD | E54: Alcohol y Drogas | F54: SUMA | K54: U140 / D /LAB=AD + EDAD >=18 Y <=29
D55: TD | E55: Trastornos Depresivos | F55: SUMA | K55: U140 / D /LAB=TD + EDAD >=18 Y <=29
A56: TAMIZAJES POSITIVOS
B57: Tamizaje Positivo | D57: R456 | E57: Problemas relacionados con violencia | F57: SUMA | G57: R456 / D
D58: Z720 | E58: Problemas Relacionados con el Uso de Tabaco | F58: SUMA | G58: Z720 / D
D59: Z721 | E59: Problemas Sociales Relacionados con el Uso de Alcohol | F59: SUMA | G59: Z721 / D
D60: Z722 | E60: Problemas Sociales Relacionados con el Uso de drogas | F60: SUMA | G60: Z722 / D
D61: Z133 | E61: Depresión | F61: SUMA | G61: (U140 / LAB=TD) + Z133 / D
D62: Z133 | E62: Psicosis | F62: SUMA | G62: (U140 / LAB=EP) + Z133 / D
A64: Z654 | B64: Personas Afectadas por Violencia Política (Victima de Crimen o Terrorismo, Incluyendo Tortura) | F64: SUMA | G64: Z654 / D
A65: Z655 | B65: Personas Afectadas por Exposicion a Desastre, Guerra u otras Hostilidades | F65: SUMA | G65: Z655 / D
A67: Z585 | B67: Exposición a otras contaminantes del ambiente físico | F67: SUMA | G67: Z585 /D
A68: Z581 | B68: Exposición al aire contaminado | F68: SUMA | G68: Z581 /D
A69: Z582 | B69: Exposición al agua contaminada | F69: SUMA | G69: Z582 /D
A70: Z583 | B70: Exposición al suelo contaminado | F70: SUMA | G70: Z583 /D
A73: INTERVENCIONES | F73: Total | G73: 10a- 14a | H73: 15a-19a | J73: 12a-17a | K73: 18a-29a
A74: Z010 | B74: Examen de Ojos y de la Visión | F74: SUMA | K74: Z010
A75: Z011 | B75: Examen de Oídos y de la Audición | F75: SUMA | K75: Z011
A76: * | B76: Problemas de la Visión
A77: H509 | E77: Estrabismo | F77: SUMA | K77: H509 / D
A78: H521 | E78: Miopía | F78: SUMA | K78: H521 / D
A79: H520 | E79: Hipermetropía | F79: SUMA | K79: H520 / D
A80: H522 | E80: Astigmatismo | F80: SUMA | K80: H522 / D
A81: H527 | E81: Ametropía | F81: SUMA | K81: H527 / D
A82: D0120 | B82: Examen Estomatologico | F82: SUMA | G82: Z012,D0150,D0120/D + Lab=1 | H82: D0120/D + Lab=1 | J82: Z012,D0150,D0120/D + Lab=1 | K82: D0120/D + Lab=1
A83: D0120 | B83: Examen Estomatologico a Gestantes | F83: SUMA | G83: D0150,D0120/D + Lab=1 + Lab=G | H83: D0120/D + Lab=1 + Lab=G | J83: D0150,D0120/D + Lab=1 + Lab=G | K83: D0120/D + Lab=1 + Lab=G
A84: D1330 | B84: Instrucción de Higiene Oral (Fisioterapia) | F84: SUMA | G84: (D1330/D0140/U540) / D
A85: D1110 | B85: Profilaxis Dentral | F85: SUMA | G85: D1110 ó U516/ D + Lab = 1
A86: U510 | B86: Alta Basica Odontologica (ABO) | F86: SUMA | G86: U510 / D
A87: Z2781 | B87: Vacunación Diftotetánica (dT) Total (Incluye Gestantes y Varones) ======> DOSIS 1 | F87: SUMA | G87: (Z2781 + LAB= 1)
E88: ======> DOSIS 2 | F88: SUMA | G88: (Z2781 + LAB= 2)
E89: ======> DOSIS 3 (Protegida) | F89: SUMA | G89: (Z2781 + LAB= 3)
A90: Z2781 | B90: Vacunación Diftotetánica (dT) SOLO Gestantes ======> DOSIS 1 | G90: (Z2781 + LAB= 1) Y EN Cualquier otro Lab =G
E91: ======> DOSIS 2 (Protegida) | G91: (Z2781 + LAB= 2) Y EN Cualquier otro Lab =G
E92: ======> DOSIS 3 | G92: (Z2781 + LAB= 3) Y EN Cualquier otro Lab =G
A93: * | B93: Gestantes Atendidas (1º Control Prenatal) TOTAL | F93: SUMA | G93: SUMA | H93: SUMA | J93: SUMA | K93: SUMA
C94: Gestantes Atendida (1º Control Prenatal) en 1º Trimestre de Gestación | F94: SUMA | G94: Z3591 + LAB=1
C95: Gestantes Atendida (1º Control Prenatal) en 2º Trimestre de Gestación | F95: SUMA | G95: Z3592 + LAB=1
C96: Gestantes Atendida (1º Control Prenatal) en 3º Trimestre de Gestación | F96: SUMA | G96: Z3593 + LAB=1
A97: ** | B97: Gestantes Controladas (6º Control Prenatal) | F97: SUMA | G97: SUMA | H97: SUMA | J97: SUMA | K97: SUMA
C98: Gestantes Controlada (6º Control Prenatal) en 1º Trimestre de Gestación | F98: SUMA | G98: Z3591 + LAB=6
C99: Gestantes Controlada (6º Control Prenatal) en 2º Trimestre de Gestación | F99: SUMA | G99: Z3592 + LAB=6
C100: Gestantes Controlada (6º Control Prenatal) en 3º Trimestre de Gestación | F100: SUMA | G100: Z3593 + LAB=6
A101: U200 | B101: Sintomáticos Respiratorios Examinados (TBC) | F101: SUMA | G101: U200 + (U2142 + LAB=1)
A104: CONTROL Y SEGUIMIENTO DE ADOLESCENTES | F104: Total | G104: 10a- 14a | H104: 15a-19a | J104: 12a-17a | K104: 18a-29a
A105: Z003 | B105: Atención de Crecimiento y Desarrollo del Adolescente 1º Control | F105: SUMA | K105: Z003 + LAB = 1
E106: 2º Control | F106: SUMA | K106: Z003 + LAB = 2
E107: 3º Control | F107: SUMA | K107: Z003 + LAB = 3
A108: U100 | B108: Adolescente con Aplicación de Cuestionario de Habilidades Sociales | F108: SUMA | G108: U100 / D | K108: U100 / D
A109: Z734 | B109: Adolescente con Problemas relacionados con habilidades Sociales inadecuadas | F109: SUMA | G109: Z734 / D | K109: Z734 / D
A111: CONSEJERÍA | F111: Total | G111: 10a- 14a | H111: 15a-19a | J111: 12a-17a | K111: 18a-29a
A112: U169 | B112: Plan de Atención Integral | E112: Elaborado | F112: SUMA | G112: U169/C8002 + LAB=1 + EDAD >=10 Y <=14 | H112: U169/C8002 + LAB=1 + EDAD >=15 Y <=19 | J112: U169/C8002 + LAB=1 + EDAD >=12 Y <=17 | K112: U169 + LAB=1 + EDAD >=18 Y <=29
E113: Ejecutado | F113: SUMA | G113: U169/C8002 + LAB=TA + EDAD >=10 Y <=14 | H113: U169/C8002 + LAB=TA + EDAD >=15 Y <=19 | J113: U169/C8002 + LAB=TA + EDAD >=12 Y <=17 | K113: U169 + LAB=TA + EDAD >=18 Y <=29
A114: --- | B114: Consejería | C114: Integral | E114: 1ra Sesión | F114: SUMA | G114: 99401 /D + LAB=1 + EDAD >=10 Y <=14 | H114: 99401 /D + LAB=1 + EDAD >=15 Y <=19 | J114: 99401 /D + LAB=1 + EDAD >=12 Y <=17 | K114: 99401 /D + LAB=1 + EDAD >=18 Y <=29
E115: 2da Sesión | F115: SUMA | G115: 99401 /D + LAB=2 + EDAD >=10 Y <=14 | H115: 99401 /D + LAB=2 + EDAD >=15 Y <=19 | J115: 99401 /D + LAB=2 + EDAD >=12 Y <=17 | K115: 99401 /D + LAB=2 + EDAD >=18 Y <=29
E116: 3ra a + Sesiones | F116: SUMA | G116: 99401 /D + LAB>=3 + EDAD >=10 Y <=14 | H116: 99401 /D + LAB>=3 + EDAD >=15 Y <=19 | J116: 99401 /D + LAB>=3 + EDAD >=12 Y <=17 | K116: 99401 /D + LAB>=3 + EDAD >=18 Y <=29
E117: Finalizado | F117: SUMA | G117: 99401 /D + LAB=TA + EDAD >=10 Y <=14 | H117: 99401 /D + LAB=TA + EDAD >=15 Y <=19 | J117: 99401 /D + LAB=TA + EDAD >=12 Y <=17 | K117: 99401 /D + LAB=TA + EDAD >=18 Y <=29
C118: Nutricional | E118: 1ra Sesión | F118: SUMA | G118: 99403 /D + LAB=1 + EDAD >=10 Y <=14 | H118: 99403 /D + LAB=1 + EDAD >=15 Y <=19 | J118: 99403 /D + LAB=1 + EDAD >=12 Y <=17 | K118: 99403 /D + LAB=1 + EDAD >=18 Y <=29
E119: 2da Sesión | F119: SUMA | G119: 99403 /D + LAB=2 + EDAD >=10 Y <=14 | H119: 99403 /D + LAB=2 + EDAD >=15 Y <=19 | J119: 99403 /D + LAB=2 + EDAD >=12 Y <=17 | K119: 99403 /D + LAB=2 + EDAD >=18 Y <=29
E120: 3ra a + Sesiones | F120: SUMA | G120: 99403 /D + LAB>=3 + EDAD >=10 Y <=14 | H120: 99403 /D + LAB>=3 + EDAD >=15 Y <=19 | J120: 99403 /D + LAB>=3 + EDAD >=12 Y <=17 | K120: 99403 /D + LAB>=3 + EDAD >=18 Y <=29
C121: Infecciones de Trasmisión Sexual | D121: ITS | E121: 1ra Sesión | F121: SUMA | G121: U130 /D + LAB=1 + EDAD >=10 Y <=14 | H121: U130 /D + LAB=1 + EDAD >=15 Y <=19 | J121: 99404 /D + LAB=1 + EDAD >=12 Y <=17 | K121: 99404 /D + LAB=1 + EDAD >=18 Y <=29
E122: 2da Sesión | F122: SUMA | G122: U130 /D + LAB=2 + EDAD >=10 Y <=14 | H122: U130 /D + LAB=2 + EDAD >=15 Y <=19 | J122: 99404 /D + LAB=2 + EDAD >=12 Y <=17 | K122: 99404 /D + LAB=2 + EDAD >=18 Y <=29
E123: 3ra a + Sesiones | F123: SUMA | G123: U130 /D + LAB>=3 + EDAD >=10 Y <=14 | H123: U130 /D + LAB>=3 + EDAD >=15 Y <=19 | J123: 99404 /D + LAB>=3 + EDAD >=12 Y <=17 | K123: 99404 /D + LAB>=3 + EDAD >=18 Y <=29
D124: VIH | E124: Consejeria pre-test para VIH | F124: SUMA | G124: Z7171 /D + EDAD >=10 Y <=14 | H124: Z7171 /D + EDAD >=15 Y <=19 | J124: Z7171 /D + EDAD >=12 Y <=17 | K124: Z7171 /D + EDAD >=18 Y <=29
E125: Consejeria post-test positivo para VIH | F125: SUMA | G125: Z7172 /D + EDAD >=10 Y <=14 | H125: Z7172 /D + EDAD >=15 Y <=19 | J125: Z7172 /D + EDAD >=12 Y <=17 | K125: Z7172 /D + EDAD >=18 Y <=29
E126: Consejeria post-test negativo para VIH | F126: SUMA | G126: Z7173 /D + EDAD >=10 Y <=14 | H126: Z7173 /D + EDAD >=15 Y <=19 | J126: Z7173 /D + EDAD >=12 Y <=17 | K126: Z7173 /D + EDAD >=18 Y <=29
E127: Consejeria a personas que viven con VIH / SIDA | F127: SUMA | G127: Z7174 /D + EDAD >=10 Y <=14 | H127: Z7174 /D + EDAD >=15 Y <=19 | J127: Z7174 /D + EDAD >=12 Y <=17 | K127: Z7174 /D + EDAD >=18 Y <=29
C128: Salud Sexual y Reproductiva y Planificación Familiar | E128: Consejo y Asesoramiento General sobre la Anticoncepcion | F128: SUMA | G128: Z300 + LAB=1 + EDAD >=10 Y <=14 | H128: Z300 + LAB=1 + EDAD >=15 Y <=19 | J128: Z300 + LAB=1 + EDAD >=12 Y <=17 | K128: Z300 + LAB=1 + EDAD >=18 Y <=29
E129: Consejeria y orientacion general para Planificación Familiar | F129: SUMA | G129: (Z0031/99402) + LAB=1 + EDAD >=10 Y <=14 | H129: (Z0031/99402) + LAB=1 + EDAD >=15 Y <=19 | J129: (Z0031/99402) + LAB=1 + EDAD >=12 Y <=17 | K129: (Z0031/99402) + LAB=1 + EDAD >=18 Y <=29
E130: Consejo y Asesoramiento General sobre la Procreacion | F130: SUMA | G130: Z316 + LAB=1 + EDAD >=10 Y <=14 | H130: Z316 + LAB=1 + EDAD >=15 Y <=19 | J130: Z316 + LAB=1 + EDAD >=12 Y <=17 | K130: Z316 + LAB=1 + EDAD >=18 Y <=29
E131: Otra atencion especificada para la procreación | F131: SUMA | G131: Z318 + LAB=1 + EDAD >=10 Y <=14 | H131: Z318 + LAB=1 + EDAD >=15 Y <=19 | J131: Z318 + LAB=1 + EDAD >=12 Y <=17 | K131: Z318 + LAB=1 + EDAD >=18 Y <=29
A133: VISITA FAMILIAR INTEGRAL | F133: Total | G133: 10a- 14a | H133: 15a-19a | J133: 12a-17a | K133: 18a-29a
A134: U153 | B134: Visita Familiar Integral | E134: Con 1 Visita | F134: SUMA | G134: 99344 / D + LAB=1 + EDAD >=10 Y <=14 | H134: 99344 / D + LAB=1 + EDAD >=15 Y <=19 | J134: 99344 / D + LAB=1 + EDAD >=12 Y <=17 | K134: 99344 / D + LAB=1
E135: Con 2 Visitas | F135: SUMA | G135: 99344 / D + LAB=2 + EDAD >=10 Y <=14 | H135: 99344 / D + LAB=2 + EDAD >=15 Y <=19 | J135: 99344 / D + LAB=2 + EDAD >=12 Y <=17 | K135: 99344 / D + LAB=2
E136: Con 3 a + Visitas | F136: SUMA | G136: 99344 / D + LAB>=3 + EDAD >=10 Y <=14 | H136: 99344 / D + LAB>=3 + EDAD >=15 Y <=19 | J136: 99344 / D + LAB>=3 | K136: 99344 / D + LAB>=3
A137: U721 | B137: Plan Familiar | E137: De Alto Riesgo | F137: SUMA | G137: U721 /D + LAB=1 + EDAD >=10 Y <=14 | H137: U721 /D + LAB=1 + EDAD >=15 Y <=19 | J137: U721 /D + LAB=1 + EDAD >=12 Y <=17 | K137: U721 /D + LAB=1 + EDAD >=12 Y <=17
A138: U722 | E138: De Mediano Riesgo | F138: SUMA | G138: U722 /D + LAB=1 + EDAD >=10 Y <=14 | H138: U722 /D + LAB=1 + EDAD >=15 Y <=19 | J138: U722 /D + LAB=1 + EDAD >=12 Y <=17 | K138: U722 /D + LAB=1 + EDAD >=12 Y <=17
A139: U723 | E139: De Bajo Riesgo | F139: SUMA | G139: U723 /D + LAB=1 + EDAD >=10 Y <=14 | H139: U723 /D + LAB=1 + EDAD >=15 Y <=19 | J139: U723 /D + LAB=1 + EDAD >=12 Y <=17 | K139: U723 /D + LAB=1 + EDAD >=12 Y <=17
A140: U724 | E140: Sin Riesgo | F140: SUMA | G140: U724 /D + LAB=1 + EDAD >=10 Y <=14 | H140: U724 /D + LAB=1 + EDAD >=15 Y <=19 | J140: U724 /D + LAB=1 + EDAD >=12 Y <=17 | K140: U724 /D + LAB=1 + EDAD >=12 Y <=17
A142: TALLERES Y CAPACITACIONES | H142: Nº | I142: PART/BENEF
A143: U123 | B143: Taller para Padres | H143: APP146 + (U122 + U0034) | I143: SUMAR VALOR LAB1
A144: U127 | B144: Taller para Adolescentes | H144: APP141 + (U122 / U1224 / U1225 / U1226 / U1227 / C0005 / C0008) | I144: SUMAR VALOR LAB1
A145: U1243 | B145: Capacitación al Docente | H145: APP144 + (U124 + U0034) | I145: SUMAR VALOR LAB1
A146: U1242 | B146: Capacitación al Personal de Salud | H146: APP100 + (U124 + U0034) | I146: SUMAR VALOR LAB1

Sheet PANEL
C102: =IF(VLOOKUP(INFORME!$C$4,$C$107:$D$125,2,0)>14,0,VLOOKUP(INFORME!$C$4,$C$107:$D$125,2,0)) -> 0 | D102: =MAX(BASE_12_14!L:L)+2 -> 14
E104: SUBREGION | F104: CLAS | G104: EJECUTORA | H104: ESTABLECIMIENTO | I104: PROVINCIA | J104: RED | K104: DISTRITO | L104: NIVEL
D105: =VLOOKUP(INFORME!$C$4,$C$107:$D$125,2,0) -> 15 | E105: (Todas) | F105: (Todas) | G105: (Todas) | H105: (Todas) | I105: (Todas) | J105: (Todas) | K105: (Todas)
C106: MESES | E106: LUCIANO CASTILLO COLONNA | F106: CLAS ALGARROBOS | G106: SALUD PIURA | H106: AMBASAL | I106: AYABACA | J106: AYABACA | K106: AMOTAPE | L106: REGION
C107: Enero | D107: 3 | E107: MORROPON HUANCABAMBA | F107: CLAS BATANES | G107: REGION PIURA-SALUD MORROPON-CHULUCANAS | H107: AMOTAPE | I107: HUANCABAMBA | J107: BAJO PIURA | K107: ARENAL | L107: SUBREGION
C108: Febrero | D108: 4 | E108: PIURA SECHURA | F108: CLAS BELLAVISTA | G108: SALUD LUCIANO CASTILLO COLONNA | H108: ANCHALAY | I108: MORROPON | J108: HUANCABAMBA | K108: AYABACA | L108: EJECUTORA
C109: Marzo | D109: 5 | F109: CLAS BERNAL | G109: HOSPITAL DE APOYO I CHULUCANAS | H109: ANDURCO | I109: PAITA | J109: HUARMACA | K109: BELLAVISTA | L109: RED
C110: Abril | D110: 6 | F110: CLAS BUENOS AIRES | G110: HOSPITAL DE APOYO I NUESTRA SEÑORA DE LAS MERCEDES DE PAITA | H110: ANIA | I110: PIURA | J110: MORROPON CHULUCANAS | K110: BELLAVISTA DE LA UNION | L110: PROVINCIA
C111: Mayo | D111: 7 | F111: CLAS CANCHAQUE | G111: HOSPITAL DE APOYO I SANTA ROSA | H111: ARAGOTO | I111: SECHURA | J111: PIURA CASTILLA | K111: BERNAL | L111: CLAS
C112: Junio | D112: 8 | F112: CLAS CASA GRANDE | G112: HOSPITAL DE APOYO III SULLANA | H112: ARREYPITE - PINGOLA | I112: SULLANA | J112: SULLANA | K112: BUENOS AIRES | L112: DISTRITO
C113: Julio | D113: 9 | F113: CLAS CATACAOS | H113: AYABACA | I113: TALARA | J113: NO PERTENECE A NINGUNA RED | K113: CANCHAQUE | L113: ESTABLECIMIENTO
C114: Agosto | D114: 10 | F114: CLAS CAYETANO HEREDIA | H114: BELLAVISTA | K114: CASTILLA
C115: Septiembre | D115: 11 | F115: CLAS CHALACO | H115: BLAS | K115: CATACAOS
C116: Octubre | D116: 12 | F116: CLAS CHATITO | H116: C. S. MARIA GORETTI | K116: CHALACO
C117: Noviembre | D117: 13 | F117: CLAS CURA MORI | H117: C.S BELLAVISTA | K117: CHULUCANAS
C118: Diciembre | D118: 14 | F118: CLAS FRIAS | H118: C.S CANCHAQUE | K118: COLAN
C119: Total | D119: 15 | F119: CLAS HIGUERON | H119: C.S CHICLAYITO | K119: CRISTO NOS VALGA
C120: I-Trim | D120: 16 | F120: CLAS HOSPITALES PIURA | H120: C.S EL FAIQUE | K120: CURA MORI
C121: II-Trim | D121: 17 | F121: CLAS HOSPITALES SULLANA | H121: C.S EL TUNAL | K121: EL ALTO
C122: III-Trim | D122: 18 | F122: CLAS IGNACIO MERINO | H122: C.S I -4 MORROPON | K122: EL CARMEN DE LA FRONTERA
C123: IV-Trim | D123: 19 | F123: CLAS KM 50 | H123: C.S I-4 SANTO DOMINGO | K123: EL TALLAN
C124: I-Sem | D124: 20 | F124: CLAS LA ARENA | H124: C.S LA ARENA | K124: FRIAS
C125: II-Sem | D125: 21 | F125: CLAS LA LEGUA | H125: C.S LA UNION | K125: HUANCABAMBA
F126: CLAS LA MATANZA | H126: C.S LIMON DE PORCUYA | K126: HUARMACA
F127: CLAS LA UNION | H127: C.S MICAELA BASTIDAS | K127: IGNACIO ESCUDERO
F128: CLAS LAGRIMAS DE CURUMUY | H128: C.S NUEVA ESPERANZA | K128: JILILI
F129: CLAS LALAQUIZ | H129: C.S PACHITEA | K129: LA ARENA
F130: CLAS LETIRA-BECARA | H130: C.S SALITRAL | K130: LA BREA
F131: CLAS MEDIO PIURA | H131: C.S SAN JOSE | K131: LA HUACA
F132: CLAS MONTE SULLON- NARIHUALA-PEDRE | H132: C.S SAN PEDRO | K132: LA MATANZA
F133: CLAS MORROPON | H133: C.S SONDOR | K133: LA UNION
F134: CLAS NANGAY DE MATALACAS | H134: C.S SONDORILLO | K134: LAGUNAS
F135: CLAS PACAIPAMPA | H135: C.S TACALA | K135: LALAQUIZ
F136: CLAS PACHITEA | H136: C.S VICE | K136: LANCONES
F137: CLAS PARACHIQUE | H137: C.S. EL INDIO | K137: LAS LOMAS
F138: CLAS RINCONADA LICUAR | H138: CABO BLANCO | K138: LOBITOS
F139: CLAS SALITRAL | H139: CALVAS DE SAMANGA | K139: LOS ORGANOS
F140: CLAS SALUD PARA TODOS | H140: CANAL MOCHO-CIENEG.SUR | K140: MANCORA
F141: CLAS SAN JUAN DE BIGOTE | H141: CASAS QUEMADAS | K141: MARCAVELICA
F142: CLAS SAN MIGUEL DE PIURA | H142: CENTRO DE SALUD MENTAL COMUNITARIO "SAN ALFONSO" | K142: MIGUEL CHECA
F143: CLAS SAN MIGUEL DEL FAIQUE | H143: CENTRO DE .SALUD I-4 BUENOS AIRES | K143: MONTERO
F144: CLAS SANTA CATALINA DE MOSSA | H144: CENTRO DE INVESTIGACION Y CAPACITACION EN ENTOMOLOGIA Y ENFERMEDADES TRASMISIBLES | K144: MORROPON
F145: CLAS SANTA ROSA | H145: CENTRO DE SALUD FRÍAS | K145: PACAIPAMPA
F146: CLAS SANTA ROSA - NUEVO TALLAN | H146: CENTRO DE SALUD HUARMACA | K146: PAIMAS
F147: CLAS SANTO CRISTO DE CRISTO NOS VA | H147: CENTRO DE SALUD MATERNO INFANTIL-CATACAOS | K147: PAITA
F148: CLAS SANTO DOMINGO | H148: CENTRO DE SALUD MENTAL COMUNITARIO "JESÚS REDENTOR" | K148: PARIÑAS
F149: CLAS SECHURA | H149: CENTRO DE SALUD MENTAL COMUNITARIO SAN ALFANSO | K149: PIURA
F150: CLAS SILAHUA | H150: CENTRO DE SALUD MENTAL COMUNITARIO "MADRE DEL PERPETUO SOCORRO" | K150: QUERECOTILLO
F151: CLAS SINCHAO GRANDE - EL TALLAN | H151: CENTRO DE SALUD MENTAL COMUNITARIO "SAN GERARDO" | K151: RINCONADA LLICUAR
F152: CLAS TAMBOYA | H152: CENTRO DE SALUD MENTAL COMUNITARIO CATACAOS | K152: SALITRAL
F153: CLAS VICE | H153: CENTRO DE SALUD MENTAL COMUNITARIO CHULUCANAS | K153: SAN JUAN DE BIGOTE
F154: CLAS VILLA LOS RANCHOS | H154: CENTRO DE SALUD MENTAL COMUNITARIO PIURA | K154: SAN MIGUEL DE EL FAIQUE
F155: CLAS YAMANGO | H155: CENTRO DE SALUD MENTAL COMUNITARIO SAN GERARDO | K155: SANTA CATALINA DE MOSSA
F156: CLAS YAPATERA | H156: CENTRO DE SALUD MENTAL COMUNITARIO SAN ROMAN | K156: SANTO DOMINGO
F157: CLAS EL OBRERO | H157: CENTRO DE SALUD MENTAL COMUNITARIO SECHURA | K157: SAPILLICA
F158: CLAS IGNACIO ESCUDERO | H158: CHALACALA | K158: SECHURA
F159: CLAS JILILI | H159: CHALACALA ALTA | K159: SICCHEZ
F160: CLAS LA HUACA | H160: CHARAN | K160: SONDOR
F161: CLAS LA PEÐA-LA HORCA | H161: CHICA ALTA | K161: SONDORILLO
F162: CLAS LA TORTUGA | H162: CHILACO PELADOS | K162: SULLANA
F163: CLAS MALLARES | H163: CHINCHIN | K163: SUYO
F164: CLAS NEGRITOS | H164: CHIPILLICO | K164: TAMARINDO
F165: CLAS NUEVE DE OCTUBRE | H165: CHIRINOS | K165: TAMBO GRANDE
F166: CLAS PUEBLO NUEVO COLAN | H166: CHOCAN | K166: VEINTISEIS DE OCTUB
F167: CLAS QUERECOTILLO | H167: CHORRERA DE PULGUERAS | K167: VICE
F168: CLAS SAN FRANCISCO DE CHOCAN | H168: CIENEGUILLO CENTRO | K168: VICHAYAL
F169: CLAS SANTA CRUZ | H169: CIENEGUILLO SUR ALTO | K169: YAMANGO
F170: CLAS SANTA TERESITA | H170: CLAS QUERECOTILLO
F171: CLAS SICCHEZ | H171: COLETAS-CHACHACOMAL
F172: CLAS TAMBOGRANDE | H172: COMUNIDAD SALUDABLE
F173: CLAS VICHAYAL | H173: CP3-SAN MARTIN
F174: NINGUN CLAS | H174: CP4
H175: CP5
H176: CRUCETA
H177: CS I-2 EL TALLAN
H178: CUCUYAS
H179: E. S. I - 1 LACCHAN
H180: E.S I- 3 YAPATERA
H181: E.S I-1 GERALDO
H182: E.S II-1 HOSPITAL CHULUCANAS
H183: E.S NARIHUALA
H184: E.S SANTA JULIA
H185: E.S FRANCO
H186: E.S I.2 MANCUCUR
H187: E.S I-1 CHUSIS
H188: E.S I-1 CAJAS SHAPAYA
H189: E.S I-1 CULEBREROS
H190: E.S I-1 HUAYLAS
H191: E.S I-1 PIEDRA DEL TORO
H192: E.S I-1 SIMIRIS
H193: E.S I-1 TAJAMAR
H194: E.S I-2 CASCAMACHE
H195: E.S I-2 HORMIGUEROS
H196: E.S I-2 ROSARIOS BAJO
H197: E.S I-2 UCHUPATA
H198: E.S I-3 SAPALACHE
H199: E.S I-4 CONSUELO DE VELASCO
H200: E.S I-4 SECHURA
H201: E.S MONTE SULLON
H202: E.S QUINCHAYO GRANDE
H203: E.S. CHATITO
H204: E.S. CIENEGUILLO SUR
H205: E.S. CILIA
H206: E.S. I -1 CASHACOTO
H207: E.S. LA MATANZA
H208: E.S. LA RINCONADA
H209: E.S. PACAIPAMPA
H210: E.S. PEDREGAL GRANDE
H211: E.S. I - 2 TULUCE
H212: E.S. I 4 BERNAL
H213: E.S. I-1 LA HUAQUILLA
H214: E.S. I-1 CONSTANTE
H215: E.S. I-1 JACANACAS
H216: E.S. I-1 PORTACHUELO
H217: E.S. I-1 PUEBLO NUEVO DE BUENOS AIRES
H218: E.S. I-3 CURA MORI
H219: E.S. I-4 CASTILLA
H220: E.S. I-4 JESUS GUERRERO CRUZ
H221: E.S. KM 50
H222: EE.SS I-2 JUZGARA
H223: EL ALAMOR
H224: EL ALTO
H225: EL ARENAL
H226: EL CUCHO
H227: EL LUCUMO
H228: EL ÑURO
H229: EL OBRERO
H230: EL PARTIDOR
H231: EL PITAYO
H232: EL PORVENIR
H233: EL SAUCE-LAS LOMAS
H234: EL SAUCE-SAPILLICA
H235: EL TAMBO
H236: EL TOLDO
H237: ENCUENTRO DE PILARES
H238: ENCUENTRO DE ROMEROS
H239: ESPINDOLA
H240: ESTABLECIMIENTO DE SALUD CHANRRO
H241: ESTABLECIMIENTO DE SALUD I - MARAYPAMPA
H242: ESTABLECIMIENTO DE SALUD I 2 PUEBLO NUEVO DE MARAY
H243: ESTABLECIMIENTO DE SALUD I-1 COYONA
H244: ESTABLECIMIENTO DE SALUD PAMBARUMBE
H245: FELIPE SANTIAGO SALAVERRY
H246: GARABATOS
H247: GICLAS
H248: GIGANTE
H249: GUARAGUAOS
H250: HOSPITAL DE APOYO II - 2, SULLANA
H251: HOSPITAL DE LA AMISTAD PERU - COREA SANTA ROSA II-2
H252: HOSPITAL NUESTRA SEÑORA DE LAS MERCEDES - PAITA
H253: HUACHUMA
H254: HUACHUMA ALTA
H255: HUANGALA
H256: HUASIMAL DE LA SOLANA
H257: HUIRIQUINGUE
H258: I-2 SILAHUA
H259: IGNACIO ESCUDERO
H260: JAHUAY NEGRO
H261: JAMBUR
H262: JIBITO
H263: JILILI
H264: JOSE ABELARDO QUINONES
H265: JOSE OLAYA
H266: JUAN VALER SANDOVAL
H267: LA GOLONDRINA
H268: LA GREDA
H269: LA HUACA
H270: LA ISLA SAN LORENZO
H271: LA ISLILLA
H272: LA LAGUNA
H273: LA MARGARITA
H274: LA MENTA
H275: LA NORIA
H276: LA PEÑA - LA HORCA
H277: LA PEÑITA
H278: LA QUINTA
H279: LA RITA
H280: LA SAUCHA
H281: LA TIENDA
H282: LA TINA
H283: LAGUNAS
H284: LAGUNAS DE CANGLY
H285: LANCONES
H286: LAS CUEVAS
H287: LAS LOMAS
H288: LAS MONICAS
H289: LLOQUE YUPANQUI
H290: LOBITOS
H291: LOS ALGARROBOS
H292: LOS ORGANOS
H293: MACACARA
H294: MALINGAS
H295: MALINGUITAS
H296: MALLARES
H297: MALLARITOS
H298: MANCORA
H299: MARCAVELICA
H300: MARMAS ALTO
H301: MIGUEL CHECA
H302: MIRAFLORES
... 219 more rows

Sheet TRAMA
A3: REPORTE DE ACTIVIDADES MENSUALES DE LA ETAPA DE VIDA ADOLESCENTE
A5: GERESA/DIRESA / DIRIS/ RED / IPRESS : | F5: Periodo: | G5: =TODAY() -> 2023-01-16
A7: MORBILIDAD DEL ADOLESCENTE
A8: CIE10 | B8: DIAGNÓSTICOS | G8: Total | H8: 12a - 14a | I8: 15a-17a
B9: Infecciones Respiratorias Agudas Complicadas | H9: 1 | I9: 238
B10: Infecciones Respiratorias Agudas No Complicadas | H10: 2 | I10: 239
B11: Enfermedades Diarreicas Agudas Complicadas | H11: 3 | I11: 240
B12: Enfermedades Diarreicas Agudas No Complicadas | H12: 4 | I12: 241
F13: KEY
A14: CONTROL Y SEGUIMIENTO DE ADOLESCENTES | G14: Total | H14: 12a - 14a | I14: 15a-17a | L14: GRUPO | M14: SUBGRUPO | N14: INSTITUCION | O14: PAQUETE
A15: C8002 | B15: Plan de Atención Integral de Salud | F15: Iniciado | H15: 5 | I15: 246
F16: Concluido | H16: 6 | I16: 247 | O16: COMPLETO
A17: Z003 | B17: Examen del estado de desarrollo del adolescente | H17: 7 | I17: 248 | O17: ESPECIALIZADO
A18: 99384 | B18: Evaluación Integral del Adolescente | F18: 1º Control | H18: 8 | I18: 249 | N18: IIEE | O18: BASICO
F19: 2º Control | H19: 9 | I19: 250 | O19: COMPLETO
F20: 3º Control | H20: 10 | I20: 251 | O20: ESPECIALIZADO
F21: 4º Control | H21: 11 | I21: 252 | M21: CONCLUIDO | N21: EESS | O21: BASICO
F22: 5º Control | H22: 12 | I22: 253 | O22: COMPLETO
F23: 6º Control a + controles | H23: 13 | I23: 254 | O23: ESPECIALIZADO
F24: Ultimo Control | H24: 14 | I24: 255 | N24: IIEE | O24: BASICO
O25: COMPLETO
A26: VISITA DOMICILIARIA | G26: Total | H26: 12a - 14a | I26: 15a-17a | O26: ESPECIALIZADO
A27: C0011 | B27: Visita Domiciliaria | F27: 1º visita | H27: 15 | I27: 256
F28: 2º visita | H28: 16 | I28: 257
F29: Con 3 a + visitas | H29: 17 | I29: 258
A30: 99509 | B30: Visita domiciliaria para la ayuda con actividades de la vida diaria y del cuidado personal | F30: 1º visita | H30: 18 | I30: 259
F31: 2º visita | H31: 19 | I31: 260
F32: Con 3 a + visitas | H32: 20 | I32: 261
A34: EVALUACIÓN FÍSICA NUTRICIONAL | G34: Total | H34: 12a - 14a | I34: 15a-17a
A35: Z000 | B35: Examen médico general | H35: 21 | I35: 262
A36: Z019 | B36: Valoración de Factores de Riesgo (DNT) | H36: 22 | I36: 263
A37: 99209.04 | B37: Evaluación Nutricional Antropometrica (PAB) | D37: RSM= Riesgo Bajo | H37: 23 | I37: 264
D38: RSA= Riesgo Alto | H38: 24 | I38: 265
D39: RMA= Riesgo Muy Alto | H39: 25 | I39: 266
A40: E660 | B40: Índice de Masa Corporal (IMC) | D40: Obesidad debido a exceso de caloría (Sobrepeso) | H40: 26 | I40: 267
A41: E669 | D41: Obesidad no especificada (Obesidad) | H41: 27 | I41: 268
A42: Z006 | D42: Peso Normal | H42: 28 | I42: 269
A43: E440 | D43: Desnutrición Proteico Calórica Moderada(Desnutrición Aguda) | H43: 29 | I43: 270
A44: E43X | D44: Desnutrición Proteico Calórica Severa No Especificada | H44: 30 | I44: 271
A45: E344 | B45: Talla/Edad | D45: Estatura Alta Constitucional (Talla Alta) | H45: 31 | I45: 272
A46: Z006 | D46: Talla Normal | H46: 32 | I46: 273
A47: E45X | D47: Desnutrición Crónica T/E (Talla Baja) | H47: 33 | I47: 274
A48: E785 | B48: Hiperlipidemia No Especificada (Dislipidemia) | H48: 34 | I48: 275
A49: E65X | B49: Adiposidad Localizada | H49: 35 | I49: 276
A50: Z728 | B50: Otros Problemas relacionados al Estilo de Vida | H50: 36 | I50: 277
A51: 85018 | B51: Dosaje de Hemoglobina | H51: 37 | I51: 278
A52: 99199.26 | B52: Suplementación de sulfato ferroso y ácido fólico | H52: 38 | I52: 279
A54: EVALUACIÓN DE LA AGUDEZA VISUAL | G54: Total | H54: 12a - 14a | I54: 15a-17a
B55: Resultado del procedimiento | D55: Z006 = Normal | H55: 39 | I55: 280
D56: H547 = Disminución de la Agudeza Visual sin especificación | H56: 40 | I56: 281
A57: 99173 | B57: 99173 - Prueba de la Agudeza Visual cuantitativa bilateral | H57: 41 | I57: 282
A58: Z010 | B58: Z010 - Examen de Ojos y de la Visión | H58: 42 | I58: 283
A59: 99401 | B59: 99401.16 - Consejerìa ocular | H59: 43 | I59: 284
A61: EVALUACIÓN DE LA AGUDEZA AUDITIVA | G61: Total | H61: 12a - 14a | I61: 15a-17a
A62: H919 | B62: Determinación de la Agudeza Auditiva sin Especificación | H62: 44 | I62: 285
A63: Z011 | B63: Examen de Oídos y de la Audición | H63: 45 | I63: 286
A65: ATENCIÓN ODONTOLÓGICA | G65: Total | H65: 12a - 14a | I65: 15a-17a
A66: D1310 | B66: Asesoría Nutricional para el Control de Enfermedades Dentales | H66: 46 | I66: 287
A67: D1330 | B67: Instrucción de Higiene Oral | H67: 47 | I67: 288
A68: D0120 | B68: Examen Estomatológico | H68: 48 | I68: 289
A69: D1110 | B69: Profilaxis Dental | H69: 49 | I69: 290
A70: U510 | B70: Alta Básica Odontológica | H70: 50 | I70: 291
A72: EVALUACIÓN FÍSICO POSTURAL | G72: Total | H72: 12a - 14a | I72: 15a-17a
A73: 96008 | B73: Análisis Postural Estático ( NORMAL) | H73: 51 | I73: 292
A74: M400 | B74: Cifosis postural | H74: 52 | I74: 293
A75: M402 | B75: Otras cifosis y las no especificadas | H75: 53 | I75: 294
A76: M403 | B76: Síndrome de espalda plana | H76: 54 | I76: 295
A77: M405 | B77: Lordosis no especifica | H77: 55 | I77: 296
A78: M419 | B78: Escoliosis, no especificada | H78: 56 | I78: 297
A80: INMUNIZACIONES | G80: Total | H80: 12a - 14a | I80: 15a-17a
A81: 90746 | B81: Vacunación Antihepatitis Viral B (HvB) ======> DOSIS 1 | H81: 57 | I81: 298
B82: Vacunación Antihepatitis Viral B (HvB) ======> DOSIS 2 | H82: 58 | I82: 299
B83: Vacunación Antihepatitis Viral B (HvB) ======> DOSIS 3 | H83: 59 | I83: 300
A84: 90658 | B84: Vacuna contra la Influenza (Estacional) | H84: 60 | I84: 301
A85: 90714 | B85: Vacunación Diftotetánica (dT) (Incluye varones y gestantes) ======> DOSIS 1 | H85: 61 | I85: 302
B86: Vacunación Diftotetánica (dT) (Incluye varones y gestantes) ======>DOSIS 2 | H86: 62 | I86: 303
B87: Vacunación Diftotetánica (dT) (Incluye varones y gestantes) ======>DOSIS 3 | H87: 63 | I87: 304
A88: 90649 | B88: Vacuna contra Virus de Papiloma Humano ======> DOSIS 1 | H88: 64 | I88: 305
B89: Vacuna contra Virus de Papiloma Humano ======> DOSIS 2 | H89: 65 | I89: 306
A90: 90717 | B90: Vacuna Antiamarilica | H90: 66 | I90: 307
A92: EVALUACIÓN DEL DESARROLLO SEXUAL/ PLANIFICACIÓN FAMILIAR | G92: Total | H92: 12a - 14a | I92: 15a-17a
A93: 99384.02 | B93: Evaluación del desarrollo sexual según Tanner. | H93: 67 | I93: 308
A94: 99208 | B94: Atención en Planificación Familiar y SSR | H94: 68 | I94: 309
A95: De acuerdo al MAC elegido | B95: Entrega de Métodos Anticonceptivos, en caso de que el/la Adolescente lo requiera
B96: 58300 | D96: DIU | H96: 69 | I96: 310
B98: HORMONAL | C98: 99208.13 | E98: ORAL COMBINADO | H98: 70 | I98: 311
C100: 99208.05 | E100: INYECTABLE TRIMESTRAL | H100: 71 | I100: 312
C102: 99208.04 | E102: INYECTABLE MENSUAL | H102: 72 | I102: 313
C104: IMPLANTE | H104: 73 | I104: 314
B106: BARRERA | C106: CONDON MASCULINO | H106: 74 | I106: 315
C108: CONDON FEMENINO | H108: 75 | I108: 316
B110: AQV FEMENINO | H110: 76 | I110: 317
B111: AQV MASCULINO | H111: 77 | I111: 318
B112: MELA | H112: 78 | I112: 319
B113: ABSTINECIA PERIODICA | C113: BILLINGS | H113: 79 | I113: 320 | O113: 0 | P113: H
C114: RITMO | H114: 80 | I114: 321 | P114: =O113&P113 -> 0H
C115: DIAS FIJO | H115: 81 | I115: 322
A117: EVALUACIÓN CLÍNICA | G117: Total | H117: 12a - 14a | I117: 15a-17a
A118: L709 | B118: Acné no especificado | H118: 82 | I118: 323
A119: D509 | B119: Anemia por Deficiencia de Hierro sin Especificación | H119: 83 | I119: 324
A120: O990 | B120: Anemia que afecta al Embarazo, Parto o Puerperio | H120: 84 | I120: 325
A121: U310 | B121: Administración de Tratamiento (Anemia) | H121: 85 | I121: 326
A122: J459 | B122: Asma No Especificada | H122: 86 | I122: 327
A123: I10X | B123: Hipertensión Esencial Primaria (Hipertensión Arterial) | H123: 87 | I123: 328
A124: R51X | B124: Cefalea | H124: 88 | I124: 329
A125: B829 | B125: Parasitosis Intestinal, sin otra Especificación | H125: 89 | I125: 330
A126: N63X | B126: Masa No Especificada en la Mama | H126: 90 | I126: 331
A127: A084 | B127: Infección Intestinal Viral, Sin Otra Especificación | H127: 91 | I127: 332
A128: B373 | B128: Candidiasis de la Vulva y de la Vagina (Candidiasis Vaginal) | H128: 92 | I128: 333
A129: B853 | B129: Pediculosis del Pubis | H129: 93 | I129: 334
A130: B968 | B130: Vaginosis Bacteriana | H130: 94 | I130: 335
A131: A64X9 | B131: Síndrome de Flujo Vaginal | H131: 95 | I131: 336
A132: A64X5 | B132: Síndrome de Dolor Abdominal Bajo | H132: 96 | I132: 337
A133: A64X6 | B133: Síndrome de Secreción Uretral | H133: 97 | I133: 338
A134: 99199.11 | B134: Administración de Tratamiento (ITS) | H134: 98 | I134: 339
A136: CONSEJERÍAS | G136: Total | H136: 12a - 14a | I136: 15a-17a
A137: 99401 | B137: Consejería Integral | H137: 99 | I137: 340
A138: 99402.03 | B138: Consejería/Orientación en Salud Sexual y Reproductiva | H138: 100 | I138: 341
A139: 99402.04 | B139: Orientación/Consejería en Planificación Familiar | H139: 101 | I139: 342
A140: 99402.09 | B140: Consejería de Prevención en Riesgos de Salud Mental | H140: 102 | I140: 343
A141: 99401.31 | B141: Consejería en Prevención de Enfermedades No transmisibles (Salud Física) | H141: 103 | I141: 344
A142: 99403 | B142: Consejería Nutricional | H142: 104 | I142: 345
A143: 99403.01 | B143: Consejería Nutricional: Alimentación Saludable | H143: 105 | I143: 346
A144: 99401.33 | B144: Consejería Pre Test para VIH | H144: 106 | I144: 347
A145: 99401.34 | B145: Consejería Post Test para VIH - Resultado No Reactivo | H145: 107 | I145: 348
A146: 99403.03 | B146: Consejería Post Test para VIH - Resultado Reactivo | H146: 108 | I146: 349
A147: 99402.05 | B147: Consejería/Orientación en Prevención de ITS, VIH, Hepatitis | H147: 109 | I147: 350
A148: 99401.24 | B148: Consejerìa higiene de manos | H148: 110 | I148: 351
A149: 99401.19 | B149: Consejerìa para el autocuidado | H149: 111 | I149: 352
A151: TOMA DE PRUEBA RÁPIDA (en caso lo requiera) PARA LA DETECCIÓN DE | G151: Total | H151: 12a - 14a | I151: 15a-17a
A152: 86703 | B152: Anticuerpos; HIV-1 y HIV-2, análisis único (Tamizaje de VIH por Prueba Rápida) | H152: 112 | I152: 353
A153: 86780 | B153: Anticuerpo: Treponema Pallidum(Tamizaje de Sífilis por Prueba Rápida) | H153: 113 | I153: 354
A154: 86593 | B154: Prueba de Sífilis; anticuerpo no treponémico cuantitativa (Tamizaje de Hepatitis B por Prueba Rápida) | H154: 114 | I154: 355
A155: Z320 | B155: Embarazo No Confirmado: toma de pruebas para el descarte de embarazo en caso la adolescente lo requiera. (examen de orina) | H155: 115 | I155: 356
A157: SALUD MENTAL | G157: Total | H157: 12a - 14a | I157: 15a-17a
A158: 96150 | B158: Entrevista de Tamizaje | H158: 116 | I158: 357
A159: U100 | B159: Aplicación de Cuestionario de Habilidades Sociales | H159: 117 | I159: 358
A160: F419 | B160: Trastorno de ansiedad, no Especificado | H160: 118 | I160: 359
A161: Z553 | B161: Problemas Relacionados con el Bajo Rendimiento Escolar | H161: 119 | I161: 360
A162: Z7281 | B162: Riesgos de Lesiones o Accidentes | H162: 120 | I162: 361
A163: 96150.01 | B163: Entrevista de Tamizaje | D163: 96150.01 | E163: Tamizaje de Salud Mental en Violencia | H163: 121 | I163: 362
A164: 96150.02 | D164: 96150.02 | E164: Tamizaje de Salud Mental en Alcohol y Drogas | H164: 122 | I164: 363
A165: 96150.03 | D165: 96150.03 | E165: Tamizaje de Salud Mental en Trastornos Depresivos | H165: 123 | I165: 364
A166: 96150.04 | D166: 96150.04 | E166: Tamizaje de Salud Mental en Psicosis | H166: 124 | I166: 365
A167: 96150.05 | D167: 96150.05 | E167: Tamizaje de Salud Mental en Habilidades Sociales | H167: 125 | I167: 366
A169: TAMIZAJES POSITIVOS | G169: Total | H169: 12a - 14a | I169: 15a-17a
A170: R456 | B170: Problemas relacionados con violencia | H170: 126 | I170: 367
A171: Z734 | B171: Problemas Relacionados con Habilidades Sociales Inadecuadas | H171: 127 | I171: 368
A172: Z720 | B172: Problemas Relacionados con el Uso de Tabaco | H172: 128 | I172: 369
A173: Z721 | B173: Problemas Sociales Relacionados con el Uso de Alcohol | H173: 129 | I173: 370
A174: Z722 | B174: Problemas Sociales Relacionados con el Uso de drogas | H174: 130 | I174: 371
A175: Z726 | B175: Problemas relacionados con el Juego y las apuestas | H175: 131 | I175: 372
A176: Z619 | B176: Problemas Relacionados con Experiencia Negativa no Especificada en la Infancia | H176: 132 | I176: 373
A177: Z639 | B177: Otros Problemas Relacionados con el Grupo Primario de Apoyo, Inclusive Circunstancias Familiares (Relaciones Familiares) | H177: 133 | I177: 374
J178: UPS 302304
A179: ACTIVIDADES PREVENTIVAS PROMOCIONALES | G179: Total | H179: 12a - 14a | I179: 15a-17a
A180: C0009 | B180: Sesión Educativa | H180: 134 | I180: 375
A181: U1258 | B181: Sesión de entrenamiento en familias fuertes | H181: 135 | I181: 376
J182: UPS 302304
A183: ACTIVIDADES PREVENTIVAS PROMOCIONALES | G183: Total | H183: 12a - 14a | I183: 15a-17a
A184: APP 93 | B184: Actividad en colegios | H184: 136 | I184: 377
A185: APP100 | B185: Establecimiento de Salud | H185: 137 | I185: 378
A186: APP104 | B186: Municipalidades | H186: 138 | I186: 379
A187: APP 136 | B187: Actividades con familia | H187: 139 | I187: 380
A188: APP141 | B188: Actividades con adolescentes | H188: 140 | I188: 381
A189: APP144 | B189: Actividades con docentes | H189: 141 | I189: 382
A190: APP145 | B190: Actividades con alumnos | H190: 142 | I190: 383
A191: APP146 | B191: Actividades con padres | H191: 143 | I191: 384
A192: APP150 | B192: Actividades con autoridades | H192: 144 | I192: 385
J193: UPS 302304
A194: ACTIVIDADES PREVENTIVAS PROMOCIONALES | G194: Total | H194: 12a - 14a | I194: 15a-17a
A195: C1021 | B195: Organización de Charla para Abogacía y Políticas Públicas | H195: 145 | I195: 386
A196: C0007 | B196: Taller para la familia | H196: 146 | I196: 387
A197: C0010 | B197: Sesión Demostrativa | H197: 147 | I197: 388
A198: 90872 | B198: Taller de habilidades sociales | H198: 148 | I198: 389
A199: C0008 | B199: Taller para personal de salud | H199: 149 | I199: 390
A200: C2121.01 | B200: Animación Sociocultural | H200: 150 | I200: 391
A201: C2121 | B201: Teatros Populares | H201: 151 | I201: 392
A202: C3152 | B202: Formación de Educadores de Pares | H202: 152 | I202: 393
A203: C7001 | B203: Monitoreo | H203: 153 | I203: 394
A204: C7002 | B204: Supervisión | H204: 154 | I204: 395
A205: C7003 | B205: Evaluación | H205: 155 | I205: 396
A206: C7004 | B206: Asistencia Técnica | H206: 156 | I206: 397
A208: C0009 | B208: SESIONES EDUCATIVAS
A209: PSA | B209: Salud Física Nutricional de 12 a 14 años | G209: Total | H209: 12a - 14a | I209: 15a-17a
A210: 1 | B210: Actividad Física | H210: 157 | I210: 398
A211: 2 | B211: Alimentación Saludable | H211: 158 | I211: 399
A212: 3 | B212: Higiene | H212: 159 | I212: 400
A213: 4 | B213: Protección solar | H213: 160 | I213: 401
A214: 5 | B214: Salud Bucal | H214: 161 | I214: 402
A215: 6 | B215: Salud ocular | H215: 162 | I215: 403
A216: 7 | B216: Cuidado del medio ambiente | H216: 163 | I216: 404
A217: 8 | B217: Medidas de seguridad y prevención de accidentes. Primeros auxilios | H217: 164 | I217: 405
A218: 9 | B218: Salud respiratoria y tuberculosis: Higiene y salud bucal. | H218: 165 | I218: 406
A220: PSA | B220: Salud Física Nutricional de 15 a 17 años | G220: Total | H220: 12a - 14a | I220: 15a-17a
A221: 1 | B221: Actividad Física y deporte | H221: 166 | I221: 407
A222: 2 | B222: Alimentación Saludable | H222: 167 | I222: 408
A223: 3 | B223: Higiene | H223: 168 | I223: 409
A224: 4 | B224: Prvención de transtornos posturales | H224: 169 | I224: 410
A225: 5 | B225: Protección solar | H225: 170 | I225: 411
... 75 more rows

Sheet INFORME
B3: REPORTE DE ACTIVIDADES MENSUALES DE LA ETAPA DE VIDA ADOLESCENTE
B4: MES: | C4: Total | E4: 2022
B5: GERESA/DIRESA / DIRIS/ RED / IPRESS : | D5: EJECUTORA | E5: REGION | G5: PIURA
B7: MORBILIDAD DEL ADOLESCENTE
B8: CIE10 | C8: DIAGNÓSTICOS | H8: Total Adolesc | I8: 12a - 14a | J8: 15a-17a
A9: 1 | C9: Infecciones Respiratorias Agudas Complicadas | H9: =I9+J9 -> 237 | I9: =VLOOKUP(A9,Tabla_12_14!A$7:$U$201,PANEL!$D$105,0) -> 141 | J9: =VLOOKUP(K9,Tabla_15_17!$A$7:$U$201,PANEL!$D$105,1) -> 96 | K9: 238
A10: 2 | C10: Infecciones Respiratorias Agudas No Complicadas | H10: =I10+J10 -> 10438 | I10: =VLOOKUP(A10,Tabla_12_14!A$7:$U$201,PANEL!$D$105,0) -> 5860 | J10: =VLOOKUP(K10,Tabla_15_17!$A$7:$U$201,PANEL!$D$105,1) -> 4578 | K10: 239
A11: 3 | C11: Enfermedades Diarreicas Agudas Complicadas | H11: 572 | I11: =VLOOKUP(A11,Tabla_12_14!A$7:$U$201,PANEL!$D$105,0) -> 284 | J11: =VLOOKUP(K11,Tabla_15_17!$A$7:$U$201,PANEL!$D$105,1) -> 288 | K11: 240
A12: 4 | C12: Enfermedades Diarreicas Agudas No Complicadas | H12: 478 | I12: =VLOOKUP(A12,Tabla_12_14!A$7:$U$201,PANEL!$D$105,0) -> 237 | J12: =VLOOKUP(K12,Tabla_15_17!$A$7:$U$201,PANEL!$D$105,1) -> 241 | K12: 241
B14: CONTROL Y SEGUIMIENTO DE ADOLESCENTES | H14: Total Adolesc | I14: 12a - 14a | J14: 15a-17a
A15: 5 | B15: C8002 | C15: Plan de Atención Integral de Salud | G15: Iniciado | H15: =I15+J15 -> 52846 | I15: =VLOOKUP(A15,Tabla_12_14!A$7:$U$201,PANEL!$D$105,0) -> 28566 | J15: =VLOOKUP(K15,Tabla_15_17!$A$7:$U$201,PANEL!$D$105,1) -> 24280 | K15: 242
A16: 6 | G16: Concluido | H16: 20253 | I16: =VLOOKUP(A16,Tabla_12_14!A$7:$U$201,PANEL!$D$105,0) -> 10643 | J16: =VLOOKUP(K16,Tabla_15_17!$A$7:$U$201,PANEL!$D$105,1) -> 9610 | K16: 243
A17: 7 | B17: Z003 | C17: Examen del estado de desarrollo del adolescente | H17: 90313 | I17: =VLOOKUP(A17,Tabla_12_14!A$7:$U$201,PANEL!$D$105,0) -> 49306 | J17: =VLOOKUP(K17,Tabla_15_17!$A$7:$U$201,PANEL!$D$105,1) -> 41007 | K17: 244
A18: 8 | B18: 99384 | C18: Evaluación Integral del Adolescente | G18: 1º Control | H18: 35412 | I18: =VLOOKUP(A18,Tabla_12_14!A$7:$U$201,PANEL!$D$105,0) -> 19617 | J18: =VLOOKUP(K18,Tabla_15_17!$A$7:$U$201,PANEL!$D$105,1) -> 15795 | K18: 245
A19: 9 | G19: 2º Control | H19: 24261 | I19: =VLOOKUP(A19,Tabla_12_14!A$7:$U$201,PANEL!$D$105,0) -> 13886 | J19: =VLOOKUP(K19,Tabla_15_17!$A$7:$U$201,PANEL!$D$105,1) -> 10375 | K19: 246
A20: 10 | G20: 3º Control | H20: 19762 | I20: =VLOOKUP(A20,Tabla_12_14!A$7:$U$201,PANEL!$D$105,0) -> 10546 | J20: =VLOOKUP(K20,Tabla_15_17!$A$7:$U$201,PANEL!$D$105,1) -> 9216 | K20: 247
A21: 11 | G21: 4º Control | H21: 53 | I21: =VLOOKUP(A21,Tabla_12_14!A$7:$U$201,PANEL!$D$105,0) -> 38 | J21: =VLOOKUP(K21,Tabla_15_17!$A$7:$U$201,PANEL!$D$105,1) -> 15 | K21: 248
A22: 12 | G22: 5º Control | H22: 6 | I22: =VLOOKUP(A22,Tabla_12_14!A$7:$U$201,PANEL!$D$105,0) -> 3 | J22: =VLOOKUP(K22,Tabla_15_17!$A$7:$U$201,PANEL!$D$105,1) -> 3 | K22: 249
A23: 13 | G23: 6º Control a + controles | H23: 161 | I23: =VLOOKUP(A23,Tabla_12_14!A$7:$U$201,PANEL!$D$105,0) -> 161 | J23: =VLOOKUP(K23,Tabla_15_17!$A$7:$U$201,PANEL!$D$105,1) -> 0 | K23: 250
A24: 14 | G24: Ultimo Control | H24: 204 | I24: =VLOOKUP(A24,Tabla_12_14!A$7:$U$201,PANEL!$D$105,0) -> 155 | J24: =VLOOKUP(K24,Tabla_15_17!$A$7:$U$201,PANEL!$D$105,1) -> 49 | K24: 251
B26: VISITA DOMICILIARIA | H26: Total Adolesc | I26: 12a - 14a | J26: 15a-17a
A27: 15 | B27: C0011 | C27: Visita Domiciliaria | G27: 1º visita | H27: =I27+J27 -> 11951 | I27: =VLOOKUP(A27,Tabla_12_14!A$7:$U$201,PANEL!$D$105,0) -> 5463 | J27: =VLOOKUP(K27,Tabla_15_17!$A$7:$U$201,PANEL!$D$105,1) -> 6488 | K27: 252
A28: 16 | G28: 2º visita | H28: 3140 | I28: =VLOOKUP(A28,Tabla_12_14!A$7:$U$201,PANEL!$D$105,0) -> 1067 | J28: =VLOOKUP(K28,Tabla_15_17!$A$7:$U$201,PANEL!$D$105,1) -> 2073 | K28: 253
A29: 17 | G29: Con 3 a + visitas | H29: 3475 | I29: =VLOOKUP(A29,Tabla_12_14!A$7:$U$201,PANEL!$D$105,0) -> 901 | J29: =VLOOKUP(K29,Tabla_15_17!$A$7:$U$201,PANEL!$D$105,1) -> 2574 | K29: 254
A30: 18 | B30: 99509 | C30: Visita domiciliaria para la ayuda con actividades de la vida diaria y del cuidado personal | G30: 1º visita | H30: 7 | I30: =VLOOKUP(A30,Tabla_12_14!A$7:$U$201,PANEL!$D$105,0) -> 7 | J30: =VLOOKUP(K30,Tabla_15_17!$A$7:$U$201,PANEL!$D$105,1) -> 0 | K30: 255
A31: 19 | G31: 2º visita | H31: 0 | I31: =VLOOKUP(A31,Tabla_12_14!A$7:$U$201,PANEL!$D$105,0) -> 0 | J31: =VLOOKUP(K31,Tabla_15_17!$A$7:$U$201,PANEL!$D$105,1) -> 0 | K31: 256
A32: 20 | G32: Con 3 a + visitas | H32: 0 | I32: =VLOOKUP(A32,Tabla_12_14!A$7:$U$201,PANEL!$D$105,0) -> 0 | J32: =VLOOKUP(K32,Tabla_15_17!$A$7:$U$201,PANEL!$D$105,1) -> 0 | K32: 257
B34: EVALUACIÓN FÍSICA NUTRICIONAL | H34: Total Adolesc | I34: 12a - 14a | J34: 15a-17a
A35: 21 | B35: Z000 | C35: Examen médico general | H35: =I35+J35 -> 4244 | I35: =VLOOKUP(A35,Tabla_12_14!A$7:$U$201,PANEL!$D$105,0) -> 2210 | J35: =VLOOKUP(K35,Tabla_15_17!$A$7:$U$201,PANEL!$D$105,1) -> 2034 | K35: 258
A36: 22 | B36: Z019 | C36: Valoración de Factores de Riesgo (DNT) | H36: 5306 | I36: =VLOOKUP(A36,Tabla_12_14!A$7:$U$201,PANEL!$D$105,0) -> 2113 | J36: =VLOOKUP(K36,Tabla_15_17!$A$7:$U$201,PANEL!$D$105,1) -> 3193 | K36: 259
A37: 23 | B37: 99209.04 | C37: Evaluación Nutricional Antropometrica (PAB) | E37: RSM= Riesgo Bajo | H37: 11193 | I37: =VLOOKUP(A37,Tabla_12_14!A$7:$U$201,PANEL!$D$105,0) -> 6531 | J37: =VLOOKUP(K37,Tabla_15_17!$A$7:$U$201,PANEL!$D$105,1) -> 4662 | K37: 260
A38: 24 | E38: RSA= Riesgo Alto | H38: 1864 | I38: =VLOOKUP(A38,Tabla_12_14!A$7:$U$201,PANEL!$D$105,0) -> 1000 | J38: =VLOOKUP(K38,Tabla_15_17!$A$7:$U$201,PANEL!$D$105,1) -> 864 | K38: 261
A39: 25 | E39: RMA= Riesgo Muy Alto | H39: 516 | I39: =VLOOKUP(A39,Tabla_12_14!A$7:$U$201,PANEL!$D$105,0) -> 326 | J39: =VLOOKUP(K39,Tabla_15_17!$A$7:$U$201,PANEL!$D$105,1) -> 190 | K39: 262
A40: 26 | B40: E660 | C40: Índice de Masa Corporal (IMC) | E40: Obesidad debido a exceso de caloría (Sobrepeso) | H40: 4124 | I40: =VLOOKUP(A40,Tabla_12_14!A$7:$U$201,PANEL!$D$105,0) -> 1891 | J40: =VLOOKUP(K40,Tabla_15_17!$A$7:$U$201,PANEL!$D$105,1) -> 2233 | K40: 263
A41: 27 | B41: E669 | E41: Obesidad no especificada (Obesidad) | H41: 1798 | I41: =VLOOKUP(A41,Tabla_12_14!A$7:$U$201,PANEL!$D$105,0) -> 869 | J41: =VLOOKUP(K41,Tabla_15_17!$A$7:$U$201,PANEL!$D$105,1) -> 929 | K41: 264
A42: 28 | B42: Z006 | E42: Peso Normal | H42: 35536 | I42: =VLOOKUP(A42,Tabla_12_14!A$7:$U$201,PANEL!$D$105,0) -> 17578 | J42: =VLOOKUP(K42,Tabla_15_17!$A$7:$U$201,PANEL!$D$105,1) -> 17958 | K42: 265
A43: 29 | B43: E440 | E43: Desnutrición Proteico Calórica Moderada(Desnutrición Aguda) | H43: 624 | I43: =VLOOKUP(A43,Tabla_12_14!A$7:$U$201,PANEL!$D$105,0) -> 360 | J43: =VLOOKUP(K43,Tabla_15_17!$A$7:$U$201,PANEL!$D$105,1) -> 264 | K43: 266
A44: 30 | B44: E43X | E44: Desnutrición Proteico Calórica Severa No Especificada | H44: 45 | I44: =VLOOKUP(A44,Tabla_12_14!A$7:$U$201,PANEL!$D$105,0) -> 24 | J44: =VLOOKUP(K44,Tabla_15_17!$A$7:$U$201,PANEL!$D$105,1) -> 21 | K44: 267
A45: 31 | B45: E344 | C45: Talla/Edad | E45: Estatura Alta Constitucional (Talla Alta) | H45: 58 | I45: =VLOOKUP(A45,Tabla_12_14!A$7:$U$201,PANEL!$D$105,0) -> 43 | J45: =VLOOKUP(K45,Tabla_15_17!$A$7:$U$201,PANEL!$D$105,1) -> 15 | K45: 268
A46: 32 | B46: Z006 | E46: Talla Normal | H46: 35536 | I46: =VLOOKUP(A46,Tabla_12_14!A$7:$U$201,PANEL!$D$105,0) -> 17578 | J46: =VLOOKUP(K46,Tabla_15_17!$A$7:$U$201,PANEL!$D$105,1) -> 17958 | K46: 269
A47: 33 | B47: E45X | E47: Desnutrición Crónica T/E (Talla Baja) | H47: 2908 | I47: =VLOOKUP(A47,Tabla_12_14!A$7:$U$201,PANEL!$D$105,0) -> 1423 | J47: =VLOOKUP(K47,Tabla_15_17!$A$7:$U$201,PANEL!$D$105,1) -> 1485 | K47: 270
A48: 34 | B48: E785 | C48: Hiperlipidemia No Especificada (Dislipidemia) | H48: 254 | I48: =VLOOKUP(A48,Tabla_12_14!A$7:$U$201,PANEL!$D$105,0) -> 119 | J48: =VLOOKUP(K48,Tabla_15_17!$A$7:$U$201,PANEL!$D$105,1) -> 135 | K48: 271
A49: 35 | B49: E65X | C49: Adiposidad Localizada | H49: 4 | I49: =VLOOKUP(A49,Tabla_12_14!A$7:$U$201,PANEL!$D$105,0) -> 0 | J49: =VLOOKUP(K49,Tabla_15_17!$A$7:$U$201,PANEL!$D$105,1) -> 4 | K49: 272
A50: 36 | B50: Z728 | C50: Otros Problemas relacionados al Estilo de Vida | H50: 413 | I50: =VLOOKUP(A50,Tabla_12_14!A$7:$U$201,PANEL!$D$105,0) -> 118 | J50: =VLOOKUP(K50,Tabla_15_17!$A$7:$U$201,PANEL!$D$105,1) -> 295 | K50: 273
A51: 37 | B51: 85018 | C51: Dosaje de Hemoglobina | H51: 20132 | I51: =VLOOKUP(A51,Tabla_12_14!A$7:$U$201,PANEL!$D$105,0) -> 9819 | J51: =VLOOKUP(K51,Tabla_15_17!$A$7:$U$201,PANEL!$D$105,1) -> 10313 | K51: 274
A52: 38 | B52: 99199.26 | C52: Suplementación de sulfato ferroso y ácido fólico | H52: 24003 | I52: =VLOOKUP(A52,Tabla_12_14!A$7:$U$201,PANEL!$D$105,0) -> 13072 | J52: =VLOOKUP(K52,Tabla_15_17!$A$7:$U$201,PANEL!$D$105,1) -> 10931 | K52: 275
B54: EVALUACIÓN DE LA AGUDEZA VISUAL | H54: Total Adolesc | I54: 12a - 14a | J54: 15a-17a
A55: 39 | C55: Resultado del procedimiento | E55: Z006 = Normal | H55: =I55+J55 -> 15900 | I55: =VLOOKUP(A55,Tabla_12_14!A$7:$U$201,PANEL!$D$105,0) -> 9016 | J55: =VLOOKUP(K55,Tabla_15_17!$A$7:$U$201,PANEL!$D$105,1) -> 6884 | K55: 276
A56: 40 | E56: H547 = Disminución de la Agudeza Visual sin especificación | H56: 0 | I56: =VLOOKUP(A56,Tabla_12_14!A$7:$U$201,PANEL!$D$105,0) -> 0 | J56: =VLOOKUP(K56,Tabla_15_17!$A$7:$U$201,PANEL!$D$105,1) -> 0 | K56: 277
A57: 41 | B57: 99173 | C57: Prueba de la Agudeza Visual cuantitativa bilateral | H57: 23599 | I57: =VLOOKUP(A57,Tabla_12_14!A$7:$U$201,PANEL!$D$105,0) -> 13069 | J57: =VLOOKUP(K57,Tabla_15_17!$A$7:$U$201,PANEL!$D$105,1) -> 10530 | K57: 278
A58: 42 | B58: Z010 | C58: Examen de Ojos y de la Visión | H58: 19169 | I58: =VLOOKUP(A58,Tabla_12_14!A$7:$U$201,PANEL!$D$105,0) -> 10377 | J58: =VLOOKUP(K58,Tabla_15_17!$A$7:$U$201,PANEL!$D$105,1) -> 8792 | K58: 279
A59: 43 | B59: 99401 | C59: Consejerìa ocular | H59: 19341 | I59: =VLOOKUP(A59,Tabla_12_14!A$7:$U$201,PANEL!$D$105,0) -> 10463 | J59: =VLOOKUP(K59,Tabla_15_17!$A$7:$U$201,PANEL!$D$105,1) -> 8878 | K59: 280
B61: EVALUACIÓN DE LA AGUDEZA AUDITIVA | H61: Total Adolesc | I61: 12a - 14a | J61: 15a-17a
A62: 44 | B62: H919 | C62: Determinación de la Agudeza Auditiva sin Especificación | H62: =I62+J62 -> 409 | I62: =VLOOKUP(A62,Tabla_12_14!A$7:$U$201,PANEL!$D$105,0) -> 238 | J62: =VLOOKUP(K62,Tabla_15_17!$A$7:$U$201,PANEL!$D$105,1) -> 171 | K62: 281
A63: 45 | B63: Z011 | C63: Examen de Oídos y de la Audición | H63: 14480 | I63: =VLOOKUP(A63,Tabla_12_14!A$7:$U$201,PANEL!$D$105,0) -> 7963 | J63: =VLOOKUP(K63,Tabla_15_17!$A$7:$U$201,PANEL!$D$105,1) -> 6517 | K63: 282
B65: ATENCIÓN ODONTOLÓGICA | H65: Total Adolesc | I65: 12a - 14a | J65: 15a-17a
A66: 46 | B66: D1310 | C66: Asesoría Nutricional para el Control de Enfermedades Dentales | H66: =I66+J66 -> 22996 | I66: =VLOOKUP(A66,Tabla_12_14!A$7:$U$201,PANEL!$D$105,0) -> 12086 | J66: =VLOOKUP(K66,Tabla_15_17!$A$7:$U$201,PANEL!$D$105,1) -> 10910 | K66: 283
A67: 47 | B67: D1330 | C67: Instrucción de Higiene Oral | H67: 23492 | I67: =VLOOKUP(A67,Tabla_12_14!A$7:$U$201,PANEL!$D$105,0) -> 12291 | J67: =VLOOKUP(K67,Tabla_15_17!$A$7:$U$201,PANEL!$D$105,1) -> 11201 | K67: 284
A68: 48 | B68: D0120 | C68: Examen Estomatológico | H68: 5609 | I68: =VLOOKUP(A68,Tabla_12_14!A$7:$U$201,PANEL!$D$105,0) -> 2919 | J68: =VLOOKUP(K68,Tabla_15_17!$A$7:$U$201,PANEL!$D$105,1) -> 2690 | K68: 285
A69: 49 | B69: D1110 | C69: Profilaxis Dental | H69: 0 | I69: =VLOOKUP(A69,Tabla_12_14!A$7:$U$201,PANEL!$D$105,0) -> 0 | J69: =VLOOKUP(K69,Tabla_15_17!$A$7:$U$201,PANEL!$D$105,1) -> 0 | K69: 286
A70: 50 | B70: U510 | C70: Alta Básica Odontológica | H70: 2348 | I70: =VLOOKUP(A70,Tabla_12_14!A$7:$U$201,PANEL!$D$105,0) -> 1445 | J70: =VLOOKUP(K70,Tabla_15_17!$A$7:$U$201,PANEL!$D$105,1) -> 903 | K70: 287
B72: EVALUACIÓN FÍSICO POSTURAL | H72: Total Adolesc | I72: 12a - 14a | J72: 15a-17a
A73: 51 | B73: 96008 | C73: Análisis Postural Estático ( NORMAL) | H73: =I73+J73 -> 6019 | I73: =VLOOKUP(A73,Tabla_12_14!A$7:$U$201,PANEL!$D$105,0) -> 3628 | J73: =VLOOKUP(K73,Tabla_15_17!$A$7:$U$201,PANEL!$D$105,1) -> 2391 | K73: 288
A74: 52 | B74: M400 | C74: Cifosis postural | H74: 234 | I74: =VLOOKUP(A74,Tabla_12_14!A$7:$U$201,PANEL!$D$105,0) -> 161 | J74: =VLOOKUP(K74,Tabla_15_17!$A$7:$U$201,PANEL!$D$105,1) -> 73 | K74: 289
A75: 53 | B75: M402 | C75: Otras cifosis y las no especificadas | H75: 7 | I75: =VLOOKUP(A75,Tabla_12_14!A$7:$U$201,PANEL!$D$105,0) -> 4 | J75: =VLOOKUP(K75,Tabla_15_17!$A$7:$U$201,PANEL!$D$105,1) -> 3 | K75: 290
A76: 54 | B76: M403 | C76: Síndrome de espalda plana | H76: 39 | I76: =VLOOKUP(A76,Tabla_12_14!A$7:$U$201,PANEL!$D$105,0) -> 30 | J76: =VLOOKUP(K76,Tabla_15_17!$A$7:$U$201,PANEL!$D$105,1) -> 9 | K76: 291
A77: 55 | B77: M405 | C77: Lordosis no especifica | H77: 3 | I77: =VLOOKUP(A77,Tabla_12_14!A$7:$U$201,PANEL!$D$105,0) -> 3 | J77: =VLOOKUP(K77,Tabla_15_17!$A$7:$U$201,PANEL!$D$105,1) -> 0 | K77: 292
A78: 56 | B78: M419 | C78: Escoliosis, no especificada | H78: 116 | I78: =VLOOKUP(A78,Tabla_12_14!A$7:$U$201,PANEL!$D$105,0) -> 49 | J78: =VLOOKUP(K78,Tabla_15_17!$A$7:$U$201,PANEL!$D$105,1) -> 67 | K78: 293
B80: INMUNIZACIONES | H80: Total Adolesc | I80: 12a - 14a | J80: 15a-17a
A81: 57 | B81: 90746 | C81: Vacunación Antihepatitis Viral B (HvB) ======> DOSIS 1 | H81: =I81+J81 -> 1860 | I81: =VLOOKUP(A81,Tabla_12_14!A$7:$U$201,PANEL!$D$105,0) -> 1073 | J81: =VLOOKUP(K81,Tabla_15_17!$A$7:$U$201,PANEL!$D$105,1) -> 787 | K81: 294
A82: 58 | C82: Vacunación Antihepatitis Viral B (HvB) ======> DOSIS 2 | H82: 770 | I82: =VLOOKUP(A82,Tabla_12_14!A$7:$U$201,PANEL!$D$105,0) -> 425 | J82: =VLOOKUP(K82,Tabla_15_17!$A$7:$U$201,PANEL!$D$105,1) -> 345 | K82: 295
A83: 59 | C83: Vacunación Antihepatitis Viral B (HvB) ======> DOSIS 3 | H83: 464 | I83: =VLOOKUP(A83,Tabla_12_14!A$7:$U$201,PANEL!$D$105,0) -> 276 | J83: =VLOOKUP(K83,Tabla_15_17!$A$7:$U$201,PANEL!$D$105,1) -> 188 | K83: 296
A84: 60 | B84: 90658 | C84: Vacuna contra la Influenza (Estacional) | H84: 21544 | I84: =VLOOKUP(A84,Tabla_12_14!A$7:$U$201,PANEL!$D$105,0) -> 11424 | J84: =VLOOKUP(K84,Tabla_15_17!$A$7:$U$201,PANEL!$D$105,1) -> 10120 | K84: 297
A85: 61 | B85: 90714 | C85: Vacunación Diftotetánica (dT) (Incluye varones y gestantes) ======> DOSIS 1 | H85: 4811 | I85: =VLOOKUP(A85,Tabla_12_14!A$7:$U$201,PANEL!$D$105,0) -> 2856 | J85: =VLOOKUP(K85,Tabla_15_17!$A$7:$U$201,PANEL!$D$105,1) -> 1955 | K85: 298
A86: 62 | C86: Vacunación Diftotetánica (dT) (Incluye varones y gestantes) ======>DOSIS 2 | H86: 2688 | I86: =VLOOKUP(A86,Tabla_12_14!A$7:$U$201,PANEL!$D$105,0) -> 1641 | J86: =VLOOKUP(K86,Tabla_15_17!$A$7:$U$201,PANEL!$D$105,1) -> 1047 | K86: 299
A87: 63 | C87: Vacunación Diftotetánica (dT) (Incluye varones y gestantes) ======>DOSIS 3 | H87: 1169 | I87: =VLOOKUP(A87,Tabla_12_14!A$7:$U$201,PANEL!$D$105,0) -> 710 | J87: =VLOOKUP(K87,Tabla_15_17!$A$7:$U$201,PANEL!$D$105,1) -> 459 | K87: 300
A88: 64 | B88: 90649 | C88: Vacuna contra Virus de Papiloma Humano ======> DOSIS 1 | H88: 1813 | I88: =VLOOKUP(A88,Tabla_12_14!A$7:$U$201,PANEL!$D$105,0) -> 1709 | J88: =VLOOKUP(K88,Tabla_15_17!$A$7:$U$201,PANEL!$D$105,1) -> 104 | K88: 301
A89: 65 | C89: Vacuna contra Virus de Papiloma Humano ======> DOSIS 2 | H89: 1487 | I89: =VLOOKUP(A89,Tabla_12_14!A$7:$U$201,PANEL!$D$105,0) -> 1445 | J89: =VLOOKUP(K89,Tabla_15_17!$A$7:$U$201,PANEL!$D$105,1) -> 42 | K89: 302
A90: 66 | B90: 90717 | C90: Vacuna Antiamarilica | H90: 343 | I90: =VLOOKUP(A90,Tabla_12_14!A$7:$U$201,PANEL!$D$105,0) -> 106 | J90: =VLOOKUP(K90,Tabla_15_17!$A$7:$U$201,PANEL!$D$105,1) -> 237 | K90: 303
B92: EVALUACIÓN DEL DESARROLLO SEXUAL/ PLANIFICACIÓN FAMILIAR | H92: Total Adolesc | I92: 12a - 14a | J92: 15a-17a
A93: 67 | B93: 99384.02 | C93: Evaluación del desarrollo sexual según Tanner. | H93: =I93+J93 -> 31379 | I93: =VLOOKUP(A93,Tabla_12_14!A$7:$U$201,PANEL!$D$105,0) -> 16912 | J93: =VLOOKUP(K93,Tabla_15_17!$A$7:$U$201,PANEL!$D$105,1) -> 14467 | K93: 304
A94: 68 | B94: 99208 | C94: Atención en Planificación Familiar y SSR | H94: 19431 | I94: =VLOOKUP(A94,Tabla_12_14!A$7:$U$201,PANEL!$D$105,0) -> 4346 | J94: =VLOOKUP(K94,Tabla_15_17!$A$7:$U$201,PANEL!$D$105,1) -> 15085 | K94: 305
B95: De acuerdo al MAC elegido | C95: Entrega de Métodos Anticonceptivos, en caso de que el/la Adolescente lo requiera | H95: =SUM(H96:H108) -> 2311 | I95: =SUM(I96:I108) -> 131 | J95: 2180
A96: 69 | B96: PLANIFICACION FAMILIAR | C96: DIU | H96: =SUM(I96:J96) -> 60 | I96: =VLOOKUP(A96,Tabla_12_14!A$7:$U$201,PANEL!$D$105,0) -> 3 | J96: =VLOOKUP(K96,Tabla_15_17!$A$7:$U$201,PANEL!$D$105,1) -> 57 | K96: 306
A97: 70 | C97: HORMONAL | D97: ORAL COMBINADO | H97: 3 | I97: =VLOOKUP(A97,Tabla_12_14!A$7:$U$201,PANEL!$D$105,0) -> 1 | J97: =VLOOKUP(K97,Tabla_15_17!$A$7:$U$201,PANEL!$D$105,1) -> 2 | K97: 307
A98: 71 | D98: INYECTABLE TRIMESTRAL | H98: 784 | I98: =VLOOKUP(A98,Tabla_12_14!A$7:$U$201,PANEL!$D$105,0) -> 21 | J98: =VLOOKUP(K98,Tabla_15_17!$A$7:$U$201,PANEL!$D$105,1) -> 763 | K98: 308
A99: 72 | D99: INYECTABLE MENSUAL | H99: 57 | I99: =VLOOKUP(A99,Tabla_12_14!A$7:$U$201,PANEL!$D$105,0) -> 0 | J99: =VLOOKUP(K99,Tabla_15_17!$A$7:$U$201,PANEL!$D$105,1) -> 57 | K99: 309
A100: 73 | D100: IMPLANTE | H100: 731 | I100: =VLOOKUP(A100,Tabla_12_14!A$7:$U$201,PANEL!$D$105,0) -> 58 | J100: =VLOOKUP(K100,Tabla_15_17!$A$7:$U$201,PANEL!$D$105,1) -> 673 | K100: 310
A101: 74 | C101: BARRERA | D101: CONDON MASCULINO | H101: 355 | I101: =VLOOKUP(A101,Tabla_12_14!A$7:$U$201,PANEL!$D$105,0) -> 43 | J101: =VLOOKUP(K101,Tabla_15_17!$A$7:$U$201,PANEL!$D$105,1) -> 312 | K101: 311
A102: 75 | D102: CONDON FEMENINO | H102: 11 | I102: =VLOOKUP(A102,Tabla_12_14!A$7:$U$201,PANEL!$D$105,0) -> 3 | J102: =VLOOKUP(K102,Tabla_15_17!$A$7:$U$201,PANEL!$D$105,1) -> 8 | K102: 312
A103: 76 | C103: AQV FEMENINO | H103: 0 | I103: =VLOOKUP(A103,Tabla_12_14!A$7:$U$201,PANEL!$D$105,0) -> 0 | J103: =VLOOKUP(K103,Tabla_15_17!$A$7:$U$201,PANEL!$D$105,1) -> 0 | K103: 313
A104: 77 | C104: AQV MASCULINO | H104: 0 | I104: =VLOOKUP(A104,Tabla_12_14!A$7:$U$201,PANEL!$D$105,0) -> 0 | J104: =VLOOKUP(K104,Tabla_15_17!$A$7:$U$201,PANEL!$D$105,1) -> 0 | K104: 314
A105: 78 | C105: MELA | H105: 69 | I105: =VLOOKUP(A105,Tabla_12_14!A$7:$U$201,PANEL!$D$105,0) -> 2 | J105: =VLOOKUP(K105,Tabla_15_17!$A$7:$U$201,PANEL!$D$105,1) -> 67 | K105: 315
A106: 79 | C106: ABSTINECIA PERIODICA | D106: BILLINGS | H106: 0 | I106: =VLOOKUP(A106,Tabla_12_14!A$7:$U$201,PANEL!$D$105,0) -> 0 | J106: =VLOOKUP(K106,Tabla_15_17!$A$7:$U$201,PANEL!$D$105,1) -> 0 | K106: 316
A107: 80 | D107: RITMO | H107: 0 | I107: =VLOOKUP(A107,Tabla_12_14!A$7:$U$201,PANEL!$D$105,0) -> 0 | J107: =VLOOKUP(K107,Tabla_15_17!$A$7:$U$201,PANEL!$D$105,1) -> 0 | K107: 317
A108: 81 | D108: DIAS FIJO | H108: 241 | I108: =VLOOKUP(A108,Tabla_12_14!A$7:$U$201,PANEL!$D$105,0) -> 0 | J108: =VLOOKUP(K108,Tabla_15_17!$A$7:$U$201,PANEL!$D$105,1) -> 241 | K108: 318
B110: EVALUACIÓN CLÍNICA | H110: Total Adolesc | I110: 12a - 14a | J110: 15a-17a
A111: 82 | B111: L709 | C111: Acné no especificado | H111: =I111+J111 -> 100 | I111: =VLOOKUP(A111,Tabla_12_14!A$7:$U$201,PANEL!$D$105,0) -> 26 | J111: =VLOOKUP(K111,Tabla_15_17!$A$7:$U$201,PANEL!$D$105,1) -> 74 | K111: 319
A112: 83 | B112: D509 | C112: Anemia por Deficiencia de Hierro sin Especificación | H112: 899 | I112: =VLOOKUP(A112,Tabla_12_14!A$7:$U$201,PANEL!$D$105,0) -> 415 | J112: =VLOOKUP(K112,Tabla_15_17!$A$7:$U$201,PANEL!$D$105,1) -> 484 | K112: 320
A113: 84 | B113: O990 | C113: Anemia que afecta al Embarazo, Parto o Puerperio | H113: 1146 | I113: =VLOOKUP(A113,Tabla_12_14!A$7:$U$201,PANEL!$D$105,0) -> 93 | J113: =VLOOKUP(K113,Tabla_15_17!$A$7:$U$201,PANEL!$D$105,1) -> 1053 | K113: 321
A114: 85 | B114: U310 | C114: Administración de Tratamiento (Anemia) | H114: 2886 | I114: =VLOOKUP(A114,Tabla_12_14!A$7:$U$201,PANEL!$D$105,0) -> 1223 | J114: =VLOOKUP(K114,Tabla_15_17!$A$7:$U$201,PANEL!$D$105,1) -> 1663 | K114: 322
A115: 86 | B115: J459 | C115: Asma No Especificada | H115: 142 | I115: =VLOOKUP(A115,Tabla_12_14!A$7:$U$201,PANEL!$D$105,0) -> 90 | J115: =VLOOKUP(K115,Tabla_15_17!$A$7:$U$201,PANEL!$D$105,1) -> 52 | K115: 323
A116: 87 | B116: I10X | C116: Hipertensión Esencial Primaria (Hipertensión Arterial) | H116: 95 | I116: =VLOOKUP(A116,Tabla_12_14!A$7:$U$201,PANEL!$D$105,0) -> 31 | J116: =VLOOKUP(K116,Tabla_15_17!$A$7:$U$201,PANEL!$D$105,1) -> 64 | K116: 324
A117: 88 | B117: R51X | C117: Cefalea | H117: 1893 | I117: =VLOOKUP(A117,Tabla_12_14!A$7:$U$201,PANEL!$D$105,0) -> 901 | J117: =VLOOKUP(K117,Tabla_15_17!$A$7:$U$201,PANEL!$D$105,1) -> 992 | K117: 325
A118: 89 | B118: B829 | C118: Parasitosis Intestinal, sin otra Especificación | H118: 1287 | I118: =VLOOKUP(A118,Tabla_12_14!A$7:$U$201,PANEL!$D$105,0) -> 770 | J118: =VLOOKUP(K118,Tabla_15_17!$A$7:$U$201,PANEL!$D$105,1) -> 517 | K118: 326
A119: 90 | B119: N63X | C119: Masa No Especificada en la Mama | H119: 52 | I119: =VLOOKUP(A119,Tabla_12_14!A$7:$U$201,PANEL!$D$105,0) -> 20 | J119: =VLOOKUP(K119,Tabla_15_17!$A$7:$U$201,PANEL!$D$105,1) -> 32 | K119: 327
A120: 91 | B120: A084 | C120: Infección Intestinal Viral, Sin Otra Especificación | H120: 8 | I120: =VLOOKUP(A120,Tabla_12_14!A$7:$U$201,PANEL!$D$105,0) -> 4 | J120: =VLOOKUP(K120,Tabla_15_17!$A$7:$U$201,PANEL!$D$105,1) -> 4 | K120: 328
A121: 92 | B121: B373 | C121: Candidiasis de la Vulva y de la Vagina (Candidiasis Vaginal) | H121: 97 | I121: =VLOOKUP(A121,Tabla_12_14!A$7:$U$201,PANEL!$D$105,0) -> 40 | J121: =VLOOKUP(K121,Tabla_15_17!$A$7:$U$201,PANEL!$D$105,1) -> 57 | K121: 329
A122: 93 | B122: B853 | C122: Pediculosis del Pubis | H122: 3 | I122: =VLOOKUP(A122,Tabla_12_14!A$7:$U$201,PANEL!$D$105,0) -> 1 | J122: =VLOOKUP(K122,Tabla_15_17!$A$7:$U$201,PANEL!$D$105,1) -> 2 | K122: 330
A123: 94 | B123: B968 | C123: Vaginosis Bacteriana | H123: 19 | I123: =VLOOKUP(A123,Tabla_12_14!A$7:$U$201,PANEL!$D$105,0) -> 6 | J123: =VLOOKUP(K123,Tabla_15_17!$A$7:$U$201,PANEL!$D$105,1) -> 13 | K123: 331
A124: 95 | B124: A64X9 | C124: Síndrome de Flujo Vaginal | H124: 1222 | I124: =VLOOKUP(A124,Tabla_12_14!A$7:$U$201,PANEL!$D$105,0) -> 160 | J124: =VLOOKUP(K124,Tabla_15_17!$A$7:$U$201,PANEL!$D$105,1) -> 1062 | K124: 332
A125: 96 | B125: A64X5 | C125: Síndrome de Dolor Abdominal Bajo | H125: 40 | I125: =VLOOKUP(A125,Tabla_12_14!A$7:$U$201,PANEL!$D$105,0) -> 11 | J125: =VLOOKUP(K125,Tabla_15_17!$A$7:$U$201,PANEL!$D$105,1) -> 29 | K125: 333
A126: 97 | B126: A64X6 | C126: Síndrome de Secreción Uretral | H126: 6 | I126: =VLOOKUP(A126,Tabla_12_14!A$7:$U$201,PANEL!$D$105,0) -> 3 | J126: =VLOOKUP(K126,Tabla_15_17!$A$7:$U$201,PANEL!$D$105,1) -> 3 | K126: 334
A127: 98 | B127: 99199.11 | C127: Administración de Tratamiento (ITS) | H127: 1556 | I127: =VLOOKUP(A127,Tabla_12_14!A$7:$U$201,PANEL!$D$105,0) -> 304 | J127: =VLOOKUP(K127,Tabla_15_17!$A$7:$U$201,PANEL!$D$105,1) -> 1252 | K127: 335
B129: CONSEJERÍAS | H129: Total Adolesc | I129: 12a - 14a | J129: 15a-17a
A130: 99 | B130: 99401 | C130: Consejería Integral | H130: =I130+J130 -> 33519 | I130: =VLOOKUP(A130,Tabla_12_14!A$7:$U$201,PANEL!$D$105,0) -> 14397 | J130: =VLOOKUP(K130,Tabla_15_17!$A$7:$U$201,PANEL!$D$105,1) -> 19122 | K130: 336
A131: 100 | B131: 99402.03 | C131: Consejería/Orientación en Salud Sexual y Reproductiva | H131: 42659 | I131: =VLOOKUP(A131,Tabla_12_14!A$7:$U$201,PANEL!$D$105,0) -> 22727 | J131: =VLOOKUP(K131,Tabla_15_17!$A$7:$U$201,PANEL!$D$105,1) -> 19932 | K131: 337
A132: 101 | B132: 99402.04 | C132: Orientación/Consejería en Planificación Familiar | H132: 49851 | I132: =VLOOKUP(A132,Tabla_12_14!A$7:$U$201,PANEL!$D$105,0) -> 21910 | J132: =VLOOKUP(K132,Tabla_15_17!$A$7:$U$201,PANEL!$D$105,1) -> 27941 | K132: 338
A133: 102 | B133: 99402.09 | C133: Consejería de Prevención en Riesgos de Salud Mental | H133: 58964 | I133: =VLOOKUP(A133,Tabla_12_14!A$7:$U$201,PANEL!$D$105,0) -> 29420 | J133: =VLOOKUP(K133,Tabla_15_17!$A$7:$U$201,PANEL!$D$105,1) -> 29544 | K133: 339
A134: 103 | B134: 99401.31 | C134: Consejería en Prevención de Enfermedades No transmisibles (Salud Física) | H134: 471 | I134: =VLOOKUP(A134,Tabla_12_14!A$7:$U$201,PANEL!$D$105,0) -> 173 | J134: =VLOOKUP(K134,Tabla_15_17!$A$7:$U$201,PANEL!$D$105,1) -> 298 | K134: 340
A135: 104 | B135: 99403 | C135: Consejería Nutricional | H135: 58964 | I135: =VLOOKUP(A135,Tabla_12_14!A$7:$U$201,PANEL!$D$105,0) -> 29420 | J135: =VLOOKUP(K135,Tabla_15_17!$A$7:$U$201,PANEL!$D$105,1) -> 29544 | K135: 341
A136: 105 | B136: 99403.01 | C136: Consejería Nutricional: Alimentación Saludable | H136: 45551 | I136: =VLOOKUP(A136,Tabla_12_14!A$7:$U$201,PANEL!$D$105,0) -> 19276 | J136: =VLOOKUP(K136,Tabla_15_17!$A$7:$U$201,PANEL!$D$105,1) -> 26275 | K136: 342
A137: 106 | B137: 99401.33 | C137: Consejería Pre Test para VIH | H137: 10808 | I137: =VLOOKUP(A137,Tabla_12_14!A$7:$U$201,PANEL!$D$105,0) -> 2658 | J137: =VLOOKUP(K137,Tabla_15_17!$A$7:$U$201,PANEL!$D$105,1) -> 8150 | K137: 343
A138: 107 | B138: 99401.34 | C138: Consejería Post Test para VIH - Resultado No Reactivo | H138: 8713 | I138: =VLOOKUP(A138,Tabla_12_14!A$7:$U$201,PANEL!$D$105,0) -> 1761 | J138: =VLOOKUP(K138,Tabla_15_17!$A$7:$U$201,PANEL!$D$105,1) -> 6952 | K138: 344
A139: 108 | B139: 99403.03 | C139: Consejería Post Test para VIH - Resultado Reactivo | H139: 221 | I139: =VLOOKUP(A139,Tabla_12_14!A$7:$U$201,PANEL!$D$105,0) -> 63 | J139: =VLOOKUP(K139,Tabla_15_17!$A$7:$U$201,PANEL!$D$105,1) -> 158 | K139: 345
A140: 109 | B140: 99402.05 | C140: Consejería/Orientación en Prevención de ITS, VIH, Hepatitis | H140: 30804 | I140: =VLOOKUP(A140,Tabla_12_14!A$7:$U$201,PANEL!$D$105,0) -> 12976 | J140: =VLOOKUP(K140,Tabla_15_17!$A$7:$U$201,PANEL!$D$105,1) -> 17828 | K140: 346
A141: 110 | B141: 99401.24 | C141: Consejerìa higiene de manos | H141: 27816 | I141: =VLOOKUP(A141,Tabla_12_14!A$7:$U$201,PANEL!$D$105,0) -> 12235 | J141: =VLOOKUP(K141,Tabla_15_17!$A$7:$U$201,PANEL!$D$105,1) -> 15581 | K141: 347
A142: 111 | B142: 99401.19 | C142: Consejerìa para el autocuidado | H142: 25835 | I142: =VLOOKUP(A142,Tabla_12_14!A$7:$U$201,PANEL!$D$105,0) -> 11599 | J142: =VLOOKUP(K142,Tabla_15_17!$A$7:$U$201,PANEL!$D$105,1) -> 14236 | K142: 348
B144: TOMA DE PRUEBA RÁPIDA (en caso lo requiera) PARA LA DETECCIÓN DE | H144: Total Adolesc | I144: 12a - 14a | J144: 15a-17a
A145: 112 | B145: 86703 | C145: Anticuerpos; HIV-1 y HIV-2, análisis único (Tamizaje de VIH por Prueba Rápida) | H145: =I145+J145 -> 8950 | I145: =VLOOKUP(A145,Tabla_12_14!A$7:$U$201,PANEL!$D$105,0) -> 1781 | J145: =VLOOKUP(K145,Tabla_15_17!$A$7:$U$201,PANEL!$D$105,1) -> 7169 | K145: 349
A146: 113 | B146: 86780 | C146: Anticuerpo: Treponema Pallidum(Tamizaje de Sífilis por Prueba Rápida) | H146: 7629 | I146: =VLOOKUP(A146,Tabla_12_14!A$7:$U$201,PANEL!$D$105,0) -> 1518 | J146: =VLOOKUP(K146,Tabla_15_17!$A$7:$U$201,PANEL!$D$105,1) -> 6111 | K146: 350
A147: 114 | B147: 86593 | C147: Prueba de Sífilis; anticuerpo no treponémico cuantitativa (Tamizaje de Hepatitis B por Prueba Rápida) | H147: 95 | I147: =VLOOKUP(A147,Tabla_12_14!A$7:$U$201,PANEL!$D$105,0) -> 47 | J147: =VLOOKUP(K147,Tabla_15_17!$A$7:$U$201,PANEL!$D$105,1) -> 48 | K147: 351
A148: 115 | B148: Z320 | C148: Embarazo No Confirmado: toma de pruebas para el descarte de embarazo en caso la adolescente lo requiera. (examen de orina) | H148: 856 | I148: =VLOOKUP(A148,Tabla_12_14!A$7:$U$201,PANEL!$D$105,0) -> 178 | J148: =VLOOKUP(K148,Tabla_15_17!$A$7:$U$201,PANEL!$D$105,1) -> 678 | K148: 352
B150: SALUD MENTAL | H150: Total Adolesc | I150: 12a - 14a | J150: 15a-17a
A151: 116 | B151: 96150 | C151: Entrevista de Tamizaje | H151: =I151+J151 -> 28488 | I151: =VLOOKUP(A151,Tabla_12_14!A$7:$U$201,PANEL!$D$105,0) -> 13327 | J151: =VLOOKUP(K151,Tabla_15_17!$A$7:$U$201,PANEL!$D$105,1) -> 15161 | K151: 353
A152: 117 | B152: U100 | C152: Aplicación de Cuestionario de Habilidades Sociales | H152: 3272 | I152: =VLOOKUP(A152,Tabla_12_14!A$7:$U$201,PANEL!$D$105,0) -> 1492 | J152: =VLOOKUP(K152,Tabla_15_17!$A$7:$U$201,PANEL!$D$105,1) -> 1780 | K152: 354
A153: 118 | B153: F419 | C153: Trastorno de ansiedad, no Especificado | H153: 272 | I153: =VLOOKUP(A153,Tabla_12_14!A$7:$U$201,PANEL!$D$105,0) -> 116 | J153: =VLOOKUP(K153,Tabla_15_17!$A$7:$U$201,PANEL!$D$105,1) -> 156 | K153: 355
A154: 119 | B154: Z553 | C154: Problemas Relacionados con el Bajo Rendimiento Escolar | H154: 276 | I154: =VLOOKUP(A154,Tabla_12_14!A$7:$U$201,PANEL!$D$105,0) -> 173 | J154: =VLOOKUP(K154,Tabla_15_17!$A$7:$U$201,PANEL!$D$105,1) -> 103 | K154: 356
A155: 120 | B155: Z7281 | C155: Riesgos de Lesiones o Accidentes | H155: 0 | I155: =VLOOKUP(A155,Tabla_12_14!A$7:$U$201,PANEL!$D$105,0) -> 0 | J155: =VLOOKUP(K155,Tabla_15_17!$A$7:$U$201,PANEL!$D$105,1) -> 0 | K155: 357
A156: 121 | B156: 96150.01 | C156: Entrevista de Tamizaje | E156: 96150.01 | F156: Tamizaje de Salud Mental en Violencia | H156: 37587 | I156: =VLOOKUP(A156,Tabla_12_14!A$7:$U$201,PANEL!$D$105,0) -> 19407 | J156: =VLOOKUP(K156,Tabla_15_17!$A$7:$U$201,PANEL!$D$105,1) -> 18180 | K156: 358
A157: 122 | B157: 96150.02 | E157: 96150.02 | F157: Tamizaje de Salud Mental en Alcohol y Drogas | H157: 17479 | I157: =VLOOKUP(A157,Tabla_12_14!A$7:$U$201,PANEL!$D$105,0) -> 8857 | J157: =VLOOKUP(K157,Tabla_15_17!$A$7:$U$201,PANEL!$D$105,1) -> 8622 | K157: 359
A158: 123 | B158: 96150.03 | E158: 96150.03 | F158: Tamizaje de Salud Mental en Trastornos Depresivos | H158: 14940 | I158: =VLOOKUP(A158,Tabla_12_14!A$7:$U$201,PANEL!$D$105,0) -> 7606 | J158: =VLOOKUP(K158,Tabla_15_17!$A$7:$U$201,PANEL!$D$105,1) -> 7334 | K158: 360
A159: 124 | B159: 96150.04 | E159: 96150.04 | F159: Tamizaje de Salud Mental en Psicosis | H159: 8284 | I159: =VLOOKUP(A159,Tabla_12_14!A$7:$U$201,PANEL!$D$105,0) -> 4558 | J159: =VLOOKUP(K159,Tabla_15_17!$A$7:$U$201,PANEL!$D$105,1) -> 3726 | K159: 361
A160: 125 | B160: 96150.05 | E160: 96150.05 | F160: Tamizaje de Salud Mental en Habilidades Sociales | H160: 20809 | I160: =VLOOKUP(A160,Tabla_12_14!A$7:$U$201,PANEL!$D$105,0) -> 11560 | J160: =VLOOKUP(K160,Tabla_15_17!$A$7:$U$201,PANEL!$D$105,1) -> 9249 | K160: 362
B162: TAMIZAJES POSITIVOS | H162: Total Adolesc | I162: 12a - 14a | J162: 15a-17a
A163: 126 | B163: R456 | C163: Problemas relacionados con violencia | H163: =I163+J163 -> 3308 | I163: =VLOOKUP(A163,Tabla_12_14!A$7:$U$201,PANEL!$D$105,0) -> 1450 | J163: =VLOOKUP(K163,Tabla_15_17!$A$7:$U$201,PANEL!$D$105,1) -> 1858 | K163: 363
A164: 127 | B164: Z734 | C164: Problemas Relacionados con Habilidades Sociales Inadecuadas | H164: 7775 | I164: =VLOOKUP(A164,Tabla_12_14!A$7:$U$201,PANEL!$D$105,0) -> 4145 | J164: =VLOOKUP(K164,Tabla_15_17!$A$7:$U$201,PANEL!$D$105,1) -> 3630 | K164: 364
A165: 128 | B165: Z720 | C165: Problemas Relacionados con el Uso de Tabaco | H165: 33 | I165: =VLOOKUP(A165,Tabla_12_14!A$7:$U$201,PANEL!$D$105,0) -> 12 | J165: =VLOOKUP(K165,Tabla_15_17!$A$7:$U$201,PANEL!$D$105,1) -> 21 | K165: 365
A166: 129 | B166: Z721 | C166: Problemas Sociales Relacionados con el Uso de Alcohol | H166: 411 | I166: =VLOOKUP(A166,Tabla_12_14!A$7:$U$201,PANEL!$D$105,0) -> 137 | J166: =VLOOKUP(K166,Tabla_15_17!$A$7:$U$201,PANEL!$D$105,1) -> 274 | K166: 366
A167: 130 | B167: Z722 | C167: Problemas Sociales Relacionados con el Uso de drogas | H167: 33 | I167: =VLOOKUP(A167,Tabla_12_14!A$7:$U$201,PANEL!$D$105,0) -> 5 | J167: =VLOOKUP(K167,Tabla_15_17!$A$7:$U$201,PANEL!$D$105,1) -> 28 | K167: 367
A168: 131 | B168: Z726 | C168: Problemas relacionados con el Juego y las apuestas | H168: 2 | I168: =VLOOKUP(A168,Tabla_12_14!A$7:$U$201,PANEL!$D$105,0) -> 1 | J168: =VLOOKUP(K168,Tabla_15_17!$A$7:$U$201,PANEL!$D$105,1) -> 1 | K168: 368
A169: 132 | B169: Z619 | C169: Problemas Relacionados con Experiencia Negativa no Especificada en la Infancia | H169: 2 | I169: =VLOOKUP(A169,Tabla_12_14!A$7:$U$201,PANEL!$D$105,0) -> 0 | J169: =VLOOKUP(K169,Tabla_15_17!$A$7:$U$201,PANEL!$D$105,1) -> 2 | K169: 369
A170: 133 | B170: Z639 | C170: Otros Problemas Relacionados con el Grupo Primario de Apoyo, Inclusive Circunstancias Familiares (Relaciones Familiares) | H170: 54 | I170: =VLOOKUP(A170,Tabla_12_14!A$7:$U$201,PANEL!$D$105,0) -> 20 | J170: =VLOOKUP(K170,Tabla_15_17!$A$7:$U$201,PANEL!$D$105,1) -> 34 | K170: 370
B172: ACTIVIDADES PREVENTIVAS PROMOCIONALES | H172: Total Adolesc | I172: 12a - 14a | J172: 15a-17a
A173: 134 | B173: C0009 | C173: Sesión Educativa | H173: =I173+J173 -> 13197 | I173: =VLOOKUP(A173,Tabla_12_14!A$7:$U$201,PANEL!$D$105,0) -> 8173 | J173: =VLOOKUP(K173,Tabla_15_17!$A$7:$U$201,PANEL!$D$105,1) -> 5024 | K173: 371
A174: 135 | B174: U1258 | C174: Sesión de entrenamiento en familias fuertes | H174: 90 | I174: =VLOOKUP(A174,Tabla_12_14!A$7:$U$201,PANEL!$D$105,0) -> 23 | J174: =VLOOKUP(K174,Tabla_15_17!$A$7:$U$201,PANEL!$D$105,1) -> 67 | K174: 372
B176: ACTIVIDADES PREVENTIVAS PROMOCIONALES | H176: Total Adolesc | I176: 12a - 14a | J176: 15a-17a
A177: 136 | B177: APP 93 | C177: Actividad en colegios | H177: =I177+J177 -> 0 | I177: =VLOOKUP(A177,Tabla_12_14!A$7:$U$201,PANEL!$D$105,0) -> 0 | J177: =VLOOKUP(K177,Tabla_15_17!$A$7:$U$201,PANEL!$D$105,1) -> 0 | K177: 373
A178: 137 | B178: APP100 | C178: Establecimiento de Salud | H178: 0 | I178: =VLOOKUP(A178,Tabla_12_14!A$7:$U$201,PANEL!$D$105,0) -> 0 | J178: =VLOOKUP(K178,Tabla_15_17!$A$7:$U$201,PANEL!$D$105,1) -> 0 | K178: 374
A179: 138 | B179: APP104 | C179: Municipalidades | H179: 0 | I179: =VLOOKUP(A179,Tabla_12_14!A$7:$U$201,PANEL!$D$105,0) -> 0 | J179: =VLOOKUP(K179,Tabla_15_17!$A$7:$U$201,PANEL!$D$105,1) -> 0 | K179: 375
A180: 139 | B180: APP 136 | C180: Actividades con familia | H180: 0 | I180: =VLOOKUP(A180,Tabla_12_14!A$7:$U$201,PANEL!$D$105,0) -> 0 | J180: =VLOOKUP(K180,Tabla_15_17!$A$7:$U$201,PANEL!$D$105,1) -> 0 | K180: 376
A181: 140 | B181: APP141 | C181: Actividades con adolescentes | H181: 0 | I181: =VLOOKUP(A181,Tabla_12_14!A$7:$U$201,PANEL!$D$105,0) -> 0 | J181: =VLOOKUP(K181,Tabla_15_17!$A$7:$U$201,PANEL!$D$105,1) -> 0 | K181: 377
A182: 141 | B182: APP144 | C182: Actividades con docentes | H182: 0 | I182: =VLOOKUP(A182,Tabla_12_14!A$7:$U$201,PANEL!$D$105,0) -> 0 | J182: =VLOOKUP(K182,Tabla_15_17!$A$7:$U$201,PANEL!$D$105,1) -> 0 | K182: 378
A183: 142 | B183: APP145 | C183: Actividades con alumnos | H183: 0 | I183: =VLOOKUP(A183,Tabla_12_14!A$7:$U$201,PANEL!$D$105,0) -> 0 | J183: =VLOOKUP(K183,Tabla_15_17!$A$7:$U$201,PANEL!$D$105,1) -> 0 | K183: 379
A184: 143 | B184: APP146 | C184: Actividades con padres | H184: 0 | I184: =VLOOKUP(A184,Tabla_12_14!A$7:$U$201,PANEL!$D$105,0) -> 0 | J184: =VLOOKUP(K184,Tabla_15_17!$A$7:$U$201,PANEL!$D$105,1) -> 0 | K184: 380
A185: 144 | B185: APP150 | C185: Actividades con autoridades | H185: 0 | I185: =VLOOKUP(A185,Tabla_12_14!A$7:$U$201,PANEL!$D$105,0) -> 0 | J185: =VLOOKUP(K185,Tabla_15_17!$A$7:$U$201,PANEL!$D$105,1) -> 0 | K185: 381
B187: ACTIVIDADES PREVENTIVAS PROMOCIONALES | H187: Total Adolesc | I187: 12a - 14a | J187: 15a-17a
A188: 145 | B188: C1021 | C188: Organización de Charla para Abogacía y Políticas Públicas | H188: =I188+J188 -> 0 | I188: =VLOOKUP(A188,Tabla_12_14!A$7:$U$201,PANEL!$D$105,0) -> 0 | J188: =VLOOKUP(K188,Tabla_15_17!$A$7:$U$201,PANEL!$D$105,1) -> 0 | K188: 382
A189: 146 | B189: C0007 | C189: Taller para la familia | H189: 0 | I189: =VLOOKUP(A189,Tabla_12_14!A$7:$U$201,PANEL!$D$105,0) -> 0 | J189: =VLOOKUP(K189,Tabla_15_17!$A$7:$U$201,PANEL!$D$105,1) -> 0 | K189: 383
A190: 147 | B190: C0010 | C190: Sesión Demostrativa | H190: 1371 | I190: =VLOOKUP(A190,Tabla_12_14!A$7:$U$201,PANEL!$D$105,0) -> 651 | J190: =VLOOKUP(K190,Tabla_15_17!$A$7:$U$201,PANEL!$D$105,1) -> 720 | K190: 384
A191: 148 | B191: 90872 | C191: Taller de habilidades sociales | H191: 14734 | I191: =VLOOKUP(A191,Tabla_12_14!A$7:$U$201,PANEL!$D$105,0) -> 8776 | J191: =VLOOKUP(K191,Tabla_15_17!$A$7:$U$201,PANEL!$D$105,1) -> 5958 | K191: 385
A192: 149 | B192: C0008 | C192: Taller para personal de salud | H192: 17 | I192: =VLOOKUP(A192,Tabla_12_14!A$7:$U$201,PANEL!$D$105,0) -> 4 | J192: =VLOOKUP(K192,Tabla_15_17!$A$7:$U$201,PANEL!$D$105,1) -> 13 | K192: 386
A193: 150 | B193: C2121.01 | C193: Animación Sociocultural | H193: 1 | I193: =VLOOKUP(A193,Tabla_12_14!A$7:$U$201,PANEL!$D$105,0) -> 0 | J193: =VLOOKUP(K193,Tabla_15_17!$A$7:$U$201,PANEL!$D$105,1) -> 1 | K193: 387
A194: 151 | B194: C2121 | C194: Teatros Populares | H194: 0 | I194: =VLOOKUP(A194,Tabla_12_14!A$7:$U$201,PANEL!$D$105,0) -> 0 | J194: =VLOOKUP(K194,Tabla_15_17!$A$7:$U$201,PANEL!$D$105,1) -> 0 | K194: 388
A195: 152 | B195: C3152 | C195: Formación de Educadores de Pares | H195: 0 | I195: =VLOOKUP(A195,Tabla_12_14!A$7:$U$201,PANEL!$D$105,0) -> 0 | J195: =VLOOKUP(K195,Tabla_15_17!$A$7:$U$201,PANEL!$D$105,1) -> 0 | K195: 389
A196: 153 | B196: C7001 | C196: Monitoreo | H196: 136 | I196: =VLOOKUP(A196,Tabla_12_14!A$7:$U$201,PANEL!$D$105,0) -> 0 | J196: =VLOOKUP(K196,Tabla_15_17!$A$7:$U$201,PANEL!$D$105,1) -> 136 | K196: 390
A197: 154 | B197: C7002 | C197: Supervisión | H197: 138 | I197: =VLOOKUP(A197,Tabla_12_14!A$7:$U$201,PANEL!$D$105,0) -> 64 | J197: =VLOOKUP(K197,Tabla_15_17!$A$7:$U$201,PANEL!$D$105,1) -> 74 | K197: 391
A198: 155 | B198: C7003 | C198: Evaluación | H198: 0 | I198: =VLOOKUP(A198,Tabla_12_14!A$7:$U$201,PANEL!$D$105,0) -> 0 | J198: =VLOOKUP(K198,Tabla_15_17!$A$7:$U$201,PANEL!$D$105,1) -> 0 | K198: 392
A199: 156 | B199: C7004 | C199: Asistencia Técnica | H199: 0 | I199: =VLOOKUP(A199,Tabla_12_14!A$7:$U$201,PANEL!$D$105,0) -> 0 | J199: =VLOOKUP(K199,Tabla_15_17!$A$7:$U$201,PANEL!$D$105,1) -> 0 | K199: 393
B201: C0009 | C201: SESIONES EDUCATIVAS
B202: PSA | C202: Salud Física Nutricional de 12 a 14 años | H202: Total Adolesc | I202: 12a - 14a | J202: 15a-17a
A203: 157 | B203: 1 | C203: Actividad Física | H203: =I203+J203 -> 1105 | I203: =VLOOKUP(A203,Tabla_12_14!A$7:$U$201,PANEL!$D$105,0) -> 600 | J203: =VLOOKUP(K203,Tabla_15_17!$A$7:$U$201,PANEL!$D$105,1) -> 505 | K203: 394
A204: 158 | B204: 2 | C204: Alimentación Saludable | H204: 658 | I204: =VLOOKUP(A204,Tabla_12_14!A$7:$U$201,PANEL!$D$105,0) -> 566 | J204: =VLOOKUP(K204,Tabla_15_17!$A$7:$U$201,PANEL!$D$105,1) -> 92 | K204: 395
A205: 159 | B205: 3 | C205: Higiene | H205: 565 | I205: =VLOOKUP(A205,Tabla_12_14!A$7:$U$201,PANEL!$D$105,0) -> 480 | J205: =VLOOKUP(K205,Tabla_15_17!$A$7:$U$201,PANEL!$D$105,1) -> 85 | K205: 396
A206: 160 | B206: 4 | C206: Protección solar | H206: 578 | I206: =VLOOKUP(A206,Tabla_12_14!A$7:$U$201,PANEL!$D$105,0) -> 275 | J206: =VLOOKUP(K206,Tabla_15_17!$A$7:$U$201,PANEL!$D$105,1) -> 303 | K206: 397
A207: 161 | B207: 5 | C207: Salud Bucal | H207: 373 | I207: =VLOOKUP(A207,Tabla_12_14!A$7:$U$201,PANEL!$D$105,0) -> 345 | J207: =VLOOKUP(K207,Tabla_15_17!$A$7:$U$201,PANEL!$D$105,1) -> 28 | K207: 398
A208: 162 | B208: 6 | C208: Salud ocular | H208: 369 | I208: =VLOOKUP(A208,Tabla_12_14!A$7:$U$201,PANEL!$D$105,0) -> 319 | J208: =VLOOKUP(K208,Tabla_15_17!$A$7:$U$201,PANEL!$D$105,1) -> 50 | K208: 399
A209: 163 | B209: 7 | C209: Cuidado del medio ambiente | H209: 463 | I209: =VLOOKUP(A209,Tabla_12_14!A$7:$U$201,PANEL!$D$105,0) -> 411 | J209: =VLOOKUP(K209,Tabla_15_17!$A$7:$U$201,PANEL!$D$105,1) -> 52 | K209: 400
A210: 164 | B210: 8 | C210: Medidas de seguridad y prevención de accidentes. Primeros auxilios | H210: 1 | I210: =VLOOKUP(A210,Tabla_12_14!A$7:$U$201,PANEL!$D$105,0) -> 0 | J210: =VLOOKUP(K210,Tabla_15_17!$A$7:$U$201,PANEL!$D$105,1) -> 1 | K210: 401
A211: 165 | B211: 9 | C211: Salud respiratoria y tuberculosis: Higiene y salud bucal. | H211: 364 | I211: =VLOOKUP(A211,Tabla_12_14!A$7:$U$201,PANEL!$D$105,0) -> 358 | J211: =VLOOKUP(K211,Tabla_15_17!$A$7:$U$201,PANEL!$D$105,1) -> 6 | K211: 402
B213: PSA | C213: Salud Física Nutricional | H213: Total Adolesc | I213: 12a - 14a | J213: 15a-17a
A214: 166 | B214: 1 | C214: Actividad Física y deporte | H214: =I214+J214 -> 1105 | I214: =VLOOKUP(A214,Tabla_12_14!A$7:$U$201,PANEL!$D$105,0) -> 600 | J214: =VLOOKUP(K214,Tabla_15_17!$A$7:$U$201,PANEL!$D$105,1) -> 505 | K214: 403
A215: 167 | B215: 2 | C215: Alimentación Saludable | H215: 658 | I215: =VLOOKUP(A215,Tabla_12_14!A$7:$U$201,PANEL!$D$105,0) -> 566 | J215: =VLOOKUP(K215,Tabla_15_17!$A$7:$U$201,PANEL!$D$105,1) -> 92 | K215: 404
A216: 168 | B216: 3 | C216: Higiene | H216: 565 | I216: =VLOOKUP(A216,Tabla_12_14!A$7:$U$201,PANEL!$D$105,0) -> 480 | J216: =VLOOKUP(K216,Tabla_15_17!$A$7:$U$201,PANEL!$D$105,1) -> 85 | K216: 405
A217: 169 | B217: 4 | C217: Prvención de transtornos posturales | H217: 578 | I217: =VLOOKUP(A217,Tabla_12_14!A$7:$U$201,PANEL!$D$105,0) -> 275 | J217: =VLOOKUP(K217,Tabla_15_17!$A$7:$U$201,PANEL!$D$105,1) -> 303 | K217: 406
A218: 170 | B218: 5 | C218: Protección solar | H218: 373 | I218: =VLOOKUP(A218,Tabla_12_14!A$7:$U$201,PANEL!$D$105,0) -> 345 | J218: =VLOOKUP(K218,Tabla_15_17!$A$7:$U$201,PANEL!$D$105,1) -> 28 | K218: 407
A219: 171 | B219: 6 | C219: Salud Bucal | H219: 369 | I219: =VLOOKUP(A219,Tabla_12_14!A$7:$U$201,PANEL!$D$105,0) -> 319 | J219: =VLOOKUP(K219,Tabla_15_17!$A$7:$U$201,PANEL!$D$105,1) -> 50 | K219: 408
A220: 172 | B220: 7 | C220: Salud ocular | H220: 463 | I220: =VLOOKUP(A220,Tabla_12_14!A$7:$U$201,PANEL!$D$105,0) -> 411 | J220: =VLOOKUP(K220,Tabla_15_17!$A$7:$U$201,PANEL!$D$105,1) -> 52 | K220: 409
A221: 173 | B221: 8 | C221: Salud respiratoria y tuberculosis: Higiene y salud bucal. | H221: 1 | I221: =VLOOKUP(A221,Tabla_12_14!A$7:$U$201,PANEL!$D$105,0) -> 0 | J221: =VLOOKUP(K221,Tabla_15_17!$A$7:$U$201,PANEL!$D$105,1) -> 1 | K221: 410
A222: 174 | B222: 9 | C222: Cuidado del medio ambiente | H222: 364 | I222: =VLOOKUP(A222,Tabla_12_14!A$7:$U$201,PANEL!$D$105,0) -> 358 | J222: =VLOOKUP(K222,Tabla_15_17!$A$7:$U$201,PANEL!$D$105,1) -> 6 | K222: 411
... 71 more rows

Sheet Tabla_12_14
B3: SUBREGION | C3: (Todas)
C4: ENE | D4: FEB | E4: MAR | F4: ABR | G4: MAY | H4: JUN | I4: JUL | J4: AGO | K4: SEP | L4: OCT | M4: NOV | N4: DIC | O4: TOTAL | P4: I-Trim | Q4: II-Trim | R4: III-Trim | S4: IV-Trim | T4: I-Sem | U4: II-Sem
C5: MES
B6: DATOS | C6: 1 | D6: 2 | E6: 3 | F6: 4 | G6: 5 | H6: 6 | I6: 7 | J6: 8 | K6: 9 | L6: 10 | M6: 11
A7: 1 | B7: Suma de 1_IRA_12_14 | C7: 10 | D7: 7 | E7: 11 | F7: 9 | G7: 9 | H7: 13 | I7: 17 | J7: 16 | K7: 14 | L7: 10 | M7: 25 | O7: =SUM(C7:N7) -> 141 | P7: =SUM(C7:E7) -> 28 | Q7: =SUM(F7:H7) -> 31 | R7: =SUM(I7:K7) -> 47 | S7: =SUM(L7:N7) -> 35 | T7: =SUM(C7:H7) -> 59 | U7: =SUM(I7:N7) -> 82
A8: 2 | B8: Suma de 2_IRA_12_14 | C8: 424 | D8: 223 | E8: 426 | F8: 557 | G8: 562 | H8: 641 | I8: 563 | J8: 671 | K8: 554 | L8: 497 | M8: 742 | O8: =SUM(C8:N8) -> 5860 | P8: 1073 | Q8: 1760 | R8: =SUM(I8:K8) -> 1788 | S8: =SUM(L8:N8) -> 1239 | T8: =SUM(C8:H8) -> 2833 | U8: =SUM(I8:N8) -> 3027
A9: 3 | B9: Suma de 3_EDA_C_12_14 | C9: 15 | D9: 17 | E9: 17 | F9: 23 | G9: 25 | H9: 49 | I9: 26 | J9: 23 | K9: 26 | L9: 31 | M9: 32 | O9: 284 | P9: 49 | Q9: 97 | R9: 75 | S9: 63 | T9: 146 | U9: 138
A10: 4 | B10: Suma de 4_EDA_NC_12_14 | C10: 8 | D10: 12 | E10: 15 | F10: 19 | G10: 23 | H10: 42 | I10: 19 | J10: 15 | K10: 23 | L10: 30 | M10: 31 | O10: 237 | P10: 35 | Q10: 84 | R10: 57 | S10: 61 | T10: 119 | U10: 118
A11: 5 | B11: Suma de 5_PAI_INIC_12_14 | C11: 1844 | D11: 1692 | E11: 1871 | F11: 2548 | G11: 3242 | H11: 3319 | I11: 2801 | J11: 3143 | K11: 2897 | L11: 2940 | M11: 2269 | O11: 28566 | P11: 5407 | Q11: 9109 | R11: 8841 | S11: 5209 | T11: 14516 | U11: 14050
A12: 6 | B12: Suma de 6_PAI_TA_12_14 | C12: 373 | D12: 303 | E12: 454 | F12: 565 | G12: 636 | H12: 855 | I12: 1106 | J12: 1843 | K12: 1278 | L12: 1846 | M12: 1384 | O12: 10643 | P12: 1130 | Q12: 2056 | R12: 4227 | S12: 3230 | T12: 3186 | U12: 7457
A13: 7 | B13: Suma de 7_EED_Tot_12_14 | C13: 2401 | D13: 2516 | E13: 2944 | F13: 3773 | G13: 5142 | H13: 6178 | I13: 5872 | J13: 5561 | K13: 5093 | L13: 5414 | M13: 4412 | O13: 49306 | P13: 7861 | Q13: 15093 | R13: 16526 | S13: 9826 | T13: 22954 | U13: 26352
A14: 8 | B14: Suma de 8_EIA_1CRL-12_14 | C14: 1533 | D14: 1493 | E14: 1543 | F14: 2003 | G14: 2510 | H14: 2525 | I14: 1922 | J14: 1829 | K14: 1689 | L14: 1294 | M14: 1276 | O14: 19617 | P14: 4569 | Q14: 7038 | R14: 5440 | S14: 2570 | T14: 11607 | U14: 8010
A15: 9 | B15: Suma de 9_EIA_2CTRL-12_14 | C15: 378 | D15: 624 | E15: 800 | F15: 879 | G15: 1516 | H15: 2056 | I15: 2055 | J15: 1490 | K15: 1573 | L15: 1447 | M15: 1068 | O15: 13886 | P15: 1802 | Q15: 4451 | R15: 5118 | S15: 2515 | T15: 6253 | U15: 7633
A16: 10 | B16: Suma de 10_EIA_3CRL-12_14 | C16: 353 | D16: 297 | E16: 450 | F16: 542 | G16: 603 | H16: 920 | I16: 1091 | J16: 1855 | K16: 1260 | L16: 1801 | M16: 1374 | O16: 10546 | P16: 1100 | Q16: 2065 | R16: 4206 | S16: 3175 | T16: 3165 | U16: 7381
A17: 11 | B17: Suma de 11_EIA_4Ctrl-12_14 | C17: 5 | D17: 3 | E17: 5 | F17: 4 | G17: 2 | H17: 2 | I17: 2 | J17: 2 | K17: 0 | L17: 12 | M17: 1 | O17: 38 | P17: 13 | Q17: 8 | R17: 4 | S17: 13 | T17: 21 | U17: 17
A18: 12 | B18: Suma de 12_EIA_5Ctrl_12_14 | C18: 0 | D18: 1 | E18: 0 | F18: 0 | G18: 0 | H18: 0 | I18: 0 | J18: 0 | K18: 1 | L18: 0 | M18: 1 | O18: 3 | P18: 1 | Q18: 0 | R18: 1 | S18: 1 | T18: 1 | U18: 2
A19: 13 | B19: Suma de 13_EIA_6Ctrl_12_14 | C19: 0 | D19: 4 | E19: 2 | F19: 1 | G19: 1 | H19: 7 | I19: 112 | J19: 10 | K19: 17 | L19: 6 | M19: 1 | O19: 161 | P19: 6 | Q19: 9 | R19: 139 | S19: 7 | T19: 15 | U19: 146
A20: 14 | B20: Suma de 14_EIA_TA_12_14 | C20: 0 | D20: 3 | E20: 0 | F20: 1 | G20: 1 | H20: 7 | I20: 112 | J20: 10 | K20: 16 | L20: 5 | M20: 0 | O20: 155 | P20: 3 | Q20: 9 | R20: 138 | S20: 5 | T20: 12 | U20: 143
A21: 15 | B21: Suma de 15_1VD(12_14) | C21: 597 | D21: 606 | E21: 355 | F21: 283 | G21: 376 | H21: 320 | I21: 255 | J21: 267 | K21: 1071 | L21: 950 | M21: 383 | O21: 5463 | P21: 1558 | Q21: 979 | R21: 1593 | S21: 1333 | T21: 2537 | U21: 2926
A22: 16 | B22: Suma de 16_2VD(12_14) | C22: 82 | D22: 137 | E22: 76 | F22: 58 | G22: 54 | H22: 174 | I22: 75 | J22: 55 | K22: 88 | L22: 182 | M22: 86 | O22: 1067 | P22: 295 | Q22: 286 | R22: 218 | S22: 268 | T22: 581 | U22: 486
A23: 17 | B23: Suma de 17_3VD(12_14) | C23: 39 | D23: 43 | E23: 106 | F23: 94 | G23: 36 | H23: 51 | I23: 119 | J23: 142 | K23: 51 | L23: 52 | M23: 168 | O23: 901 | P23: 188 | Q23: 181 | R23: 312 | S23: 220 | T23: 369 | U23: 532
A24: 18 | B24: Suma de 18_1VD_Ay(12_14) | C24: 1 | D24: 0 | E24: 0 | F24: 1 | G24: 0 | H24: 0 | I24: 4 | J24: 1 | K24: 0 | L24: 0 | M24: 0 | O24: 7 | P24: 1 | Q24: 1 | R24: 5 | S24: 0 | T24: 2 | U24: 5
A25: 19 | B25: Suma de 19_2VD_Ay(12_14) | C25: 0 | D25: 0 | E25: 0 | F25: 0 | G25: 0 | H25: 0 | I25: 0 | J25: 0 | K25: 0 | L25: 0 | M25: 0 | O25: 0 | P25: 0 | Q25: 0 | R25: 0 | S25: 0 | T25: 0 | U25: 0
A26: 20 | B26: Suma de 20_3+VD_Ay(12_14) | C26: 0 | D26: 0 | E26: 0 | F26: 0 | G26: 0 | H26: 0 | I26: 0 | J26: 0 | K26: 0 | L26: 0 | M26: 0 | O26: 0 | P26: 0 | Q26: 0 | R26: 0 | S26: 0 | T26: 0 | U26: 0
A27: 21 | B27: Suma de 21_Exam_MG(12_14) | C27: 32 | D27: 78 | E27: 150 | F27: 69 | G27: 196 | H27: 203 | I27: 233 | J27: 516 | K27: 276 | L27: 321 | M27: 136 | O27: 2210 | P27: 260 | Q27: 468 | R27: 1025 | S27: 457 | T27: 728 | U27: 1482
A28: 22 | B28: Suma de 22_Val_FR(12_14) | C28: 66 | D28: 90 | E28: 209 | F28: 134 | G28: 245 | H28: 264 | I28: 154 | J28: 193 | K28: 223 | L28: 142 | M28: 393 | O28: 2113 | P28: 365 | Q28: 643 | R28: 570 | S28: 535 | T28: 1008 | U28: 1105
A29: 23 | B29: Suma de 23_Eval_RSM(12_14) | C29: 289 | D29: 363 | E29: 442 | F29: 509 | G29: 617 | H29: 1079 | I29: 767 | J29: 626 | K29: 528 | L29: 652 | M29: 659 | O29: 6531 | P29: 1094 | Q29: 2205 | R29: 1921 | S29: 1311 | T29: 3299 | U29: 3232
A30: 24 | B30: Suma de 24_Eval_RSA(12_14) | C30: 38 | D30: 58 | E30: 71 | F30: 62 | G30: 109 | H30: 230 | I30: 85 | J30: 97 | K30: 106 | L30: 73 | M30: 71 | O30: 1000 | P30: 167 | Q30: 401 | R30: 288 | S30: 144 | T30: 568 | U30: 432
A31: 25 | B31: Suma de 25_Eval_RMA(12_14) | C31: 6 | D31: 21 | E31: 30 | F31: 21 | G31: 53 | H31: 90 | I31: 29 | J31: 29 | K31: 14 | L31: 20 | M31: 13 | O31: 326 | P31: 57 | Q31: 164 | R31: 72 | S31: 33 | T31: 221 | U31: 105
A32: 26 | B32: Suma de 26_SOBREP(12_14) | C32: 76 | D32: 109 | E32: 82 | F32: 94 | G32: 193 | H32: 337 | I32: 157 | J32: 223 | K32: 247 | L32: 180 | M32: 193 | O32: 1891 | P32: 267 | Q32: 624 | R32: 627 | S32: 373 | T32: 891 | U32: 1000
A33: 27 | B33: Suma de 27_OBESI(12_14) | C33: 40 | D33: 72 | E33: 46 | F33: 78 | G33: 79 | H33: 115 | I33: 93 | J33: 82 | K33: 82 | L33: 77 | M33: 105 | O33: 869 | P33: 158 | Q33: 272 | R33: 257 | S33: 182 | T33: 430 | U33: 439
A34: 28 | B34: Suma de 28_PESO_NORM(12_14) | C34: 1088 | D34: 1104 | E34: 1298 | F34: 1651 | G34: 1726 | H34: 2320 | I34: 1686 | J34: 1531 | K34: 1698 | L34: 1745 | M34: 1731 | O34: 17578 | P34: 3490 | Q34: 5697 | R34: 4915 | S34: 3476 | T34: 9187 | U34: 8391
A35: 29 | B35: Suma de 29_DESN_AGUD(12_14) | C35: 9 | D35: 19 | E35: 16 | F35: 45 | G35: 37 | H35: 61 | I35: 23 | J35: 33 | K35: 28 | L35: 29 | M35: 60 | O35: 360 | P35: 44 | Q35: 143 | R35: 84 | S35: 89 | T35: 187 | U35: 173
A36: 30 | B36: Suma de 30_DESN_Prot_NE(12_14) | C36: 2 | D36: 1 | E36: 1 | F36: 3 | G36: 0 | H36: 4 | I36: 3 | J36: 4 | K36: 1 | L36: 0 | M36: 5 | O36: 24 | P36: 4 | Q36: 7 | R36: 8 | S36: 5 | T36: 11 | U36: 13
A37: 31 | B37: Suma de 31_Est_Talla_alt(12_14) | C37: 0 | D37: 2 | E37: 3 | F37: 2 | G37: 2 | H37: 9 | I37: 5 | J37: 6 | K37: 3 | L37: 9 | M37: 2 | O37: 43 | P37: 5 | Q37: 13 | R37: 14 | S37: 11 | T37: 18 | U37: 25
A38: 32 | B38: Suma de 32_Talla_Norm(12_14) | C38: 1088 | D38: 1104 | E38: 1298 | F38: 1651 | G38: 1726 | H38: 2320 | I38: 1686 | J38: 1531 | K38: 1698 | L38: 1745 | M38: 1731 | O38: 17578 | P38: 3490 | Q38: 5697 | R38: 4915 | S38: 3476 | T38: 9187 | U38: 8391
A39: 33 | B39: Suma de 33_Desn_Cron_T/E(12_14) | C39: 73 | D39: 93 | E39: 63 | F39: 119 | G39: 147 | H39: 243 | I39: 114 | J39: 158 | K39: 145 | L39: 157 | M39: 111 | O39: 1423 | P39: 229 | Q39: 509 | R39: 417 | S39: 268 | T39: 738 | U39: 685
A40: 34 | B40: Suma de 34_Hiperli_NE(12_14) | C40: 7 | D40: 9 | E40: 5 | F40: 3 | G40: 14 | H40: 11 | I40: 9 | J40: 14 | K40: 18 | L40: 13 | M40: 16 | O40: 119 | P40: 21 | Q40: 28 | R40: 41 | S40: 29 | T40: 49 | U40: 70
A41: 35 | B41: Suma de 35_Adipos_Local(12_14) | C41: 0 | D41: 0 | E41: 0 | F41: 0 | G41: 0 | H41: 0 | I41: 0 | J41: 0 | K41: 0 | L41: 0 | M41: 0 | O41: 0 | P41: 0 | Q41: 0 | R41: 0 | S41: 0 | T41: 0 | U41: 0
A42: 36 | B42: Suma de 36_OTROS_PROB(12_14) | C42: 7 | D42: 11 | E42: 14 | F42: 2 | G42: 24 | H42: 6 | I42: 10 | J42: 3 | K42: 19 | L42: 5 | M42: 17 | O42: 118 | P42: 32 | Q42: 32 | R42: 32 | S42: 22 | T42: 64 | U42: 54
A43: 37 | B43: Suma de 37_Dosaj_Hemog(12_14) | C43: 684 | D43: 626 | E43: 737 | F43: 974 | G43: 910 | H43: 1289 | I43: 854 | J43: 927 | K43: 885 | L43: 794 | M43: 1139 | O43: 9819 | P43: 2047 | Q43: 3173 | R43: 2666 | S43: 1933 | T43: 5220 | U43: 4599
A44: 38 | B44: Suma de 38_Suplem_SF(12_14) | C44: 755 | D44: 758 | E44: 810 | F44: 1129 | G44: 1204 | H44: 1828 | I44: 1449 | J44: 1285 | K44: 980 | L44: 1180 | M44: 1694 | O44: 13072 | P44: 2323 | Q44: 4161 | R44: 3714 | S44: 2874 | T44: 6484 | U44: 6588
A45: 39 | B45: Suma de 39_Eval_Agu_Vis_Norm(12_14) | C45: 623 | D45: 563 | E45: 708 | F45: 681 | G45: 801 | H45: 1192 | I45: 840 | J45: 809 | K45: 904 | L45: 875 | M45: 1020 | O45: 9016 | P45: 1894 | Q45: 2674 | R45: 2553 | S45: 1895 | T45: 4568 | U45: 4448
A46: 40 | B46: Suma de 40_Dism_Agud_Vis_NE(12_14) | C46: 0 | D46: 0 | E46: 0 | F46: 0 | G46: 0 | H46: 0 | I46: 0 | J46: 0 | K46: 0 | L46: 0 | M46: 0 | O46: 0 | P46: 0 | Q46: 0 | R46: 0 | S46: 0 | T46: 0 | U46: 0
A47: 41 | B47: Suma de 41_Prueb_Agud_VCB(12_14) | C47: 811 | D47: 838 | E47: 1025 | F47: 1046 | G47: 1057 | H47: 1782 | I47: 1173 | J47: 1290 | K47: 1311 | L47: 1288 | M47: 1448 | O47: 13069 | P47: 2674 | Q47: 3885 | R47: 3774 | S47: 2736 | T47: 6559 | U47: 6510
A48: 42 | B48: Suma de 42_Exam_Ojos_V(12_14) | C48: 601 | D48: 632 | E48: 787 | F48: 913 | G48: 988 | H48: 1453 | I48: 921 | J48: 941 | K48: 1118 | L48: 908 | M48: 1115 | O48: 10377 | P48: 2020 | Q48: 3354 | R48: 2980 | S48: 2023 | T48: 5374 | U48: 5003
A49: 43 | B49: Suma de 43_CONSEJ_OCUL(12_14) | C49: 687 | D49: 644 | E49: 792 | F49: 794 | G49: 908 | H49: 1375 | I49: 965 | J49: 1073 | K49: 1031 | L49: 957 | M49: 1237 | O49: 10463 | P49: 2123 | Q49: 3077 | R49: 3069 | S49: 2194 | T49: 5200 | U49: 5263
A50: 44 | B50: Suma de 44_Deter_Agud_A_NE(12_14) | C50: 30 | D50: 44 | E50: 18 | F50: 20 | G50: 43 | H50: 6 | I50: 11 | J50: 23 | K50: 18 | L50: 9 | M50: 16 | O50: 238 | P50: 92 | Q50: 69 | R50: 52 | S50: 25 | T50: 161 | U50: 77
A51: 45 | B51: Suma de 45_Exam_Oid_V(12_14) | C51: 534 | D51: 581 | E51: 614 | F51: 588 | G51: 707 | H51: 1064 | I51: 809 | J51: 776 | K51: 907 | L51: 673 | M51: 710 | O51: 7963 | P51: 1729 | Q51: 2359 | R51: 2492 | S51: 1383 | T51: 4088 | U51: 3875
A52: 46 | B52: Suma de 46_Ases_Nutric_Odon(12_14) | C52: 529 | D52: 752 | E52: 950 | F52: 1089 | G52: 986 | H52: 1268 | I52: 1264 | J52: 1195 | K52: 1361 | L52: 1199 | M52: 1493 | O52: 12086 | P52: 2231 | Q52: 3343 | R52: 3820 | S52: 2692 | T52: 5574 | U52: 6512
A53: 47 | B53: Suma de 47_Inst_Hig_Oral_(12_14) | C53: 580 | D53: 765 | E53: 952 | F53: 1155 | G53: 1001 | H53: 1278 | I53: 1284 | J53: 1207 | K53: 1363 | L53: 1197 | M53: 1509 | O53: 12291 | P53: 2297 | Q53: 3434 | R53: 3854 | S53: 2706 | T53: 5731 | U53: 6560
A54: 48 | B54: Suma de 48_Examen_Odon_(12_14) | C54: 188 | D54: 198 | E54: 176 | F54: 207 | G54: 228 | H54: 208 | I54: 255 | J54: 290 | K54: 474 | L54: 304 | M54: 391 | O54: 2919 | P54: 562 | Q54: 643 | R54: 1019 | S54: 695 | T54: 1205 | U54: 1714
A55: 49 | B55: Suma de 49_Profil_Dental(12_14) | C55: 0 | D55: 0 | E55: 0 | F55: 0 | G55: 0 | H55: 0 | I55: 0 | J55: 0 | K55: 0 | L55: 0 | M55: 0 | O55: 0 | P55: 0 | Q55: 0 | R55: 0 | S55: 0 | T55: 0 | U55: 0
A56: 50 | B56: Suma de 50_ABO(12_14) | C56: 35 | D56: 65 | E56: 59 | F56: 108 | G56: 177 | H56: 151 | I56: 135 | J56: 119 | K56: 173 | L56: 160 | M56: 263 | O56: 1445 | P56: 159 | Q56: 436 | R56: 427 | S56: 423 | T56: 595 | U56: 850
A57: 51 | B57: Suma de 51_Anal_Postur_N(12_14) | C57: 297 | D57: 294 | E57: 307 | F57: 230 | G57: 361 | H57: 512 | I57: 527 | J57: 363 | K57: 357 | L57: 201 | M57: 179 | O57: 3628 | P57: 898 | Q57: 1103 | R57: 1247 | S57: 380 | T57: 2001 | U57: 1627
A58: 52 | B58: Suma de 52_CIFOS_POST(12_14) | C58: 0 | D58: 3 | E58: 17 | F58: 0 | G58: 32 | H58: 74 | I58: 16 | J58: 8 | K58: 7 | L58: 4 | M58: 0 | O58: 161 | P58: 20 | Q58: 106 | R58: 31 | S58: 4 | T58: 126 | U58: 35
A59: 53 | B59: Suma de 53_Otras_Cifos(12_14) | C59: 0 | D59: 0 | E59: 0 | F59: 0 | G59: 1 | H59: 0 | I59: 0 | J59: 1 | K59: 0 | L59: 2 | M59: 0 | O59: 4 | P59: 0 | Q59: 1 | R59: 1 | S59: 2 | T59: 1 | U59: 3
A60: 54 | B60: Suma de 54_Sind_Esp_Plana(12_14) | C60: 0 | D60: 0 | E60: 0 | F60: 0 | G60: 0 | H60: 4 | I60: 8 | J60: 5 | K60: 3 | L60: 10 | M60: 0 | O60: 30 | P60: 0 | Q60: 4 | R60: 16 | S60: 10 | T60: 4 | U60: 26
A61: 55 | B61: Suma de 55_Lordosis_NE(12_14) | C61: 0 | D61: 0 | E61: 0 | F61: 2 | G61: 0 | H61: 0 | I61: 1 | J61: 0 | K61: 0 | L61: 0 | M61: 0 | O61: 3 | P61: 0 | Q61: 2 | R61: 1 | S61: 0 | T61: 2 | U61: 1
A62: 56 | B62: Suma de 56_Escolios_NE(12_14) | C62: 2 | D62: 2 | E62: 5 | F62: 1 | G62: 3 | H62: 7 | I62: 2 | J62: 3 | K62: 8 | L62: 10 | M62: 6 | O62: 49 | P62: 9 | Q62: 11 | R62: 13 | S62: 16 | T62: 20 | U62: 29
A63: 57 | B63: Suma de 57_Hvb_1Dosis(12_14) | C63: 61 | D63: 120 | E63: 168 | F63: 277 | G63: 164 | H63: 227 | I63: 56 | J63: 0 | K63: 0 | L63: 0 | M63: 0 | O63: 1073 | P63: 349 | Q63: 668 | R63: 56 | S63: 0 | T63: 1017 | U63: 56
A64: 58 | B64: Suma de 58_Hvb_2Dosis(12_14) | C64: 40 | D64: 46 | E64: 73 | F64: 68 | G64: 78 | H64: 96 | I64: 24 | J64: 0 | K64: 0 | L64: 0 | M64: 0 | O64: 425 | P64: 159 | Q64: 242 | R64: 24 | S64: 0 | T64: 401 | U64: 24
A65: 59 | B65: Suma de 59_Hvb_3Dosis(12_14) | C65: 31 | D65: 47 | E65: 55 | F65: 34 | G65: 55 | H65: 40 | I65: 14 | J65: 0 | K65: 0 | L65: 0 | M65: 0 | O65: 276 | P65: 133 | Q65: 129 | R65: 14 | S65: 0 | T65: 262 | U65: 14
A66: 60 | B66: Suma de 60_Vac_Influen(12_14) | C66: 2964 | D66: 1619 | E66: 305 | F66: 25 | G66: 537 | H66: 1355 | I66: 2055 | J66: 1170 | K66: 660 | L66: 341 | M66: 393 | O66: 11424 | P66: 4888 | Q66: 1917 | R66: 3885 | S66: 734 | T66: 6805 | U66: 4619
A67: 61 | B67: Suma de 61_DT_1D_12_14) | C67: 143 | D67: 160 | E67: 200 | F67: 277 | G67: 232 | H67: 271 | I67: 632 | J67: 205 | K67: 322 | L67: 201 | M67: 213 | O67: 2856 | P67: 503 | Q67: 780 | R67: 1159 | S67: 414 | T67: 1283 | U67: 1573
A68: 62 | B68: Suma de 62_DT_2D_12_14) | C68: 128 | D68: 91 | E68: 98 | F68: 94 | G68: 114 | H68: 161 | I68: 299 | J68: 101 | K68: 214 | L68: 203 | M68: 138 | O68: 1641 | P68: 317 | Q68: 369 | R68: 614 | S68: 341 | T68: 686 | U68: 955
A69: 63 | B69: Suma de 63_DT_3D_12_14) | C69: 57 | D69: 84 | E69: 56 | F69: 47 | G69: 64 | H69: 60 | I69: 85 | J69: 64 | K69: 54 | L69: 66 | M69: 73 | O69: 710 | P69: 197 | Q69: 171 | R69: 203 | S69: 139 | T69: 368 | U69: 342
A70: 64 | B70: Suma de 64_VPH_1D_12_14) | C70: 29 | D70: 56 | E70: 53 | F70: 157 | G70: 189 | H70: 630 | I70: 282 | J70: 95 | K70: 53 | L70: 86 | M70: 79 | O70: 1709 | P70: 138 | Q70: 976 | R70: 430 | S70: 165 | T70: 1114 | U70: 595
A71: 65 | B71: Suma de 65_VPH_2D_12_14) | C71: 61 | D71: 75 | E71: 101 | F71: 162 | G71: 153 | H71: 226 | I71: 119 | J71: 85 | K71: 56 | L71: 167 | M71: 240 | O71: 1445 | P71: =SUM(C71:E71) -> 237 | Q71: =SUM(F71:H71) -> 541 | R71: 260 | S71: 407 | T71: 778 | U71: 667
A72: 66 | B72: Suma de 66_Vac_Antiama(12_14) | C72: 3 | D72: 3 | E72: 4 | F72: 3 | G72: 3 | H72: 22 | I72: 3 | J72: 6 | K72: 8 | L72: 20 | M72: 31 | O72: =SUM(C72:N72) -> 106 | P72: 10 | Q72: 28 | R72: =SUM(I72:K72) -> 17 | S72: =SUM(L72:N72) -> 51 | T72: =SUM(C72:H72) -> 38 | U72: =SUM(I72:N72) -> 68
A73: 67 | B73: Suma de 67_Eval_Tanner(12_14) | C73: 1002 | D73: 914 | E73: 981 | F73: 1489 | G73: 2020 | H73: 1639 | I73: 1996 | J73: 2476 | K73: 1794 | L73: 1409 | M73: 1192 | O73: 16912 | P73: 2897 | Q73: 5148 | R73: 6266 | S73: 2601 | T73: 8045 | U73: 8867
A74: 68 | B74: Suma de 68_ATC_PF(12_14) | C74: 373 | D74: 264 | E74: 261 | F74: 544 | G74: 472 | H74: 435 | I74: 441 | J74: 528 | K74: 358 | L74: 328 | M74: 342 | O74: 4346 | P74: 898 | Q74: 1451 | R74: 1327 | S74: 670 | T74: 2349 | U74: 1997
A75: 69 | B75: Suma de 69_DIU(12_14) | C75: 1 | D75: 1 | E75: 0 | F75: 0 | G75: 0 | H75: 0 | I75: 0 | J75: 0 | K75: 0 | L75: 1 | M75: 0 | O75: 3 | P75: 2 | Q75: 0 | R75: 0 | S75: 1 | T75: 2 | U75: 1
A76: 70 | B76: Suma de 70_ORAL_COMB(12_14) | C76: 0 | D76: 0 | E76: 0 | F76: 0 | G76: 0 | H76: 1 | I76: 0 | J76: 0 | K76: 0 | L76: 0 | M76: 0 | O76: 1 | P76: 0 | Q76: 1 | R76: 0 | S76: 0 | T76: 1 | U76: 0
A77: 71 | B77: Suma de 71_PP_INYEC_TRIM(12_14) | C77: 1 | D77: 0 | E77: 3 | F77: 1 | G77: 3 | H77: 4 | I77: 2 | J77: 3 | K77: 1 | L77: 1 | M77: 2 | O77: 21 | P77: 4 | Q77: 8 | R77: 6 | S77: 3 | T77: 12 | U77: 9
A78: 72 | B78: Suma de 72_PP_INYEC_MES(12_14) | C78: 0 | D78: 0 | E78: 0 | F78: 0 | G78: 0 | H78: 0 | I78: 0 | J78: 0 | K78: 0 | L78: 0 | M78: 0 | O78: 0 | P78: 0 | Q78: 0 | R78: 0 | S78: 0 | T78: 0 | U78: 0
A79: 73 | B79: Suma de 73_PP_IMPLANTE(12_14) | C79: 7 | D79: 6 | E79: 9 | F79: 8 | G79: 0 | H79: 2 | I79: 4 | J79: 5 | K79: 3 | L79: 4 | M79: 10 | O79: 58 | P79: 22 | Q79: 10 | R79: 12 | S79: 14 | T79: 32 | U79: 26
A80: 74 | B80: Suma de 74_PP_CONDON_MASC(12_14) | C80: 2 | D80: 1 | E80: 1 | F80: 9 | G80: 0 | H80: 3 | I80: 9 | J80: 11 | K80: 3 | L80: 0 | M80: 4 | O80: 43 | P80: 4 | Q80: 12 | R80: 23 | S80: 4 | T80: 16 | U80: 27
A81: 75 | B81: Suma de 75_PP_CONDON_FEM(12_14) | C81: 0 | D81: 0 | E81: 0 | F81: 3 | G81: 0 | H81: 0 | I81: 0 | J81: 0 | K81: 0 | L81: 0 | M81: 0 | O81: 3 | P81: 0 | Q81: 3 | R81: 0 | S81: 0 | T81: 3 | U81: 0
A82: 76 | B82: Suma de 76_PP_AQV_F | C82: 0 | D82: 0 | E82: 0 | F82: 0 | G82: 0 | H82: 0 | I82: 0 | J82: 0 | K82: 0 | L82: 0 | M82: 0 | O82: 0 | P82: 0 | Q82: 0 | R82: 0 | S82: 0 | T82: 0 | U82: 0
A83: 77 | B83: Suma de 77_PP_AQV_M | C83: 0 | D83: 0 | E83: 0 | F83: 0 | G83: 0 | H83: 0 | I83: 0 | J83: 0 | K83: 0 | L83: 0 | M83: 0 | O83: 0 | P83: 0 | Q83: 0 | R83: 0 | S83: 0 | T83: 0 | U83: 0
A84: 78 | B84: Suma de 78_PP_MELA(12_14) | C84: 0 | D84: 0 | E84: 0 | F84: 1 | G84: 0 | H84: 1 | I84: 0 | J84: 0 | K84: 0 | L84: 0 | M84: 0 | O84: 2 | P84: 0 | Q84: 2 | R84: 0 | S84: 0 | T84: 2 | U84: 0
A85: 79 | B85: Suma de 79_PP_BILLINGS(12_14) | C85: 0 | D85: 0 | E85: 0 | F85: 0 | G85: 0 | H85: 0 | I85: 0 | J85: 0 | K85: 0 | L85: 0 | M85: 0 | O85: 0 | P85: 0 | Q85: 0 | R85: 0 | S85: 0 | T85: 0 | U85: 0
A86: 80 | B86: Suma de 80_PP_RITMO(12_14A) | C86: 0 | D86: 0 | E86: 0 | F86: 0 | G86: 0 | H86: 0 | I86: 0 | J86: 0 | K86: 0 | L86: 0 | M86: 0 | O86: 0 | P86: 0 | Q86: 0 | R86: 0 | S86: 0 | T86: 0 | U86: 0
A87: 81 | B87: Suma de 81_PP_DIAS_FIJOS(12_14A) | C87: 0 | D87: 0 | E87: 0 | F87: 0 | G87: 0 | H87: 0 | I87: 0 | J87: 0 | K87: 0 | L87: 0 | M87: 0 | O87: 0 | P87: 0 | Q87: 0 | R87: 0 | S87: 0 | T87: 0 | U87: 0
A88: 82 | B88: Suma de 82_Acne_N/E(12_14) | C88: 3 | D88: 0 | E88: 2 | F88: 2 | G88: 0 | H88: 5 | I88: 2 | J88: 1 | K88: 4 | L88: 3 | M88: 4 | O88: 26 | P88: 5 | Q88: 7 | R88: 7 | S88: 7 | T88: 12 | U88: 14
A89: 83 | B89: Suma de 83_Anemia_Sin_Esp(12_14) | C89: 18 | D89: 40 | E89: 47 | F89: 24 | G89: 51 | H89: 35 | I89: 35 | J89: 44 | K89: 41 | L89: 32 | M89: 48 | O89: 415 | P89: 105 | Q89: 110 | R89: 120 | S89: 80 | T89: 215 | U89: 200
A90: 84 | B90: Suma de 84_Anemia_Afec_Embar(12_14) | C90: 7 | D90: 12 | E90: 11 | F90: 13 | G90: 6 | H90: 5 | I90: 7 | J90: 6 | K90: 7 | L90: 11 | M90: 8 | O90: 93 | P90: 30 | Q90: 24 | R90: 20 | S90: 19 | T90: 54 | U90: 39
A91: 85 | B91: Suma de 85_ADM_TTO_Anemia(12_14) | C91: 116 | D91: 160 | E91: 161 | F91: 126 | G91: 108 | H91: 129 | I91: 80 | J91: 77 | K91: 84 | L91: 78 | M91: 104 | O91: 1223 | P91: 437 | Q91: 363 | R91: 241 | S91: 182 | T91: 800 | U91: 423
A92: 86 | B92: Suma de 86_Asma_N/E(12_14) | C92: 8 | D92: 5 | E92: 8 | F92: 2 | G92: 6 | H92: 10 | I92: 14 | J92: 5 | K92: 8 | L92: 8 | M92: 16 | O92: 90 | P92: 21 | Q92: 18 | R92: 27 | S92: 24 | T92: 39 | U92: 51
A93: 87 | B93: Suma de 87_HTA(12_14) | C93: 3 | D93: 3 | E93: 3 | F93: 0 | G93: 3 | H93: 4 | I93: 1 | J93: 2 | K93: 4 | L93: 5 | M93: 3 | O93: 31 | P93: 9 | Q93: 7 | R93: 7 | S93: 8 | T93: 16 | U93: 15
A94: 88 | B94: Suma de 88_Cefalea(12_14) | C94: 60 | D94: 65 | E94: 88 | F94: 96 | G94: 85 | H94: 100 | I94: 61 | J94: 67 | K94: 88 | L94: 94 | M94: 97 | O94: 901 | P94: 213 | Q94: 281 | R94: 216 | S94: 191 | T94: 494 | U94: 407
A95: 89 | B95: Suma de 89_Parsitosis_Int(12_14) | C95: 50 | D95: 69 | E95: 67 | F95: 44 | G95: 66 | H95: 84 | I95: 74 | J95: 80 | K95: 68 | L95: 75 | M95: 93 | O95: 770 | P95: 186 | Q95: 194 | R95: 222 | S95: 168 | T95: 380 | U95: 390
A96: 90 | B96: Suma de 90_Masa_N/E_Mama(12_14) | C96: 0 | D96: 0 | E96: 4 | F96: 3 | G96: 3 | H96: 1 | I96: 3 | J96: 1 | K96: 1 | L96: 3 | M96: 1 | O96: 20 | P96: 4 | Q96: 7 | R96: 5 | S96: 4 | T96: 11 | U96: 9
A97: 91 | B97: Suma de 91_Infec_Viral_N/E(12_14) | C97: 0 | D97: 0 | E97: 0 | F97: 0 | G97: 0 | H97: 3 | I97: 0 | J97: 0 | K97: 1 | L97: 0 | M97: 0 | O97: 4 | P97: 0 | Q97: 3 | R97: 1 | S97: 0 | T97: 3 | U97: 1
A98: 92 | B98: Suma de 92_Candid_Vag(12_14) | C98: 3 | D98: 7 | E98: 3 | F98: 3 | G98: 4 | H98: 2 | I98: 1 | J98: 3 | K98: 4 | L98: 5 | M98: 5 | O98: 40 | P98: 13 | Q98: 9 | R98: 8 | S98: 10 | T98: 22 | U98: 18
A99: 93 | B99: Suma de 93_Pediculosis(12_14) | C99: 0 | D99: 0 | E99: 1 | F99: 0 | G99: 0 | H99: 0 | I99: 0 | J99: 0 | K99: 0 | L99: 0 | M99: 0 | O99: 1 | P99: 1 | Q99: 0 | R99: 0 | S99: 0 | T99: 1 | U99: 0
A100: 94 | B100: Suma de 94_Vaginosis_Bact(12_14) | C100: 0 | D100: 0 | E100: 0 | F100: 0 | G100: 0 | H100: 1 | I100: 0 | J100: 3 | K100: 0 | L100: 1 | M100: 1 | O100: 6 | P100: 0 | Q100: 1 | R100: 3 | S100: 2 | T100: 1 | U100: 5
A101: 95 | B101: Suma de 95_Sindro_Fluj_V(12_14) | C101: 13 | D101: 10 | E101: 17 | F101: 16 | G101: 18 | H101: 15 | I101: 19 | J101: 15 | K101: 13 | L101: 19 | M101: 5 | O101: 160 | P101: 40 | Q101: 49 | R101: 47 | S101: 24 | T101: 89 | U101: 71
A102: 96 | B102: Suma de 96_Sindrom_Dolor_Ab(12_14) | C102: 4 | D102: 0 | E102: 1 | F102: 0 | G102: 3 | H102: 1 | I102: 0 | J102: 0 | K102: 1 | L102: 0 | M102: 1 | O102: 11 | P102: 5 | Q102: 4 | R102: 1 | S102: 1 | T102: 9 | U102: 2
A103: 97 | B103: Suma de 97_Sindro_Secrec_U(12_14) | C103: 0 | D103: 1 | E103: 0 | F103: 0 | G103: 1 | H103: 0 | I103: 0 | J103: 0 | K103: 0 | L103: 1 | M103: 0 | O103: 3 | P103: 1 | Q103: 1 | R103: 0 | S103: 1 | T103: 2 | U103: 1
A104: 98 | B104: Suma de 98_Adm_TTO_ITS(12_14) | C104: 30 | D104: 47 | E104: 30 | F104: 29 | G104: 33 | H104: 30 | I104: 31 | J104: 22 | K104: 15 | L104: 25 | M104: 12 | O104: 304 | P104: 107 | Q104: 92 | R104: 68 | S104: 37 | T104: 199 | U104: 105
A105: 99 | B105: Suma de 99_Cons_Integ(12_14) | C105: 922 | D105: 1078 | E105: 1257 | F105: 1110 | G105: 1303 | H105: 1606 | I105: 1473 | J105: 1280 | K105: 1504 | L105: 1512 | M105: 1352 | O105: 14397 | P105: 3257 | Q105: 4019 | R105: 4257 | S105: 2864 | T105: 7276 | U105: 7121
A106: 100 | B106: Suma de 100_Cons_SSR(12_14) | C106: 1302 | D106: 1197 | E106: 1331 | F106: 2029 | G106: 2697 | H106: 2534 | I106: 2382 | J106: 2737 | K106: 2119 | L106: 2592 | M106: 1807 | O106: 22727 | P106: 3830 | Q106: 7260 | R106: 7238 | S106: 4399 | T106: 11090 | U106: 11637
A107: 101 | B107: Suma de 101_Cons_PF(12_14) | C107: 1170 | D107: 1308 | E107: 1455 | F107: 1995 | G107: 2416 | H107: 2439 | I107: 2362 | J107: 2203 | K107: 2217 | L107: 2351 | M107: 1994 | O107: 21910 | P107: 3933 | Q107: 6850 | R107: 6782 | S107: 4345 | T107: 10783 | U107: 11127
A108: 102 | B108: Suma de 102_Cons_SM(12_14) | C108: 1118 | D108: 1849 | E108: 1914 | F108: 2184 | G108: 3364 | H108: 3765 | I108: 3681 | J108: 2947 | K108: 3046 | L108: 3029 | M108: 2523 | O108: 29420 | P108: 4881 | Q108: 9313 | R108: 9674 | S108: 5552 | T108: 14194 | U108: 15226
A109: 103 | B109: Suma de 103_Cons_DNT(12_14) | C109: 6 | D109: 7 | E109: 8 | F109: 1 | G109: 40 | H109: 5 | I109: 38 | J109: 37 | K109: 16 | L109: 7 | M109: 8 | O109: 173 | P109: 21 | Q109: 46 | R109: 91 | S109: 15 | T109: 67 | U109: 106
A110: 104 | B110: Suma de 104_Cons_Nutric(12_14) | C110: 1118 | D110: 1849 | E110: 1914 | F110: 2184 | G110: 3364 | H110: 3765 | I110: 3681 | J110: 2947 | K110: 3046 | L110: 3029 | M110: 2523 | O110: 29420 | P110: 4881 | Q110: 9313 | R110: 9674 | S110: 5552 | T110: 14194 | U110: 15226
A111: 105 | B111: Suma de 105_Cons_Nut_ALI(12_14) | C111: 1183 | D111: 1183 | E111: 1319 | F111: 1429 | G111: 2079 | H111: 2686 | I111: 1969 | J111: 1764 | K111: 1685 | L111: 1702 | M111: 2277 | O111: 19276 | P111: 3685 | Q111: 6194 | R111: 5418 | S111: 3979 | T111: 9879 | U111: 9397
A112: 106 | B112: Suma de 106_Cons_PreT_VIH(12_14) | C112: 284 | D112: 154 | E112: 191 | F112: 220 | G112: 210 | H112: 216 | I112: 291 | J112: 289 | K112: 239 | L112: 379 | M112: 185 | O112: 2658 | P112: 629 | Q112: 646 | R112: 819 | S112: 564 | T112: 1275 | U112: 1383
A113: 107 | B113: Suma de 107_Cons_PostTest_VIH_RN(12_14) | C113: 124 | D113: 114 | E113: 182 | F113: 173 | G113: 170 | H113: 98 | I113: 132 | J113: 201 | K113: 113 | L113: 319 | M113: 135 | O113: 1761 | P113: 420 | Q113: 441 | R113: 446 | S113: 454 | T113: 861 | U113: 900
A114: 108 | B114: Suma de 108_Cons_Post_Test_VIH_RP(12_14) | C114: 4 | D114: 18 | E114: 1 | F114: 4 | G114: 5 | H114: 1 | I114: 1 | J114: 4 | K114: 3 | L114: 4 | M114: 18 | O114: 63 | P114: 23 | Q114: 10 | R114: 8 | S114: 22 | T114: 33 | U114: 30
A115: 109 | B115: Suma de 109_Cons_ITS_VIH,(12_14) | C115: 809 | D115: 749 | E115: 811 | F115: 1089 | G115: 1693 | H115: 1526 | I115: 1191 | J115: 1203 | K115: 1337 | L115: 1563 | M115: 1005 | O115: 12976 | P115: 2369 | Q115: 4308 | R115: 3731 | S115: 2568 | T115: 6677 | U115: 6299
A116: 110 | B116: Suma de 110_Cons_Hig_Man(12_14) | C116: 1226 | D116: 1277 | E116: 1018 | F116: 988 | G116: 1109 | H116: 1166 | I116: 865 | J116: 930 | K116: 1544 | L116: 978 | M116: 1134 | O116: 12235 | P116: 3521 | Q116: 3263 | R116: 3339 | S116: 2112 | T116: 6784 | U116: 5451
A117: 111 | B117: Suma de 111_Cons_Autoc(12_14) | C117: 1415 | D117: 1453 | E117: 1094 | F117: 1167 | G117: 1159 | H117: 1100 | I117: 1074 | J117: 895 | K117: 845 | L117: 628 | M117: 769 | O117: 11599 | P117: 3962 | Q117: 3426 | R117: 2814 | S117: 1397 | T117: 7388 | U117: 4211
A118: 112 | B118: Suma de 112_Tamiz_HIV_PR(12_14) | C118: 131 | D118: 116 | E118: 193 | F118: 173 | G118: 155 | H118: 99 | I118: 134 | J118: 199 | K118: 122 | L118: 324 | M118: 135 | O118: 1781 | P118: 440 | Q118: 427 | R118: 455 | S118: 459 | T118: 867 | U118: 914
A119: 113 | B119: Suma de 113_Tamiz_Sifil_PR(12_14) | C119: 92 | D119: 110 | E119: 176 | F119: 144 | G119: 125 | H119: 82 | I119: 94 | J119: 170 | K119: 97 | L119: 308 | M119: 120 | O119: 1518 | P119: 378 | Q119: 351 | R119: 361 | S119: 428 | T119: 729 | U119: 789
A120: 114 | B120: Suma de 114_Tam_PR_Hepati(12_14) | C120: 19 | D120: 6 | E120: 4 | F120: 6 | G120: 1 | H120: 4 | I120: 1 | J120: 0 | K120: 1 | L120: 4 | M120: 1 | O120: 47 | P120: 29 | Q120: 11 | R120: 2 | S120: 5 | T120: 40 | U120: 7
A121: 115 | B121: Suma de 115_Embar_No_Confirm(12_14) | C121: 11 | D121: 30 | E121: 16 | F121: 6 | G121: 13 | H121: 13 | I121: 18 | J121: 22 | K121: 10 | L121: 12 | M121: 27 | O121: 178 | P121: 57 | Q121: 32 | R121: 50 | S121: 39 | T121: 89 | U121: 89
A122: 116 | B122: Suma de 116_Entrev_Tamiz(12_14) | C122: 613 | D122: 786 | E122: 1000 | F122: 1013 | G122: 1528 | H122: 1799 | I122: 1297 | J122: 1268 | K122: 1297 | L122: 1508 | M122: 1218 | O122: 13327 | P122: 2399 | Q122: 4340 | R122: 3862 | S122: 2726 | T122: 6739 | U122: 6588
A123: 117 | B123: Suma de 117_Aplica_Cuesti(12_14) | C123: 72 | D123: 180 | E123: 146 | F123: 242 | G123: 144 | H123: 222 | I123: 75 | J123: 124 | K123: 126 | L123: 85 | M123: 76 | O123: 1492 | P123: 398 | Q123: 608 | R123: 325 | S123: 161 | T123: 1006 | U123: 486
A124: 118 | B124: Suma de 118_Trans_Ansiedad(12_14) | C124: 3 | D124: 8 | E124: 11 | F124: 11 | G124: 9 | H124: 14 | I124: 8 | J124: 8 | K124: 13 | L124: 14 | M124: 17 | O124: 116 | P124: 22 | Q124: 34 | R124: 29 | S124: 31 | T124: 56 | U124: 60
A125: 119 | B125: Suma de 119_Bajo_Rend_Escol(12_14) | C125: 20 | D125: 5 | E125: 8 | F125: 2 | G125: 21 | H125: 20 | I125: 25 | J125: 2 | K125: 39 | L125: 17 | M125: 14 | O125: 173 | P125: 33 | Q125: 43 | R125: 66 | S125: 31 | T125: 76 | U125: 97
A126: 120 | B126: Suma de 120_Riesgo_Les_Acciden(12_14) | C126: 0 | D126: 0 | E126: 0 | F126: 0 | G126: 0 | H126: 0 | I126: 0 | J126: 0 | K126: 0 | L126: 0 | M126: 0 | O126: 0 | P126: 0 | Q126: 0 | R126: 0 | S126: 0 | T126: 0 | U126: 0
A127: 121 | B127: Suma de 121_Tamiz_SM_VIF(12_14) | C127: 816 | D127: 1118 | E127: 1276 | F127: 1687 | G127: 2267 | H127: 2479 | I127: 2141 | J127: 2027 | K127: 2115 | L127: 2060 | M127: 1421 | O127: 19407 | P127: 3210 | Q127: 6433 | R127: 6283 | S127: 3481 | T127: 9643 | U127: 9764
A128: 122 | B128: Suma de 122_Tamiz_AD(12_14) | C128: 242 | D128: 349 | E128: 485 | F128: 535 | G128: 1212 | H128: 1257 | I128: 1066 | J128: 1024 | K128: 1124 | L128: 867 | M128: 696 | O128: 8857 | P128: 1076 | Q128: 3004 | R128: 3214 | S128: 1563 | T128: 4080 | U128: 4777
A129: 123 | B129: Suma de 123_Tamiz_TD(12_14) | C129: 270 | D129: 367 | E129: 497 | F129: 432 | G129: 777 | H129: 1000 | I129: 1096 | J129: 914 | K129: 1053 | L129: 673 | M129: 527 | O129: 7606 | P129: 1134 | Q129: 2209 | R129: 3063 | S129: 1200 | T129: 3343 | U129: 4263
A130: 124 | B130: Suma de 124_Tamiz_Psic(12_14) | C130: 158 | D130: 173 | E130: 220 | F130: 210 | G130: 440 | H130: 617 | I130: 670 | J130: 486 | K130: 630 | L130: 519 | M130: 435 | O130: 4558 | P130: 551 | Q130: 1267 | R130: 1786 | S130: 954 | T130: 1818 | U130: 2740
A131: 125 | B131: Suma de 125_Tamiz_Hab_Soc(12_14) | C131: 282 | D131: 432 | E131: 561 | F131: 695 | G131: 1032 | H131: 1550 | I131: 1824 | J131: 1274 | K131: 1329 | L131: 1497 | M131: 1084 | O131: 11560 | P131: 1275 | Q131: 3277 | R131: 4427 | S131: 2581 | T131: 4552 | U131: 7008
A132: 126 | B132: Suma de 126_Probl_Relac_Viol(12_14) | C132: 50 | D132: 73 | E132: 96 | F132: 163 | G132: 242 | H132: 119 | I132: 128 | J132: 136 | K132: 180 | L132: 161 | M132: 102 | O132: 1450 | P132: 219 | Q132: 524 | R132: 444 | S132: 263 | T132: 743 | U132: 707
A133: 127 | B133: Suma de 127_Prob_Relac_Hab_Soc(12_14) | C133: 98 | D133: 99 | E133: 102 | F133: 230 | G133: 144 | H133: 447 | I133: 845 | J133: 459 | K133: 438 | L133: 565 | M133: 718 | O133: 4145 | P133: 299 | Q133: 821 | R133: 1742 | S133: 1283 | T133: 1120 | U133: 3025
A134: 128 | B134: Suma de 128_Prob_Relac_Tabaco(12_14) | C134: 9 | D134: 1 | E134: 0 | F134: 0 | G134: 1 | H134: 0 | I134: 0 | J134: 0 | K134: 1 | L134: 0 | M134: 0 | O134: 12 | P134: 10 | Q134: 1 | R134: 1 | S134: 0 | T134: 11 | U134: 1
A135: 129 | B135: Suma de 129_Probl_Uso_Alcoh(12_14) | C135: 1 | D135: 2 | E135: 5 | F135: 11 | G135: 38 | H135: 33 | I135: 7 | J135: 11 | K135: 19 | L135: 5 | M135: 5 | O135: 137 | P135: =SUM(C135:E135) -> 8 | Q135: =SUM(F135:H135) -> 82 | R135: 37 | S135: 10 | T135: 90 | U135: 47
A136: 130 | B136: Suma de 130_Probl_Uso_Drogas(12_14) | C136: 0 | D136: 0 | E136: 0 | F136: 0 | G136: 1 | H136: 0 | I136: 1 | J136: 1 | K136: 0 | L136: 2 | M136: 0 | O136: =SUM(C136:N136) -> 5 | P136: 0 | Q136: 1 | R136: =SUM(I136:K136) -> 2 | S136: =SUM(L136:N136) -> 2 | T136: =SUM(C136:H136) -> 1 | U136: =SUM(I136:N136) -> 4
A137: 131 | B137: Suma de 131_Probl_Real_Juego(12_14) | C137: 0 | D137: 0 | E137: 0 | F137: 0 | G137: 0 | H137: 0 | I137: 0 | J137: 0 | K137: 0 | L137: 1 | M137: 0 | O137: 1 | P137: 0 | Q137: 0 | R137: 0 | S137: 1 | T137: 0 | U137: 1
A138: 132 | B138: Suma de 132_Prob_Expe_Negat(12_14) | C138: 0 | D138: 0 | E138: 0 | F138: 0 | G138: 0 | H138: 0 | I138: 0 | J138: 0 | K138: 0 | L138: 0 | M138: 0 | O138: 0 | P138: 0 | Q138: 0 | R138: 0 | S138: 0 | T138: 0 | U138: 0
A139: 133 | B139: Suma de 133_Prob_Grupo_Prim(12_14) | C139: 3 | D139: 0 | E139: 1 | F139: 1 | G139: 1 | H139: 3 | I139: 1 | J139: 2 | K139: 4 | L139: 1 | M139: 3 | O139: 20 | P139: 4 | Q139: 5 | R139: 7 | S139: 4 | T139: 9 | U139: 11
A140: 134 | B140: Suma de 134_Sesion_Educat(12_14) | C140: 46 | D140: 97 | E140: 72 | F140: 18 | G140: 1569 | H140: 350 | I140: 315 | J140: 2169 | K140: 3029 | L140: 298 | M140: 210 | O140: 8173 | P140: 215 | Q140: 1937 | R140: 5513 | S140: 508 | T140: 2152 | U140: 6021
A141: 135 | B141: Suma de 135_Sesion_Fam_Fuertes(12_14) | C141: 0 | D141: 0 | E141: 0 | F141: 0 | G141: 0 | H141: 0 | I141: 0 | J141: 0 | K141: 0 | L141: 0 | M141: 23 | O141: 23 | P141: 0 | Q141: 0 | R141: 0 | S141: 23 | T141: 0 | U141: 23
A142: 136 | B142: Suma de 136_Act_colegios | C142: 0 | D142: 0 | E142: 0 | F142: 0 | G142: 0 | H142: 0 | I142: 0 | J142: 0 | K142: 0 | L142: 0 | M142: 0 | O142: 0 | P142: 0 | Q142: 0 | R142: 0 | S142: 0 | T142: 0 | U142: 0
A143: 137 | B143: Suma de 137_Act_EE.SS | C143: 0 | D143: 0 | E143: 0 | F143: 0 | G143: 0 | H143: 0 | I143: 0 | J143: 0 | K143: 0 | L143: 0 | M143: 0 | O143: 0 | P143: 0 | Q143: 0 | R143: 0 | S143: 0 | T143: 0 | U143: 0
A144: 138 | B144: Suma de 138_Act_Municipalidades | C144: 0 | D144: 0 | E144: 0 | F144: 0 | G144: 0 | H144: 0 | I144: 0 | J144: 0 | K144: 0 | L144: 0 | M144: 0 | O144: 0 | P144: 0 | Q144: 0 | R144: 0 | S144: 0 | T144: 0 | U144: 0
A145: 139 | B145: Suma de 139_Act_Familias | C145: 0 | D145: 0 | E145: 0 | F145: 0 | G145: 0 | H145: 0 | I145: 0 | J145: 0 | K145: 0 | L145: 0 | M145: 0 | O145: 0 | P145: 0 | Q145: 0 | R145: 0 | S145: 0 | T145: 0 | U145: 0
A146: 140 | B146: Suma de 140_Act_Adolescentes | C146: 0 | D146: 0 | E146: 0 | F146: 0 | G146: 0 | H146: 0 | I146: 0 | J146: 0 | K146: 0 | L146: 0 | M146: 0 | O146: 0 | P146: 0 | Q146: 0 | R146: 0 | S146: 0 | T146: 0 | U146: 0
A147: 141 | B147: Suma de 141_Act_Docentes | C147: 0 | D147: 0 | E147: 0 | F147: 0 | G147: 0 | H147: 0 | I147: 0 | J147: 0 | K147: 0 | L147: 0 | M147: 0 | O147: 0 | P147: 0 | Q147: 0 | R147: 0 | S147: 0 | T147: 0 | U147: 0
A148: 142 | B148: Suma de 142_Act_Alumnos | C148: 0 | D148: 0 | E148: 0 | F148: 0 | G148: 0 | H148: 0 | I148: 0 | J148: 0 | K148: 0 | L148: 0 | M148: 0 | O148: 0 | P148: 0 | Q148: 0 | R148: 0 | S148: 0 | T148: 0 | U148: 0
A149: 143 | B149: Suma de 143_Act_Padres | C149: 0 | D149: 0 | E149: 0 | F149: 0 | G149: 0 | H149: 0 | I149: 0 | J149: 0 | K149: 0 | L149: 0 | M149: 0 | O149: 0 | P149: 0 | Q149: 0 | R149: 0 | S149: 0 | T149: 0 | U149: 0
A150: 144 | B150: Suma de 144_Act_Autorizados | C150: 0 | D150: 0 | E150: 0 | F150: 0 | G150: 0 | H150: 0 | I150: 0 | J150: 0 | K150: 0 | L150: 0 | M150: 0 | O150: 0 | P150: 0 | Q150: 0 | R150: 0 | S150: 0 | T150: 0 | U150: 0
A151: 145 | B151: Suma de 145_Abogacía_PP(12_14) | C151: 0 | D151: 0 | E151: 0 | F151: 0 | G151: 0 | H151: 0 | I151: 0 | J151: 0 | K151: 0 | L151: 0 | M151: 0 | O151: 0 | P151: 0 | Q151: 0 | R151: 0 | S151: 0 | T151: 0 | U151: 0
A152: 146 | B152: Suma de 146_Taller_Fam(12_14) | C152: 0 | D152: 0 | E152: 0 | F152: 0 | G152: 0 | H152: 0 | I152: 0 | J152: 0 | K152: 0 | L152: 0 | M152: 0 | O152: 0 | P152: 0 | Q152: 0 | R152: 0 | S152: 0 | T152: 0 | U152: 0
A153: 147 | B153: Suma de 147_Sesion_Demos(12_14) | C153: 12 | D153: 29 | E153: 10 | F153: 9 | G153: 32 | H153: 51 | I153: 24 | J153: 354 | K153: 100 | L153: 19 | M153: 11 | O153: 651 | P153: 51 | Q153: 92 | R153: 478 | S153: 30 | T153: 143 | U153: 508
A154: 148 | B154: Suma de 148_Taller_Hab_Soc(12_14) | C154: 249 | D154: 297 | E154: 152 | F154: 312 | G154: 547 | H154: 610 | I154: 1074 | J154: 1122 | K154: 1645 | L154: 1630 | M154: 1138 | O154: 8776 | P154: 698 | Q154: 1469 | R154: 3841 | S154: 2768 | T154: 2167 | U154: 6609
A155: 149 | B155: Suma de 149_Taller_Pers_Salud(12_14) | C155: 0 | D155: 0 | E155: 0 | F155: 0 | G155: 0 | H155: 0 | I155: 0 | J155: 0 | K155: 0 | L155: 4 | M155: 0 | O155: 4 | P155: 0 | Q155: 0 | R155: 0 | S155: 4 | T155: 0 | U155: 4
A156: 150 | B156: Suma de 150_Animac_Socioc(12_14) | C156: 0 | D156: 0 | E156: 0 | F156: 0 | G156: 0 | H156: 0 | I156: 0 | J156: 0 | K156: 0 | L156: 0 | M156: 0 | O156: 0 | P156: 0 | Q156: 0 | R156: 0 | S156: 0 | T156: 0 | U156: 0
A157: 151 | B157: Suma de 151_Teatros_Popul(12_14) | C157: 0 | D157: 0 | E157: 0 | F157: 0 | G157: 0 | H157: 0 | I157: 0 | J157: 0 | K157: 0 | L157: 0 | M157: 0 | O157: 0 | P157: 0 | Q157: 0 | R157: 0 | S157: 0 | T157: 0 | U157: 0
A158: 152 | B158: Suma de 152_Formac_Educ_Pares(12_14) | C158: 0 | D158: 0 | E158: 0 | F158: 0 | G158: 0 | H158: 0 | I158: 0 | J158: 0 | K158: 0 | L158: 0 | M158: 0 | O158: 0 | P158: 0 | Q158: 0 | R158: 0 | S158: 0 | T158: 0 | U158: 0
A159: 153 | B159: Suma de 153_Monitoreo(12_14) | C159: 0 | D159: 0 | E159: 0 | F159: 0 | G159: 0 | H159: 0 | I159: 0 | J159: 0 | K159: 0 | L159: 0 | M159: 0 | O159: 0 | P159: 0 | Q159: 0 | R159: 0 | S159: 0 | T159: 0 | U159: 0
A160: 154 | B160: Suma de 154_Supervisión(12_14) | C160: 6 | D160: 7 | E160: 24 | F160: 1 | G160: 2 | H160: 1 | I160: 2 | J160: 10 | K160: 0 | L160: 10 | M160: 1 | O160: 64 | P160: 37 | Q160: 4 | R160: 12 | S160: 11 | T160: 41 | U160: 23
A161: 155 | B161: Suma de 155_Evaluacion(12_14) | C161: 0 | D161: 0 | E161: 0 | F161: 0 | G161: 0 | H161: 0 | I161: 0 | J161: 0 | K161: 0 | L161: 0 | M161: 0 | O161: 0 | P161: 0 | Q161: 0 | R161: 0 | S161: 0 | T161: 0 | U161: 0
A162: 156 | B162: Suma de 156_Asist_Tecnica(12_14) | C162: 0 | D162: 0 | E162: 0 | F162: 0 | G162: 0 | H162: 0 | I162: 0 | J162: 0 | K162: 0 | L162: 0 | M162: 0 | O162: 0 | P162: 0 | Q162: 0 | R162: 0 | S162: 0 | T162: 0 | U162: 0
A163: 157 | B163: Suma de 157_Activ_Fisica(12_14) | C163: 11 | D163: 7 | E163: 31 | F163: 0 | G163: 0 | H163: 14 | I163: 0 | J163: 275 | K163: 212 | L163: 45 | M163: 5 | O163: 600 | P163: 49 | Q163: 14 | R163: 487 | S163: 50 | T163: 63 | U163: 537
A164: 158 | B164: Suma de 158_Alim_Saludab(12_14) | C164: 9 | D164: 4 | E164: 1 | F164: 0 | G164: 44 | H164: 36 | I164: 0 | J164: 286 | K164: 147 | L164: 39 | M164: 0 | O164: 566 | P164: 14 | Q164: 80 | R164: 433 | S164: 39 | T164: 94 | U164: 472
A165: 159 | B165: Suma de 159_Higiene(12_14) | C165: 4 | D165: 3 | E165: 0 | F165: 0 | G165: 0 | H165: 13 | I165: 0 | J165: 275 | K165: 147 | L165: 38 | M165: 0 | O165: 480 | P165: 7 | Q165: 13 | R165: 422 | S165: 38 | T165: 20 | U165: 460
A166: 160 | B166: Suma de 160_Protec_Sol(12_14) | C166: 0 | D166: 0 | E166: 0 | F166: 0 | G166: 0 | H166: 6 | I166: 0 | J166: 95 | K166: 167 | L166: 2 | M166: 5 | O166: 275 | P166: 0 | Q166: 6 | R166: 262 | S166: 7 | T166: 6 | U166: 269
A167: 161 | B167: Suma de 161_Salud_Bucal(12_14) | C167: 0 | D167: 2 | E167: 31 | F167: 0 | G167: 0 | H167: 0 | I167: 0 | J167: 312 | K167: 0 | L167: 0 | M167: 0 | O167: 345 | P167: 33 | Q167: 0 | R167: 312 | S167: 0 | T167: 33 | U167: 312
A168: 162 | B168: Suma de 162_Salud_Ocular(12_14) | C168: 1 | D168: 0 | E168: 0 | F168: 0 | G168: 0 | H168: 0 | I168: 0 | J168: 107 | K168: 211 | L168: 0 | M168: 0 | O168: 319 | P168: 1 | Q168: 0 | R168: 318 | S168: 0 | T168: 1 | U168: 318
A169: 163 | B169: Suma de 163_Cuidado_Med_Amb(12_14) | C169: 0 | D169: 2 | E169: 31 | F169: 0 | G169: 0 | H169: 0 | I169: 0 | J169: 100 | K169: 278 | L169: 0 | M169: 0 | O169: 411 | P169: 33 | Q169: 0 | R169: 378 | S169: 0 | T169: 33 | U169: 378
A170: 164 | B170: Suma de 164_Primeros_Aux(12_14) | C170: 0 | D170: 0 | E170: 0 | F170: 0 | G170: 0 | H170: 0 | I170: 0 | J170: 0 | K170: 0 | L170: 0 | M170: 0 | O170: 0 | P170: 0 | Q170: 0 | R170: 0 | S170: 0 | T170: 0 | U170: 0
A171: 165 | B171: Suma de 165_Higien_SBucal(12_14) | C171: 0 | D171: 0 | E171: 0 | F171: 0 | G171: 0 | H171: 0 | I171: 0 | J171: 97 | K171: 259 | L171: 2 | M171: 0 | O171: 358 | P171: 0 | Q171: 0 | R171: 356 | S171: 2 | T171: 0 | U171: 358
A172: 166 | B172: Suma de 166_Activ_Fisica(12_14) | C172: 11 | D172: 7 | E172: 31 | F172: 0 | G172: 0 | H172: 14 | I172: 0 | J172: 275 | K172: 212 | L172: 45 | M172: 5 | O172: 600 | P172: 49 | Q172: 14 | R172: 487 | S172: 50 | T172: 63 | U172: 537
A173: 167 | B173: Suma de 167_Alim_Salud(12_14) | C173: 9 | D173: 4 | E173: 1 | F173: 0 | G173: 44 | H173: 36 | I173: 0 | J173: 286 | K173: 147 | L173: 39 | M173: 0 | O173: 566 | P173: 14 | Q173: 80 | R173: 433 | S173: 39 | T173: 94 | U173: 472
A174: 168 | B174: Suma de 168_Higiene(12_14) | C174: 4 | D174: 3 | E174: 0 | F174: 0 | G174: 0 | H174: 13 | I174: 0 | J174: 275 | K174: 147 | L174: 38 | M174: 0 | O174: 480 | P174: 7 | Q174: 13 | R174: 422 | S174: 38 | T174: 20 | U174: 460
A175: 169 | B175: Suma de 169_Prev_Trans_Post(12_14) | C175: 0 | D175: 0 | E175: 0 | F175: 0 | G175: 0 | H175: 6 | I175: 0 | J175: 95 | K175: 167 | L175: 2 | M175: 5 | O175: 275 | P175: 0 | Q175: 6 | R175: 262 | S175: 7 | T175: 6 | U175: 269
A176: 170 | B176: Suma de 170_Protecc_Sol(12_14) | C176: 0 | D176: 2 | E176: 31 | F176: 0 | G176: 0 | H176: 0 | I176: 0 | J176: 312 | K176: 0 | L176: 0 | M176: 0 | O176: 345 | P176: 33 | Q176: 0 | R176: 312 | S176: 0 | T176: 33 | U176: 312
A177: 171 | B177: Suma de 171_Salud_Bucal(12_14) | C177: 1 | D177: 0 | E177: 0 | F177: 0 | G177: 0 | H177: 0 | I177: 0 | J177: 107 | K177: 211 | L177: 0 | M177: 0 | O177: 319 | P177: 1 | Q177: 0 | R177: 318 | S177: 0 | T177: 1 | U177: 318
A178: 172 | B178: Suma de 172_Salud_Ocular(12_14) | C178: 0 | D178: 2 | E178: 31 | F178: 0 | G178: 0 | H178: 0 | I178: 0 | J178: 100 | K178: 278 | L178: 0 | M178: 0 | O178: 411 | P178: 33 | Q178: 0 | R178: 378 | S178: 0 | T178: 33 | U178: 378
A179: 173 | B179: Suma de 173_Salud_Resp_TBC(12_14) | C179: 0 | D179: 0 | E179: 0 | F179: 0 | G179: 0 | H179: 0 | I179: 0 | J179: 0 | K179: 0 | L179: 0 | M179: 0 | O179: 0 | P179: 0 | Q179: 0 | R179: 0 | S179: 0 | T179: 0 | U179: 0
A180: 174 | B180: Suma de 174_Cuida_Med_Amb(12_14) | C180: 0 | D180: 0 | E180: 0 | F180: 0 | G180: 0 | H180: 0 | I180: 0 | J180: 97 | K180: 259 | L180: 2 | M180: 0 | O180: 358 | P180: 0 | Q180: 0 | R180: 356 | S180: 2 | T180: 0 | U180: 358
A181: 175 | B181: Suma de 175_Prev_Enf_Prev(12_14) | C181: 0 | D181: 0 | E181: 0 | F181: 0 | G181: 0 | H181: 13 | I181: 0 | J181: 1 | K181: 0 | L181: 0 | M181: 0 | O181: 14 | P181: 0 | Q181: 13 | R181: 1 | S181: 0 | T181: 13 | U181: 1
A182: 176 | B182: Suma de 176_Med_Seg_Trans(12_14) | C182: 0 | D182: 0 | E182: 0 | F182: 0 | G182: 0 | H182: 0 | I182: 0 | J182: 0 | K182: 0 | L182: 0 | M182: 0 | O182: 0 | P182: 0 | Q182: 0 | R182: 0 | S182: 0 | T182: 0 | U182: 0
A183: 177 | B183: Suma de 177_Prim_Aux_RCP(12_14) | C183: 0 | D183: 0 | E183: 0 | F183: 0 | G183: 0 | H183: 0 | I183: 0 | J183: 0 | K183: 0 | L183: 0 | M183: 0 | O183: 0 | P183: 0 | Q183: 0 | R183: 0 | S183: 0 | T183: 0 | U183: 0
A184: 178 | B184: Suma de 178_Derec_Sexual(12_14) | C184: 14 | D184: 12 | E184: 0 | F184: 5 | G184: 301 | H184: 90 | I184: 70 | J184: 200 | K184: 255 | L184: 3 | M184: 95 | O184: 1045 | P184: 26 | Q184: 396 | R184: 525 | S184: 98 | T184: 422 | U184: 623
A185: 179 | B185: Suma de 179_Sexual_Humana(12_14) | C185: 10 | D185: 13 | E185: 2 | F185: 0 | G185: 300 | H185: 36 | I185: 53 | J185: 204 | K185: 248 | L185: 2 | M185: 63 | O185: 931 | P185: 25 | Q185: 336 | R185: 505 | S185: 65 | T185: 361 | U185: 570
A186: 180 | B186: Suma de 180_Desar_Sexual(12_14) | C186: 4 | D186: 12 | E186: 2 | F186: 2 | G186: 316 | H186: 41 | I186: 75 | J186: 150 | K186: 471 | L186: 59 | M186: 6 | O186: 1138 | P186: 18 | Q186: 359 | R186: 696 | S186: 65 | T186: 377 | U186: 761
A187: 181 | B187: Suma de 181_Prev_Embaraz_ND(12_14) | C187: 0 | D187: 1 | E187: 4 | F187: 7 | G187: 337 | H187: 51 | I187: 67 | J187: 114 | K187: 446 | L187: 56 | M187: 22 | O187: 1105 | P187: 5 | Q187: 395 | R187: 627 | S187: 78 | T187: 400 | U187: 705
A188: 182 | B188: Suma de 182_Divers_Sexual(12_14) | C188: 0 | D188: 2 | E188: 31 | F188: 0 | G188: 0 | H188: 0 | I188: 0 | J188: 312 | K188: 0 | L188: 0 | M188: 0 | O188: 345 | P188: 33 | Q188: 0 | R188: 312 | S188: 0 | T188: 33 | U188: 312
A189: 183 | B189: Suma de 183_Derec_Sexual(12_14) | C189: 14 | D189: 12 | E189: 0 | F189: 5 | G189: 301 | H189: 90 | I189: 70 | J189: 200 | K189: 255 | L189: 3 | M189: 95 | O189: 1045 | P189: 26 | Q189: 396 | R189: 525 | S189: 98 | T189: 422 | U189: 623
A190: 184 | B190: Suma de 184_Sexual_Humana(12_14) | C190: 10 | D190: 13 | E190: 2 | F190: 0 | G190: 300 | H190: 36 | I190: 53 | J190: 204 | K190: 248 | L190: 2 | M190: 63 | O190: 931 | P190: 25 | Q190: 336 | R190: 505 | S190: 65 | T190: 361 | U190: 570
A191: 185 | B191: Suma de 185_Anticon_Pater_Salud(12_14) | C191: 4 | D191: 12 | E191: 2 | F191: 2 | G191: 316 | H191: 41 | I191: 75 | J191: 150 | K191: 471 | L191: 59 | M191: 6 | O191: 1138 | P191: 18 | Q191: 359 | R191: 696 | S191: 65 | T191: 377 | U191: 761
A192: 186 | B192: Suma de 186_Prev_Embaraz_ND(12_14) | C192: 0 | D192: 1 | E192: 4 | F192: 7 | G192: 337 | H192: 51 | I192: 67 | J192: 114 | K192: 446 | L192: 56 | M192: 22 | O192: 1105 | P192: 5 | Q192: 395 | R192: 627 | S192: 78 | T192: 400 | U192: 705
A193: 187 | B193: Suma de 187_Relac_Sexual_SS(12_14) | C193: 0 | D193: 2 | E193: 31 | F193: 0 | G193: 0 | H193: 0 | I193: 0 | J193: 312 | K193: 0 | L193: 0 | M193: 0 | O193: 345 | P193: 33 | Q193: 0 | R193: 312 | S193: 0 | T193: 33 | U193: 312
A194: 188 | B194: Suma de 188_Infec_Trans_Sexual(12_14) | C194: 1 | D194: 0 | E194: 0 | F194: 0 | G194: 2 | H194: 13 | I194: 2 | J194: 75 | K194: 90 | L194: 16 | M194: 0 | O194: 199 | P194: 1 | Q194: 15 | R194: 167 | S194: 16 | T194: 16 | U194: 183
A195: 189 | B195: Suma de 189_Divers_Sexual(12_14) | C195: 0 | D195: 2 | E195: 0 | F195: 0 | G195: 0 | H195: 6 | I195: 0 | J195: 0 | K195: 0 | L195: 0 | M195: 69 | O195: 77 | P195: 2 | Q195: 6 | R195: 0 | S195: 69 | T195: 8 | U195: 69
A196: 190 | B196: Suma de 190_Habil_Vida(12_14) | C196: 1 | D196: 0 | E196: 0 | F196: 0 | G196: 0 | H196: 3 | I196: 0 | J196: 156 | K196: 23 | L196: 0 | M196: 0 | O196: 183 | P196: 1 | Q196: 3 | R196: 179 | S196: 0 | T196: 4 | U196: 179
A197: 191 | B197: Suma de 191_Proyec_Vida(12_14) | C197: 1 | D197: 0 | E197: 0 | F197: 0 | G197: 0 | H197: 3 | I197: 0 | J197: 0 | K197: 195 | L197: 0 | M197: 0 | O197: 199 | P197: 1 | Q197: 3 | R197: 195 | S197: 0 | T197: 4 | U197: 195
A198: 192 | B198: Suma de 192_Resilencia(12_14) | C198: 0 | D198: 0 | E198: 0 | F198: 0 | G198: 0 | H198: 3 | I198: 0 | J198: 0 | K198: 195 | L198: 0 | M198: 0 | O198: 198 | P198: 0 | Q198: 3 | R198: 195 | S198: 0 | T198: 3 | U198: 195
A199: 193 | B199: Suma de 193_Rol_Adolesc(12_14) | C199: 0 | D199: 0 | E199: 0 | F199: 0 | G199: 0 | H199: 0 | I199: 0 | J199: 156 | K199: 150 | L199: 2 | M199: 0 | O199: 308 | P199: =SUM(C199:E199) -> 0 | Q199: =SUM(F199:H199) -> 0 | R199: 306 | S199: 2 | T199: 0 | U199: 308
A200: 194 | B200: Suma de 194_Derech_Respons(12_14) | C200: 0 | D200: 0 | E200: 0 | F200: 0 | G200: 0 | H200: 0 | I200: 0 | J200: 0 | K200: 318 | L200: 0 | M200: 0 | O200: =SUM(C200:N200) -> 318 | P200: 0 | Q200: 0 | R200: =SUM(I200:K200) -> 318 | S200: =SUM(L200:N200) -> 0 | T200: =SUM(C200:H200) -> 0 | U200: =SUM(I200:N200) -> 318
A201: 195 | B201: Suma de 195_Equid_Genero(12_14) | C201: 0 | D201: 0 | E201: 0 | F201: 0 | G201: 0 | H201: 3 | I201: 0 | J201: 178 | K201: 200 | L201: 0 | M201: 0 | O201: 381 | P201: 0 | Q201: 3 | R201: 378 | S201: 0 | T201: 3 | U201: 378
B210: SUBREGION | C210: (Todas)
... 47 more rows

Sheet Tabla_15_17
B3: SUBREGION | C3: (Todas)
C4: ENE | D4: FEB | E4: MAR | F4: ABR | G4: MAY | H4: JUN | I4: JUL | J4: AGO | K4: SEP | L4: OCT | M4: NOV | N4: DIC | O4: TOTAL | P4: I-Trim | Q4: II-Trim | R4: III-Trim | S4: IV-Trim | T4: I-Sem | U4: II-Sem
C5: MES
B6: DATOS | C6: 1 | D6: 2 | E6: 3 | F6: 4 | G6: 5 | H6: 6 | I6: 7 | J6: 8 | K6: 9 | L6: 10 | M6: 11 | N6: 12
A7: 238 | B7: Suma de 238_IRA_15_17 | C7: 6 | D7: 7 | E7: 11 | F7: 6 | G7: 13 | H7: 6 | I7: 8 | J7: 5 | K7: 6 | L7: 8 | M7: 14 | N7: 6 | O7: =SUM(C7:N7) -> 96 | P7: =SUM(C7:E7) -> 24 | Q7: =SUM(F7:H7) -> 25 | R7: =SUM(I7:K7) -> 19 | S7: =SUM(L7:N7) -> 28 | T7: =SUM(C7:H7) -> 49 | U7: =SUM(I7:N7) -> 47
A8: 239 | B8: Suma de 239_IRA_15_17 | C8: 286 | D8: 155 | E8: 315 | F8: 360 | G8: 415 | H8: 408 | I8: 390 | J8: 494 | K8: 365 | L8: 366 | M8: 535 | N8: 489 | O8: =SUM(C8:N8) -> 4578 | P8: 756 | Q8: 1183 | R8: =SUM(I8:K8) -> 1249 | S8: =SUM(L8:N8) -> 1390 | T8: =SUM(C8:H8) -> 1939 | U8: =SUM(I8:N8) -> 2639
A9: 240 | B9: Suma de 240_EDA_C_15_17 | C9: 12 | D9: 20 | E9: 16 | F9: 26 | G9: 33 | H9: 40 | I9: 25 | J9: 20 | K9: 27 | L9: 14 | M9: 31 | N9: 24 | O9: 288 | P9: 48 | Q9: 99 | R9: 72 | S9: 69 | T9: 147 | U9: 141
A10: 241 | B10: Suma de 241_EDA_NC_15_17 | C10: 4 | D10: 16 | E10: 14 | F10: 21 | G10: 31 | H10: 35 | I10: 18 | J10: 14 | K10: 23 | L10: 13 | M10: 30 | N10: 22 | O10: 241 | P10: 34 | Q10: 87 | R10: 55 | S10: 65 | T10: 121 | U10: 120
A11: 242 | B11: Suma de 242_PAI_INIC_15_17 | C11: 899 | D11: 1008 | E11: 1206 | F11: 2136 | G11: 2678 | H11: 2788 | I11: 2175 | J11: 2382 | K11: 2515 | L11: 2201 | M11: 2269 | N11: 2023 | O11: 24280 | P11: 3113 | Q11: 7602 | R11: 7072 | S11: 6493 | T11: 10715 | U11: 13565
A12: 243 | B12: Suma de 243_PAI_TA_15_17 | C12: 201 | D12: 129 | E12: 233 | F12: 549 | G12: 456 | H12: 830 | I12: 591 | J12: 1394 | K12: 1277 | L12: 1129 | M12: 1315 | N12: 1506 | O12: 9610 | P12: 563 | Q12: 1835 | R12: 3262 | S12: 3950 | T12: 2398 | U12: 7212
A13: 244 | B13: Suma de 244_EED_Tot_15_17 | C13: 1135 | D13: 1376 | E13: 1857 | F13: 2932 | G13: 3757 | H13: 4271 | I13: 4174 | J13: 4366 | K13: 4274 | L13: 4558 | M13: 4783 | N13: 3524 | O13: 41007 | P13: 4368 | Q13: 10960 | R13: 12814 | S13: 12865 | T13: 15328 | U13: 25679
A14: 245 | B14: Suma de 245_EIA_1CRL-15_17 | C14: 709 | D14: 900 | E14: 1126 | F14: 1599 | G14: 1911 | H14: 2254 | I14: 1601 | J14: 1352 | K14: 1284 | L14: 1199 | M14: 1304 | N14: 556 | O14: 15795 | P14: 2735 | Q14: 5764 | R14: 4237 | S14: 3059 | T14: 8499 | U14: 7296
A15: 246 | B15: Suma de 246_EIA_2CTRL-15_17 | C15: 172 | D15: 276 | E15: 482 | F15: 652 | G15: 1198 | H15: 913 | I15: 1440 | J15: 1361 | K15: 1171 | L15: 1170 | M15: 839 | N15: 701 | O15: 10375 | P15: 930 | Q15: 2763 | R15: 3972 | S15: 2710 | T15: 3693 | U15: 6682
A16: 247 | B16: Suma de 247_EIA_3CRL-15_17 | C16: 190 | D16: 120 | E16: 229 | F16: 367 | G16: 444 | H16: 512 | I16: 649 | J16: 1445 | K16: 1275 | L16: 1236 | M16: 1313 | N16: 1436 | O16: 9216 | P16: 539 | Q16: 1323 | R16: 3369 | S16: 3985 | T16: 1862 | U16: 7354
A17: 248 | B17: Suma de 248_EIA_4Ctrl-15_17 | C17: 3 | D17: 1 | E17: 3 | F17: 3 | G17: 1 | H17: 1 | I17: 0 | J17: 3 | K17: 0 | L17: 0 | M17: 0 | N17: 0 | O17: 15 | P17: 7 | Q17: 5 | R17: 3 | S17: 0 | T17: 12 | U17: 3
A18: 249 | B18: Suma de 249_EIA_5Ctrl_15_17 | C18: 0 | D18: 0 | E18: 0 | F18: 0 | G18: 0 | H18: 1 | I18: 1 | J18: 0 | K18: 1 | L18: 0 | M18: 0 | N18: 0 | O18: 3 | P18: 0 | Q18: 1 | R18: 2 | S18: 0 | T18: 1 | U18: 2
A19: 250 | B19: Suma de 250_EIA_6Ctrl_15_17 | C19: 0 | D19: 0 | E19: 0 | F19: 0 | G19: 0 | H19: 0 | I19: 0 | J19: 0 | K19: 0 | L19: 0 | M19: 0 | N19: 0 | O19: 0 | P19: 0 | Q19: 0 | R19: 0 | S19: 0 | T19: 0 | U19: 0
A20: 251 | B20: Suma de 251_EIA_TA_15_17 | C20: 2 | D20: 2 | E20: 0 | F20: 0 | G20: 9 | H20: 5 | I20: 17 | J20: 1 | K20: 11 | L20: 1 | M20: 0 | N20: 1 | O20: 49 | P20: 4 | Q20: 14 | R20: 29 | S20: 2 | T20: 18 | U20: 31
A21: 252 | B21: Suma de 252_1VD(15_17) | C21: 849 | D21: 678 | E21: 435 | F21: 422 | G21: 624 | H21: 381 | I21: 384 | J21: 339 | K21: 1093 | L21: 695 | M21: 368 | N21: 220 | O21: 6488 | P21: 1962 | Q21: 1427 | R21: 1816 | S21: 1283 | T21: 3389 | U21: 3099
A22: 253 | B22: Suma de 253_2VD(15_17) | C22: 134 | D22: 331 | E22: 119 | F22: 104 | G22: 133 | H22: 333 | I22: 141 | J22: 93 | K22: 138 | L22: 310 | M22: 144 | N22: 93 | O22: 2073 | P22: 584 | Q22: 570 | R22: 372 | S22: 547 | T22: 1154 | U22: 919
A23: 254 | B23: Suma de 254_3VD(15_17) | C23: 89 | D23: 89 | E23: 303 | F23: 319 | G23: 100 | H23: 118 | I23: 325 | J23: 355 | K23: 122 | L23: 121 | M23: 322 | N23: 311 | O23: 2574 | P23: 481 | Q23: 537 | R23: 802 | S23: 754 | T23: 1018 | U23: 1556
A24: 255 | B24: Suma de 255_1VD_Ay(15_17) | C24: 0 | D24: 0 | E24: 0 | F24: 0 | G24: 0 | H24: 0 | I24: 0 | J24: 0 | K24: 0 | L24: 0 | M24: 0 | N24: 0 | O24: 0 | P24: 0 | Q24: 0 | R24: 0 | S24: 0 | T24: 0 | U24: 0
A25: 256 | B25: Suma de 256_2VD_Ay(15_17) | C25: 0 | D25: 0 | E25: 0 | F25: 0 | G25: 0 | H25: 0 | I25: 0 | J25: 0 | K25: 0 | L25: 0 | M25: 0 | N25: 0 | O25: 0 | P25: 0 | Q25: 0 | R25: 0 | S25: 0 | T25: 0 | U25: 0
A26: 257 | B26: Suma de 257_3+VD_Ay(15_17) | C26: 0 | D26: 0 | E26: 0 | F26: 0 | G26: 0 | H26: 0 | I26: 0 | J26: 0 | K26: 0 | L26: 0 | M26: 0 | N26: 0 | O26: 0 | P26: 0 | Q26: 0 | R26: 0 | S26: 0 | T26: 0 | U26: 0
A27: 258 | B27: Suma de 258_Exam_MG(15_17) | C27: 30 | D27: 54 | E27: 54 | F27: 248 | G27: 109 | H27: 157 | I27: 99 | J27: 110 | K27: 294 | L27: 446 | M27: 284 | N27: 149 | O27: 2034 | P27: 138 | Q27: 514 | R27: 503 | S27: 879 | T27: 652 | U27: 1382
A28: 259 | B28: Suma de 259_Val_FR(15_17) | C28: 49 | D28: 114 | E28: 162 | F28: 375 | G28: 624 | H28: 346 | I28: 229 | J28: 133 | K28: 221 | L28: 272 | M28: 451 | N28: 217 | O28: 3193 | P28: 325 | Q28: 1345 | R28: 583 | S28: 940 | T28: 1670 | U28: 1523
A29: 260 | B29: Suma de 260_Eval_RSM(15_17) | C29: 122 | D29: 191 | E29: 205 | F29: 405 | G29: 577 | H29: 683 | I29: 440 | J29: 410 | K29: 432 | L29: 490 | M29: 358 | N29: 349 | O29: 4662 | P29: 518 | Q29: 1665 | R29: 1282 | S29: 1197 | T29: 2183 | U29: 2479
A30: 261 | B30: Suma de 261_Eval_RSA(15_17) | C30: 10 | D30: 28 | E30: 18 | F30: 67 | G30: 75 | H30: 151 | I30: 70 | J30: 116 | K30: 78 | L30: 52 | M30: 72 | N30: 127 | O30: 864 | P30: 56 | Q30: 293 | R30: 264 | S30: 251 | T30: 349 | U30: 515
A31: 262 | B31: Suma de 262_Eval_RMA(15_17) | C31: 3 | D31: 9 | E31: 7 | F31: 16 | G31: 29 | H31: 40 | I31: 24 | J31: 30 | K31: 9 | L31: 6 | M31: 13 | N31: 4 | O31: 190 | P31: 19 | Q31: 85 | R31: 63 | S31: 23 | T31: 104 | U31: 86
A32: 263 | B32: Suma de 263_SOBREP(15_17) | C32: 78 | D32: 102 | E32: 120 | F32: 210 | G32: 214 | H32: 276 | I32: 159 | J32: 194 | K32: 188 | L32: 143 | M32: 293 | N32: 256 | O32: 2233 | P32: 300 | Q32: 700 | R32: 541 | S32: 692 | T32: 1000 | U32: 1233
A33: 264 | B33: Suma de 264_OBESI(15_17) | C33: 33 | D33: 54 | E33: 53 | F33: 74 | G33: 85 | H33: 117 | I33: 63 | J33: 74 | K33: 74 | L33: 94 | M33: 141 | N33: 67 | O33: 929 | P33: 140 | Q33: 276 | R33: 211 | S33: 302 | T33: 416 | U33: 513
A34: 265 | B34: Suma de 265_PESO_NORM(15_17) | C34: 952 | D34: 1018 | E34: 1069 | F34: 1496 | G34: 1809 | H34: 1794 | I34: 1493 | J34: 1655 | K34: 1568 | L34: 1697 | M34: 2003 | N34: 1404 | O34: 17958 | P34: 3039 | Q34: 5099 | R34: 4716 | S34: 5104 | T34: 8138 | U34: 9820
A35: 266 | B35: Suma de 266_DESN_AGUD(15_17) | C35: 9 | D35: 7 | E35: 6 | F35: 30 | G35: 38 | H35: 35 | I35: 21 | J35: 16 | K35: 27 | L35: 19 | M35: 38 | N35: 18 | O35: 264 | P35: 22 | Q35: 103 | R35: 64 | S35: 75 | T35: 125 | U35: 139
A36: 267 | B36: Suma de 267_DESN_Prot_NE(15_17) | C36: 0 | D36: 1 | E36: 0 | F36: 0 | G36: 6 | H36: 6 | I36: 1 | J36: 0 | K36: 0 | L36: 0 | M36: 7 | N36: 0 | O36: 21 | P36: 1 | Q36: 12 | R36: 1 | S36: 7 | T36: 13 | U36: 8
A37: 268 | B37: Suma de 268_Est_Talla_alt(15_17) | C37: 2 | D37: 2 | E37: 0 | F37: 1 | G37: 1 | H37: 2 | I37: 2 | J37: 1 | K37: 1 | L37: 2 | M37: 1 | N37: 0 | O37: 15 | P37: 4 | Q37: 4 | R37: 4 | S37: 3 | T37: 8 | U37: 7
A38: 269 | B38: Suma de 269_Talla_Norm(15_17) | C38: 952 | D38: 1018 | E38: 1069 | F38: 1496 | G38: 1809 | H38: 1794 | I38: 1493 | J38: 1655 | K38: 1568 | L38: 1697 | M38: 2003 | N38: 1404 | O38: 17958 | P38: 3039 | Q38: 5099 | R38: 4716 | S38: 5104 | T38: 8138 | U38: 9820
A39: 270 | B39: Suma de 270_Desn_Cron_T/E(15_17) | C39: 47 | D39: 47 | E39: 61 | F39: 173 | G39: 160 | H39: 221 | I39: 82 | J39: 126 | K39: 128 | L39: 109 | M39: 151 | N39: 180 | O39: 1485 | P39: 155 | Q39: 554 | R39: 336 | S39: 440 | T39: 709 | U39: 776
A40: 271 | B40: Suma de 271_Hiperli_NE(15_17) | C40: 5 | D40: 12 | E40: 8 | F40: 6 | G40: 10 | H40: 7 | I40: 15 | J40: 11 | K40: 15 | L40: 17 | M40: 21 | N40: 8 | O40: 135 | P40: 25 | Q40: 23 | R40: 41 | S40: 46 | T40: 48 | U40: 87
A41: 272 | B41: Suma de 272_Adipos_Local(15_17) | C41: 0 | D41: 0 | E41: 0 | F41: 1 | G41: 0 | H41: 0 | I41: 0 | J41: 2 | K41: 0 | L41: 0 | M41: 0 | N41: 1 | O41: 4 | P41: 0 | Q41: 1 | R41: 2 | S41: 1 | T41: 1 | U41: 3
A42: 273 | B42: Suma de 273_OTROS_PROB(15_17) | C42: 30 | D42: 25 | E42: 34 | F42: 6 | G42: 39 | H42: 25 | I42: 21 | J42: 7 | K42: 50 | L42: 31 | M42: 24 | N42: 3 | O42: 295 | P42: 89 | Q42: 70 | R42: 78 | S42: 58 | T42: 159 | U42: 136
A43: 274 | B43: Suma de 274_Dosaj_Hemog(15_17) | C43: 518 | D43: 503 | E43: 579 | F43: 1070 | G43: 977 | H43: 1097 | I43: 634 | J43: 970 | K43: 956 | L43: 979 | M43: 1288 | N43: 742 | O43: 10313 | P43: 1600 | Q43: 3144 | R43: 2560 | S43: 3009 | T43: 4744 | U43: 5569
A44: 275 | B44: Suma de 275_Suplem_SF(15_17) | C44: 353 | D44: 432 | E44: 402 | F44: 946 | G44: 952 | H44: 1474 | I44: 825 | J44: 1151 | K44: 963 | L44: 994 | M44: 1564 | N44: 875 | O44: 10931 | P44: 1187 | Q44: 3372 | R44: 2939 | S44: 3433 | T44: 4559 | U44: 6372
A45: 276 | B45: Suma de 276_Eval_Agu_Vis_Norm(15_17) | C45: 305 | D45: 286 | E45: 304 | F45: 443 | G45: 663 | H45: 669 | I45: 512 | J45: 600 | K45: 689 | L45: 761 | M45: 1082 | N45: 570 | O45: 6884 | P45: 895 | Q45: 1775 | R45: 1801 | S45: 2413 | T45: 2670 | U45: 4214
A46: 277 | B46: Suma de 277_Dism_Agud_Vis_NE(15_17) | C46: 0 | D46: 0 | E46: 0 | F46: 0 | G46: 0 | H46: 0 | I46: 0 | J46: 0 | K46: 0 | L46: 0 | M46: 0 | N46: 0 | O46: 0 | P46: 0 | Q46: 0 | R46: 0 | S46: 0 | T46: 0 | U46: 0
A47: 278 | B47: Suma de 278_Prueb_Agud_VCB(15_17) | C47: 388 | D47: 430 | E47: 542 | F47: 893 | G47: 886 | H47: 1048 | I47: 813 | J47: 930 | K47: 1030 | L47: 1028 | M47: 1661 | N47: 881 | O47: 10530 | P47: 1360 | Q47: 2827 | R47: 2773 | S47: 3570 | T47: 4187 | U47: 6343
A48: 279 | B48: Suma de 279_Exam_Ojos_V(15_17) | C48: 284 | D48: 309 | E48: 423 | F48: 858 | G48: 861 | H48: 979 | I48: 656 | J48: 708 | K48: 842 | L48: 858 | M48: 1383 | N48: 631 | O48: 8792 | P48: 1016 | Q48: 2698 | R48: 2206 | S48: 2872 | T48: 3714 | U48: 5078
A49: 280 | B49: Suma de 280_CONSEJ_OCUL(15_17) | C49: 322 | D49: 337 | E49: 432 | F49: 839 | G49: 771 | H49: 863 | I49: 570 | J49: 830 | K49: 774 | L49: 916 | M49: 1402 | N49: 822 | O49: 8878 | P49: 1091 | Q49: 2473 | R49: 2174 | S49: 3140 | T49: 3564 | U49: 5314
A50: 281 | B50: Suma de 281_Deter_Agud_A_NE(15_17) | C50: 16 | D50: 28 | E50: 9 | F50: 8 | G50: 26 | H50: 22 | I50: 14 | J50: 15 | K50: 6 | L50: 10 | M50: 16 | N50: 1 | O50: 171 | P50: 53 | Q50: 56 | R50: 35 | S50: 27 | T50: 109 | U50: 62
A51: 282 | B51: Suma de 282_Exam_Oid_V(15_17) | C51: 247 | D51: 270 | E51: 316 | F51: 439 | G51: 655 | H51: 629 | I51: 491 | J51: 559 | K51: 766 | L51: 704 | M51: 1017 | N51: 424 | O51: 6517 | P51: 833 | Q51: 1723 | R51: 1816 | S51: 2145 | T51: 2556 | U51: 3961
A52: 283 | B52: Suma de 283_Ases_Nutric_Odon(15_17) | C52: 461 | D52: 499 | E52: 613 | F52: 734 | G52: 862 | H52: 972 | I52: 933 | J52: 960 | K52: 1345 | L52: 1155 | M52: 1326 | N52: 1050 | O52: 10910 | P52: 1573 | Q52: 2568 | R52: 3238 | S52: 3531 | T52: 4141 | U52: 6769
A53: 284 | B53: Suma de 284_Inst_Hig_Oral_(15_17) | C53: 479 | D53: 508 | E53: 632 | F53: 790 | G53: 874 | H53: 967 | I53: 1041 | J53: 993 | K53: 1346 | L53: 1167 | M53: 1340 | N53: 1064 | O53: 11201 | P53: 1619 | Q53: 2631 | R53: 3380 | S53: 3571 | T53: 4250 | U53: 6951
A54: 285 | B54: Suma de 285_Examen_Odon_(15_17) | C54: 183 | D54: 123 | E54: 106 | F54: 132 | G54: 324 | H54: 147 | I54: 138 | J54: 225 | K54: 438 | L54: 235 | M54: 271 | N54: 368 | O54: 2690 | P54: 412 | Q54: 603 | R54: 801 | S54: 874 | T54: 1015 | U54: 1675
A55: 286 | B55: Suma de 286_Profil_Dental(15_17) | C55: 0 | D55: 0 | E55: 0 | F55: 0 | G55: 0 | H55: 0 | I55: 0 | J55: 0 | K55: 0 | L55: 0 | M55: 0 | N55: 0 | O55: 0 | P55: 0 | Q55: 0 | R55: 0 | S55: 0 | T55: 0 | U55: 0
A56: 287 | B56: Suma de 287_ABO(15_17) | C56: 19 | D56: 23 | E56: 25 | F56: 46 | G56: 102 | H56: 76 | I56: 65 | J56: 63 | K56: 177 | L56: 129 | M56: 75 | N56: 103 | O56: 903 | P56: 67 | Q56: 224 | R56: 305 | S56: 307 | T56: 291 | U56: 612
A57: 288 | B57: Suma de 288_Anal_Postur_N(15_17) | C57: 115 | D57: 137 | E57: 122 | F57: 314 | G57: 263 | H57: 268 | I57: 248 | J57: 116 | K57: 301 | L57: 197 | M57: 160 | N57: 150 | O57: 2391 | P57: 374 | Q57: 845 | R57: 665 | S57: 507 | T57: 1219 | U57: 1172
A58: 289 | B58: Suma de 289_CIFOS_POST(15_17) | C58: 0 | D58: 2 | E58: 1 | F58: 0 | G58: 21 | H58: 4 | I58: 2 | J58: 7 | K58: 20 | L58: 16 | M58: 0 | N58: 0 | O58: 73 | P58: 3 | Q58: 25 | R58: 29 | S58: 16 | T58: 28 | U58: 45
A59: 290 | B59: Suma de 290_Otras_Cifos(15_17) | C59: 0 | D59: 0 | E59: 0 | F59: 0 | G59: 0 | H59: 0 | I59: 0 | J59: 0 | K59: 0 | L59: 3 | M59: 0 | N59: 0 | O59: 3 | P59: 0 | Q59: 0 | R59: 0 | S59: 3 | T59: 0 | U59: 3
A60: 291 | B60: Suma de 291_Sind_Esp_Plana(15_17) | C60: 0 | D60: 0 | E60: 0 | F60: 0 | G60: 0 | H60: 0 | I60: 1 | J60: 0 | K60: 0 | L60: 8 | M60: 0 | N60: 0 | O60: 9 | P60: 0 | Q60: 0 | R60: 1 | S60: 8 | T60: 0 | U60: 9
A61: 292 | B61: Suma de 292_Lordosis_NE(15_17) | C61: 0 | D61: 0 | E61: 0 | F61: 0 | G61: 0 | H61: 0 | I61: 0 | J61: 0 | K61: 0 | L61: 0 | M61: 0 | N61: 0 | O61: 0 | P61: 0 | Q61: 0 | R61: 0 | S61: 0 | T61: 0 | U61: 0
A62: 293 | B62: Suma de 293_Escolios_NE(15_17) | C62: 1 | D62: 1 | E62: 4 | F62: 13 | G62: 11 | H62: 5 | I62: 4 | J62: 4 | K62: 9 | L62: 4 | M62: 8 | N62: 3 | O62: 67 | P62: 6 | Q62: 29 | R62: 17 | S62: 15 | T62: 35 | U62: 32
A63: 294 | B63: Suma de 294_Hvb_1Dosis(15_17) | C63: 46 | D63: 82 | E63: 130 | F63: 155 | G63: 141 | H63: 190 | I63: 43 | J63: 0 | K63: 0 | L63: 0 | M63: 0 | N63: 0 | O63: 787 | P63: 258 | Q63: 486 | R63: 43 | S63: 0 | T63: 744 | U63: 43
A64: 295 | B64: Suma de 295_Hvb_2Dosis(15_17) | C64: 43 | D64: 34 | E64: 55 | F64: 58 | G64: 72 | H64: 66 | I64: 16 | J64: 1 | K64: 0 | L64: 0 | M64: 0 | N64: 0 | O64: 345 | P64: 132 | Q64: 196 | R64: 17 | S64: 0 | T64: 328 | U64: 17
A65: 296 | B65: Suma de 296_Hvb_3Dosis(15_17) | C65: 14 | D65: 17 | E65: 33 | F65: 31 | G65: 38 | H65: 43 | I65: 12 | J65: 0 | K65: 0 | L65: 0 | M65: 0 | N65: 0 | O65: 188 | P65: 64 | Q65: 112 | R65: 12 | S65: 0 | T65: 176 | U65: 12
A66: 297 | B66: Suma de 297_Vac_Influen(15_17) | C66: 2303 | D66: 1110 | E66: 247 | F66: 23 | G66: 631 | H66: 1368 | I66: 1824 | J66: 986 | K66: 673 | L66: 361 | M66: 306 | N66: 288 | O66: 10120 | P66: 3660 | Q66: 2022 | R66: 3483 | S66: 955 | T66: 5682 | U66: 4438
A67: 298 | B67: Suma de 298_DT_1D_15_17) | C67: 71 | D67: 109 | E67: 140 | F67: 172 | G67: 163 | H67: 194 | I67: 364 | J67: 123 | K67: 156 | L67: 196 | M67: 154 | N67: 113 | O67: 1955 | P67: 320 | Q67: 529 | R67: 643 | S67: 463 | T67: 849 | U67: 1106
A68: 299 | B68: Suma de 299_DT_2D_15_17) | C68: 87 | D68: 39 | E68: 56 | F68: 60 | G68: 69 | H68: 112 | I68: 141 | J68: 71 | K68: 147 | L68: 107 | M68: 102 | N68: 56 | O68: 1047 | P68: 182 | Q68: 241 | R68: 359 | S68: 265 | T68: 423 | U68: 624
A69: 300 | B69: Suma de 300_DT_3D_15_17) | C69: 38 | D69: 39 | E69: 28 | F69: 24 | G69: 33 | H69: 55 | I69: 54 | J69: 34 | K69: 44 | L69: 43 | M69: 44 | N69: 23 | O69: 459 | P69: 105 | Q69: 112 | R69: 132 | S69: 110 | T69: 217 | U69: 242
A70: 301 | B70: Suma de 301_VPH_1D_15_17) | C70: 1 | D70: 0 | E70: 4 | F70: 2 | G70: 3 | H70: 54 | I70: 17 | J70: 3 | K70: 3 | L70: 6 | M70: 6 | N70: 5 | O70: 104 | P70: 5 | Q70: 59 | R70: 23 | S70: 17 | T70: 64 | U70: 40
A71: 302 | B71: Suma de 302_VPH_2D_15_17) | C71: 1 | D71: 2 | E71: 4 | F71: 1 | G71: 1 | H71: 5 | I71: 1 | J71: 2 | K71: 1 | L71: 3 | M71: 3 | N71: 18 | O71: 42 | P71: =SUM(C71:E71) -> 7 | Q71: =SUM(F71:H71) -> 7 | R71: 4 | S71: 24 | T71: 14 | U71: 28
A72: 303 | B72: Suma de 303_Vac_Antiama(15_17) | C72: 0 | D72: 5 | E72: 3 | F72: 3 | G72: 3 | H72: 16 | I72: 6 | J72: 2 | K72: 32 | L72: 114 | M72: 34 | N72: 19 | O72: =SUM(C72:N72) -> 237 | P72: 8 | Q72: 22 | R72: =SUM(I72:K72) -> 40 | S72: =SUM(L72:N72) -> 167 | T72: =SUM(C72:H72) -> 30 | U72: =SUM(I72:N72) -> 207
A73: 304 | B73: Suma de 304_Eval_Tanner(15_17) | C73: 469 | D73: 575 | E73: 728 | F73: 999 | G73: 1529 | H73: 1666 | I73: 1506 | J73: 1703 | K73: 1523 | L73: 1128 | M73: 1282 | N73: 1359 | O73: 14467 | P73: 1772 | Q73: 4194 | R73: 4732 | S73: 3769 | T73: 5966 | U73: 8501
A74: 305 | B74: Suma de 305_ATC_PF(15_17) | C74: 992 | D74: 1183 | E74: 1154 | F74: 1324 | G74: 1413 | H74: 1442 | I74: 1304 | J74: 1286 | K74: 1286 | L74: 1366 | M74: 1397 | N74: 938 | O74: 15085 | P74: 3329 | Q74: 4179 | R74: 3876 | S74: 3701 | T74: 7508 | U74: 7577
A75: 306 | B75: Suma de 306_DIU(15_17) | C75: 5 | D75: 3 | E75: 8 | F75: 3 | G75: 9 | H75: 9 | I75: 4 | J75: 2 | K75: 3 | L75: 5 | M75: 5 | N75: 1 | O75: 57 | P75: 16 | Q75: 21 | R75: 9 | S75: 11 | T75: 37 | U75: 20
A76: 307 | B76: Suma de 307_ORAL_COMB(15_17) | C76: 1 | D76: 1 | E76: 0 | F76: 0 | G76: 0 | H76: 0 | I76: 0 | J76: 0 | K76: 0 | L76: 0 | M76: 0 | N76: 0 | O76: 2 | P76: 2 | Q76: 0 | R76: 0 | S76: 0 | T76: 2 | U76: 0
A77: 308 | B77: Suma de 308_PP_INYEC_TRIM(15_17) | C77: 57 | D77: 67 | E77: 60 | F77: 68 | G77: 65 | H77: 68 | I77: 61 | J77: 57 | K77: 79 | L77: 80 | M77: 53 | N77: 48 | O77: 763 | P77: 184 | Q77: 201 | R77: 197 | S77: 181 | T77: 385 | U77: 378
A78: 309 | B78: Suma de 309_PP_INYEC_MES(15_17) | C78: 2 | D78: 3 | E78: 3 | F78: 6 | G78: 6 | H78: 6 | I78: 6 | J78: 5 | K78: 9 | L78: 8 | M78: 2 | N78: 1 | O78: 57 | P78: 8 | Q78: 18 | R78: 20 | S78: 11 | T78: 26 | U78: 31
A79: 310 | B79: Suma de 310_PP_IMPLANTE(15_17) | C79: 42 | D79: 63 | E79: 51 | F79: 53 | G79: 46 | H79: 44 | I79: 46 | J79: 61 | K79: 77 | L79: 75 | M79: 64 | N79: 51 | O79: 673 | P79: 156 | Q79: 143 | R79: 184 | S79: 190 | T79: 299 | U79: 374
A80: 311 | B80: Suma de 311_PP_CONDON_MASC(15_17) | C80: 12 | D80: 18 | E80: 10 | F80: 23 | G80: 8 | H80: 17 | I80: 34 | J80: 46 | K80: 33 | L80: 38 | M80: 52 | N80: 21 | O80: 312 | P80: 40 | Q80: 48 | R80: 113 | S80: 111 | T80: 88 | U80: 224
A81: 312 | B81: Suma de 312_PP_CONDON_FEM(15_17) | C81: 0 | D81: 0 | E81: 0 | F81: 2 | G81: 0 | H81: 2 | I81: 2 | J81: 0 | K81: 2 | L81: 0 | M81: 0 | N81: 0 | O81: 8 | P81: 0 | Q81: 4 | R81: 4 | S81: 0 | T81: 4 | U81: 4
A82: 313 | B82: Suma de 313_PP_AQV_F | C82: 0 | D82: 0 | E82: 0 | F82: 0 | G82: 0 | H82: 0 | I82: 0 | J82: 0 | K82: 0 | L82: 0 | M82: 0 | N82: 0 | O82: 0 | P82: 0 | Q82: 0 | R82: 0 | S82: 0 | T82: 0 | U82: 0
A83: 314 | B83: Suma de 314_PP_AQV_M | C83: 0 | D83: 0 | E83: 0 | F83: 0 | G83: 0 | H83: 0 | I83: 0 | J83: 0 | K83: 0 | L83: 0 | M83: 0 | N83: 0 | O83: 0 | P83: 0 | Q83: 0 | R83: 0 | S83: 0 | T83: 0 | U83: 0
A84: 315 | B84: Suma de 315_PP_MELA(15_17) | C84: 7 | D84: 9 | E84: 3 | F84: 5 | G84: 9 | H84: 6 | I84: 7 | J84: 9 | K84: 4 | L84: 1 | M84: 4 | N84: 3 | O84: 67 | P84: 19 | Q84: 20 | R84: 20 | S84: 8 | T84: 39 | U84: 28
A85: 316 | B85: Suma de 316_PP_BILLINGS(15_17) | C85: 0 | D85: 0 | E85: 0 | F85: 0 | G85: 0 | H85: 0 | I85: 0 | J85: 0 | K85: 0 | L85: 0 | M85: 0 | N85: 0 | O85: 0 | P85: 0 | Q85: 0 | R85: 0 | S85: 0 | T85: 0 | U85: 0
A86: 317 | B86: Suma de 317_PP_RITMO(15_17A) | C86: 0 | D86: 0 | E86: 0 | F86: 0 | G86: 0 | H86: 0 | I86: 0 | J86: 0 | K86: 0 | L86: 0 | M86: 0 | N86: 0 | O86: 0 | P86: 0 | Q86: 0 | R86: 0 | S86: 0 | T86: 0 | U86: 0
A87: 318 | B87: Suma de 318_PP_DIAS_FIJOS(15_17A) | C87: 0 | D87: 7 | E87: 3 | F87: 47 | G87: 20 | H87: 54 | I87: 36 | J87: 15 | K87: 32 | L87: 9 | M87: 13 | N87: 5 | O87: 241 | P87: 10 | Q87: 121 | R87: 83 | S87: 27 | T87: 131 | U87: 110
A88: 319 | B88: Suma de 319_Acne_N/E(15_17) | C88: 4 | D88: 1 | E88: 9 | F88: 5 | G88: 7 | H88: 10 | I88: 11 | J88: 8 | K88: 4 | L88: 6 | M88: 3 | N88: 6 | O88: 74 | P88: 14 | Q88: 22 | R88: 23 | S88: 15 | T88: 36 | U88: 38
A89: 320 | B89: Suma de 320_Anemia_Sin_Esp(15_17) | C89: 29 | D89: 31 | E89: 45 | F89: 43 | G89: 50 | H89: 44 | I89: 27 | J89: 35 | K89: 36 | L89: 39 | M89: 63 | N89: 42 | O89: 484 | P89: 105 | Q89: 137 | R89: 98 | S89: 144 | T89: 242 | U89: 242
A90: 321 | B90: Suma de 321_Anemia_Afec_Embar(15_17) | C90: 80 | D90: 89 | E90: 109 | F90: 111 | G90: 112 | H90: 93 | I90: 82 | J90: 73 | K90: 75 | L90: 78 | M90: 69 | N90: 82 | O90: 1053 | P90: 278 | Q90: 316 | R90: 230 | S90: 229 | T90: 594 | U90: 459
A91: 322 | B91: Suma de 322_ADM_TTO_Anemia(15_17) | C91: 167 | D91: 166 | E91: 164 | F91: 161 | G91: 136 | H91: 162 | I91: 120 | J91: 90 | K91: 113 | L91: 143 | M91: 126 | N91: 115 | O91: 1663 | P91: 497 | Q91: 459 | R91: 323 | S91: 384 | T91: 956 | U91: 707
A92: 323 | B92: Suma de 323_Asma_N/E(15_17) | C92: 2 | D92: 6 | E92: 8 | F92: 2 | G92: 7 | H92: 3 | I92: 4 | J92: 2 | K92: 4 | L92: 5 | M92: 6 | N92: 3 | O92: 52 | P92: 16 | Q92: 12 | R92: 10 | S92: 14 | T92: 28 | U92: 24
A93: 324 | B93: Suma de 324_HTA(15_17) | C93: 6 | D93: 2 | E93: 7 | F93: 6 | G93: 4 | H93: 7 | I93: 5 | J93: 4 | K93: 9 | L93: 6 | M93: 4 | N93: 4 | O93: 64 | P93: 15 | Q93: 17 | R93: 18 | S93: 14 | T93: 32 | U93: 32
A94: 325 | B94: Suma de 325_Cefalea(15_17) | C94: 96 | D94: 63 | E94: 82 | F94: 130 | G94: 86 | H94: 76 | I94: 76 | J94: 86 | K94: 85 | L94: 58 | M94: 88 | N94: 66 | O94: 992 | P94: 241 | Q94: 292 | R94: 247 | S94: 212 | T94: 533 | U94: 459
A95: 326 | B95: Suma de 326_Parsitosis_Int(15_17) | C95: 33 | D95: 27 | E95: 36 | F95: 32 | G95: 42 | H95: 57 | I95: 45 | J95: 46 | K95: 32 | L95: 25 | M95: 85 | N95: 57 | O95: 517 | P95: 96 | Q95: 131 | R95: 123 | S95: 167 | T95: 227 | U95: 290
A96: 327 | B96: Suma de 327_Masa_N/E_Mama(15_17) | C96: 4 | D96: 2 | E96: 0 | F96: 4 | G96: 5 | H96: 3 | I96: 2 | J96: 1 | K96: 2 | L96: 6 | M96: 1 | N96: 2 | O96: 32 | P96: 6 | Q96: 12 | R96: 5 | S96: 9 | T96: 18 | U96: 14
A97: 328 | B97: Suma de 328_Infec_Viral_N/E(15_17) | C97: 0 | D97: 1 | E97: 0 | F97: 0 | G97: 0 | H97: 0 | I97: 0 | J97: 0 | K97: 2 | L97: 0 | M97: 0 | N97: 1 | O97: 4 | P97: 1 | Q97: 0 | R97: 2 | S97: 1 | T97: 1 | U97: 3
A98: 329 | B98: Suma de 329_Candid_Vag(15_17) | C98: 3 | D98: 7 | E98: 3 | F98: 2 | G98: 7 | H98: 0 | I98: 3 | J98: 6 | K98: 8 | L98: 4 | M98: 4 | N98: 10 | O98: 57 | P98: 13 | Q98: 9 | R98: 17 | S98: 18 | T98: 22 | U98: 35
A99: 330 | B99: Suma de 330_Pediculosis(15_17) | C99: 0 | D99: 1 | E99: 1 | F99: 0 | G99: 0 | H99: 0 | I99: 0 | J99: 0 | K99: 0 | L99: 0 | M99: 0 | N99: 0 | O99: 2 | P99: 2 | Q99: 0 | R99: 0 | S99: 0 | T99: 2 | U99: 0
A100: 331 | B100: Suma de 331_Vaginosis_Bact(15_17) | C100: 1 | D100: 0 | E100: 0 | F100: 2 | G100: 3 | H100: 0 | I100: 3 | J100: 1 | K100: 1 | L100: 0 | M100: 0 | N100: 2 | O100: 13 | P100: 1 | Q100: 5 | R100: 5 | S100: 2 | T100: 6 | U100: 7
A101: 332 | B101: Suma de 332_Sindro_Fluj_V(15_17) | C101: 82 | D101: 96 | E101: 106 | F101: 101 | G101: 101 | H101: 121 | I101: 74 | J101: 78 | K101: 82 | L101: 82 | M101: 66 | N101: 73 | O101: 1062 | P101: 284 | Q101: 323 | R101: 234 | S101: 221 | T101: 607 | U101: 455
A102: 333 | B102: Suma de 333_Sindrom_Dolor_Ab(15_17) | C102: 5 | D102: 2 | E102: 4 | F102: 4 | G102: 3 | H102: 1 | I102: 0 | J102: 3 | K102: 3 | L102: 1 | M102: 3 | N102: 0 | O102: 29 | P102: 11 | Q102: 8 | R102: 6 | S102: 4 | T102: 19 | U102: 10
A103: 334 | B103: Suma de 334_Sindro_Secrec_U(15_17) | C103: 1 | D103: 0 | E103: 0 | F103: 1 | G103: 0 | H103: 0 | I103: 1 | J103: 0 | K103: 0 | L103: 0 | M103: 0 | N103: 0 | O103: 3 | P103: 1 | Q103: 1 | R103: 1 | S103: 0 | T103: 2 | U103: 1
A104: 335 | B104: Suma de 335_Adm_TTO_ITS(15_17) | C104: 106 | D104: 115 | E104: 111 | F104: 116 | G104: 123 | H104: 127 | I104: 98 | J104: 106 | K104: 88 | L104: 105 | M104: 93 | N104: 64 | O104: 1252 | P104: 332 | Q104: 366 | R104: 292 | S104: 262 | T104: 698 | U104: 554
A105: 336 | B105: Suma de 336_Cons_Integ(15_17) | C105: 1209 | D105: 1394 | E105: 1490 | F105: 1416 | G105: 1782 | H105: 2011 | I105: 1732 | J105: 1736 | K105: 1665 | L105: 1738 | M105: 1627 | N105: 1322 | O105: 19122 | P105: 4093 | Q105: 5209 | R105: 5133 | S105: 4687 | T105: 9302 | U105: 9820
A106: 337 | B106: Suma de 337_Cons_SSR(15_17) | C106: 691 | D106: 755 | E106: 962 | F106: 1386 | G106: 2234 | H106: 2083 | I106: 1846 | J106: 2032 | K106: 2103 | L106: 2031 | M106: 1960 | N106: 1849 | O106: 19932 | P106: 2408 | Q106: 5703 | R106: 5981 | S106: 5840 | T106: 8111 | U106: 11821
A107: 338 | B107: Suma de 338_Cons_PF(15_17) | C107: 1291 | D107: 1597 | E107: 1750 | F107: 2130 | G107: 2528 | H107: 2702 | I107: 2661 | J107: 2543 | K107: 2767 | L107: 2473 | M107: 2925 | N107: 2574 | O107: 27941 | P107: 4638 | Q107: 7360 | R107: 7971 | S107: 7972 | T107: 11998 | U107: 15943
A108: 339 | B108: Suma de 339_Cons_SM(15_17) | C108: 1305 | D108: 1463 | E108: 1650 | F108: 2078 | G108: 2917 | H108: 2702 | I108: 3118 | J108: 2976 | K108: 3226 | L108: 3070 | M108: 2878 | N108: 2161 | O108: 29544 | P108: 4418 | Q108: 7697 | R108: 9320 | S108: 8109 | T108: 12115 | U108: 17429
A109: 340 | B109: Suma de 340_Cons_DNT(15_17) | C109: 8 | D109: 14 | E109: 7 | F109: 9 | G109: 49 | H109: 12 | I109: 56 | J109: 36 | K109: 29 | L109: 40 | M109: 22 | N109: 16 | O109: 298 | P109: 29 | Q109: 70 | R109: 121 | S109: 78 | T109: 99 | U109: 199
A110: 341 | B110: Suma de 341_Cons_Nutric(15_17) | C110: 1305 | D110: 1463 | E110: 1650 | F110: 2078 | G110: 2917 | H110: 2702 | I110: 3118 | J110: 2976 | K110: 3226 | L110: 3070 | M110: 2878 | N110: 2161 | O110: 29544 | P110: 4418 | Q110: 7697 | R110: 9320 | S110: 8109 | T110: 12115 | U110: 17429
A111: 342 | B111: Suma de 342_Cons_Nut_ALI(15_17) | C111: 1397 | D111: 1541 | E111: 1682 | F111: 2144 | G111: 2277 | H111: 2858 | I111: 2070 | J111: 2375 | K111: 2155 | L111: 2420 | M111: 3210 | N111: 2146 | O111: 26275 | P111: 4620 | Q111: 7279 | R111: 6600 | S111: 7776 | T111: 11899 | U111: 14376
A112: 343 | B112: Suma de 343_Cons_PreT_VIH(15_17) | C112: 445 | D112: 564 | E112: 616 | F112: 837 | G112: 647 | H112: 792 | I112: 614 | J112: 618 | K112: 695 | L112: 762 | M112: 724 | N112: 836 | O112: 8150 | P112: 1625 | Q112: 2276 | R112: 1927 | S112: 2322 | T112: 3901 | U112: 4249
A113: 344 | B113: Suma de 344_Cons_PostTest_VIH_RN(15_17) | C113: 419 | D113: 427 | E113: 503 | F113: 767 | G113: 593 | H113: 579 | I113: 502 | J113: 585 | K113: 529 | L113: 658 | M113: 584 | N113: 806 | O113: 6952 | P113: 1349 | Q113: 1939 | R113: 1616 | S113: 2048 | T113: 3288 | U113: 3664
A114: 345 | B114: Suma de 345_Cons_Post_Test_VIH_RP(15_17) | C114: 3 | D114: 3 | E114: 3 | F114: 2 | G114: 2 | H114: 39 | I114: 1 | J114: 1 | K114: 1 | L114: 35 | M114: 47 | N114: 21 | O114: 158 | P114: 9 | Q114: 43 | R114: 3 | S114: 103 | T114: 52 | U114: 106
A115: 346 | B115: Suma de 346_Cons_ITS_VIH,(15_17) | C115: 822 | D115: 1023 | E115: 1148 | F115: 1542 | G115: 1593 | H115: 1823 | I115: 1568 | J115: 1695 | K115: 1649 | L115: 1611 | M115: 1690 | N115: 1664 | O115: 17828 | P115: 2993 | Q115: 4958 | R115: 4912 | S115: 4965 | T115: 7951 | U115: 9877
A116: 347 | B116: Suma de 347_Cons_Hig_Man(15_17) | C116: 1554 | D116: 1697 | E116: 1341 | F116: 1175 | G116: 1236 | H116: 1371 | I116: 1017 | J116: 1044 | K116: 1253 | L116: 1386 | M116: 1531 | N116: 976 | O116: 15581 | P116: 4592 | Q116: 3782 | R116: 3314 | S116: 3893 | T116: 8374 | U116: 7207
A117: 348 | B117: Suma de 348_Cons_Autoc(15_17) | C117: 1790 | D117: 1825 | E117: 1337 | F117: 1294 | G117: 962 | H117: 1227 | I117: 1116 | J117: 1050 | K117: 1003 | L117: 962 | M117: 1073 | N117: 597 | O117: 14236 | P117: 4952 | Q117: 3483 | R117: 3169 | S117: 2632 | T117: 8435 | U117: 5801
A118: 349 | B118: Suma de 349_Tamiz_HIV_PR(15_17) | C118: 430 | D118: 438 | E118: 517 | F118: 785 | G118: 617 | H118: 598 | I118: 514 | J118: 601 | K118: 556 | L118: 685 | M118: 606 | N118: 822 | O118: 7169 | P118: 1385 | Q118: 2000 | R118: 1671 | S118: 2113 | T118: 3385 | U118: 3784
A119: 350 | B119: Suma de 350_Tamiz_Sifil_PR(15_17) | C119: 342 | D119: 369 | E119: 450 | F119: 714 | G119: 524 | H119: 531 | I119: 411 | J119: 426 | K119: 433 | L119: 629 | M119: 534 | N119: 748 | O119: 6111 | P119: 1161 | Q119: 1769 | R119: 1270 | S119: 1911 | T119: 2930 | U119: 3181
A120: 351 | B120: Suma de 351_Tam_PR_Hepati(15_17) | C120: 2 | D120: 9 | E120: 3 | F120: 3 | G120: 4 | H120: 6 | I120: 2 | J120: 6 | K120: 1 | L120: 6 | M120: 1 | N120: 5 | O120: 48 | P120: 14 | Q120: 13 | R120: 9 | S120: 12 | T120: 27 | U120: 21
A121: 352 | B121: Suma de 352_Embar_No_Confirm(15_17) | C121: 41 | D121: 54 | E121: 58 | F121: 53 | G121: 68 | H121: 63 | I121: 54 | J121: 60 | K121: 53 | L121: 63 | M121: 73 | N121: 38 | O121: 678 | P121: 153 | Q121: 184 | R121: 167 | S121: 174 | T121: 337 | U121: 341
A122: 353 | B122: Suma de 353_Entrev_Tamiz(15_17) | C122: 839 | D122: 940 | E122: 1216 | F122: 1207 | G122: 1535 | H122: 1589 | I122: 1356 | J122: 1245 | K122: 1053 | L122: 1598 | M122: 1636 | N122: 947 | O122: 15161 | P122: 2995 | Q122: 4331 | R122: 3654 | S122: 4181 | T122: 7326 | U122: 7835
A123: 354 | B123: Suma de 354_Aplica_Cuesti(15_17) | C123: 151 | D123: 175 | E123: 158 | F123: 214 | G123: 171 | H123: 134 | I123: 225 | J123: 137 | K123: 137 | L123: 63 | M123: 46 | N123: 169 | O123: 1780 | P123: 484 | Q123: 519 | R123: 499 | S123: 278 | T123: 1003 | U123: 777
A124: 355 | B124: Suma de 355_Trans_Ansiedad(15_17) | C124: 8 | D124: 8 | E124: 13 | F124: 16 | G124: 18 | H124: 9 | I124: 11 | J124: 12 | K124: 14 | L124: 14 | M124: 16 | N124: 17 | O124: 156 | P124: 29 | Q124: 43 | R124: 37 | S124: 47 | T124: 72 | U124: 84
A125: 356 | B125: Suma de 356_Bajo_Rend_Escol(15_17) | C125: 12 | D125: 4 | E125: 4 | F125: 2 | G125: 14 | H125: 11 | I125: 13 | J125: 0 | K125: 27 | L125: 6 | M125: 7 | N125: 3 | O125: 103 | P125: 20 | Q125: 27 | R125: 40 | S125: 16 | T125: 47 | U125: 56
A126: 357 | B126: Suma de 357_Riesgo_Les_Acciden(15_17) | C126: 0 | D126: 0 | E126: 0 | F126: 0 | G126: 0 | H126: 0 | I126: 0 | J126: 0 | K126: 0 | L126: 0 | M126: 0 | N126: 0 | O126: 0 | P126: 0 | Q126: 0 | R126: 0 | S126: 0 | T126: 0 | U126: 0
A127: 358 | B127: Suma de 358_Tamiz_SM_VIF(15_17) | C127: 744 | D127: 882 | E127: 1053 | F127: 1546 | G127: 1899 | H127: 1579 | I127: 1751 | J127: 1975 | K127: 1879 | L127: 1907 | M127: 1527 | N127: 1438 | O127: 18180 | P127: 2679 | Q127: 5024 | R127: 5605 | S127: 4872 | T127: 7703 | U127: 10477
A128: 359 | B128: Suma de 359_Tamiz_AD(15_17) | C128: 147 | D128: 195 | E128: 401 | F128: 519 | G128: 1193 | H128: 830 | I128: 923 | J128: 847 | K128: 988 | L128: 954 | M128: 918 | N128: 707 | O128: 8622 | P128: 743 | Q128: 2542 | R128: 2758 | S128: 2579 | T128: 3285 | U128: 5337
A129: 360 | B129: Suma de 360_Tamiz_TD(15_17) | C129: 327 | D129: 283 | E129: 398 | F129: 525 | G129: 674 | H129: 818 | I129: 795 | J129: 801 | K129: 876 | L129: 746 | M129: 498 | N129: 593 | O129: 7334 | P129: 1008 | Q129: 2017 | R129: 2472 | S129: 1837 | T129: 3025 | U129: 4309
A130: 361 | B130: Suma de 361_Tamiz_Psic(15_17) | C130: 62 | D130: 88 | E130: 124 | F130: 146 | G130: 253 | H130: 502 | I130: 305 | J130: 423 | K130: 556 | L130: 571 | M130: 417 | N130: 279 | O130: 3726 | P130: 274 | Q130: 901 | R130: 1284 | S130: 1267 | T130: 1175 | U130: 2551
A131: 362 | B131: Suma de 362_Tamiz_Hab_Soc(15_17) | C131: 106 | D131: 197 | E131: 394 | F131: 573 | G131: 950 | H131: 850 | I131: 1205 | J131: 860 | K131: 1040 | L131: 1434 | M131: 897 | N131: 743 | O131: 9249 | P131: 697 | Q131: 2373 | R131: 3105 | S131: 3074 | T131: 3070 | U131: 6179
A132: 363 | B132: Suma de 363_Probl_Relac_Viol(15_17) | C132: 72 | D132: 103 | E132: 98 | F132: 168 | G132: 228 | H132: 197 | I132: 155 | J132: 203 | K132: 165 | L132: 211 | M132: 150 | N132: 108 | O132: 1858 | P132: 273 | Q132: 593 | R132: 523 | S132: 469 | T132: 866 | U132: 992
A133: 364 | B133: Suma de 364_Prob_Relac_Hab_Soc(15_17) | C133: 50 | D133: 48 | E133: 66 | F133: 108 | G133: 156 | H133: 188 | I133: 773 | J133: 394 | K133: 405 | L133: 715 | M133: 563 | N133: 164 | O133: 3630 | P133: 164 | Q133: 452 | R133: 1572 | S133: 1442 | T133: 616 | U133: 3014
A134: 365 | B134: Suma de 365_Prob_Relac_Tabaco(15_17) | C134: 3 | D134: 0 | E134: 9 | F134: 0 | G134: 4 | H134: 1 | I134: 0 | J134: 1 | K134: 0 | L134: 0 | M134: 2 | N134: 1 | O134: 21 | P134: 12 | Q134: 5 | R134: 1 | S134: 3 | T134: 17 | U134: 4
A135: 366 | B135: Suma de 366_Probl_Uso_Alcoh(15_17) | C135: 13 | D135: 5 | E135: 3 | F135: 33 | G135: 35 | H135: 34 | I135: 24 | J135: 48 | K135: 19 | L135: 21 | M135: 25 | N135: 14 | O135: 274 | P135: =SUM(C135:E135) -> 21 | Q135: =SUM(F135:H135) -> 102 | R135: 91 | S135: 60 | T135: 123 | U135: 151
A136: 367 | B136: Suma de 367_Probl_Uso_Drogas(15_17) | C136: 0 | D136: 2 | E136: 1 | F136: 0 | G136: 3 | H136: 4 | I136: 6 | J136: 3 | K136: 3 | L136: 1 | M136: 3 | N136: 2 | O136: =SUM(C136:N136) -> 28 | P136: 3 | Q136: 7 | R136: =SUM(I136:K136) -> 12 | S136: =SUM(L136:N136) -> 6 | T136: =SUM(C136:H136) -> 10 | U136: =SUM(I136:N136) -> 18
A137: 368 | B137: Suma de 368_Probl_Real_Juego(15_17) | C137: 0 | D137: 0 | E137: 0 | F137: 0 | G137: 0 | H137: 0 | I137: 0 | J137: 0 | K137: 1 | L137: 0 | M137: 0 | N137: 0 | O137: 1 | P137: 0 | Q137: 0 | R137: 1 | S137: 0 | T137: 0 | U137: 1
A138: 369 | B138: Suma de 369_Prob_Expe_Negat(15_17) | C138: 0 | D138: 0 | E138: 0 | F138: 0 | G138: 0 | H138: 0 | I138: 0 | J138: 0 | K138: 0 | L138: 1 | M138: 1 | N138: 0 | O138: 2 | P138: 0 | Q138: 0 | R138: 0 | S138: 2 | T138: 0 | U138: 2
A139: 370 | B139: Suma de 370_Prob_Grupo_Prim(15_17) | C139: 0 | D139: 0 | E139: 2 | F139: 3 | G139: 3 | H139: 4 | I139: 1 | J139: 2 | K139: 6 | L139: 2 | M139: 1 | N139: 10 | O139: 34 | P139: 2 | Q139: 10 | R139: 9 | S139: 13 | T139: 12 | U139: 22
A140: 371 | B140: Suma de 371_Sesion_Educat(15_17) | C140: 57 | D140: 65 | E140: 76 | F140: 52 | G140: 241 | H140: 1213 | I140: 425 | J140: 381 | K140: 590 | L140: 635 | M140: 970 | N140: 319 | O140: 5024 | P140: 198 | Q140: 1506 | R140: 1396 | S140: 1924 | T140: 1704 | U140: 3320
A141: 372 | B141: Suma de 372_Sesion_Fam_Fuertes(15_17) | C141: 0 | D141: 0 | E141: 0 | F141: 0 | G141: 0 | H141: 0 | I141: 0 | J141: 0 | K141: 0 | L141: 0 | M141: 66 | N141: 1 | O141: 67 | P141: 0 | Q141: 0 | R141: 0 | S141: 67 | T141: 0 | U141: 67
A142: 373 | B142: Suma de 373_Act_colegios | C142: 0 | D142: 0 | E142: 0 | F142: 0 | G142: 0 | H142: 0 | I142: 0 | J142: 0 | K142: 0 | L142: 0 | M142: 0 | N142: 0 | O142: 0 | P142: 0 | Q142: 0 | R142: 0 | S142: 0 | T142: 0 | U142: 0
A143: 374 | B143: Suma de 374_Act_EE.SS | C143: 0 | D143: 0 | E143: 0 | F143: 0 | G143: 0 | H143: 0 | I143: 0 | J143: 0 | K143: 0 | L143: 0 | M143: 0 | N143: 0 | O143: 0 | P143: 0 | Q143: 0 | R143: 0 | S143: 0 | T143: 0 | U143: 0
A144: 375 | B144: Suma de 375_Act_Municipalidades | C144: 0 | D144: 0 | E144: 0 | F144: 0 | G144: 0 | H144: 0 | I144: 0 | J144: 0 | K144: 0 | L144: 0 | M144: 0 | N144: 0 | O144: 0 | P144: 0 | Q144: 0 | R144: 0 | S144: 0 | T144: 0 | U144: 0
A145: 376 | B145: Suma de 376_Act_Familias | C145: 0 | D145: 0 | E145: 0 | F145: 0 | G145: 0 | H145: 0 | I145: 0 | J145: 0 | K145: 0 | L145: 0 | M145: 0 | N145: 0 | O145: 0 | P145: 0 | Q145: 0 | R145: 0 | S145: 0 | T145: 0 | U145: 0
A146: 377 | B146: Suma de 377_Act_Adolescentes | C146: 0 | D146: 0 | E146: 0 | F146: 0 | G146: 0 | H146: 0 | I146: 0 | J146: 0 | K146: 0 | L146: 0 | M146: 0 | N146: 0 | O146: 0 | P146: 0 | Q146: 0 | R146: 0 | S146: 0 | T146: 0 | U146: 0
A147: 378 | B147: Suma de 378_Act_Docentes | C147: 0 | D147: 0 | E147: 0 | F147: 0 | G147: 0 | H147: 0 | I147: 0 | J147: 0 | K147: 0 | L147: 0 | M147: 0 | N147: 0 | O147: 0 | P147: 0 | Q147: 0 | R147: 0 | S147: 0 | T147: 0 | U147: 0
A148: 379 | B148: Suma de 379_Act_Alumnos | C148: 0 | D148: 0 | E148: 0 | F148: 0 | G148: 0 | H148: 0 | I148: 0 | J148: 0 | K148: 0 | L148: 0 | M148: 0 | N148: 0 | O148: 0 | P148: 0 | Q148: 0 | R148: 0 | S148: 0 | T148: 0 | U148: 0
A149: 380 | B149: Suma de 380_Act_Padres | C149: 0 | D149: 0 | E149: 0 | F149: 0 | G149: 0 | H149: 0 | I149: 0 | J149: 0 | K149: 0 | L149: 0 | M149: 0 | N149: 0 | O149: 0 | P149: 0 | Q149: 0 | R149: 0 | S149: 0 | T149: 0 | U149: 0
A150: 381 | B150: Suma de 381_Act_Autorizados | C150: 0 | D150: 0 | E150: 0 | F150: 0 | G150: 0 | H150: 0 | I150: 0 | J150: 0 | K150: 0 | L150: 0 | M150: 0 | N150: 0 | O150: 0 | P150: 0 | Q150: 0 | R150: 0 | S150: 0 | T150: 0 | U150: 0
A151: 382 | B151: Suma de 382_Abogacía_PP(15_17) | C151: 0 | D151: 0 | E151: 0 | F151: 0 | G151: 0 | H151: 0 | I151: 0 | J151: 0 | K151: 0 | L151: 0 | M151: 0 | N151: 0 | O151: 0 | P151: 0 | Q151: 0 | R151: 0 | S151: 0 | T151: 0 | U151: 0
A152: 383 | B152: Suma de 383_Taller_Fam(15_17) | C152: 0 | D152: 0 | E152: 0 | F152: 0 | G152: 0 | H152: 0 | I152: 0 | J152: 0 | K152: 0 | L152: 0 | M152: 0 | N152: 0 | O152: 0 | P152: 0 | Q152: 0 | R152: 0 | S152: 0 | T152: 0 | U152: 0
A153: 384 | B153: Suma de 384_Sesion_Demos(15_17) | C153: 45 | D153: 62 | E153: 57 | F153: 47 | G153: 90 | H153: 127 | I153: 62 | J153: 34 | K153: 79 | L153: 36 | M153: 33 | N153: 48 | O153: 720 | P153: 164 | Q153: 264 | R153: 175 | S153: 117 | T153: 428 | U153: 292
A154: 385 | B154: Suma de 385_Taller_Hab_Soc(15_17) | C154: 65 | D154: 65 | E154: 139 | F154: 178 | G154: 348 | H154: 404 | I154: 827 | J154: 863 | K154: 1046 | L154: 715 | M154: 851 | N154: 457 | O154: 5958 | P154: 269 | Q154: 930 | R154: 2736 | S154: 2023 | T154: 1199 | U154: 4759
A155: 386 | B155: Suma de 386_Taller_Pers_Salud(15_17) | C155: 0 | D155: 0 | E155: 0 | F155: 0 | G155: 0 | H155: 0 | I155: 0 | J155: 0 | K155: 0 | L155: 13 | M155: 0 | N155: 0 | O155: 13 | P155: 0 | Q155: 0 | R155: 0 | S155: 13 | T155: 0 | U155: 13
A156: 387 | B156: Suma de 387_Animac_Socioc(15_17) | C156: 0 | D156: 1 | E156: 0 | F156: 0 | G156: 0 | H156: 0 | I156: 0 | J156: 0 | K156: 0 | L156: 0 | M156: 0 | N156: 0 | O156: 1 | P156: 1 | Q156: 0 | R156: 0 | S156: 0 | T156: 1 | U156: 0
A157: 388 | B157: Suma de 388_Teatros_Popul(15_17) | C157: 0 | D157: 0 | E157: 0 | F157: 0 | G157: 0 | H157: 0 | I157: 0 | J157: 0 | K157: 0 | L157: 0 | M157: 0 | N157: 0 | O157: 0 | P157: 0 | Q157: 0 | R157: 0 | S157: 0 | T157: 0 | U157: 0
A158: 389 | B158: Suma de 389_Formac_Educ_Pares(15_17) | C158: 0 | D158: 0 | E158: 0 | F158: 0 | G158: 0 | H158: 0 | I158: 0 | J158: 0 | K158: 0 | L158: 0 | M158: 0 | N158: 0 | O158: 0 | P158: 0 | Q158: 0 | R158: 0 | S158: 0 | T158: 0 | U158: 0
A159: 390 | B159: Suma de 390_Monitoreo(15_17) | C159: 0 | D159: 16 | E159: 23 | F159: 13 | G159: 31 | H159: 16 | I159: 15 | J159: 0 | K159: 0 | L159: 5 | M159: 12 | N159: 5 | O159: 136 | P159: 39 | Q159: 60 | R159: 15 | S159: 22 | T159: 99 | U159: 37
A160: 391 | B160: Suma de 391_Supervisión(15_17) | C160: 3 | D160: 10 | E160: 25 | F160: 0 | G160: 4 | H160: 2 | I160: 4 | J160: 16 | K160: 0 | L160: 9 | M160: 1 | N160: 0 | O160: 74 | P160: 38 | Q160: 6 | R160: 20 | S160: 10 | T160: 44 | U160: 30
A161: 392 | B161: Suma de 392_Evaluacion(15_17) | C161: 0 | D161: 0 | E161: 0 | F161: 0 | G161: 0 | H161: 0 | I161: 0 | J161: 0 | K161: 0 | L161: 0 | M161: 0 | N161: 0 | O161: 0 | P161: 0 | Q161: 0 | R161: 0 | S161: 0 | T161: 0 | U161: 0
A162: 393 | B162: Suma de 393_Asist_Tecnica(15_17) | C162: 0 | D162: 0 | E162: 0 | F162: 0 | G162: 0 | H162: 0 | I162: 0 | J162: 0 | K162: 0 | L162: 0 | M162: 0 | N162: 0 | O162: 0 | P162: 0 | Q162: 0 | R162: 0 | S162: 0 | T162: 0 | U162: 0
A163: 394 | B163: Suma de 394_Activ_Fisica(15_17) | C163: 3 | D163: 1 | E163: 16 | F163: 0 | G163: 0 | H163: 9 | I163: 0 | J163: 38 | K163: 27 | L163: 67 | M163: 337 | N163: 7 | O163: 505 | P163: 20 | Q163: 9 | R163: 65 | S163: 411 | T163: 29 | U163: 476
A164: 395 | B164: Suma de 395_Alim_Saludab(15_17) | C164: 5 | D164: 3 | E164: 2 | F164: 8 | G164: 6 | H164: 4 | I164: 0 | J164: 35 | K164: 7 | L164: 22 | M164: 0 | N164: 0 | O164: 92 | P164: 10 | Q164: 18 | R164: 42 | S164: 22 | T164: 28 | U164: 64
A165: 396 | B165: Suma de 396_Higiene(15_17) | C165: 4 | D165: 3 | E165: 0 | F165: 0 | G165: 0 | H165: 2 | I165: 0 | J165: 32 | K165: 22 | L165: 22 | M165: 0 | N165: 0 | O165: 85 | P165: 7 | Q165: 2 | R165: 54 | S165: 22 | T165: 9 | U165: 76
A166: 397 | B166: Suma de 397_Protec_Sol(15_17) | C166: 1 | D166: 5 | E166: 0 | F166: 0 | G166: 0 | H166: 0 | I166: 0 | J166: 2 | K166: 2 | L166: 0 | M166: 286 | N166: 7 | O166: 303 | P166: 6 | Q166: 0 | R166: 4 | S166: 293 | T166: 6 | U166: 297
A167: 398 | B167: Suma de 398_Salud_Bucal(15_17) | C167: 2 | D167: 1 | E167: 16 | F167: 0 | G167: 0 | H167: 6 | I167: 0 | J167: 3 | K167: 0 | L167: 0 | M167: 0 | N167: 0 | O167: 28 | P167: 19 | Q167: 6 | R167: 3 | S167: 0 | T167: 25 | U167: 3
A168: 399 | B168: Suma de 399_Salud_Ocular(15_17) | C168: 0 | D168: 0 | E168: 0 | F168: 0 | G168: 0 | H168: 0 | I168: 0 | J168: 27 | K168: 23 | L168: 0 | M168: 0 | N168: 0 | O168: 50 | P168: 0 | Q168: 0 | R168: 50 | S168: 0 | T168: 0 | U168: 50
A169: 400 | B169: Suma de 400_Cuidado_Med_Amb(15_17) | C169: 0 | D169: 2 | E169: 16 | F169: 0 | G169: 0 | H169: 1 | I169: 0 | J169: 27 | K169: 6 | L169: 0 | M169: 0 | N169: 0 | O169: 52 | P169: 18 | Q169: 1 | R169: 33 | S169: 0 | T169: 19 | U169: 33
A170: 401 | B170: Suma de 401_Primeros_Aux(15_17) | C170: 0 | D170: 1 | E170: 0 | F170: 0 | G170: 0 | H170: 0 | I170: 0 | J170: 0 | K170: 0 | L170: 0 | M170: 0 | N170: 0 | O170: 1 | P170: 1 | Q170: 0 | R170: 0 | S170: 0 | T170: 1 | U170: 0
A171: 402 | B171: Suma de 402_Higien_SBucal(15_17) | C171: 0 | D171: 0 | E171: 0 | F171: 0 | G171: 0 | H171: 0 | I171: 0 | J171: 0 | K171: 6 | L171: 0 | M171: 0 | N171: 0 | O171: 6 | P171: 0 | Q171: 0 | R171: 6 | S171: 0 | T171: 0 | U171: 6
A172: 403 | B172: Suma de 403_Activ_Fisica(15_17) | C172: 3 | D172: 1 | E172: 16 | F172: 0 | G172: 0 | H172: 9 | I172: 0 | J172: 38 | K172: 27 | L172: 67 | M172: 337 | N172: 7 | O172: 505 | P172: 20 | Q172: 9 | R172: 65 | S172: 411 | T172: 29 | U172: 476
A173: 404 | B173: Suma de 404_Alim_Salud(15_17) | C173: 5 | D173: 3 | E173: 2 | F173: 8 | G173: 6 | H173: 4 | I173: 0 | J173: 35 | K173: 7 | L173: 22 | M173: 0 | N173: 0 | O173: 92 | P173: 10 | Q173: 18 | R173: 42 | S173: 22 | T173: 28 | U173: 64
A174: 405 | B174: Suma de 405_Higiene(15_17) | C174: 4 | D174: 3 | E174: 0 | F174: 0 | G174: 0 | H174: 2 | I174: 0 | J174: 32 | K174: 22 | L174: 22 | M174: 0 | N174: 0 | O174: 85 | P174: 7 | Q174: 2 | R174: 54 | S174: 22 | T174: 9 | U174: 76
A175: 406 | B175: Suma de 406_Prev_Trans_Post(15_17) | C175: 1 | D175: 5 | E175: 0 | F175: 0 | G175: 0 | H175: 0 | I175: 0 | J175: 2 | K175: 2 | L175: 0 | M175: 286 | N175: 7 | O175: 303 | P175: 6 | Q175: 0 | R175: 4 | S175: 293 | T175: 6 | U175: 297
A176: 407 | B176: Suma de 407_Protecc_Sol(15_17) | C176: 2 | D176: 1 | E176: 16 | F176: 0 | G176: 0 | H176: 6 | I176: 0 | J176: 3 | K176: 0 | L176: 0 | M176: 0 | N176: 0 | O176: 28 | P176: 19 | Q176: 6 | R176: 3 | S176: 0 | T176: 25 | U176: 3
A177: 408 | B177: Suma de 408_Salud_Bucal(15_17) | C177: 0 | D177: 0 | E177: 0 | F177: 0 | G177: 0 | H177: 0 | I177: 0 | J177: 27 | K177: 23 | L177: 0 | M177: 0 | N177: 0 | O177: 50 | P177: 0 | Q177: 0 | R177: 50 | S177: 0 | T177: 0 | U177: 50
A178: 409 | B178: Suma de 409_Salud_Ocular(15_17) | C178: 0 | D178: 2 | E178: 16 | F178: 0 | G178: 0 | H178: 1 | I178: 0 | J178: 27 | K178: 6 | L178: 0 | M178: 0 | N178: 0 | O178: 52 | P178: 18 | Q178: 1 | R178: 33 | S178: 0 | T178: 19 | U178: 33
A179: 410 | B179: Suma de 410_Salud_Resp_TBC(15_17) | C179: 0 | D179: 1 | E179: 0 | F179: 0 | G179: 0 | H179: 0 | I179: 0 | J179: 0 | K179: 0 | L179: 0 | M179: 0 | N179: 0 | O179: 1 | P179: 1 | Q179: 0 | R179: 0 | S179: 0 | T179: 1 | U179: 0
A180: 411 | B180: Suma de 411_Cuida_Med_Amb(15_17) | C180: 0 | D180: 0 | E180: 0 | F180: 0 | G180: 0 | H180: 0 | I180: 0 | J180: 0 | K180: 6 | L180: 0 | M180: 0 | N180: 0 | O180: 6 | P180: 0 | Q180: 0 | R180: 6 | S180: 0 | T180: 0 | U180: 6
A181: 412 | B181: Suma de 412_Prev_Enf_Prev(15_17) | C181: 0 | D181: 0 | E181: 0 | F181: 0 | G181: 0 | H181: 2 | I181: 0 | J181: 0 | K181: 0 | L181: 0 | M181: 0 | N181: 0 | O181: 2 | P181: 0 | Q181: 2 | R181: 0 | S181: 0 | T181: 2 | U181: 0
A182: 413 | B182: Suma de 413_Med_Seg_Trans(15_17) | C182: 0 | D182: 0 | E182: 0 | F182: 0 | G182: 0 | H182: 0 | I182: 0 | J182: 0 | K182: 0 | L182: 0 | M182: 0 | N182: 0 | O182: 0 | P182: 0 | Q182: 0 | R182: 0 | S182: 0 | T182: 0 | U182: 0
A183: 414 | B183: Suma de 414_Prim_Aux_RCP(15_17) | C183: 0 | D183: 0 | E183: 0 | F183: 0 | G183: 0 | H183: 0 | I183: 0 | J183: 0 | K183: 0 | L183: 0 | M183: 0 | N183: 0 | O183: 0 | P183: 0 | Q183: 0 | R183: 0 | S183: 0 | T183: 0 | U183: 0
A184: 415 | B184: Suma de 415_Derec_Sexual(15_17) | C184: 5 | D184: 3 | E184: 0 | F184: 0 | G184: 43 | H184: 205 | I184: 17 | J184: 48 | K184: 89 | L184: 80 | M184: 222 | N184: 46 | O184: 758 | P184: 8 | Q184: 248 | R184: 154 | S184: 348 | T184: 256 | U184: 502
A185: 416 | B185: Suma de 416_Sexual_Humana(15_17) | C185: 3 | D185: 6 | E185: 2 | F185: 0 | G185: 33 | H185: 203 | I185: 13 | J185: 7 | K185: 90 | L185: 9 | M185: 173 | N185: 46 | O185: 585 | P185: 11 | Q185: 236 | R185: 110 | S185: 228 | T185: 247 | U185: 338
A186: 417 | B186: Suma de 417_Desar_Sexual(15_17) | C186: 4 | D186: 4 | E186: 2 | F186: 21 | G186: 52 | H186: 215 | I186: 75 | J186: 134 | K186: 116 | L186: 103 | M186: 53 | N186: 0 | O186: 779 | P186: 10 | Q186: 288 | R186: 325 | S186: 156 | T186: 298 | U186: 481
A187: 418 | B187: Suma de 418_Prev_Embaraz_ND(15_17) | C187: 1 | D187: 5 | E187: 8 | F187: 22 | G187: 77 | H187: 201 | I187: 179 | J187: 48 | K187: 173 | L187: 90 | M187: 31 | N187: 32 | O187: 867 | P187: 14 | Q187: 300 | R187: 400 | S187: 153 | T187: 314 | U187: 553
A188: 419 | B188: Suma de 419_Divers_Sexual(15_17) | C188: 2 | D188: 1 | E188: 16 | F188: 0 | G188: 0 | H188: 6 | I188: 0 | J188: 3 | K188: 0 | L188: 0 | M188: 0 | N188: 0 | O188: 28 | P188: 19 | Q188: 6 | R188: 3 | S188: 0 | T188: 25 | U188: 3
A189: 420 | B189: Suma de 420_Derec_Sexual(15_17) | C189: 5 | D189: 3 | E189: 0 | F189: 0 | G189: 43 | H189: 205 | I189: 17 | J189: 48 | K189: 89 | L189: 80 | M189: 222 | N189: 46 | O189: 758 | P189: 8 | Q189: 248 | R189: 154 | S189: 348 | T189: 256 | U189: 502
A190: 421 | B190: Suma de 421_Sexual_Humana(15_17) | C190: 3 | D190: 6 | E190: 2 | F190: 0 | G190: 33 | H190: 203 | I190: 13 | J190: 7 | K190: 90 | L190: 9 | M190: 173 | N190: 46 | O190: 585 | P190: 11 | Q190: 236 | R190: 110 | S190: 228 | T190: 247 | U190: 338
A191: 422 | B191: Suma de 422_Anticon_Pater_Salud(15_17) | C191: 4 | D191: 4 | E191: 2 | F191: 21 | G191: 52 | H191: 215 | I191: 75 | J191: 134 | K191: 116 | L191: 103 | M191: 53 | N191: 0 | O191: 779 | P191: 10 | Q191: 288 | R191: 325 | S191: 156 | T191: 298 | U191: 481
A192: 423 | B192: Suma de 423_Prev_Embaraz_ND(15_17) | C192: 1 | D192: 5 | E192: 8 | F192: 22 | G192: 77 | H192: 201 | I192: 179 | J192: 48 | K192: 173 | L192: 90 | M192: 31 | N192: 32 | O192: 867 | P192: 14 | Q192: 300 | R192: 400 | S192: 153 | T192: 314 | U192: 553
A193: 424 | B193: Suma de 424_Relac_Sexual_SS(15_17) | C193: 2 | D193: 1 | E193: 16 | F193: 0 | G193: 0 | H193: 6 | I193: 0 | J193: 3 | K193: 0 | L193: 0 | M193: 0 | N193: 0 | O193: 28 | P193: 19 | Q193: 6 | R193: 3 | S193: 0 | T193: 25 | U193: 3
A194: 425 | B194: Suma de 425_Infec_Trans_Sexual(15_17) | C194: 0 | D194: 0 | E194: 0 | F194: 0 | G194: 22 | H194: 209 | I194: 39 | J194: 133 | K194: 18 | L194: 28 | M194: 0 | N194: 24 | O194: 473 | P194: 0 | Q194: 231 | R194: 190 | S194: 52 | T194: 231 | U194: 242
A195: 426 | B195: Suma de 426_Divers_Sexual(15_17) | C195: 0 | D195: 2 | E195: 0 | F195: 0 | G195: 15 | H195: 201 | I195: 38 | J195: 0 | K195: 0 | L195: 0 | M195: 190 | N195: 46 | O195: 492 | P195: 2 | Q195: 216 | R195: 38 | S195: 236 | T195: 218 | U195: 274
A196: 427 | B196: Suma de 427_Habil_Vida(15_17) | C196: 0 | D196: 0 | E196: 0 | F196: 0 | G196: 0 | H196: 69 | I196: 0 | J196: 0 | K196: 1 | L196: 0 | M196: 0 | N196: 0 | O196: 70 | P196: 0 | Q196: 69 | R196: 1 | S196: 0 | T196: 69 | U196: 1
A197: 428 | B197: Suma de 428_Proyec_Vida(15_17) | C197: 0 | D197: 0 | E197: 0 | F197: 0 | G197: 0 | H197: 69 | I197: 0 | J197: 0 | K197: 16 | L197: 0 | M197: 0 | N197: 0 | O197: 85 | P197: 0 | Q197: 69 | R197: 16 | S197: 0 | T197: 69 | U197: 16
A198: 429 | B198: Suma de 429_Resilencia(15_17) | C198: 0 | D198: 0 | E198: 0 | F198: 0 | G198: 0 | H198: 34 | I198: 0 | J198: 0 | K198: 3 | L198: 0 | M198: 18 | N198: 0 | O198: 55 | P198: 0 | Q198: 34 | R198: 3 | S198: 18 | T198: 34 | U198: 21
A199: 430 | B199: Suma de 430_Rol_Adolesc(15_17) | C199: 0 | D199: 0 | E199: 0 | F199: 0 | G199: 0 | H199: 0 | I199: 0 | J199: 0 | K199: 20 | L199: 0 | M199: 0 | N199: 0 | O199: 20 | P199: =SUM(C199:E199) -> 0 | Q199: =SUM(F199:H199) -> 0 | R199: 20 | S199: 0 | T199: 0 | U199: 20
A200: 431 | B200: Suma de 431_Derech_Respons(15_17) | C200: 0 | D200: 0 | E200: 0 | F200: 0 | G200: 0 | H200: 0 | I200: 0 | J200: 0 | K200: 9 | L200: 0 | M200: 0 | N200: 0 | O200: =SUM(C200:N200) -> 9 | P200: 0 | Q200: 0 | R200: =SUM(I200:K200) -> 9 | S200: =SUM(L200:N200) -> 0 | T200: =SUM(C200:H200) -> 0 | U200: =SUM(I200:N200) -> 9
A201: 432 | B201: Suma de 432_Equid_Genero(15_17) | C201: 0 | D201: 0 | E201: 0 | F201: 0 | G201: 0 | H201: 34 | I201: 0 | J201: 0 | K201: 6 | L201: 0 | M201: 0 | N201: 0 | O201: 40 | P201: 0 | Q201: 34 | R201: 6 | S201: 0 | T201: 34 | U201: 6
B210: SUBREGION | C210: (Todas)
... 47 more rows

Sheet BASE_12_14
A1: SUBREGION | B1: PROVINCIA | C1: Ubigueo_Establecimiento | D1: RENAES | E1: ESTABLECIMIENTO | F1: Categoria | G1: DISTRITO | H1: CLAS | I1: Red | J1: MicroRed | K1: Ejecutora | L1: MES | M1: 1_IRA_12_14 | N1: 2_IRA_12_14 | O1: 3_EDA_C_12_14 | P1: 4_EDA_NC_12_14 | Q1: 5_PAI_INIC_12_14 | R1: 6_PAI_TA_12_14 | S1: 7_EED_Tot_12_14 | T1: 8_EIA_1CRL-12_14 | U1: 9_EIA_2CTRL-12_14 | V1: 10_EIA_3CRL-12_14 | W1: 11_EIA_4Ctrl-12_14 | X1: 12_EIA_5Ctrl_12_14 | Y1: 13_EIA_6Ctrl_12_14 | Z1: 14_EIA_TA_12_14 | AA1: 15_1VD(12_14) | AB1: 16_2VD(12_14) | AC1: 17_3VD(12_14) | AD1: 18_1VD_Ay(12_14) | AE1: 19_2VD_Ay(12_14) | AF1: 20_3+VD_Ay(12_14) | AG1: 21_Exam_MG(12_14) | AH1: 22_Val_FR(12_14) | AI1: 23_Eval_RSM(12_14) | AJ1: 24_Eval_RSA(12_14) | AK1: 25_Eval_RMA(12_14) | AL1: 26_SOBREP(12_14) | AM1: 27_OBESI(12_14) | AN1: 28_PESO_NORM(12_14) | AO1: 29_DESN_AGUD(12_14) | AP1: 30_DESN_Prot_NE(12_14) | AQ1: 31_Est_Talla_alt(12_14) | AR1: 32_Talla_Norm(12_14) | AS1: 33_Desn_Cron_T/E(12_14) | AT1: 34_Hiperli_NE(12_14) | AU1: 35_Adipos_Local(12_14) | AV1: 36_OTROS_PROB(12_14) | AW1: 37_Dosaj_Hemog(12_14) | AX1: 38_Suplem_SF(12_14) | AY1: 39_Eval_Agu_Vis_Norm(12_14) | AZ1: 40_Dism_Agud_Vis_NE(12_14) | BA1: 41_Prueb_Agud_VCB(12_14) | BB1: 42_Exam_Ojos_V(12_14) | BC1: 43_CONSEJ_OCUL(12_14) | BD1: 44_Deter_Agud_A_NE(12_14) | BE1: 45_Exam_Oid_V(12_14) | BF1: 46_Ases_Nutric_Odon(12_14) | BG1: 47_Inst_Hig_Oral_(12_14) | BH1: 48_Examen_Odon_(12_14) | BI1: 49_Profil_Dental(12_14) | BJ1: 50_ABO(12_14) | BK1: 51_Anal_Postur_N(12_14) | BL1: 52_CIFOS_POST(12_14) | BM1: 53_Otras_Cifos(12_14) | BN1: 54_Sind_Esp_Plana(12_14) | BO1: 55_Lordosis_NE(12_14) | BP1: 56_Escolios_NE(12_14) | BQ1: 57_Hvb_1Dosis(12_14) | BR1: 58_Hvb_2Dosis(12_14) | BS1: 59_Hvb_3Dosis(12_14) | BT1: 60_Vac_Influen(12_14) | BU1: 61_DT_1D_12_14) | BV1: 62_DT_2D_12_14) | BW1: 63_DT_3D_12_14) | BX1: 64_VPH_1D_12_14) | BY1: 65_VPH_2D_12_14) | BZ1: 66_Vac_Antiama(12_14) | CA1: 67_Eval_Tanner(12_14) | CB1: 68_ATC_PF(12_14) | CC1: 69_DIU(12_14) | CD1: 70_ORAL_COMB(12_14) | CE1: 71_PP_INYEC_TRIM(12_14) | CF1: 72_PP_INYEC_MES(12_14) | CG1: 73_PP_IMPLANTE(12_14) | CH1: 74_PP_CONDON_MASC(12_14) | CI1: 75_PP_CONDON_FEM(12_14) | CJ1: 76_PP_AQV_F | CK1: 77_PP_AQV_M | CL1: 78_PP_MELA(12_14) | CM1: 79_PP_BILLINGS(12_14) | CN1: 80_PP_RITMO(12_14A) | CO1: 81_PP_DIAS_FIJOS(12_14A) | CP1: 82_Acne_N/E(12_14) | CQ1: 83_Anemia_Sin_Esp(12_14) | CR1: 84_Anemia_Afec_Embar(12_14) | CS1: 85_ADM_TTO_Anemia(12_14) | CT1: 86_Asma_N/E(12_14) | CU1: 87_HTA(12_14) | CV1: 88_Cefalea(12_14) | CW1: 89_Parsitosis_Int(12_14) | CX1: 90_Masa_N/E_Mama(12_14) | CY1: 91_Infec_Viral_N/E(12_14) | CZ1: 92_Candid_Vag(12_14) | DA1: 93_Pediculosis(12_14) | DB1: 94_Vaginosis_Bact(12_14) | DC1: 95_Sindro_Fluj_V(12_14) | DD1: 96_Sindrom_Dolor_Ab(12_14) | DE1: 97_Sindro_Secrec_U(12_14) | DF1: 98_Adm_TTO_ITS(12_14) | DG1: 99_Cons_Integ(12_14) | DH1: 100_Cons_SSR(12_14) | DI1: 101_Cons_PF(12_14) | DJ1: 102_Cons_SM(12_14) | DK1: 103_Cons_DNT(12_14) | DL1: 104_Cons_Nutric(12_14) | DM1: 105_Cons_Nut_ALI(12_14) | DN1: 106_Cons_PreT_VIH(12_14) | DO1: 107_Cons_PostTest_VIH_RN(12_14) | DP1: 108_Cons_Post_Test_VIH_RP(12_14) | DQ1: 109_Cons_ITS_VIH,(12_14) | DR1: 110_Cons_Hig_Man(12_14) | DS1: 111_Cons_Autoc(12_14) | DT1: 112_Tamiz_HIV_PR(12_14) | DU1: 113_Tamiz_Sifil_PR(12_14) | DV1: 114_Tam_PR_Hepati(12_14) | DW1: 115_Embar_No_Confirm(12_14) | DX1: 116_Entrev_Tamiz(12_14) | DY1: 117_Aplica_Cuesti(12_14) | DZ1: 118_Trans_Ansiedad(12_14) | EA1: 119_Bajo_Rend_Escol(12_14) | EB1: 120_Riesgo_Les_Acciden(12_14) | EC1: 121_Tamiz_SM_VIF(12_14) | ED1: 122_Tamiz_AD(12_14) | EE1: 123_Tamiz_TD(12_14) | EF1: 124_Tamiz_Psic(12_14) | EG1: 125_Tamiz_Hab_Soc(12_14) | EH1: 126_Probl_Relac_Viol(12_14) | EI1: 127_Prob_Relac_Hab_Soc(12_14) | EJ1: 128_Prob_Relac_Tabaco(12_14) | EK1: 129_Probl_Uso_Alcoh(12_14) | EL1: 130_Probl_Uso_Drogas(12_14) | EM1: 131_Probl_Real_Juego(12_14) | EN1: 132_Prob_Expe_Negat(12_14) | EO1: 133_Prob_Grupo_Prim(12_14) | EP1: 134_Sesion_Educat(12_14) | EQ1: 135_Sesion_Fam_Fuertes(12_14) | ER1: 136_Act_colegios | ES1: 137_Act_EE.SS | ET1: 138_Act_Municipalidades | EU1: 139_Act_Familias | EV1: 140_Act_Adolescentes | EW1: 141_Act_Docentes | EX1: 142_Act_Alumnos | EY1: 143_Act_Padres | EZ1: 144_Act_Autorizados | FA1: 145_Abogacía_PP(12_14) | FB1: 146_Taller_Fam(12_14) | FC1: 147_Sesion_Demos(12_14) | FD1: 148_Taller_Hab_Soc(12_14) | FE1: 149_Taller_Pers_Salud(12_14) | FF1: 150_Animac_Socioc(12_14) | FG1: 151_Teatros_Popul(12_14) | FH1: 152_Formac_Educ_Pares(12_14) | FI1: 153_Monitoreo(12_14) | FJ1: 154_Supervisión(12_14) | FK1: 155_Evaluacion(12_14) | FL1: 156_Asist_Tecnica(12_14) | FM1: 157_Activ_Fisica(12_14) | FN1: 158_Alim_Saludab(12_14) | FO1: 159_Higiene(12_14) | FP1: 160_Protec_Sol(12_14) | FQ1: 161_Salud_Bucal(12_14) | FR1: 162_Salud_Ocular(12_14) | FS1: 163_Cuidado_Med_Amb(12_14) | FT1: 164_Primeros_Aux(12_14) | FU1: 165_Higien_SBucal(12_14) | FV1: 166_Activ_Fisica(12_14) | FW1: 167_Alim_Salud(12_14) | FX1: 168_Higiene(12_14) | FY1: 169_Prev_Trans_Post(12_14) | FZ1: 170_Protecc_Sol(12_14) | GA1: 171_Salud_Bucal(12_14) | GB1: 172_Salud_Ocular(12_14) | GC1: 173_Salud_Resp_TBC(12_14) | GD1: 174_Cuida_Med_Amb(12_14) | GE1: 175_Prev_Enf_Prev(12_14) | GF1: 176_Med_Seg_Trans(12_14) | GG1: 177_Prim_Aux_RCP(12_14) | GH1: 178_Derec_Sexual(12_14) | GI1: 179_Sexual_Humana(12_14) | GJ1: 180_Desar_Sexual(12_14) | GK1: 181_Prev_Embaraz_ND(12_14) | GL1: 182_Divers_Sexual(12_14) | GM1: 183_Derec_Sexual(12_14) | GN1: 184_Sexual_Humana(12_14) | GO1: 185_Anticon_Pater_Salud(12_14) | GP1: 186_Prev_Embaraz_ND(12_14) | GQ1: 187_Relac_Sexual_SS(12_14) | GR1: 188_Infec_Trans_Sexual(12_14) | GS1: 189_Divers_Sexual(12_14) | GT1: 190_Habil_Vida(12_14) | GU1: 191_Proyec_Vida(12_14) | GV1: 192_Resilencia(12_14) | GW1: 193_Rol_Adolesc(12_14) | GX1: 194_Derech_Respons(12_14) | GY1: 195_Equid_Genero(12_14) | GZ1: 196_Prev_Violen_Fam(12_14) | HA1: 197_Ident_Signos_Alarm(12_14) | HB1: 198_ident_Signos_Alarm(12_14) | HC1: 199_Masculinidad(12_14) | HD1: 200_Habil_Vida(12_14) | HE1: 201_Resilencia(12_14) | HF1: 202_Proyec_Vida(12_14) | HG1: 203_Derecho_Respons(12_14) | HH1: 204_Equidad_Gener(12_14) | HI1: 205_Empoder_Lideraz(12_14) | HJ1: 206_Viviendo_Famil(12_14) | HK1: 207_Prev_VIF(12_14) | HL1: 208_Ident_Sign_Alar(12_14) | HM1: 209_Prev_Tabaco(12_14) | HN1: 210_Medios_Comunic(12_14) | HO1: 211_Masculin(12_14) | HP1: 212_Prueba_PCR(12_14) | HQ1: 213_Prueba_Rapida_Serol(12_14) | HR1: 214_Virus_Identific(12_14) | HS1: 215_Virus_No_Identif(12_14) | HT1: 216_TOS(12_14) | HU1: 217_Disnea(12_14) | HV1: 218_Dolor_Gargant(12_14) | HW1: 219_Fiebre_NE(12_14) | HX1: 220_Contacto_Otras_Enfer(12_14) | HY1: 221_Observ_Otras_Enf(12_14) | HZ1: 222_Seguim_Telef(12_14) | IA1: 223_Visita_Fam_Int(12_14) | IB1: 224_TeleOrie_Sincrona(12_14) | IC1: 225_TeleOrie_Asincro(12_14) | ID1: 226_Tele_Monitoreo(12_14) | IE1: 227_Tele_Inter_Sincron(12_14) | IF1: 228_Tele_Consulta(12_14) | IG1: 229_MEDIC_ALTERNA(12_14) | IH1: 230_Consej_MEDIC_ALTER(12_14) | II1: 232_SULF_FERR_MUJER | IJ1: 233_SULFA_FERR_HOMBRE | IK1: 234_GESTA_ATD_12_14 | IL1: 235_ADOLES_ATD_12_14 | IM1: 236_ADOLES_ATD_MASCUL | IN1: 237_ADOLES_ATD_FEMEN
A2: I-2 | B2: PIURA | C2: 200104 | D2: 10243 | E2: CAP III CASTILLA | F2: S/C | G2: CASTILLA | H2: NINGUN CLAS | I2: NO PERTENECE A NINGUNA RED | J2: NO PERTENECE A NINGUNA MICRORED | K2: ESSALUD | L2: 2 | M2: 0 | N2: 0 | O2: 0 | P2: 0 | Q2: 0 | R2: 0 | S2: 0 | T2: 0 | U2: 0 | V2: 0 | W2: 0 | X2: 0 | Y2: 0 | Z2: 0 | AA2: 0 | AB2: 0 | AC2: 0 | AD2: 0 | AE2: 0 | AF2: 0 | AG2: 0 | AH2: 0 | AI2: 0 | AJ2: 0 | AK2: 0 | AL2: 0 | AM2: 0 | AN2: 0 | AO2: 0 | AP2: 0 | AQ2: 0 | AR2: 0 | AS2: 0 | AT2: 0 | AU2: 0 | AV2: 0 | AW2: 0 | AX2: 0 | AY2: 0 | AZ2: 0 | BA2: 0 | BB2: 0 | BC2: 0 | BD2: 0 | BE2: 0 | BF2: 0 | BG2: 0 | BH2: 0 | BI2: 0 | BJ2: 0 | BK2: 0 | BL2: 0 | BM2: 0 | BN2: 0 | BO2: 0 | BP2: 0 | BQ2: 2 | BR2: 2 | BS2: 0 | BT2: 60 | BU2: 0 | BV2: 0 | BW2: 0 | BX2: 1 | BY2: 3 | BZ2: 0 | CA2: 0 | CB2: 0 | CC2: 0 | CD2: 0 | CE2: 0 | CF2: 0 | CG2: 0 | CH2: 0 | CI2: 0 | CJ2: 0 | CK2: 0 | CL2: 0 | CM2: 0 | CN2: 0 | CO2: 0 | CP2: 0 | CQ2: 0 | CR2: 0 | CS2: 0 | CT2: 0 | CU2: 0 | CV2: 0 | CW2: 0 | CX2: 0 | CY2: 0 | CZ2: 0 | DA2: 0 | DB2: 0 | DC2: 0 | DD2: 0 | DE2: 0 | DF2: 0 | DG2: 0 | DH2: 0 | DI2: 0 | DJ2: 0 | DK2: 0 | DL2: 0 | DM2: 0 | DN2: 0 | DO2: 0 | DP2: 0 | DQ2: 0 | DR2: 0 | DS2: 0 | DT2: 0 | DU2: 0 | DV2: 0 | DW2: 0 | DX2: 0 | DY2: 0 | DZ2: 0 | EA2: 0 | EB2: 0 | EC2: 0 | ED2: 0 | EE2: 0 | EF2: 0 | EG2: 0 | EH2: 0 | EI2: 0 | EJ2: 0 | EK2: 0 | EL2: 0 | EM2: 0 | EN2: 0 | EO2: 0 | EP2: 0 | EQ2: 0 | ER2: 0 | ES2: 0 | ET2: 0 | EU2: 0 | EV2: 0 | EW2: 0 | EX2: 0 | EY2: 0 | EZ2: 0 | FA2: 0 | FB2: 0 | FC2: 0 | FD2: 0 | FE2: 0 | FF2: 0 | FG2: 0 | FH2: 0 | FI2: 0 | FJ2: 0 | FK2: 0 | FL2: 0 | FM2: 0 | FN2: 0 | FO2: 0 | FP2: 0 | FQ2: 0 | FR2: 0 | FS2: 0 | FT2: 0 | FU2: 0 | FV2: 0 | FW2: 0 | FX2: 0 | FY2: 0 | FZ2: 0 | GA2: 0 | GB2: 0 | GC2: 0 | GD2: 0 | GE2: 0 | GF2: 0 | GG2: 0 | GH2: 0 | GI2: 0 | GJ2: 0 | GK2: 0 | GL2: 0 | GM2: 0 | GN2: 0 | GO2: 0 | GP2: 0 | GQ2: 0 | GR2: 0 | GS2: 0 | GT2: 0 | GU2: 0 | GV2: 0 | GW2: 0 | GX2: 0 | GY2: 0 | GZ2: 0 | HA2: 0 | HB2: 0 | HC2: 0 | HD2: 0 | HE2: 0 | HF2: 0 | HG2: 0 | HH2: 0 | HI2: 0 | HJ2: 0 | HK2: 0 | HL2: 0 | HM2: 0 | HN2: 0 | HO2: 0 | HP2: 0 | HQ2: 0 | HR2: 0 | HS2: 0 | HT2: 0 | HU2: 0 | HV2: 0 | HW2: 0 | HX2: 0 | HY2: 0 | HZ2: 0 | IA2: 0 | IB2: 0 | IC2: 0 | ID2: 0 | IE2: 0 | IF2: 0 | IG2: 0 | IH2: 0 | II2: 0 | IJ2: 0 | IK2: 0 | IL2: 70 | IM2: 35 | IN2: 35
A3: I-2 | B3: PIURA | C3: 200104 | D3: 10243 | E3: CAP III CASTILLA | F3: S/C | G3: CASTILLA | H3: NINGUN CLAS | I3: NO PERTENECE A NINGUNA RED | J3: NO PERTENECE A NINGUNA MICRORED | K3: ESSALUD | L3: 3 | M3: 0 | N3: 0 | O3: 0 | P3: 0 | Q3: 0 | R3: 0 | S3: 0 | T3: 0 | U3: 0 | V3: 0 | W3: 0 | X3: 0 | Y3: 0 | Z3: 0 | AA3: 0 | AB3: 0 | AC3: 0 | AD3: 0 | AE3: 0 | AF3: 0 | AG3: 0 | AH3: 0 | AI3: 0 | AJ3: 0 | AK3: 0 | AL3: 0 | AM3: 0 | AN3: 0 | AO3: 0 | AP3: 0 | AQ3: 0 | AR3: 0 | AS3: 0 | AT3: 0 | AU3: 0 | AV3: 0 | AW3: 0 | AX3: 0 | AY3: 0 | AZ3: 0 | BA3: 0 | BB3: 0 | BC3: 0 | BD3: 0 | BE3: 0 | BF3: 0 | BG3: 0 | BH3: 0 | BI3: 0 | BJ3: 0 | BK3: 0 | BL3: 0 | BM3: 0 | BN3: 0 | BO3: 0 | BP3: 0 | BQ3: 1 | BR3: 1 | BS3: 1 | BT3: 23 | BU3: 1 | BV3: 0 | BW3: 0 | BX3: 0 | BY3: 0 | BZ3: 0 | CA3: 0 | CB3: 0 | CC3: 0 | CD3: 0 | CE3: 0 | CF3: 0 | CG3: 0 | CH3: 0 | CI3: 0 | CJ3: 0 | CK3: 0 | CL3: 0 | CM3: 0 | CN3: 0 | CO3: 0 | CP3: 0 | CQ3: 0 | CR3: 0 | CS3: 0 | CT3: 0 | CU3: 0 | CV3: 0 | CW3: 0 | CX3: 0 | CY3: 0 | CZ3: 0 | DA3: 0 | DB3: 0 | DC3: 0 | DD3: 0 | DE3: 0 | DF3: 0 | DG3: 0 | DH3: 0 | DI3: 0 | DJ3: 0 | DK3: 0 | DL3: 0 | DM3: 0 | DN3: 0 | DO3: 0 | DP3: 0 | DQ3: 0 | DR3: 0 | DS3: 0 | DT3: 0 | DU3: 0 | DV3: 0 | DW3: 0 | DX3: 0 | DY3: 0 | DZ3: 0 | EA3: 0 | EB3: 0 | EC3: 0 | ED3: 0 | EE3: 0 | EF3: 0 | EG3: 0 | EH3: 0 | EI3: 0 | EJ3: 0 | EK3: 0 | EL3: 0 | EM3: 0 | EN3: 0 | EO3: 0 | EP3: 0 | EQ3: 0 | ER3: 0 | ES3: 0 | ET3: 0 | EU3: 0 | EV3: 0 | EW3: 0 | EX3: 0 | EY3: 0 | EZ3: 0 | FA3: 0 | FB3: 0 | FC3: 0 | FD3: 0 | FE3: 0 | FF3: 0 | FG3: 0 | FH3: 0 | FI3: 0 | FJ3: 0 | FK3: 0 | FL3: 0 | FM3: 0 | FN3: 0 | FO3: 0 | FP3: 0 | FQ3: 0 | FR3: 0 | FS3: 0 | FT3: 0 | FU3: 0 | FV3: 0 | FW3: 0 | FX3: 0 | FY3: 0 | FZ3: 0 | GA3: 0 | GB3: 0 | GC3: 0 | GD3: 0 | GE3: 0 | GF3: 0 | GG3: 0 | GH3: 0 | GI3: 0 | GJ3: 0 | GK3: 0 | GL3: 0 | GM3: 0 | GN3: 0 | GO3: 0 | GP3: 0 | GQ3: 0 | GR3: 0 | GS3: 0 | GT3: 0 | GU3: 0 | GV3: 0 | GW3: 0 | GX3: 0 | GY3: 0 | GZ3: 0 | HA3: 0 | HB3: 0 | HC3: 0 | HD3: 0 | HE3: 0 | HF3: 0 | HG3: 0 | HH3: 0 | HI3: 0 | HJ3: 0 | HK3: 0 | HL3: 0 | HM3: 0 | HN3: 0 | HO3: 0 | HP3: 0 | HQ3: 0 | HR3: 0 | HS3: 0 | HT3: 0 | HU3: 0 | HV3: 0 | HW3: 0 | HX3: 0 | HY3: 0 | HZ3: 0 | IA3: 0 | IB3: 0 | IC3: 0 | ID3: 0 | IE3: 0 | IF3: 0 | IG3: 0 | IH3: 0 | II3: 0 | IJ3: 0 | IK3: 0 | IL3: 37 | IM3: 26 | IN3: 11
A4: I-2 | B4: PIURA | C4: 200104 | D4: 10243 | E4: CAP III CASTILLA | F4: S/C | G4: CASTILLA | H4: NINGUN CLAS | I4: NO PERTENECE A NINGUNA RED | J4: NO PERTENECE A NINGUNA MICRORED | K4: ESSALUD | L4: 5 | M4: 0 | N4: 0 | O4: 0 | P4: 0 | Q4: 0 | R4: 0 | S4: 0 | T4: 0 | U4: 0 | V4: 0 | W4: 0 | X4: 0 | Y4: 0 | Z4: 0 | AA4: 0 | AB4: 0 | AC4: 0 | AD4: 0 | AE4: 0 | AF4: 0 | AG4: 0 | AH4: 0 | AI4: 0 | AJ4: 0 | AK4: 0 | AL4: 0 | AM4: 0 | AN4: 0 | AO4: 0 | AP4: 0 | AQ4: 0 | AR4: 0 | AS4: 0 | AT4: 0 | AU4: 0 | AV4: 0 | AW4: 0 | AX4: 0 | AY4: 0 | AZ4: 0 | BA4: 0 | BB4: 0 | BC4: 0 | BD4: 0 | BE4: 0 | BF4: 0 | BG4: 0 | BH4: 0 | BI4: 0 | BJ4: 0 | BK4: 0 | BL4: 0 | BM4: 0 | BN4: 0 | BO4: 0 | BP4: 0 | BQ4: 1 | BR4: 1 | BS4: 3 | BT4: 0 | BU4: 1 | BV4: 0 | BW4: 0 | BX4: 1 | BY4: 2 | BZ4: 0 | CA4: 0 | CB4: 0 | CC4: 0 | CD4: 0 | CE4: 0 | CF4: 0 | CG4: 0 | CH4: 0 | CI4: 0 | CJ4: 0 | CK4: 0 | CL4: 0 | CM4: 0 | CN4: 0 | CO4: 0 | CP4: 0 | CQ4: 0 | CR4: 0 | CS4: 0 | CT4: 0 | CU4: 0 | CV4: 0 | CW4: 0 | CX4: 0 | CY4: 0 | CZ4: 0 | DA4: 0 | DB4: 0 | DC4: 0 | DD4: 0 | DE4: 0 | DF4: 0 | DG4: 0 | DH4: 0 | DI4: 0 | DJ4: 0 | DK4: 0 | DL4: 0 | DM4: 0 | DN4: 0 | DO4: 0 | DP4: 0 | DQ4: 0 | DR4: 0 | DS4: 0 | DT4: 0 | DU4: 0 | DV4: 0 | DW4: 0 | DX4: 0 | DY4: 0 | DZ4: 0 | EA4: 0 | EB4: 0 | EC4: 0 | ED4: 0 | EE4: 0 | EF4: 0 | EG4: 0 | EH4: 0 | EI4: 0 | EJ4: 0 | EK4: 0 | EL4: 0 | EM4: 0 | EN4: 0 | EO4: 0 | EP4: 0 | EQ4: 0 | ER4: 0 | ES4: 0 | ET4: 0 | EU4: 0 | EV4: 0 | EW4: 0 | EX4: 0 | EY4: 0 | EZ4: 0 | FA4: 0 | FB4: 0 | FC4: 0 | FD4: 0 | FE4: 0 | FF4: 0 | FG4: 0 | FH4: 0 | FI4: 0 | FJ4: 0 | FK4: 0 | FL4: 0 | FM4: 0 | FN4: 0 | FO4: 0 | FP4: 0 | FQ4: 0 | FR4: 0 | FS4: 0 | FT4: 0 | FU4: 0 | FV4: 0 | FW4: 0 | FX4: 0 | FY4: 0 | FZ4: 0 | GA4: 0 | GB4: 0 | GC4: 0 | GD4: 0 | GE4: 0 | GF4: 0 | GG4: 0 | GH4: 0 | GI4: 0 | GJ4: 0 | GK4: 0 | GL4: 0 | GM4: 0 | GN4: 0 | GO4: 0 | GP4: 0 | GQ4: 0 | GR4: 0 | GS4: 0 | GT4: 0 | GU4: 0 | GV4: 0 | GW4: 0 | GX4: 0 | GY4: 0 | GZ4: 0 | HA4: 0 | HB4: 0 | HC4: 0 | HD4: 0 | HE4: 0 | HF4: 0 | HG4: 0 | HH4: 0 | HI4: 0 | HJ4: 0 | HK4: 0 | HL4: 0 | HM4: 0 | HN4: 0 | HO4: 0 | HP4: 0 | HQ4: 0 | HR4: 0 | HS4: 0 | HT4: 0 | HU4: 0 | HV4: 0 | HW4: 0 | HX4: 0 | HY4: 0 | HZ4: 0 | IA4: 0 | IB4: 0 | IC4: 0 | ID4: 0 | IE4: 0 | IF4: 0 | IG4: 0 | IH4: 0 | II4: 0 | IJ4: 0 | IK4: 0 | IL4: 4 | IM4: 0 | IN4: 4
A5: I-2 | B5: PIURA | C5: 200104 | D5: 10243 | E5: CAP III CASTILLA | F5: S/C | G5: CASTILLA | H5: NINGUN CLAS | I5: NO PERTENECE A NINGUNA RED | J5: NO PERTENECE A NINGUNA MICRORED | K5: ESSALUD | L5: 6 | M5: 0 | N5: 0 | O5: 0 | P5: 0 | Q5: 0 | R5: 0 | S5: 0 | T5: 0 | U5: 0 | V5: 0 | W5: 0 | X5: 0 | Y5: 0 | Z5: 0 | AA5: 0 | AB5: 0 | AC5: 0 | AD5: 0 | AE5: 0 | AF5: 0 | AG5: 0 | AH5: 0 | AI5: 0 | AJ5: 0 | AK5: 0 | AL5: 0 | AM5: 0 | AN5: 0 | AO5: 0 | AP5: 0 | AQ5: 0 | AR5: 0 | AS5: 0 | AT5: 0 | AU5: 0 | AV5: 0 | AW5: 0 | AX5: 0 | AY5: 0 | AZ5: 0 | BA5: 0 | BB5: 0 | BC5: 0 | BD5: 0 | BE5: 0 | BF5: 0 | BG5: 0 | BH5: 0 | BI5: 0 | BJ5: 0 | BK5: 0 | BL5: 0 | BM5: 0 | BN5: 0 | BO5: 0 | BP5: 0 | BQ5: 2 | BR5: 0 | BS5: 2 | BT5: 4 | BU5: 0 | BV5: 3 | BW5: 0 | BX5: 0 | BY5: 1 | BZ5: 0 | CA5: 0 | CB5: 0 | CC5: 0 | CD5: 0 | CE5: 0 | CF5: 0 | CG5: 0 | CH5: 0 | CI5: 0 | CJ5: 0 | CK5: 0 | CL5: 0 | CM5: 0 | CN5: 0 | CO5: 0 | CP5: 0 | CQ5: 0 | CR5: 0 | CS5: 0 | CT5: 0 | CU5: 0 | CV5: 0 | CW5: 0 | CX5: 0 | CY5: 0 | CZ5: 0 | DA5: 0 | DB5: 0 | DC5: 0 | DD5: 0 | DE5: 0 | DF5: 0 | DG5: 0 | DH5: 0 | DI5: 0 | DJ5: 0 | DK5: 0 | DL5: 0 | DM5: 0 | DN5: 0 | DO5: 0 | DP5: 0 | DQ5: 0 | DR5: 0 | DS5: 0 | DT5: 0 | DU5: 0 | DV5: 0 | DW5: 0 | DX5: 0 | DY5: 0 | DZ5: 0 | EA5: 0 | EB5: 0 | EC5: 0 | ED5: 0 | EE5: 0 | EF5: 0 | EG5: 0 | EH5: 0 | EI5: 0 | EJ5: 0 | EK5: 0 | EL5: 0 | EM5: 0 | EN5: 0 | EO5: 0 | EP5: 0 | EQ5: 0 | ER5: 0 | ES5: 0 | ET5: 0 | EU5: 0 | EV5: 0 | EW5: 0 | EX5: 0 | EY5: 0 | EZ5: 0 | FA5: 0 | FB5: 0 | FC5: 0 | FD5: 0 | FE5: 0 | FF5: 0 | FG5: 0 | FH5: 0 | FI5: 0 | FJ5: 0 | FK5: 0 | FL5: 0 | FM5: 0 | FN5: 0 | FO5: 0 | FP5: 0 | FQ5: 0 | FR5: 0 | FS5: 0 | FT5: 0 | FU5: 0 | FV5: 0 | FW5: 0 | FX5: 0 | FY5: 0 | FZ5: 0 | GA5: 0 | GB5: 0 | GC5: 0 | GD5: 0 | GE5: 0 | GF5: 0 | GG5: 0 | GH5: 0 | GI5: 0 | GJ5: 0 | GK5: 0 | GL5: 0 | GM5: 0 | GN5: 0 | GO5: 0 | GP5: 0 | GQ5: 0 | GR5: 0 | GS5: 0 | GT5: 0 | GU5: 0 | GV5: 0 | GW5: 0 | GX5: 0 | GY5: 0 | GZ5: 0 | HA5: 0 | HB5: 0 | HC5: 0 | HD5: 0 | HE5: 0 | HF5: 0 | HG5: 0 | HH5: 0 | HI5: 0 | HJ5: 0 | HK5: 0 | HL5: 0 | HM5: 0 | HN5: 0 | HO5: 0 | HP5: 0 | HQ5: 0 | HR5: 0 | HS5: 0 | HT5: 0 | HU5: 0 | HV5: 0 | HW5: 0 | HX5: 0 | HY5: 0 | HZ5: 0 | IA5: 0 | IB5: 0 | IC5: 0 | ID5: 0 | IE5: 0 | IF5: 0 | IG5: 0 | IH5: 0 | II5: 0 | IJ5: 0 | IK5: 0 | IL5: 6 | IM5: 0 | IN5: 6
A6: I-2 | B6: PIURA | C6: 200104 | D6: 10243 | E6: CAP III CASTILLA | F6: S/C | G6: CASTILLA | H6: NINGUN CLAS | I6: NO PERTENECE A NINGUNA RED | J6: NO PERTENECE A NINGUNA MICRORED | K6: ESSALUD | L6: 1 | M6: 0 | N6: 0 | O6: 0 | P6: 0 | Q6: 0 | R6: 0 | S6: 0 | T6: 0 | U6: 0 | V6: 0 | W6: 0 | X6: 0 | Y6: 0 | Z6: 0 | AA6: 0 | AB6: 0 | AC6: 0 | AD6: 0 | AE6: 0 | AF6: 0 | AG6: 0 | AH6: 0 | AI6: 0 | AJ6: 0 | AK6: 0 | AL6: 0 | AM6: 0 | AN6: 0 | AO6: 0 | AP6: 0 | AQ6: 0 | AR6: 0 | AS6: 0 | AT6: 0 | AU6: 0 | AV6: 0 | AW6: 0 | AX6: 0 | AY6: 0 | AZ6: 0 | BA6: 0 | BB6: 0 | BC6: 0 | BD6: 0 | BE6: 0 | BF6: 0 | BG6: 0 | BH6: 0 | BI6: 0 | BJ6: 0 | BK6: 0 | BL6: 0 | BM6: 0 | BN6: 0 | BO6: 0 | BP6: 0 | BQ6: 3 | BR6: 1 | BS6: 0 | BT6: 1 | BU6: 2 | BV6: 4 | BW6: 0 | BX6: 0 | BY6: 0 | BZ6: 0 | CA6: 0 | CB6: 0 | CC6: 0 | CD6: 0 | CE6: 0 | CF6: 0 | CG6: 0 | CH6: 0 | CI6: 0 | CJ6: 0 | CK6: 0 | CL6: 0 | CM6: 0 | CN6: 0 | CO6: 0 | CP6: 0 | CQ6: 0 | CR6: 0 | CS6: 0 | CT6: 0 | CU6: 0 | CV6: 0 | CW6: 0 | CX6: 0 | CY6: 0 | CZ6: 0 | DA6: 0 | DB6: 0 | DC6: 0 | DD6: 0 | DE6: 0 | DF6: 0 | DG6: 0 | DH6: 0 | DI6: 0 | DJ6: 0 | DK6: 0 | DL6: 0 | DM6: 0 | DN6: 0 | DO6: 0 | DP6: 0 | DQ6: 0 | DR6: 0 | DS6: 0 | DT6: 0 | DU6: 0 | DV6: 0 | DW6: 0 | DX6: 0 | DY6: 0 | DZ6: 0 | EA6: 0 | EB6: 0 | EC6: 0 | ED6: 0 | EE6: 0 | EF6: 0 | EG6: 0 | EH6: 0 | EI6: 0 | EJ6: 0 | EK6: 0 | EL6: 0 | EM6: 0 | EN6: 0 | EO6: 0 | EP6: 0 | EQ6: 0 | ER6: 0 | ES6: 0 | ET6: 0 | EU6: 0 | EV6: 0 | EW6: 0 | EX6: 0 | EY6: 0 | EZ6: 0 | FA6: 0 | FB6: 0 | FC6: 0 | FD6: 0 | FE6: 0 | FF6: 0 | FG6: 0 | FH6: 0 | FI6: 0 | FJ6: 0 | FK6: 0 | FL6: 0 | FM6: 0 | FN6: 0 | FO6: 0 | FP6: 0 | FQ6: 0 | FR6: 0 | FS6: 0 | FT6: 0 | FU6: 0 | FV6: 0 | FW6: 0 | FX6: 0 | FY6: 0 | FZ6: 0 | GA6: 0 | GB6: 0 | GC6: 0 | GD6: 0 | GE6: 0 | GF6: 0 | GG6: 0 | GH6: 0 | GI6: 0 | GJ6: 0 | GK6: 0 | GL6: 0 | GM6: 0 | GN6: 0 | GO6: 0 | GP6: 0 | GQ6: 0 | GR6: 0 | GS6: 0 | GT6: 0 | GU6: 0 | GV6: 0 | GW6: 0 | GX6: 0 | GY6: 0 | GZ6: 0 | HA6: 0 | HB6: 0 | HC6: 0 | HD6: 0 | HE6: 0 | HF6: 0 | HG6: 0 | HH6: 0 | HI6: 0 | HJ6: 0 | HK6: 0 | HL6: 0 | HM6: 0 | HN6: 0 | HO6: 0 | HP6: 0 | HQ6: 0 | HR6: 0 | HS6: 0 | HT6: 0 | HU6: 0 | HV6: 0 | HW6: 0 | HX6: 0 | HY6: 0 | HZ6: 0 | IA6: 0 | IB6: 0 | IC6: 0 | ID6: 0 | IE6: 0 | IF6: 0 | IG6: 0 | IH6: 0 | II6: 0 | IJ6: 0 | IK6: 0 | IL6: 187 | IM6: 111 | IN6: 76
A7: I-2 | B7: PIURA | C7: 200104 | D7: 10243 | E7: CAP III CASTILLA | F7: S/C | G7: CASTILLA | H7: NINGUN CLAS | I7: NO PERTENECE A NINGUNA RED | J7: NO PERTENECE A NINGUNA MICRORED | K7: ESSALUD | L7: 8 | M7: 0 | N7: 0 | O7: 0 | P7: 0 | Q7: 0 | R7: 0 | S7: 0 | T7: 0 | U7: 0 | V7: 0 | W7: 0 | X7: 0 | Y7: 0 | Z7: 0 | AA7: 0 | AB7: 0 | AC7: 0 | AD7: 0 | AE7: 0 | AF7: 0 | AG7: 0 | AH7: 0 | AI7: 0 | AJ7: 0 | AK7: 0 | AL7: 0 | AM7: 0 | AN7: 0 | AO7: 0 | AP7: 0 | AQ7: 0 | AR7: 0 | AS7: 0 | AT7: 0 | AU7: 0 | AV7: 0 | AW7: 0 | AX7: 0 | AY7: 0 | AZ7: 0 | BA7: 0 | BB7: 0 | BC7: 0 | BD7: 0 | BE7: 0 | BF7: 0 | BG7: 0 | BH7: 0 | BI7: 0 | BJ7: 0 | BK7: 0 | BL7: 0 | BM7: 0 | BN7: 0 | BO7: 0 | BP7: 0 | BQ7: 0 | BR7: 0 | BS7: 0 | BT7: 0 | BU7: 0 | BV7: 0 | BW7: 0 | BX7: 0 | BY7: 0 | BZ7: 0 | CA7: 0 | CB7: 0 | CC7: 0 | CD7: 0 | CE7: 0 | CF7: 0 | CG7: 0 | CH7: 0 | CI7: 0 | CJ7: 0 | CK7: 0 | CL7: 0 | CM7: 0 | CN7: 0 | CO7: 0 | CP7: 0 | CQ7: 0 | CR7: 0 | CS7: 0 | CT7: 0 | CU7: 0 | CV7: 0 | CW7: 0 | CX7: 0 | CY7: 0 | CZ7: 0 | DA7: 0 | DB7: 0 | DC7: 0 | DD7: 0 | DE7: 0 | DF7: 0 | DG7: 0 | DH7: 0 | DI7: 0 | DJ7: 0 | DK7: 0 | DL7: 0 | DM7: 0 | DN7: 0 | DO7: 0 | DP7: 0 | DQ7: 0 | DR7: 0 | DS7: 0 | DT7: 0 | DU7: 0 | DV7: 0 | DW7: 0 | DX7: 0 | DY7: 0 | DZ7: 0 | EA7: 0 | EB7: 0 | EC7: 0 | ED7: 0 | EE7: 0 | EF7: 0 | EG7: 0 | EH7: 0 | EI7: 0 | EJ7: 0 | EK7: 0 | EL7: 0 | EM7: 0 | EN7: 0 | EO7: 0 | EP7: 0 | EQ7: 0 | ER7: 0 | ES7: 0 | ET7: 0 | EU7: 0 | EV7: 0 | EW7: 0 | EX7: 0 | EY7: 0 | EZ7: 0 | FA7: 0 | FB7: 0 | FC7: 0 | FD7: 0 | FE7: 0 | FF7: 0 | FG7: 0 | FH7: 0 | FI7: 0 | FJ7: 0 | FK7: 0 | FL7: 0 | FM7: 0 | FN7: 0 | FO7: 0 | FP7: 0 | FQ7: 0 | FR7: 0 | FS7: 0 | FT7: 0 | FU7: 0 | FV7: 0 | FW7: 0 | FX7: 0 | FY7: 0 | FZ7: 0 | GA7: 0 | GB7: 0 | GC7: 0 | GD7: 0 | GE7: 0 | GF7: 0 | GG7: 0 | GH7: 0 | GI7: 0 | GJ7: 0 | GK7: 0 | GL7: 0 | GM7: 0 | GN7: 0 | GO7: 0 | GP7: 0 | GQ7: 0 | GR7: 0 | GS7: 0 | GT7: 0 | GU7: 0 | GV7: 0 | GW7: 0 | GX7: 0 | GY7: 0 | GZ7: 0 | HA7: 0 | HB7: 0 | HC7: 0 | HD7: 0 | HE7: 0 | HF7: 0 | HG7: 0 | HH7: 0 | HI7: 0 | HJ7: 0 | HK7: 0 | HL7: 0 | HM7: 0 | HN7: 0 | HO7: 0 | HP7: 0 | HQ7: 0 | HR7: 0 | HS7: 0 | HT7: 0 | HU7: 0 | HV7: 0 | HW7: 0 | HX7: 0 | HY7: 0 | HZ7: 0 | IA7: 0 | IB7: 0 | IC7: 0 | ID7: 0 | IE7: 0 | IF7: 0 | IG7: 0 | IH7: 0 | II7: 0 | IJ7: 0 | IK7: 0 | IL7: 0 | IM7: 0 | IN7: 0
A8: I-2 | B8: PIURA | C8: 200104 | D8: 10243 | E8: CAP III CASTILLA | F8: S/C | G8: CASTILLA | H8: NINGUN CLAS | I8: NO PERTENECE A NINGUNA RED | J8: NO PERTENECE A NINGUNA MICRORED | K8: ESSALUD | L8: 7 | M8: 0 | N8: 0 | O8: 0 | P8: 0 | Q8: 0 | R8: 0 | S8: 0 | T8: 0 | U8: 0 | V8: 0 | W8: 0 | X8: 0 | Y8: 0 | Z8: 0 | AA8: 0 | AB8: 0 | AC8: 0 | AD8: 0 | AE8: 0 | AF8: 0 | AG8: 0 | AH8: 0 | AI8: 0 | AJ8: 0 | AK8: 0 | AL8: 0 | AM8: 0 | AN8: 0 | AO8: 0 | AP8: 0 | AQ8: 0 | AR8: 0 | AS8: 0 | AT8: 0 | AU8: 0 | AV8: 0 | AW8: 0 | AX8: 0 | AY8: 0 | AZ8: 0 | BA8: 0 | BB8: 0 | BC8: 0 | BD8: 0 | BE8: 0 | BF8: 0 | BG8: 0 | BH8: 0 | BI8: 0 | BJ8: 0 | BK8: 0 | BL8: 0 | BM8: 0 | BN8: 0 | BO8: 0 | BP8: 0 | BQ8: 4 | BR8: 1 | BS8: 0 | BT8: 3 | BU8: 2 | BV8: 0 | BW8: 0 | BX8: 0 | BY8: 0 | BZ8: 0 | CA8: 0 | CB8: 0 | CC8: 0 | CD8: 0 | CE8: 0 | CF8: 0 | CG8: 0 | CH8: 0 | CI8: 0 | CJ8: 0 | CK8: 0 | CL8: 0 | CM8: 0 | CN8: 0 | CO8: 0 | CP8: 0 | CQ8: 0 | CR8: 0 | CS8: 0 | CT8: 0 | CU8: 0 | CV8: 0 | CW8: 0 | CX8: 0 | CY8: 0 | CZ8: 0 | DA8: 0 | DB8: 0 | DC8: 0 | DD8: 0 | DE8: 0 | DF8: 0 | DG8: 0 | DH8: 0 | DI8: 0 | DJ8: 0 | DK8: 0 | DL8: 0 | DM8: 0 | DN8: 0 | DO8: 0 | DP8: 0 | DQ8: 0 | DR8: 0 | DS8: 0 | DT8: 0 | DU8: 0 | DV8: 0 | DW8: 0 | DX8: 0 | DY8: 0 | DZ8: 0 | EA8: 0 | EB8: 0 | EC8: 0 | ED8: 0 | EE8: 0 | EF8: 0 | EG8: 0 | EH8: 0 | EI8: 0 | EJ8: 0 | EK8: 0 | EL8: 0 | EM8: 0 | EN8: 0 | EO8: 0 | EP8: 0 | EQ8: 0 | ER8: 0 | ES8: 0 | ET8: 0 | EU8: 0 | EV8: 0 | EW8: 0 | EX8: 0 | EY8: 0 | EZ8: 0 | FA8: 0 | FB8: 0 | FC8: 0 | FD8: 0 | FE8: 0 | FF8: 0 | FG8: 0 | FH8: 0 | FI8: 0 | FJ8: 0 | FK8: 0 | FL8: 0 | FM8: 0 | FN8: 0 | FO8: 0 | FP8: 0 | FQ8: 0 | FR8: 0 | FS8: 0 | FT8: 0 | FU8: 0 | FV8: 0 | FW8: 0 | FX8: 0 | FY8: 0 | FZ8: 0 | GA8: 0 | GB8: 0 | GC8: 0 | GD8: 0 | GE8: 0 | GF8: 0 | GG8: 0 | GH8: 0 | GI8: 0 | GJ8: 0 | GK8: 0 | GL8: 0 | GM8: 0 | GN8: 0 | GO8: 0 | GP8: 0 | GQ8: 0 | GR8: 0 | GS8: 0 | GT8: 0 | GU8: 0 | GV8: 0 | GW8: 0 | GX8: 0 | GY8: 0 | GZ8: 0 | HA8: 0 | HB8: 0 | HC8: 0 | HD8: 0 | HE8: 0 | HF8: 0 | HG8: 0 | HH8: 0 | HI8: 0 | HJ8: 0 | HK8: 0 | HL8: 0 | HM8: 0 | HN8: 0 | HO8: 0 | HP8: 0 | HQ8: 0 | HR8: 0 | HS8: 0 | HT8: 0 | HU8: 0 | HV8: 0 | HW8: 0 | HX8: 0 | HY8: 0 | HZ8: 0 | IA8: 0 | IB8: 0 | IC8: 0 | ID8: 0 | IE8: 0 | IF8: 0 | IG8: 0 | IH8: 0 | II8: 0 | IJ8: 0 | IK8: 0 | IL8: 5 | IM8: 3 | IN8: 2
A9: II-1 | B9: TALARA | C9: 200701 | D9: 12243 | E9: HOSPITAL II TALARA | F9: S/C | G9: PARIÑAS | H9: NINGUN CLAS | I9: NO PERTENECE A NINGUNA RED | J9: NO PERTENECE A NINGUNA MICRORED | K9: ESSALUD | L9: 2 | M9: 0 | N9: 0 | O9: 0 | P9: 0 | Q9: 0 | R9: 0 | S9: 0 | T9: 0 | U9: 0 | V9: 0 | W9: 0 | X9: 0 | Y9: 0 | Z9: 0 | AA9: 0 | AB9: 0 | AC9: 0 | AD9: 0 | AE9: 0 | AF9: 0 | AG9: 0 | AH9: 0 | AI9: 0 | AJ9: 0 | AK9: 0 | AL9: 0 | AM9: 0 | AN9: 0 | AO9: 0 | AP9: 0 | AQ9: 0 | AR9: 0 | AS9: 0 | AT9: 0 | AU9: 0 | AV9: 0 | AW9: 0 | AX9: 0 | AY9: 0 | AZ9: 0 | BA9: 0 | BB9: 0 | BC9: 0 | BD9: 0 | BE9: 0 | BF9: 0 | BG9: 0 | BH9: 0 | BI9: 0 | BJ9: 0 | BK9: 0 | BL9: 0 | BM9: 0 | BN9: 0 | BO9: 0 | BP9: 0 | BQ9: 0 | BR9: 0 | BS9: 0 | BT9: 3 | BU9: 1 | BV9: 1 | BW9: 0 | BX9: 0 | BY9: 0 | BZ9: 0 | CA9: 0 | CB9: 0 | CC9: 0 | CD9: 0 | CE9: 0 | CF9: 0 | CG9: 0 | CH9: 0 | CI9: 0 | CJ9: 0 | CK9: 0 | CL9: 0 | CM9: 0 | CN9: 0 | CO9: 0 | CP9: 0 | CQ9: 0 | CR9: 0 | CS9: 0 | CT9: 0 | CU9: 0 | CV9: 0 | CW9: 0 | CX9: 0 | CY9: 0 | CZ9: 0 | DA9: 0 | DB9: 0 | DC9: 0 | DD9: 0 | DE9: 0 | DF9: 0 | DG9: 0 | DH9: 0 | DI9: 0 | DJ9: 0 | DK9: 0 | DL9: 0 | DM9: 0 | DN9: 0 | DO9: 0 | DP9: 0 | DQ9: 0 | DR9: 0 | DS9: 0 | DT9: 0 | DU9: 0 | DV9: 0 | DW9: 0 | DX9: 0 | DY9: 0 | DZ9: 0 | EA9: 0 | EB9: 0 | EC9: 0 | ED9: 0 | EE9: 0 | EF9: 0 | EG9: 0 | EH9: 0 | EI9: 0 | EJ9: 0 | EK9: 0 | EL9: 0 | EM9: 0 | EN9: 0 | EO9: 0 | EP9: 0 | EQ9: 0 | ER9: 0 | ES9: 0 | ET9: 0 | EU9: 0 | EV9: 0 | EW9: 0 | EX9: 0 | EY9: 0 | EZ9: 0 | FA9: 0 | FB9: 0 | FC9: 0 | FD9: 0 | FE9: 0 | FF9: 0 | FG9: 0 | FH9: 0 | FI9: 0 | FJ9: 0 | FK9: 0 | FL9: 0 | FM9: 0 | FN9: 0 | FO9: 0 | FP9: 0 | FQ9: 0 | FR9: 0 | FS9: 0 | FT9: 0 | FU9: 0 | FV9: 0 | FW9: 0 | FX9: 0 | FY9: 0 | FZ9: 0 | GA9: 0 | GB9: 0 | GC9: 0 | GD9: 0 | GE9: 0 | GF9: 0 | GG9: 0 | GH9: 0 | GI9: 0 | GJ9: 0 | GK9: 0 | GL9: 0 | GM9: 0 | GN9: 0 | GO9: 0 | GP9: 0 | GQ9: 0 | GR9: 0 | GS9: 0 | GT9: 0 | GU9: 0 | GV9: 0 | GW9: 0 | GX9: 0 | GY9: 0 | GZ9: 0 | HA9: 0 | HB9: 0 | HC9: 0 | HD9: 0 | HE9: 0 | HF9: 0 | HG9: 0 | HH9: 0 | HI9: 0 | HJ9: 0 | HK9: 0 | HL9: 0 | HM9: 0 | HN9: 0 | HO9: 0 | HP9: 0 | HQ9: 0 | HR9: 0 | HS9: 0 | HT9: 0 | HU9: 0 | HV9: 0 | HW9: 0 | HX9: 0 | HY9: 0 | HZ9: 0 | IA9: 0 | IB9: 0 | IC9: 0 | ID9: 0 | IE9: 0 | IF9: 0 | IG9: 0 | IH9: 0 | II9: 0 | IJ9: 0 | IK9: 0 | IL9: 7 | IM9: 6 | IN9: 1
A10: I-2 | B10: PIURA | C10: 200104 | D10: 10243 | E10: CAP III CASTILLA | F10: S/C | G10: CASTILLA | H10: NINGUN CLAS | I10: NO PERTENECE A NINGUNA RED | J10: NO PERTENECE A NINGUNA MICRORED | K10: ESSALUD | L10: 4 | M10: 0 | N10: 0 | O10: 0 | P10: 0 | Q10: 0 | R10: 0 | S10: 0 | T10: 0 | U10: 0 | V10: 0 | W10: 0 | X10: 0 | Y10: 0 | Z10: 0 | AA10: 0 | AB10: 0 | AC10: 0 | AD10: 0 | AE10: 0 | AF10: 0 | AG10: 0 | AH10: 0 | AI10: 0 | AJ10: 0 | AK10: 0 | AL10: 0 | AM10: 0 | AN10: 0 | AO10: 0 | AP10: 0 | AQ10: 0 | AR10: 0 | AS10: 0 | AT10: 0 | AU10: 0 | AV10: 0 | AW10: 0 | AX10: 0 | AY10: 0 | AZ10: 0 | BA10: 0 | BB10: 0 | BC10: 0 | BD10: 0 | BE10: 0 | BF10: 0 | BG10: 0 | BH10: 0 | BI10: 0 | BJ10: 0 | BK10: 0 | BL10: 0 | BM10: 0 | BN10: 0 | BO10: 0 | BP10: 0 | BQ10: 0 | BR10: 2 | BS10: 0 | BT10: 0 | BU10: 1 | BV10: 1 | BW10: 0 | BX10: 0 | BY10: 1 | BZ10: 0 | CA10: 0 | CB10: 0 | CC10: 0 | CD10: 0 | CE10: 0 | CF10: 0 | CG10: 0 | CH10: 0 | CI10: 0 | CJ10: 0 | CK10: 0 | CL10: 0 | CM10: 0 | CN10: 0 | CO10: 0 | CP10: 0 | CQ10: 0 | CR10: 0 | CS10: 0 | CT10: 0 | CU10: 0 | CV10: 0 | CW10: 0 | CX10: 0 | CY10: 0 | CZ10: 0 | DA10: 0 | DB10: 0 | DC10: 0 | DD10: 0 | DE10: 0 | DF10: 0 | DG10: 0 | DH10: 0 | DI10: 0 | DJ10: 0 | DK10: 0 | DL10: 0 | DM10: 0 | DN10: 0 | DO10: 0 | DP10: 0 | DQ10: 0 | DR10: 0 | DS10: 0 | DT10: 0 | DU10: 0 | DV10: 0 | DW10: 0 | DX10: 0 | DY10: 0 | DZ10: 0 | EA10: 0 | EB10: 0 | EC10: 0 | ED10: 0 | EE10: 0 | EF10: 0 | EG10: 0 | EH10: 0 | EI10: 0 | EJ10: 0 | EK10: 0 | EL10: 0 | EM10: 0 | EN10: 0 | EO10: 0 | EP10: 0 | EQ10: 0 | ER10: 0 | ES10: 0 | ET10: 0 | EU10: 0 | EV10: 0 | EW10: 0 | EX10: 0 | EY10: 0 | EZ10: 0 | FA10: 0 | FB10: 0 | FC10: 0 | FD10: 0 | FE10: 0 | FF10: 0 | FG10: 0 | FH10: 0 | FI10: 0 | FJ10: 0 | FK10: 0 | FL10: 0 | FM10: 0 | FN10: 0 | FO10: 0 | FP10: 0 | FQ10: 0 | FR10: 0 | FS10: 0 | FT10: 0 | FU10: 0 | FV10: 0 | FW10: 0 | FX10: 0 | FY10: 0 | FZ10: 0 | GA10: 0 | GB10: 0 | GC10: 0 | GD10: 0 | GE10: 0 | GF10: 0 | GG10: 0 | GH10: 0 | GI10: 0 | GJ10: 0 | GK10: 0 | GL10: 0 | GM10: 0 | GN10: 0 | GO10: 0 | GP10: 0 | GQ10: 0 | GR10: 0 | GS10: 0 | GT10: 0 | GU10: 0 | GV10: 0 | GW10: 0 | GX10: 0 | GY10: 0 | GZ10: 0 | HA10: 0 | HB10: 0 | HC10: 0 | HD10: 0 | HE10: 0 | HF10: 0 | HG10: 0 | HH10: 0 | HI10: 0 | HJ10: 0 | HK10: 0 | HL10: 0 | HM10: 0 | HN10: 0 | HO10: 0 | HP10: 0 | HQ10: 0 | HR10: 0 | HS10: 0 | HT10: 0 | HU10: 0 | HV10: 0 | HW10: 0 | HX10: 0 | HY10: 0 | HZ10: 0 | IA10: 0 | IB10: 0 | IC10: 0 | ID10: 0 | IE10: 0 | IF10: 0 | IG10: 0 | IH10: 0 | II10: 0 | IJ10: 0 | IK10: 0 | IL10: 14 | IM10: 5 | IN10: 9
A11: II-1 | B11: TALARA | C11: 200701 | D11: 12243 | E11: HOSPITAL II TALARA | F11: S/C | G11: PARIÑAS | H11: NINGUN CLAS | I11: NO PERTENECE A NINGUNA RED | J11: NO PERTENECE A NINGUNA MICRORED | K11: ESSALUD | L11: 3 | M11: 0 | N11: 0 | O11: 0 | P11: 0 | Q11: 0 | R11: 0 | S11: 0 | T11: 0 | U11: 0 | V11: 0 | W11: 0 | X11: 0 | Y11: 0 | Z11: 0 | AA11: 0 | AB11: 0 | AC11: 0 | AD11: 0 | AE11: 0 | AF11: 0 | AG11: 0 | AH11: 0 | AI11: 0 | AJ11: 0 | AK11: 0 | AL11: 0 | AM11: 0 | AN11: 0 | AO11: 0 | AP11: 0 | AQ11: 0 | AR11: 0 | AS11: 0 | AT11: 0 | AU11: 0 | AV11: 0 | AW11: 0 | AX11: 0 | AY11: 0 | AZ11: 0 | BA11: 0 | BB11: 0 | BC11: 0 | BD11: 0 | BE11: 0 | BF11: 0 | BG11: 0 | BH11: 0 | BI11: 0 | BJ11: 0 | BK11: 0 | BL11: 0 | BM11: 0 | BN11: 0 | BO11: 0 | BP11: 0 | BQ11: 2 | BR11: 0 | BS11: 0 | BT11: 0 | BU11: 3 | BV11: 0 | BW11: 0 | BX11: 0 | BY11: 0 | BZ11: 0 | CA11: 0 | CB11: 0 | CC11: 0 | CD11: 0 | CE11: 0 | CF11: 0 | CG11: 0 | CH11: 0 | CI11: 0 | CJ11: 0 | CK11: 0 | CL11: 0 | CM11: 0 | CN11: 0 | CO11: 0 | CP11: 0 | CQ11: 0 | CR11: 0 | CS11: 0 | CT11: 0 | CU11: 0 | CV11: 0 | CW11: 0 | CX11: 0 | CY11: 0 | CZ11: 0 | DA11: 0 | DB11: 0 | DC11: 0 | DD11: 0 | DE11: 0 | DF11: 0 | DG11: 0 | DH11: 0 | DI11: 0 | DJ11: 0 | DK11: 0 | DL11: 0 | DM11: 0 | DN11: 0 | DO11: 0 | DP11: 0 | DQ11: 0 | DR11: 0 | DS11: 0 | DT11: 0 | DU11: 0 | DV11: 0 | DW11: 0 | DX11: 0 | DY11: 0 | DZ11: 0 | EA11: 0 | EB11: 0 | EC11: 0 | ED11: 0 | EE11: 0 | EF11: 0 | EG11: 0 | EH11: 0 | EI11: 0 | EJ11: 0 | EK11: 0 | EL11: 0 | EM11: 0 | EN11: 0 | EO11: 0 | EP11: 0 | EQ11: 0 | ER11: 0 | ES11: 0 | ET11: 0 | EU11: 0 | EV11: 0 | EW11: 0 | EX11: 0 | EY11: 0 | EZ11: 0 | FA11: 0 | FB11: 0 | FC11: 0 | FD11: 0 | FE11: 0 | FF11: 0 | FG11: 0 | FH11: 0 | FI11: 0 | FJ11: 0 | FK11: 0 | FL11: 0 | FM11: 0 | FN11: 0 | FO11: 0 | FP11: 0 | FQ11: 0 | FR11: 0 | FS11: 0 | FT11: 0 | FU11: 0 | FV11: 0 | FW11: 0 | FX11: 0 | FY11: 0 | FZ11: 0 | GA11: 0 | GB11: 0 | GC11: 0 | GD11: 0 | GE11: 0 | GF11: 0 | GG11: 0 | GH11: 0 | GI11: 0 | GJ11: 0 | GK11: 0 | GL11: 0 | GM11: 0 | GN11: 0 | GO11: 0 | GP11: 0 | GQ11: 0 | GR11: 0 | GS11: 0 | GT11: 0 | GU11: 0 | GV11: 0 | GW11: 0 | GX11: 0 | GY11: 0 | GZ11: 0 | HA11: 0 | HB11: 0 | HC11: 0 | HD11: 0 | HE11: 0 | HF11: 0 | HG11: 0 | HH11: 0 | HI11: 0 | HJ11: 0 | HK11: 0 | HL11: 0 | HM11: 0 | HN11: 0 | HO11: 0 | HP11: 0 | HQ11: 0 | HR11: 0 | HS11: 0 | HT11: 0 | HU11: 0 | HV11: 0 | HW11: 0 | HX11: 0 | HY11: 0 | HZ11: 0 | IA11: 0 | IB11: 0 | IC11: 0 | ID11: 0 | IE11: 0 | IF11: 0 | IG11: 0 | IH11: 0 | II11: 0 | IJ11: 0 | IK11: 0 | IL11: 2 | IM11: 2 | IN11: 0
A12: II-1 | B12: TALARA | C12: 200701 | D12: 12243 | E12: HOSPITAL II TALARA | F12: S/C | G12: PARIÑAS | H12: NINGUN CLAS | I12: NO PERTENECE A NINGUNA RED | J12: NO PERTENECE A NINGUNA MICRORED | K12: ESSALUD | L12: 5 | M12: 0 | N12: 0 | O12: 0 | P12: 0 | Q12: 0 | R12: 0 | S12: 0 | T12: 0 | U12: 0 | V12: 0 | W12: 0 | X12: 0 | Y12: 0 | Z12: 0 | AA12: 0 | AB12: 0 | AC12: 0 | AD12: 0 | AE12: 0 | AF12: 0 | AG12: 0 | AH12: 0 | AI12: 0 | AJ12: 0 | AK12: 0 | AL12: 0 | AM12: 0 | AN12: 0 | AO12: 0 | AP12: 0 | AQ12: 0 | AR12: 0 | AS12: 0 | AT12: 0 | AU12: 0 | AV12: 0 | AW12: 0 | AX12: 0 | AY12: 0 | AZ12: 0 | BA12: 0 | BB12: 0 | BC12: 0 | BD12: 0 | BE12: 0 | BF12: 0 | BG12: 0 | BH12: 0 | BI12: 0 | BJ12: 0 | BK12: 0 | BL12: 0 | BM12: 0 | BN12: 0 | BO12: 0 | BP12: 0 | BQ12: 1 | BR12: 1 | BS12: 1 | BT12: 0 | BU12: 0 | BV12: 1 | BW12: 0 | BX12: 0 | BY12: 0 | BZ12: 0 | CA12: 0 | CB12: 0 | CC12: 0 | CD12: 0 | CE12: 0 | CF12: 0 | CG12: 0 | CH12: 0 | CI12: 0 | CJ12: 0 | CK12: 0 | CL12: 0 | CM12: 0 | CN12: 0 | CO12: 0 | CP12: 0 | CQ12: 0 | CR12: 0 | CS12: 0 | CT12: 0 | CU12: 0 | CV12: 0 | CW12: 0 | CX12: 0 | CY12: 0 | CZ12: 0 | DA12: 0 | DB12: 0 | DC12: 0 | DD12: 0 | DE12: 0 | DF12: 0 | DG12: 0 | DH12: 0 | DI12: 0 | DJ12: 0 | DK12: 0 | DL12: 0 | DM12: 0 | DN12: 0 | DO12: 0 | DP12: 0 | DQ12: 0 | DR12: 0 | DS12: 0 | DT12: 0 | DU12: 0 | DV12: 0 | DW12: 0 | DX12: 0 | DY12: 0 | DZ12: 0 | EA12: 0 | EB12: 0 | EC12: 0 | ED12: 0 | EE12: 0 | EF12: 0 | EG12: 0 | EH12: 0 | EI12: 0 | EJ12: 0 | EK12: 0 | EL12: 0 | EM12: 0 | EN12: 0 | EO12: 0 | EP12: 0 | EQ12: 0 | ER12: 0 | ES12: 0 | ET12: 0 | EU12: 0 | EV12: 0 | EW12: 0 | EX12: 0 | EY12: 0 | EZ12: 0 | FA12: 0 | FB12: 0 | FC12: 0 | FD12: 0 | FE12: 0 | FF12: 0 | FG12: 0 | FH12: 0 | FI12: 0 | FJ12: 0 | FK12: 0 | FL12: 0 | FM12: 0 | FN12: 0 | FO12: 0 | FP12: 0 | FQ12: 0 | FR12: 0 | FS12: 0 | FT12: 0 | FU12: 0 | FV12: 0 | FW12: 0 | FX12: 0 | FY12: 0 | FZ12: 0 | GA12: 0 | GB12: 0 | GC12: 0 | GD12: 0 | GE12: 0 | GF12: 0 | GG12: 0 | GH12: 0 | GI12: 0 | GJ12: 0 | GK12: 0 | GL12: 0 | GM12: 0 | GN12: 0 | GO12: 0 | GP12: 0 | GQ12: 0 | GR12: 0 | GS12: 0 | GT12: 0 | GU12: 0 | GV12: 0 | GW12: 0 | GX12: 0 | GY12: 0 | GZ12: 0 | HA12: 0 | HB12: 0 | HC12: 0 | HD12: 0 | HE12: 0 | HF12: 0 | HG12: 0 | HH12: 0 | HI12: 0 | HJ12: 0 | HK12: 0 | HL12: 0 | HM12: 0 | HN12: 0 | HO12: 0 | HP12: 0 | HQ12: 0 | HR12: 0 | HS12: 0 | HT12: 0 | HU12: 0 | HV12: 0 | HW12: 0 | HX12: 0 | HY12: 0 | HZ12: 0 | IA12: 0 | IB12: 0 | IC12: 0 | ID12: 0 | IE12: 0 | IF12: 0 | IG12: 0 | IH12: 0 | II12: 0 | IJ12: 0 | IK12: 0 | IL12: 3 | IM12: 3 | IN12: 0
A13: II-1 | B13: TALARA | C13: 200701 | D13: 12243 | E13: HOSPITAL II TALARA | F13: S/C | G13: PARIÑAS | H13: NINGUN CLAS | I13: NO PERTENECE A NINGUNA RED | J13: NO PERTENECE A NINGUNA MICRORED | K13: ESSALUD | L13: 6 | M13: 0 | N13: 0 | O13: 0 | P13: 0 | Q13: 0 | R13: 0 | S13: 0 | T13: 0 | U13: 0 | V13: 0 | W13: 0 | X13: 0 | Y13: 0 | Z13: 0 | AA13: 0 | AB13: 0 | AC13: 0 | AD13: 0 | AE13: 0 | AF13: 0 | AG13: 0 | AH13: 0 | AI13: 0 | AJ13: 0 | AK13: 0 | AL13: 0 | AM13: 0 | AN13: 0 | AO13: 0 | AP13: 0 | AQ13: 0 | AR13: 0 | AS13: 0 | AT13: 0 | AU13: 0 | AV13: 0 | AW13: 0 | AX13: 0 | AY13: 0 | AZ13: 0 | BA13: 0 | BB13: 0 | BC13: 0 | BD13: 0 | BE13: 0 | BF13: 0 | BG13: 0 | BH13: 0 | BI13: 0 | BJ13: 0 | BK13: 0 | BL13: 0 | BM13: 0 | BN13: 0 | BO13: 0 | BP13: 0 | BQ13: 0 | BR13: 1 | BS13: 1 | BT13: 1 | BU13: 1 | BV13: 0 | BW13: 0 | BX13: 0 | BY13: 0 | BZ13: 0 | CA13: 0 | CB13: 0 | CC13: 0 | CD13: 0 | CE13: 0 | CF13: 0 | CG13: 0 | CH13: 0 | CI13: 0 | CJ13: 0 | CK13: 0 | CL13: 0 | CM13: 0 | CN13: 0 | CO13: 0 | CP13: 0 | CQ13: 0 | CR13: 0 | CS13: 0 | CT13: 0 | CU13: 0 | CV13: 0 | CW13: 0 | CX13: 0 | CY13: 0 | CZ13: 0 | DA13: 0 | DB13: 0 | DC13: 0 | DD13: 0 | DE13: 0 | DF13: 0 | DG13: 0 | DH13: 0 | DI13: 0 | DJ13: 0 | DK13: 0 | DL13: 0 | DM13: 0 | DN13: 0 | DO13: 0 | DP13: 0 | DQ13: 0 | DR13: 0 | DS13: 0 | DT13: 0 | DU13: 0 | DV13: 0 | DW13: 0 | DX13: 0 | DY13: 0 | DZ13: 0 | EA13: 0 | EB13: 0 | EC13: 0 | ED13: 0 | EE13: 0 | EF13: 0 | EG13: 0 | EH13: 0 | EI13: 0 | EJ13: 0 | EK13: 0 | EL13: 0 | EM13: 0 | EN13: 0 | EO13: 0 | EP13: 0 | EQ13: 0 | ER13: 0 | ES13: 0 | ET13: 0 | EU13: 0 | EV13: 0 | EW13: 0 | EX13: 0 | EY13: 0 | EZ13: 0 | FA13: 0 | FB13: 0 | FC13: 0 | FD13: 0 | FE13: 0 | FF13: 0 | FG13: 0 | FH13: 0 | FI13: 0 | FJ13: 0 | FK13: 0 | FL13: 0 | FM13: 0 | FN13: 0 | FO13: 0 | FP13: 0 | FQ13: 0 | FR13: 0 | FS13: 0 | FT13: 0 | FU13: 0 | FV13: 0 | FW13: 0 | FX13: 0 | FY13: 0 | FZ13: 0 | GA13: 0 | GB13: 0 | GC13: 0 | GD13: 0 | GE13: 0 | GF13: 0 | GG13: 0 | GH13: 0 | GI13: 0 | GJ13: 0 | GK13: 0 | GL13: 0 | GM13: 0 | GN13: 0 | GO13: 0 | GP13: 0 | GQ13: 0 | GR13: 0 | GS13: 0 | GT13: 0 | GU13: 0 | GV13: 0 | GW13: 0 | GX13: 0 | GY13: 0 | GZ13: 0 | HA13: 0 | HB13: 0 | HC13: 0 | HD13: 0 | HE13: 0 | HF13: 0 | HG13: 0 | HH13: 0 | HI13: 0 | HJ13: 0 | HK13: 0 | HL13: 0 | HM13: 0 | HN13: 0 | HO13: 0 | HP13: 0 | HQ13: 0 | HR13: 0 | HS13: 0 | HT13: 0 | HU13: 0 | HV13: 0 | HW13: 0 | HX13: 0 | HY13: 0 | HZ13: 0 | IA13: 0 | IB13: 0 | IC13: 0 | ID13: 0 | IE13: 0 | IF13: 0 | IG13: 0 | IH13: 0 | II13: 0 | IJ13: 0 | IK13: 0 | IL13: 3 | IM13: 2 | IN13: 1
A14: II-1 | B14: TALARA | C14: 200701 | D14: 12243 | E14: HOSPITAL II TALARA | F14: S/C | G14: PARIÑAS | H14: NINGUN CLAS | I14: NO PERTENECE A NINGUNA RED | J14: NO PERTENECE A NINGUNA MICRORED | K14: ESSALUD | L14: 4 | M14: 0 | N14: 0 | O14: 0 | P14: 0 | Q14: 0 | R14: 0 | S14: 0 | T14: 0 | U14: 0 | V14: 0 | W14: 0 | X14: 0 | Y14: 0 | Z14: 0 | AA14: 0 | AB14: 0 | AC14: 0 | AD14: 0 | AE14: 0 | AF14: 0 | AG14: 0 | AH14: 0 | AI14: 0 | AJ14: 0 | AK14: 0 | AL14: 0 | AM14: 0 | AN14: 0 | AO14: 0 | AP14: 0 | AQ14: 0 | AR14: 0 | AS14: 0 | AT14: 0 | AU14: 0 | AV14: 0 | AW14: 0 | AX14: 0 | AY14: 0 | AZ14: 0 | BA14: 0 | BB14: 0 | BC14: 0 | BD14: 0 | BE14: 0 | BF14: 0 | BG14: 0 | BH14: 0 | BI14: 0 | BJ14: 0 | BK14: 0 | BL14: 0 | BM14: 0 | BN14: 0 | BO14: 0 | BP14: 0 | BQ14: 1 | BR14: 1 | BS14: 0 | BT14: 0 | BU14: 0 | BV14: 0 | BW14: 0 | BX14: 0 | BY14: 0 | BZ14: 0 | CA14: 0 | CB14: 0 | CC14: 0 | CD14: 0 | CE14: 0 | CF14: 0 | CG14: 0 | CH14: 0 | CI14: 0 | CJ14: 0 | CK14: 0 | CL14: 0 | CM14: 0 | CN14: 0 | CO14: 0 | CP14: 0 | CQ14: 0 | CR14: 0 | CS14: 0 | CT14: 0 | CU14: 0 | CV14: 0 | CW14: 0 | CX14: 0 | CY14: 0 | CZ14: 0 | DA14: 0 | DB14: 0 | DC14: 0 | DD14: 0 | DE14: 0 | DF14: 0 | DG14: 0 | DH14: 0 | DI14: 0 | DJ14: 0 | DK14: 0 | DL14: 0 | DM14: 0 | DN14: 0 | DO14: 0 | DP14: 0 | DQ14: 0 | DR14: 0 | DS14: 0 | DT14: 0 | DU14: 0 | DV14: 0 | DW14: 0 | DX14: 0 | DY14: 0 | DZ14: 0 | EA14: 0 | EB14: 0 | EC14: 0 | ED14: 0 | EE14: 0 | EF14: 0 | EG14: 0 | EH14: 0 | EI14: 0 | EJ14: 0 | EK14: 0 | EL14: 0 | EM14: 0 | EN14: 0 | EO14: 0 | EP14: 0 | EQ14: 0 | ER14: 0 | ES14: 0 | ET14: 0 | EU14: 0 | EV14: 0 | EW14: 0 | EX14: 0 | EY14: 0 | EZ14: 0 | FA14: 0 | FB14: 0 | FC14: 0 | FD14: 0 | FE14: 0 | FF14: 0 | FG14: 0 | FH14: 0 | FI14: 0 | FJ14: 0 | FK14: 0 | FL14: 0 | FM14: 0 | FN14: 0 | FO14: 0 | FP14: 0 | FQ14: 0 | FR14: 0 | FS14: 0 | FT14: 0 | FU14: 0 | FV14: 0 | FW14: 0 | FX14: 0 | FY14: 0 | FZ14: 0 | GA14: 0 | GB14: 0 | GC14: 0 | GD14: 0 | GE14: 0 | GF14: 0 | GG14: 0 | GH14: 0 | GI14: 0 | GJ14: 0 | GK14: 0 | GL14: 0 | GM14: 0 | GN14: 0 | GO14: 0 | GP14: 0 | GQ14: 0 | GR14: 0 | GS14: 0 | GT14: 0 | GU14: 0 | GV14: 0 | GW14: 0 | GX14: 0 | GY14: 0 | GZ14: 0 | HA14: 0 | HB14: 0 | HC14: 0 | HD14: 0 | HE14: 0 | HF14: 0 | HG14: 0 | HH14: 0 | HI14: 0 | HJ14: 0 | HK14: 0 | HL14: 0 | HM14: 0 | HN14: 0 | HO14: 0 | HP14: 0 | HQ14: 0 | HR14: 0 | HS14: 0 | HT14: 0 | HU14: 0 | HV14: 0 | HW14: 0 | HX14: 0 | HY14: 0 | HZ14: 0 | IA14: 0 | IB14: 0 | IC14: 0 | ID14: 0 | IE14: 0 | IF14: 0 | IG14: 0 | IH14: 0 | II14: 0 | IJ14: 0 | IK14: 0 | IL14: 5 | IM14: 4 | IN14: 1
A15: III-1 | B15: PIURA | C15: 200104 | D15: 15230 | E15: HOSPITAL III JOSE CAYETANO HEREDIA | F15: S/C | G15: CASTILLA | H15: NINGUN CLAS | I15: NO PERTENECE A NINGUNA RED | J15: NO PERTENECE A NINGUNA MICRORED | K15: ESSALUD | L15: 1 | M15: 0 | N15: 0 | O15: 0 | P15: 0 | Q15: 0 | R15: 0 | S15: 0 | T15: 0 | U15: 0 | V15: 0 | W15: 0 | X15: 0 | Y15: 0 | Z15: 0 | AA15: 0 | AB15: 0 | AC15: 0 | AD15: 0 | AE15: 0 | AF15: 0 | AG15: 0 | AH15: 0 | AI15: 0 | AJ15: 0 | AK15: 0 | AL15: 0 | AM15: 0 | AN15: 0 | AO15: 0 | AP15: 0 | AQ15: 0 | AR15: 0 | AS15: 0 | AT15: 0 | AU15: 0 | AV15: 0 | AW15: 0 | AX15: 0 | AY15: 0 | AZ15: 0 | BA15: 0 | BB15: 0 | BC15: 0 | BD15: 0 | BE15: 0 | BF15: 0 | BG15: 0 | BH15: 0 | BI15: 0 | BJ15: 0 | BK15: 0 | BL15: 0 | BM15: 0 | BN15: 0 | BO15: 0 | BP15: 0 | BQ15: 0 | BR15: 0 | BS15: 0 | BT15: 64 | BU15: 0 | BV15: 0 | BW15: 0 | BX15: 0 | BY15: 0 | BZ15: 0 | CA15: 0 | CB15: 0 | CC15: 0 | CD15: 0 | CE15: 0 | CF15: 0 | CG15: 0 | CH15: 0 | CI15: 0 | CJ15: 0 | CK15: 0 | CL15: 0 | CM15: 0 | CN15: 0 | CO15: 0 | CP15: 0 | CQ15: 0 | CR15: 0 | CS15: 0 | CT15: 0 | CU15: 0 | CV15: 0 | CW15: 0 | CX15: 0 | CY15: 0 | CZ15: 0 | DA15: 0 | DB15: 0 | DC15: 0 | DD15: 0 | DE15: 0 | DF15: 0 | DG15: 0 | DH15: 0 | DI15: 0 | DJ15: 0 | DK15: 0 | DL15: 0 | DM15: 0 | DN15: 0 | DO15: 0 | DP15: 0 | DQ15: 0 | DR15: 0 | DS15: 0 | DT15: 0 | DU15: 0 | DV15: 0 | DW15: 0 | DX15: 0 | DY15: 0 | DZ15: 0 | EA15: 0 | EB15: 0 | EC15: 0 | ED15: 0 | EE15: 0 | EF15: 0 | EG15: 0 | EH15: 0 | EI15: 0 | EJ15: 0 | EK15: 0 | EL15: 0 | EM15: 0 | EN15: 0 | EO15: 0 | EP15: 0 | EQ15: 0 | ER15: 0 | ES15: 0 | ET15: 0 | EU15: 0 | EV15: 0 | EW15: 0 | EX15: 0 | EY15: 0 | EZ15: 0 | FA15: 0 | FB15: 0 | FC15: 0 | FD15: 0 | FE15: 0 | FF15: 0 | FG15: 0 | FH15: 0 | FI15: 0 | FJ15: 0 | FK15: 0 | FL15: 0 | FM15: 0 | FN15: 0 | FO15: 0 | FP15: 0 | FQ15: 0 | FR15: 0 | FS15: 0 | FT15: 0 | FU15: 0 | FV15: 0 | FW15: 0 | FX15: 0 | FY15: 0 | FZ15: 0 | GA15: 0 | GB15: 0 | GC15: 0 | GD15: 0 | GE15: 0 | GF15: 0 | GG15: 0 | GH15: 0 | GI15: 0 | GJ15: 0 | GK15: 0 | GL15: 0 | GM15: 0 | GN15: 0 | GO15: 0 | GP15: 0 | GQ15: 0 | GR15: 0 | GS15: 0 | GT15: 0 | GU15: 0 | GV15: 0 | GW15: 0 | GX15: 0 | GY15: 0 | GZ15: 0 | HA15: 0 | HB15: 0 | HC15: 0 | HD15: 0 | HE15: 0 | HF15: 0 | HG15: 0 | HH15: 0 | HI15: 0 | HJ15: 0 | HK15: 0 | HL15: 0 | HM15: 0 | HN15: 0 | HO15: 0 | HP15: 0 | HQ15: 0 | HR15: 0 | HS15: 0 | HT15: 0 | HU15: 0 | HV15: 0 | HW15: 0 | HX15: 0 | HY15: 0 | HZ15: 0 | IA15: 0 | IB15: 0 | IC15: 0 | ID15: 0 | IE15: 0 | IF15: 0 | IG15: 0 | IH15: 0 | II15: 0 | IJ15: 0 | IK15: 0 | IL15: 64 | IM15: 42 | IN15: 22
A16: III-1 | B16: PIURA | C16: 200104 | D16: 15230 | E16: HOSPITAL III JOSE CAYETANO HEREDIA | F16: S/C | G16: CASTILLA | H16: NINGUN CLAS | I16: NO PERTENECE A NINGUNA RED | J16: NO PERTENECE A NINGUNA MICRORED | K16: ESSALUD | L16: 2 | M16: 0 | N16: 0 | O16: 0 | P16: 0 | Q16: 0 | R16: 0 | S16: 0 | T16: 0 | U16: 0 | V16: 0 | W16: 0 | X16: 0 | Y16: 0 | Z16: 0 | AA16: 0 | AB16: 0 | AC16: 0 | AD16: 0 | AE16: 0 | AF16: 0 | AG16: 0 | AH16: 0 | AI16: 0 | AJ16: 0 | AK16: 0 | AL16: 0 | AM16: 0 | AN16: 0 | AO16: 0 | AP16: 0 | AQ16: 0 | AR16: 0 | AS16: 0 | AT16: 0 | AU16: 0 | AV16: 0 | AW16: 0 | AX16: 0 | AY16: 0 | AZ16: 0 | BA16: 0 | BB16: 0 | BC16: 0 | BD16: 0 | BE16: 0 | BF16: 0 | BG16: 0 | BH16: 0 | BI16: 0 | BJ16: 0 | BK16: 0 | BL16: 0 | BM16: 0 | BN16: 0 | BO16: 0 | BP16: 0 | BQ16: 0 | BR16: 0 | BS16: 0 | BT16: 0 | BU16: 0 | BV16: 0 | BW16: 0 | BX16: 0 | BY16: 0 | BZ16: 0 | CA16: 0 | CB16: 0 | CC16: 0 | CD16: 0 | CE16: 0 | CF16: 0 | CG16: 0 | CH16: 0 | CI16: 0 | CJ16: 0 | CK16: 0 | CL16: 0 | CM16: 0 | CN16: 0 | CO16: 0 | CP16: 0 | CQ16: 0 | CR16: 0 | CS16: 0 | CT16: 0 | CU16: 0 | CV16: 0 | CW16: 0 | CX16: 0 | CY16: 0 | CZ16: 0 | DA16: 0 | DB16: 0 | DC16: 0 | DD16: 0 | DE16: 0 | DF16: 0 | DG16: 0 | DH16: 0 | DI16: 0 | DJ16: 0 | DK16: 0 | DL16: 0 | DM16: 0 | DN16: 0 | DO16: 0 | DP16: 0 | DQ16: 0 | DR16: 0 | DS16: 0 | DT16: 0 | DU16: 0 | DV16: 0 | DW16: 0 | DX16: 0 | DY16: 0 | DZ16: 0 | EA16: 0 | EB16: 0 | EC16: 0 | ED16: 0 | EE16: 0 | EF16: 0 | EG16: 0 | EH16: 0 | EI16: 0 | EJ16: 0 | EK16: 0 | EL16: 0 | EM16: 0 | EN16: 0 | EO16: 0 | EP16: 0 | EQ16: 0 | ER16: 0 | ES16: 0 | ET16: 0 | EU16: 0 | EV16: 0 | EW16: 0 | EX16: 0 | EY16: 0 | EZ16: 0 | FA16: 0 | FB16: 0 | FC16: 0 | FD16: 0 | FE16: 0 | FF16: 0 | FG16: 0 | FH16: 0 | FI16: 0 | FJ16: 0 | FK16: 0 | FL16: 0 | FM16: 0 | FN16: 0 | FO16: 0 | FP16: 0 | FQ16: 0 | FR16: 0 | FS16: 0 | FT16: 0 | FU16: 0 | FV16: 0 | FW16: 0 | FX16: 0 | FY16: 0 | FZ16: 0 | GA16: 0 | GB16: 0 | GC16: 0 | GD16: 0 | GE16: 0 | GF16: 0 | GG16: 0 | GH16: 0 | GI16: 0 | GJ16: 0 | GK16: 0 | GL16: 0 | GM16: 0 | GN16: 0 | GO16: 0 | GP16: 0 | GQ16: 0 | GR16: 0 | GS16: 0 | GT16: 0 | GU16: 0 | GV16: 0 | GW16: 0 | GX16: 0 | GY16: 0 | GZ16: 0 | HA16: 0 | HB16: 0 | HC16: 0 | HD16: 0 | HE16: 0 | HF16: 0 | HG16: 0 | HH16: 0 | HI16: 0 | HJ16: 0 | HK16: 0 | HL16: 0 | HM16: 0 | HN16: 0 | HO16: 0 | HP16: 0 | HQ16: 0 | HR16: 0 | HS16: 0 | HT16: 0 | HU16: 0 | HV16: 0 | HW16: 0 | HX16: 0 | HY16: 0 | HZ16: 0 | IA16: 0 | IB16: 0 | IC16: 0 | ID16: 0 | IE16: 0 | IF16: 0 | IG16: 0 | IH16: 0 | II16: 0 | IJ16: 0 | IK16: 0 | IL16: 0 | IM16: 0 | IN16: 0
A17: III-1 | B17: PIURA | C17: 200104 | D17: 15230 | E17: HOSPITAL III JOSE CAYETANO HEREDIA | F17: S/C | G17: CASTILLA | H17: NINGUN CLAS | I17: NO PERTENECE A NINGUNA RED | J17: NO PERTENECE A NINGUNA MICRORED | K17: ESSALUD | L17: 3 | M17: 0 | N17: 0 | O17: 0 | P17: 0 | Q17: 0 | R17: 0 | S17: 0 | T17: 0 | U17: 0 | V17: 0 | W17: 0 | X17: 0 | Y17: 0 | Z17: 0 | AA17: 0 | AB17: 0 | AC17: 0 | AD17: 0 | AE17: 0 | AF17: 0 | AG17: 0 | AH17: 0 | AI17: 0 | AJ17: 0 | AK17: 0 | AL17: 0 | AM17: 0 | AN17: 0 | AO17: 0 | AP17: 0 | AQ17: 0 | AR17: 0 | AS17: 0 | AT17: 0 | AU17: 0 | AV17: 0 | AW17: 0 | AX17: 0 | AY17: 0 | AZ17: 0 | BA17: 0 | BB17: 0 | BC17: 0 | BD17: 0 | BE17: 0 | BF17: 0 | BG17: 0 | BH17: 0 | BI17: 0 | BJ17: 0 | BK17: 0 | BL17: 0 | BM17: 0 | BN17: 0 | BO17: 0 | BP17: 0 | BQ17: 0 | BR17: 0 | BS17: 0 | BT17: 0 | BU17: 0 | BV17: 0 | BW17: 0 | BX17: 0 | BY17: 0 | BZ17: 0 | CA17: 0 | CB17: 0 | CC17: 0 | CD17: 0 | CE17: 0 | CF17: 0 | CG17: 0 | CH17: 0 | CI17: 0 | CJ17: 0 | CK17: 0 | CL17: 0 | CM17: 0 | CN17: 0 | CO17: 0 | CP17: 0 | CQ17: 0 | CR17: 0 | CS17: 0 | CT17: 0 | CU17: 0 | CV17: 0 | CW17: 0 | CX17: 0 | CY17: 0 | CZ17: 0 | DA17: 0 | DB17: 0 | DC17: 0 | DD17: 0 | DE17: 0 | DF17: 0 | DG17: 0 | DH17: 0 | DI17: 0 | DJ17: 0 | DK17: 0 | DL17: 0 | DM17: 0 | DN17: 0 | DO17: 0 | DP17: 0 | DQ17: 0 | DR17: 0 | DS17: 0 | DT17: 0 | DU17: 0 | DV17: 0 | DW17: 0 | DX17: 0 | DY17: 0 | DZ17: 0 | EA17: 0 | EB17: 0 | EC17: 0 | ED17: 0 | EE17: 0 | EF17: 0 | EG17: 0 | EH17: 0 | EI17: 0 | EJ17: 0 | EK17: 0 | EL17: 0 | EM17: 0 | EN17: 0 | EO17: 0 | EP17: 0 | EQ17: 0 | ER17: 0 | ES17: 0 | ET17: 0 | EU17: 0 | EV17: 0 | EW17: 0 | EX17: 0 | EY17: 0 | EZ17: 0 | FA17: 0 | FB17: 0 | FC17: 0 | FD17: 0 | FE17: 0 | FF17: 0 | FG17: 0 | FH17: 0 | FI17: 0 | FJ17: 0 | FK17: 0 | FL17: 0 | FM17: 0 | FN17: 0 | FO17: 0 | FP17: 0 | FQ17: 0 | FR17: 0 | FS17: 0 | FT17: 0 | FU17: 0 | FV17: 0 | FW17: 0 | FX17: 0 | FY17: 0 | FZ17: 0 | GA17: 0 | GB17: 0 | GC17: 0 | GD17: 0 | GE17: 0 | GF17: 0 | GG17: 0 | GH17: 0 | GI17: 0 | GJ17: 0 | GK17: 0 | GL17: 0 | GM17: 0 | GN17: 0 | GO17: 0 | GP17: 0 | GQ17: 0 | GR17: 0 | GS17: 0 | GT17: 0 | GU17: 0 | GV17: 0 | GW17: 0 | GX17: 0 | GY17: 0 | GZ17: 0 | HA17: 0 | HB17: 0 | HC17: 0 | HD17: 0 | HE17: 0 | HF17: 0 | HG17: 0 | HH17: 0 | HI17: 0 | HJ17: 0 | HK17: 0 | HL17: 0 | HM17: 0 | HN17: 0 | HO17: 0 | HP17: 0 | HQ17: 0 | HR17: 0 | HS17: 0 | HT17: 0 | HU17: 0 | HV17: 0 | HW17: 0 | HX17: 0 | HY17: 0 | HZ17: 0 | IA17: 0 | IB17: 0 | IC17: 0 | ID17: 0 | IE17: 0 | IF17: 0 | IG17: 0 | IH17: 0 | II17: 0 | IJ17: 0 | IK17: 0 | IL17: 0 | IM17: 0 | IN17: 0
A18: III-1 | B18: PIURA | C18: 200104 | D18: 15230 | E18: HOSPITAL III JOSE CAYETANO HEREDIA | F18: S/C | G18: CASTILLA | H18: NINGUN CLAS | I18: NO PERTENECE A NINGUNA RED | J18: NO PERTENECE A NINGUNA MICRORED | K18: ESSALUD | L18: 5 | M18: 0 | N18: 0 | O18: 0 | P18: 0 | Q18: 0 | R18: 0 | S18: 0 | T18: 0 | U18: 0 | V18: 0 | W18: 0 | X18: 0 | Y18: 0 | Z18: 0 | AA18: 0 | AB18: 0 | AC18: 0 | AD18: 0 | AE18: 0 | AF18: 0 | AG18: 0 | AH18: 0 | AI18: 0 | AJ18: 0 | AK18: 0 | AL18: 0 | AM18: 0 | AN18: 0 | AO18: 0 | AP18: 0 | AQ18: 0 | AR18: 0 | AS18: 0 | AT18: 0 | AU18: 0 | AV18: 0 | AW18: 0 | AX18: 0 | AY18: 0 | AZ18: 0 | BA18: 0 | BB18: 0 | BC18: 0 | BD18: 0 | BE18: 0 | BF18: 0 | BG18: 0 | BH18: 0 | BI18: 0 | BJ18: 0 | BK18: 0 | BL18: 0 | BM18: 0 | BN18: 0 | BO18: 0 | BP18: 0 | BQ18: 0 | BR18: 0 | BS18: 0 | BT18: 0 | BU18: 0 | BV18: 0 | BW18: 0 | BX18: 0 | BY18: 0 | BZ18: 0 | CA18: 0 | CB18: 0 | CC18: 0 | CD18: 0 | CE18: 0 | CF18: 0 | CG18: 0 | CH18: 0 | CI18: 0 | CJ18: 0 | CK18: 0 | CL18: 0 | CM18: 0 | CN18: 0 | CO18: 0 | CP18: 0 | CQ18: 0 | CR18: 0 | CS18: 0 | CT18: 0 | CU18: 0 | CV18: 0 | CW18: 0 | CX18: 0 | CY18: 0 | CZ18: 0 | DA18: 0 | DB18: 0 | DC18: 0 | DD18: 0 | DE18: 0 | DF18: 0 | DG18: 0 | DH18: 0 | DI18: 0 | DJ18: 0 | DK18: 0 | DL18: 0 | DM18: 0 | DN18: 0 | DO18: 0 | DP18: 0 | DQ18: 0 | DR18: 0 | DS18: 0 | DT18: 0 | DU18: 0 | DV18: 0 | DW18: 0 | DX18: 0 | DY18: 0 | DZ18: 0 | EA18: 0 | EB18: 0 | EC18: 0 | ED18: 0 | EE18: 0 | EF18: 0 | EG18: 0 | EH18: 0 | EI18: 0 | EJ18: 0 | EK18: 0 | EL18: 0 | EM18: 0 | EN18: 0 | EO18: 0 | EP18: 0 | EQ18: 0 | ER18: 0 | ES18: 0 | ET18: 0 | EU18: 0 | EV18: 0 | EW18: 0 | EX18: 0 | EY18: 0 | EZ18: 0 | FA18: 0 | FB18: 0 | FC18: 0 | FD18: 0 | FE18: 0 | FF18: 0 | FG18: 0 | FH18: 0 | FI18: 0 | FJ18: 0 | FK18: 0 | FL18: 0 | FM18: 0 | FN18: 0 | FO18: 0 | FP18: 0 | FQ18: 0 | FR18: 0 | FS18: 0 | FT18: 0 | FU18: 0 | FV18: 0 | FW18: 0 | FX18: 0 | FY18: 0 | FZ18: 0 | GA18: 0 | GB18: 0 | GC18: 0 | GD18: 0 | GE18: 0 | GF18: 0 | GG18: 0 | GH18: 0 | GI18: 0 | GJ18: 0 | GK18: 0 | GL18: 0 | GM18: 0 | GN18: 0 | GO18: 0 | GP18: 0 | GQ18: 0 | GR18: 0 | GS18: 0 | GT18: 0 | GU18: 0 | GV18: 0 | GW18: 0 | GX18: 0 | GY18: 0 | GZ18: 0 | HA18: 0 | HB18: 0 | HC18: 0 | HD18: 0 | HE18: 0 | HF18: 0 | HG18: 0 | HH18: 0 | HI18: 0 | HJ18: 0 | HK18: 0 | HL18: 0 | HM18: 0 | HN18: 0 | HO18: 0 | HP18: 0 | HQ18: 0 | HR18: 0 | HS18: 0 | HT18: 0 | HU18: 0 | HV18: 0 | HW18: 0 | HX18: 0 | HY18: 0 | HZ18: 0 | IA18: 0 | IB18: 0 | IC18: 0 | ID18: 0 | IE18: 0 | IF18: 0 | IG18: 0 | IH18: 0 | II18: 0 | IJ18: 0 | IK18: 0 | IL18: 0 | IM18: 0 | IN18: 0
A19: III-1 | B19: PIURA | C19: 200104 | D19: 15230 | E19: HOSPITAL III JOSE CAYETANO HEREDIA | F19: S/C | G19: CASTILLA | H19: NINGUN CLAS | I19: NO PERTENECE A NINGUNA RED | J19: NO PERTENECE A NINGUNA MICRORED | K19: ESSALUD | L19: 6 | M19: 0 | N19: 0 | O19: 0 | P19: 0 | Q19: 0 | R19: 0 | S19: 0 | T19: 0 | U19: 0 | V19: 0 | W19: 0 | X19: 0 | Y19: 0 | Z19: 0 | AA19: 0 | AB19: 0 | AC19: 0 | AD19: 0 | AE19: 0 | AF19: 0 | AG19: 0 | AH19: 0 | AI19: 0 | AJ19: 0 | AK19: 0 | AL19: 0 | AM19: 0 | AN19: 0 | AO19: 0 | AP19: 0 | AQ19: 0 | AR19: 0 | AS19: 0 | AT19: 0 | AU19: 0 | AV19: 0 | AW19: 0 | AX19: 0 | AY19: 0 | AZ19: 0 | BA19: 0 | BB19: 0 | BC19: 0 | BD19: 0 | BE19: 0 | BF19: 0 | BG19: 0 | BH19: 0 | BI19: 0 | BJ19: 0 | BK19: 0 | BL19: 0 | BM19: 0 | BN19: 0 | BO19: 0 | BP19: 0 | BQ19: 0 | BR19: 0 | BS19: 0 | BT19: 0 | BU19: 0 | BV19: 0 | BW19: 0 | BX19: 0 | BY19: 0 | BZ19: 0 | CA19: 0 | CB19: 0 | CC19: 0 | CD19: 0 | CE19: 0 | CF19: 0 | CG19: 0 | CH19: 0 | CI19: 0 | CJ19: 0 | CK19: 0 | CL19: 0 | CM19: 0 | CN19: 0 | CO19: 0 | CP19: 0 | CQ19: 0 | CR19: 0 | CS19: 0 | CT19: 0 | CU19: 0 | CV19: 0 | CW19: 0 | CX19: 0 | CY19: 0 | CZ19: 0 | DA19: 0 | DB19: 0 | DC19: 0 | DD19: 0 | DE19: 0 | DF19: 0 | DG19: 0 | DH19: 0 | DI19: 0 | DJ19: 0 | DK19: 0 | DL19: 0 | DM19: 0 | DN19: 0 | DO19: 0 | DP19: 0 | DQ19: 0 | DR19: 0 | DS19: 0 | DT19: 0 | DU19: 0 | DV19: 0 | DW19: 0 | DX19: 0 | DY19: 0 | DZ19: 0 | EA19: 0 | EB19: 0 | EC19: 0 | ED19: 0 | EE19: 0 | EF19: 0 | EG19: 0 | EH19: 0 | EI19: 0 | EJ19: 0 | EK19: 0 | EL19: 0 | EM19: 0 | EN19: 0 | EO19: 0 | EP19: 0 | EQ19: 0 | ER19: 0 | ES19: 0 | ET19: 0 | EU19: 0 | EV19: 0 | EW19: 0 | EX19: 0 | EY19: 0 | EZ19: 0 | FA19: 0 | FB19: 0 | FC19: 0 | FD19: 0 | FE19: 0 | FF19: 0 | FG19: 0 | FH19: 0 | FI19: 0 | FJ19: 0 | FK19: 0 | FL19: 0 | FM19: 0 | FN19: 0 | FO19: 0 | FP19: 0 | FQ19: 0 | FR19: 0 | FS19: 0 | FT19: 0 | FU19: 0 | FV19: 0 | FW19: 0 | FX19: 0 | FY19: 0 | FZ19: 0 | GA19: 0 | GB19: 0 | GC19: 0 | GD19: 0 | GE19: 0 | GF19: 0 | GG19: 0 | GH19: 0 | GI19: 0 | GJ19: 0 | GK19: 0 | GL19: 0 | GM19: 0 | GN19: 0 | GO19: 0 | GP19: 0 | GQ19: 0 | GR19: 0 | GS19: 0 | GT19: 0 | GU19: 0 | GV19: 0 | GW19: 0 | GX19: 0 | GY19: 0 | GZ19: 0 | HA19: 0 | HB19: 0 | HC19: 0 | HD19: 0 | HE19: 0 | HF19: 0 | HG19: 0 | HH19: 0 | HI19: 0 | HJ19: 0 | HK19: 0 | HL19: 0 | HM19: 0 | HN19: 0 | HO19: 0 | HP19: 0 | HQ19: 0 | HR19: 0 | HS19: 0 | HT19: 0 | HU19: 0 | HV19: 0 | HW19: 0 | HX19: 0 | HY19: 0 | HZ19: 0 | IA19: 0 | IB19: 0 | IC19: 0 | ID19: 0 | IE19: 0 | IF19: 0 | IG19: 0 | IH19: 0 | II19: 0 | IJ19: 0 | IK19: 0 | IL19: 0 | IM19: 0 | IN19: 0
A20: LUCIANO CASTILLO COLONNA | B20: AYABACA | C20: 200201 | D20: 1911 | E20: AYABACA | F20: I-4 | G20: AYABACA | H20: NINGUN CLAS | I20: AYABACA | J20: AYABACA | K20: SALUD LUCIANO CASTILLO COLONNA | L20: 2 | M20: 0 | N20: 0 | O20: 0 | P20: 0 | Q20: 0 | R20: 0 | S20: 0 | T20: 0 | U20: 0 | V20: 0 | W20: 0 | X20: 0 | Y20: 0 | Z20: 0 | AA20: 2 | AB20: 4 | AC20: 0 | AD20: 0 | AE20: 0 | AF20: 0 | AG20: 0 | AH20: 0 | AI20: 0 | AJ20: 0 | AK20: 0 | AL20: 0 | AM20: 0 | AN20: 0 | AO20: 0 | AP20: 0 | AQ20: 0 | AR20: 0 | AS20: 0 | AT20: 0 | AU20: 0 | AV20: 0 | AW20: 1 | AX20: 0 | AY20: 0 | AZ20: 0 | BA20: 0 | BB20: 0 | BC20: 0 | BD20: 0 | BE20: 0 | BF20: 12 | BG20: 12 | BH20: 0 | BI20: 0 | BJ20: 0 | BK20: 0 | BL20: 0 | BM20: 0 | BN20: 0 | BO20: 0 | BP20: 0 | BQ20: 0 | BR20: 0 | BS20: 0 | BT20: 17 | BU20: 0 | BV20: 0 | BW20: 0 | BX20: 0 | BY20: 0 | BZ20: 0 | CA20: 0 | CB20: 0 | CC20: 0 | CD20: 0 | CE20: 0 | CF20: 0 | CG20: 0 | CH20: 0 | CI20: 0 | CJ20: 0 | CK20: 0 | CL20: 0 | CM20: 0 | CN20: 0 | CO20: 0 | CP20: 0 | CQ20: 0 | CR20: 0 | CS20: 0 | CT20: 0 | CU20: 0 | CV20: 0 | CW20: 0 | CX20: 0 | CY20: 0 | CZ20: 0 | DA20: 0 | DB20: 0 | DC20: 0 | DD20: 0 | DE20: 0 | DF20: 0 | DG20: 2 | DH20: 0 | DI20: 1 | DJ20: 11 | DK20: 0 | DL20: 11 | DM20: 0 | DN20: 1 | DO20: 1 | DP20: 0 | DQ20: 0 | DR20: 2 | DS20: 2 | DT20: 1 | DU20: 1 | DV20: 0 | DW20: 1 | DX20: 1 | DY20: 0 | DZ20: 0 | EA20: 0 | EB20: 0 | EC20: 9 | ED20: 5 | EE20: 4 | EF20: 0 | EG20: 0 | EH20: 0 | EI20: 0 | EJ20: 0 | EK20: 0 | EL20: 0 | EM20: 0 | EN20: 0 | EO20: 0 | EP20: 0 | EQ20: 0 | ER20: 0 | ES20: 0 | ET20: 0 | EU20: 0 | EV20: 0 | EW20: 0 | EX20: 0 | EY20: 0 | EZ20: 0 | FA20: 0 | FB20: 0 | FC20: 0 | FD20: 0 | FE20: 0 | FF20: 0 | FG20: 0 | FH20: 0 | FI20: 0 | FJ20: 0 | FK20: 0 | FL20: 0 | FM20: 0 | FN20: 0 | FO20: 0 | FP20: 0 | FQ20: 0 | FR20: 0 | FS20: 0 | FT20: 0 | FU20: 0 | FV20: 0 | FW20: 0 | FX20: 0 | FY20: 0 | FZ20: 0 | GA20: 0 | GB20: 0 | GC20: 0 | GD20: 0 | GE20: 0 | GF20: 0 | GG20: 0 | GH20: 0 | GI20: 0 | GJ20: 0 | GK20: 0 | GL20: 0 | GM20: 0 | GN20: 0 | GO20: 0 | GP20: 0 | GQ20: 0 | GR20: 0 | GS20: 0 | GT20: 0 | GU20: 0 | GV20: 0 | GW20: 0 | GX20: 0 | GY20: 0 | GZ20: 0 | HA20: 0 | HB20: 0 | HC20: 0 | HD20: 0 | HE20: 0 | HF20: 0 | HG20: 0 | HH20: 0 | HI20: 0 | HJ20: 0 | HK20: 0 | HL20: 0 | HM20: 0 | HN20: 0 | HO20: 0 | HP20: 0 | HQ20: 0 | HR20: 0 | HS20: 0 | HT20: 0 | HU20: 0 | HV20: 0 | HW20: 0 | HX20: 0 | HY20: 0 | HZ20: 0 | IA20: 7 | IB20: 6 | IC20: 0 | ID20: 0 | IE20: 0 | IF20: 0 | IG20: 0 | IH20: 0 | II20: 0 | IJ20: 0 | IK20: 1 | IL20: 3 | IM20: 0 | IN20: 3
A21: II-1 | B21: TALARA | C21: 200701 | D21: 12243 | E21: HOSPITAL II TALARA | F21: S/C | G21: PARIÑAS | H21: NINGUN CLAS | I21: NO PERTENECE A NINGUNA RED | J21: NO PERTENECE A NINGUNA MICRORED | K21: ESSALUD | L21: 1 | M21: 0 | N21: 0 | O21: 0 | P21: 0 | Q21: 0 | R21: 0 | S21: 0 | T21: 0 | U21: 0 | V21: 0 | W21: 0 | X21: 0 | Y21: 0 | Z21: 0 | AA21: 0 | AB21: 0 | AC21: 0 | AD21: 0 | AE21: 0 | AF21: 0 | AG21: 0 | AH21: 0 | AI21: 0 | AJ21: 0 | AK21: 0 | AL21: 0 | AM21: 0 | AN21: 0 | AO21: 0 | AP21: 0 | AQ21: 0 | AR21: 0 | AS21: 0 | AT21: 0 | AU21: 0 | AV21: 0 | AW21: 0 | AX21: 0 | AY21: 0 | AZ21: 0 | BA21: 0 | BB21: 0 | BC21: 0 | BD21: 0 | BE21: 0 | BF21: 0 | BG21: 0 | BH21: 0 | BI21: 0 | BJ21: 0 | BK21: 0 | BL21: 0 | BM21: 0 | BN21: 0 | BO21: 0 | BP21: 0 | BQ21: 1 | BR21: 0 | BS21: 0 | BT21: 8 | BU21: 0 | BV21: 0 | BW21: 0 | BX21: 0 | BY21: 0 | BZ21: 0 | CA21: 0 | CB21: 0 | CC21: 0 | CD21: 0 | CE21: 0 | CF21: 0 | CG21: 0 | CH21: 0 | CI21: 0 | CJ21: 0 | CK21: 0 | CL21: 0 | CM21: 0 | CN21: 0 | CO21: 0 | CP21: 0 | CQ21: 0 | CR21: 0 | CS21: 0 | CT21: 0 | CU21: 0 | CV21: 0 | CW21: 0 | CX21: 0 | CY21: 0 | CZ21: 0 | DA21: 0 | DB21: 0 | DC21: 0 | DD21: 0 | DE21: 0 | DF21: 0 | DG21: 0 | DH21: 0 | DI21: 0 | DJ21: 0 | DK21: 0 | DL21: 0 | DM21: 0 | DN21: 0 | DO21: 0 | DP21: 0 | DQ21: 0 | DR21: 0 | DS21: 0 | DT21: 0 | DU21: 0 | DV21: 0 | DW21: 0 | DX21: 0 | DY21: 0 | DZ21: 0 | EA21: 0 | EB21: 0 | EC21: 0 | ED21: 0 | EE21: 0 | EF21: 0 | EG21: 0 | EH21: 0 | EI21: 0 | EJ21: 0 | EK21: 0 | EL21: 0 | EM21: 0 | EN21: 0 | EO21: 0 | EP21: 0 | EQ21: 0 | ER21: 0 | ES21: 0 | ET21: 0 | EU21: 0 | EV21: 0 | EW21: 0 | EX21: 0 | EY21: 0 | EZ21: 0 | FA21: 0 | FB21: 0 | FC21: 0 | FD21: 0 | FE21: 0 | FF21: 0 | FG21: 0 | FH21: 0 | FI21: 0 | FJ21: 0 | FK21: 0 | FL21: 0 | FM21: 0 | FN21: 0 | FO21: 0 | FP21: 0 | FQ21: 0 | FR21: 0 | FS21: 0 | FT21: 0 | FU21: 0 | FV21: 0 | FW21: 0 | FX21: 0 | FY21: 0 | FZ21: 0 | GA21: 0 | GB21: 0 | GC21: 0 | GD21: 0 | GE21: 0 | GF21: 0 | GG21: 0 | GH21: 0 | GI21: 0 | GJ21: 0 | GK21: 0 | GL21: 0 | GM21: 0 | GN21: 0 | GO21: 0 | GP21: 0 | GQ21: 0 | GR21: 0 | GS21: 0 | GT21: 0 | GU21: 0 | GV21: 0 | GW21: 0 | GX21: 0 | GY21: 0 | GZ21: 0 | HA21: 0 | HB21: 0 | HC21: 0 | HD21: 0 | HE21: 0 | HF21: 0 | HG21: 0 | HH21: 0 | HI21: 0 | HJ21: 0 | HK21: 0 | HL21: 0 | HM21: 0 | HN21: 0 | HO21: 0 | HP21: 0 | HQ21: 0 | HR21: 0 | HS21: 0 | HT21: 0 | HU21: 0 | HV21: 0 | HW21: 0 | HX21: 0 | HY21: 0 | HZ21: 0 | IA21: 0 | IB21: 0 | IC21: 0 | ID21: 0 | IE21: 0 | IF21: 0 | IG21: 0 | IH21: 0 | II21: 0 | IJ21: 0 | IK21: 0 | IL21: 14 | IM21: 8 | IN21: 6
A22: LUCIANO CASTILLO COLONNA | B22: AYABACA | C22: 200201 | D22: 1911 | E22: AYABACA | F22: I-4 | G22: AYABACA | H22: NINGUN CLAS | I22: AYABACA | J22: AYABACA | K22: SALUD LUCIANO CASTILLO COLONNA | L22: 3 | M22: 0 | N22: 1 | O22: 0 | P22: 0 | Q22: 2 | R22: 0 | S22: 3 | T22: 2 | U22: 1 | V22: 0 | W22: 0 | X22: 0 | Y22: 0 | Z22: 0 | AA22: 1 | AB22: 0 | AC22: 2 | AD22: 0 | AE22: 0 | AF22: 0 | AG22: 2 | AH22: 0 | AI22: 0 | AJ22: 0 | AK22: 0 | AL22: 0 | AM22: 0 | AN22: 0 | AO22: 0 | AP22: 0 | AQ22: 0 | AR22: 0 | AS22: 0 | AT22: 0 | AU22: 0 | AV22: 0 | AW22: 0 | AX22: 0 | AY22: 0 | AZ22: 0 | BA22: 2 | BB22: 2 | BC22: 2 | BD22: 0 | BE22: 0 | BF22: 13 | BG22: 13 | BH22: 0 | BI22: 0 | BJ22: 0 | BK22: 0 | BL22: 0 | BM22: 0 | BN22: 0 | BO22: 0 | BP22: 0 | BQ22: 0 | BR22: 0 | BS22: 0 | BT22: 0 | BU22: 0 | BV22: 0 | BW22: 0 | BX22: 0 | BY22: 0 | BZ22: 0 | CA22: 0 | CB22: 1 | CC22: 0 | CD22: 0 | CE22: 0 | CF22: 0 | CG22: 0 | CH22: 0 | CI22: 0 | CJ22: 0 | CK22: 0 | CL22: 0 | CM22: 0 | CN22: 0 | CO22: 0 | CP22: 0 | CQ22: 0 | CR22: 0 | CS22: 0 | CT22: 0 | CU22: 0 | CV22: 2 | CW22: 0 | CX22: 0 | CY22: 0 | CZ22: 0 | DA22: 0 | DB22: 0 | DC22: 0 | DD22: 0 | DE22: 0 | DF22: 0 | DG22: 4 | DH22: 0 | DI22: 2 | DJ22: 26 | DK22: 0 | DL22: 26 | DM22: 2 | DN22: 0 | DO22: 0 | DP22: 0 | DQ22: 1 | DR22: 14 | DS22: 13 | DT22: 0 | DU22: 0 | DV22: 0 | DW22: 0 | DX22: 1 | DY22: 0 | DZ22: 0 | EA22: 0 | EB22: 0 | EC22: 27 | ED22: 7 | EE22: 15 | EF22: 0 | EG22: 0 | EH22: 0 | EI22: 0 | EJ22: 0 | EK22: 0 | EL22: 0 | EM22: 0 | EN22: 0 | EO22: 0 | EP22: 0 | EQ22: 0 | ER22: 0 | ES22: 0 | ET22: 0 | EU22: 0 | EV22: 0 | EW22: 0 | EX22: 0 | EY22: 0 | EZ22: 0 | FA22: 0 | FB22: 0 | FC22: 0 | FD22: 0 | FE22: 0 | FF22: 0 | FG22: 0 | FH22: 0 | FI22: 0 | FJ22: 0 | FK22: 0 | FL22: 0 | FM22: 0 | FN22: 0 | FO22: 0 | FP22: 0 | FQ22: 0 | FR22: 0 | FS22: 0 | FT22: 0 | FU22: 0 | FV22: 0 | FW22: 0 | FX22: 0 | FY22: 0 | FZ22: 0 | GA22: 0 | GB22: 0 | GC22: 0 | GD22: 0 | GE22: 0 | GF22: 0 | GG22: 0 | GH22: 0 | GI22: 0 | GJ22: 0 | GK22: 0 | GL22: 0 | GM22: 0 | GN22: 0 | GO22: 0 | GP22: 0 | GQ22: 0 | GR22: 0 | GS22: 0 | GT22: 0 | GU22: 0 | GV22: 0 | GW22: 0 | GX22: 0 | GY22: 0 | GZ22: 0 | HA22: 0 | HB22: 0 | HC22: 0 | HD22: 0 | HE22: 0 | HF22: 0 | HG22: 0 | HH22: 0 | HI22: 0 | HJ22: 0 | HK22: 0 | HL22: 0 | HM22: 0 | HN22: 0 | HO22: 0 | HP22: 0 | HQ22: 0 | HR22: 0 | HS22: 12 | HT22: 11 | HU22: 0 | HV22: 10 | HW22: 0 | HX22: 2 | HY22: 0 | HZ22: 0 | IA22: 3 | IB22: 0 | IC22: 0 | ID22: 0 | IE22: 0 | IF22: 0 | IG22: 0 | IH22: 0 | II22: 0 | IJ22: 0 | IK22: 0 | IL22: 11 | IM22: 2 | IN22: 9
A23: LUCIANO CASTILLO COLONNA | B23: AYABACA | C23: 200201 | D23: 1911 | E23: AYABACA | F23: I-4 | G23: AYABACA | H23: NINGUN CLAS | I23: AYABACA | J23: AYABACA | K23: SALUD LUCIANO CASTILLO COLONNA | L23: 5 | M23: 0 | N23: 1 | O23: 0 | P23: 0 | Q23: 0 | R23: 0 | S23: 0 | T23: 0 | U23: 0 | V23: 0 | W23: 0 | X23: 0 | Y23: 0 | Z23: 0 | AA23: 0 | AB23: 0 | AC23: 0 | AD23: 0 | AE23: 0 | AF23: 0 | AG23: 0 | AH23: 1 | AI23: 0 | AJ23: 0 | AK23: 0 | AL23: 0 | AM23: 1 | AN23: 0 | AO23: 0 | AP23: 0 | AQ23: 0 | AR23: 0 | AS23: 0 | AT23: 3 | AU23: 0 | AV23: 0 | AW23: 0 | AX23: 0 | AY23: 0 | AZ23: 0 | BA23: 0 | BB23: 0 | BC23: 0 | BD23: 0 | BE23: 0 | BF23: 5 | BG23: 4 | BH23: 0 | BI23: 0 | BJ23: 0 | BK23: 0 | BL23: 0 | BM23: 0 | BN23: 0 | BO23: 0 | BP23: 0 | BQ23: 0 | BR23: 0 | BS23: 0 | BT23: 3 | BU23: 1 | BV23: 0 | BW23: 1 | BX23: 1 | BY23: 2 | BZ23: 0 | CA23: 0 | CB23: 0 | CC23: 0 | CD23: 0 | CE23: 0 | CF23: 0 | CG23: 0 | CH23: 0 | CI23: 0 | CJ23: 0 | CK23: 0 | CL23: 0 | CM23: 0 | CN23: 0 | CO23: 0 | CP23: 0 | CQ23: 0 | CR23: 0 | CS23: 0 | CT23: 0 | CU23: 0 | CV23: 0 | CW23: 0 | CX23: 0 | CY23: 0 | CZ23: 0 | DA23: 0 | DB23: 0 | DC23: 0 | DD23: 0 | DE23: 0 | DF23: 0 | DG23: 0 | DH23: 0 | DI23: 1 | DJ23: 23 | DK23: 0 | DL23: 23 | DM23: 0 | DN23: 0 | DO23: 0 | DP23: 0 | DQ23: 0 | DR23: 0 | DS23: 0 | DT23: 0 | DU23: 0 | DV23: 0 | DW23: 0 | DX23: 0 | DY23: 0 | DZ23: 0 | EA23: 0 | EB23: 0 | EC23: 16 | ED23: 11 | EE23: 9 | EF23: 0 | EG23: 0 | EH23: 1 | EI23: 0 | EJ23: 0 | EK23: 0 | EL23: 0 | EM23: 0 | EN23: 0 | EO23: 0 | EP23: 0 | EQ23: 0 | ER23: 0 | ES23: 0 | ET23: 0 | EU23: 0 | EV23: 0 | EW23: 0 | EX23: 0 | EY23: 0 | EZ23: 0 | FA23: 0 | FB23: 0 | FC23: 0 | FD23: 0 | FE23: 0 | FF23: 0 | FG23: 0 | FH23: 0 | FI23: 0 | FJ23: 0 | FK23: 0 | FL23: 0 | FM23: 0 | FN23: 0 | FO23: 0 | FP23: 0 | FQ23: 0 | FR23: 0 | FS23: 0 | FT23: 0 | FU23: 0 | FV23: 0 | FW23: 0 | FX23: 0 | FY23: 0 | FZ23: 0 | GA23: 0 | GB23: 0 | GC23: 0 | GD23: 0 | GE23: 0 | GF23: 0 | GG23: 0 | GH23: 0 | GI23: 0 | GJ23: 0 | GK23: 0 | GL23: 0 | GM23: 0 | GN23: 0 | GO23: 0 | GP23: 0 | GQ23: 0 | GR23: 0 | GS23: 0 | GT23: 0 | GU23: 0 | GV23: 0 | GW23: 0 | GX23: 0 | GY23: 0 | GZ23: 0 | HA23: 0 | HB23: 0 | HC23: 0 | HD23: 0 | HE23: 0 | HF23: 0 | HG23: 0 | HH23: 0 | HI23: 0 | HJ23: 0 | HK23: 0 | HL23: 0 | HM23: 0 | HN23: 0 | HO23: 0 | HP23: 0 | HQ23: 0 | HR23: 0 | HS23: 0 | HT23: 0 | HU23: 0 | HV23: 0 | HW23: 0 | HX23: 0 | HY23: 0 | HZ23: 0 | IA23: 0 | IB23: 0 | IC23: 0 | ID23: 0 | IE23: 0 | IF23: 0 | IG23: 0 | IH23: 0 | II23: 0 | IJ23: 0 | IK23: 0 | IL23: 9 | IM23: 2 | IN23: 7
A24: LUCIANO CASTILLO COLONNA | B24: AYABACA | C24: 200201 | D24: 1911 | E24: AYABACA | F24: I-4 | G24: AYABACA | H24: NINGUN CLAS | I24: AYABACA | J24: AYABACA | K24: SALUD LUCIANO CASTILLO COLONNA | L24: 6 | M24: 0 | N24: 1 | O24: 0 | P24: 0 | Q24: 0 | R24: 0 | S24: 0 | T24: 0 | U24: 0 | V24: 0 | W24: 0 | X24: 0 | Y24: 0 | Z24: 0 | AA24: 0 | AB24: 0 | AC24: 0 | AD24: 0 | AE24: 0 | AF24: 0 | AG24: 0 | AH24: 6 | AI24: 0 | AJ24: 0 | AK24: 0 | AL24: 0 | AM24: 0 | AN24: 5 | AO24: 0 | AP24: 0 | AQ24: 0 | AR24: 5 | AS24: 0 | AT24: 0 | AU24: 0 | AV24: 0 | AW24: 0 | AX24: 0 | AY24: 0 | AZ24: 0 | BA24: 0 | BB24: 0 | BC24: 0 | BD24: 0 | BE24: 0 | BF24: 14 | BG24: 14 | BH24: 0 | BI24: 0 | BJ24: 1 | BK24: 0 | BL24: 0 | BM24: 0 | BN24: 0 | BO24: 0 | BP24: 0 | BQ24: 1 | BR24: 0 | BS24: 0 | BT24: 2 | BU24: 0 | BV24: 0 | BW24: 0 | BX24: 0 | BY24: 0 | BZ24: 9 | CA24: 0 | CB24: 0 | CC24: 0 | CD24: 0 | CE24: 0 | CF24: 0 | CG24: 0 | CH24: 0 | CI24: 0 | CJ24: 0 | CK24: 0 | CL24: 0 | CM24: 0 | CN24: 0 | CO24: 0 | CP24: 0 | CQ24: 0 | CR24: 0 | CS24: 0 | CT24: 0 | CU24: 0 | CV24: 0 | CW24: 0 | CX24: 0 | CY24: 0 | CZ24: 0 | DA24: 0 | DB24: 0 | DC24: 0 | DD24: 0 | DE24: 0 | DF24: 0 | DG24: 0 | DH24: 0 | DI24: 0 | DJ24: 69 | DK24: 0 | DL24: 69 | DM24: 0 | DN24: 0 | DO24: 0 | DP24: 0 | DQ24: 0 | DR24: 0 | DS24: 1 | DT24: 0 | DU24: 0 | DV24: 0 | DW24: 0 | DX24: 0 | DY24: 0 | DZ24: 0 | EA24: 0 | EB24: 0 | EC24: 49 | ED24: 10 | EE24: 20 | EF24: 0 | EG24: 0 | EH24: 1 | EI24: 0 | EJ24: 0 | EK24: 0 | EL24: 0 | EM24: 0 | EN24: 0 | EO24: 0 | EP24: 0 | EQ24: 0 | ER24: 0 | ES24: 0 | ET24: 0 | EU24: 0 | EV24: 0 | EW24: 0 | EX24: 0 | EY24: 0 | EZ24: 0 | FA24: 0 | FB24: 0 | FC24: 0 | FD24: 0 | FE24: 0 | FF24: 0 | FG24: 0 | FH24: 0 | FI24: 0 | FJ24: 0 | FK24: 0 | FL24: 0 | FM24: 0 | FN24: 0 | FO24: 0 | FP24: 0 | FQ24: 0 | FR24: 0 | FS24: 0 | FT24: 0 | FU24: 0 | FV24: 0 | FW24: 0 | FX24: 0 | FY24: 0 | FZ24: 0 | GA24: 0 | GB24: 0 | GC24: 0 | GD24: 0 | GE24: 0 | GF24: 0 | GG24: 0 | GH24: 0 | GI24: 0 | GJ24: 0 | GK24: 0 | GL24: 0 | GM24: 0 | GN24: 0 | GO24: 0 | GP24: 0 | GQ24: 0 | GR24: 0 | GS24: 0 | GT24: 0 | GU24: 0 | GV24: 0 | GW24: 0 | GX24: 0 | GY24: 0 | GZ24: 0 | HA24: 0 | HB24: 0 | HC24: 0 | HD24: 0 | HE24: 0 | HF24: 0 | HG24: 0 | HH24: 0 | HI24: 0 | HJ24: 0 | HK24: 0 | HL24: 0 | HM24: 0 | HN24: 0 | HO24: 0 | HP24: 0 | HQ24: 0 | HR24: 0 | HS24: 0 | HT24: 0 | HU24: 0 | HV24: 0 | HW24: 0 | HX24: 0 | HY24: 0 | HZ24: 0 | IA24: 0 | IB24: 0 | IC24: 0 | ID24: 0 | IE24: 0 | IF24: 0 | IG24: 0 | IH24: 0 | II24: 0 | IJ24: 0 | IK24: 0 | IL24: 31 | IM24: 14 | IN24: 17
A25: LUCIANO CASTILLO COLONNA | B25: AYABACA | C25: 200201 | D25: 1911 | E25: AYABACA | F25: I-4 | G25: AYABACA | H25: NINGUN CLAS | I25: AYABACA | J25: AYABACA | K25: SALUD LUCIANO CASTILLO COLONNA | L25: 1 | M25: 0 | N25: 0 | O25: 0 | P25: 0 | Q25: 0 | R25: 0 | S25: 1 | T25: 0 | U25: 1 | V25: 0 | W25: 0 | X25: 0 | Y25: 0 | Z25: 0 | AA25: 11 | AB25: 0 | AC25: 0 | AD25: 0 | AE25: 0 | AF25: 0 | AG25: 0 | AH25: 0 | AI25: 0 | AJ25: 0 | AK25: 0 | AL25: 0 | AM25: 0 | AN25: 1 | AO25: 0 | AP25: 0 | AQ25: 0 | AR25: 1 | AS25: 0 | AT25: 0 | AU25: 0 | AV25: 0 | AW25: 0 | AX25: 0 | AY25: 0 | AZ25: 0 | BA25: 0 | BB25: 0 | BC25: 0 | BD25: 0 | BE25: 0 | BF25: 7 | BG25: 7 | BH25: 0 | BI25: 0 | BJ25: 0 | BK25: 0 | BL25: 0 | BM25: 0 | BN25: 0 | BO25: 0 | BP25: 0 | BQ25: 0 | BR25: 0 | BS25: 0 | BT25: 24 | BU25: 0 | BV25: 0 | BW25: 0 | BX25: 0 | BY25: 1 | BZ25: 0 | CA25: 0 | CB25: 0 | CC25: 0 | CD25: 0 | CE25: 0 | CF25: 0 | CG25: 0 | CH25: 0 | CI25: 0 | CJ25: 0 | CK25: 0 | CL25: 0 | CM25: 0 | CN25: 0 | CO25: 0 | CP25: 0 | CQ25: 0 | CR25: 0 | CS25: 0 | CT25: 0 | CU25: 0 | CV25: 0 | CW25: 0 | CX25: 0 | CY25: 0 | CZ25: 0 | DA25: 0 | DB25: 0 | DC25: 0 | DD25: 0 | DE25: 0 | DF25: 0 | DG25: 1 | DH25: 1 | DI25: 1 | DJ25: 13 | DK25: 0 | DL25: 13 | DM25: 1 | DN25: 0 | DO25: 0 | DP25: 0 | DQ25: 1 | DR25: 13 | DS25: 23 | DT25: 0 | DU25: 0 | DV25: 0 | DW25: 0 | DX25: 0 | DY25: 0 | DZ25: 0 | EA25: 0 | EB25: 0 | EC25: 11 | ED25: 4 | EE25: 7 | EF25: 0 | EG25: 0 | EH25: 1 | EI25: 0 | EJ25: 0 | EK25: 0 | EL25: 0 | EM25: 0 | EN25: 0 | EO25: 0 | EP25: 0 | EQ25: 0 | ER25: 0 | ES25: 0 | ET25: 0 | EU25: 0 | EV25: 0 | EW25: 0 | EX25: 0 | EY25: 0 | EZ25: 0 | FA25: 0 | FB25: 0 | FC25: 0 | FD25: 0 | FE25: 0 | FF25: 0 | FG25: 0 | FH25: 0 | FI25: 0 | FJ25: 0 | FK25: 0 | FL25: 0 | FM25: 0 | FN25: 0 | FO25: 0 | FP25: 0 | FQ25: 0 | FR25: 0 | FS25: 0 | FT25: 0 | FU25: 0 | FV25: 0 | FW25: 0 | FX25: 0 | FY25: 0 | FZ25: 0 | GA25: 0 | GB25: 0 | GC25: 0 | GD25: 0 | GE25: 0 | GF25: 0 | GG25: 0 | GH25: 0 | GI25: 0 | GJ25: 0 | GK25: 0 | GL25: 0 | GM25: 0 | GN25: 0 | GO25: 0 | GP25: 0 | GQ25: 0 | GR25: 0 | GS25: 0 | GT25: 0 | GU25: 0 | GV25: 0 | GW25: 0 | GX25: 0 | GY25: 0 | GZ25: 0 | HA25: 0 | HB25: 0 | HC25: 0 | HD25: 0 | HE25: 0 | HF25: 0 | HG25: 0 | HH25: 0 | HI25: 0 | HJ25: 0 | HK25: 0 | HL25: 0 | HM25: 0 | HN25: 0 | HO25: 0 | HP25: 0 | HQ25: 0 | HR25: 0 | HS25: 12 | HT25: 17 | HU25: 0 | HV25: 9 | HW25: 1 | HX25: 0 | HY25: 0 | HZ25: 14 | IA25: 13 | IB25: 14 | IC25: 0 | ID25: 0 | IE25: 1 | IF25: 0 | IG25: 0 | IH25: 0 | II25: 0 | IJ25: 0 | IK25: 0 | IL25: 65 | IM25: 33 | IN25: 32
A26: LUCIANO CASTILLO COLONNA | B26: AYABACA | C26: 200201 | D26: 1911 | E26: AYABACA | F26: I-4 | G26: AYABACA | H26: NINGUN CLAS | I26: AYABACA | J26: AYABACA | K26: SALUD LUCIANO CASTILLO COLONNA | L26: 8 | M26: 0 | N26: 1 | O26: 0 | P26: 0 | Q26: 2 | R26: 0 | S26: 0 | T26: 2 | U26: 0 | V26: 0 | W26: 0 | X26: 0 | Y26: 0 | Z26: 0 | AA26: 1 | AB26: 0 | AC26: 0 | AD26: 0 | AE26: 0 | AF26: 0 | AG26: 0 | AH26: 0 | AI26: 0 | AJ26: 0 | AK26: 0 | AL26: 0 | AM26: 0 | AN26: 0 | AO26: 0 | AP26: 0 | AQ26: 0 | AR26: 0 | AS26: 0 | AT26: 0 | AU26: 0 | AV26: 0 | AW26: 0 | AX26: 0 | AY26: 0 | AZ26: 0 | BA26: 0 | BB26: 0 | BC26: 0 | BD26: 0 | BE26: 0 | BF26: 2 | BG26: 2 | BH26: 0 | BI26: 0 | BJ26: 0 | BK26: 0 | BL26: 0 | BM26: 0 | BN26: 0 | BO26: 0 | BP26: 0 | BQ26: 0 | BR26: 0 | BS26: 0 | BT26: 0 | BU26: 0 | BV26: 0 | BW26: 0 | BX26: 0 | BY26: 0 | BZ26: 0 | CA26: 2 | CB26: 0 | CC26: 0 | CD26: 0 | CE26: 0 | CF26: 0 | CG26: 0 | CH26: 0 | CI26: 0 | CJ26: 0 | CK26: 0 | CL26: 0 | CM26: 0 | CN26: 0 | CO26: 0 | CP26: 0 | CQ26: 0 | CR26: 0 | CS26: 0 | CT26: 0 | CU26: 0 | CV26: 0 | CW26: 0 | CX26: 0 | CY26: 0 | CZ26: 0 | DA26: 0 | DB26: 0 | DC26: 0 | DD26: 0 | DE26: 0 | DF26: 0 | DG26: 0 | DH26: 2 | DI26: 3 | DJ26: 31 | DK26: 0 | DL26: 31 | DM26: 0 | DN26: 1 | DO26: 1 | DP26: 0 | DQ26: 2 | DR26: 0 | DS26: 0 | DT26: 1 | DU26: 1 | DV26: 0 | DW26: 1 | DX26: 0 | DY26: 0 | DZ26: 0 | EA26: 0 | EB26: 0 | EC26: 9 | ED26: 22 | EE26: 16 | EF26: 0 | EG26: 0 | EH26: 1 | EI26: 0 | EJ26: 0 | EK26: 0 | EL26: 0 | EM26: 0 | EN26: 0 | EO26: 0 | EP26: 0 | EQ26: 0 | ER26: 0 | ES26: 0 | ET26: 0 | EU26: 0 | EV26: 0 | EW26: 0 | EX26: 0 | EY26: 0 | EZ26: 0 | FA26: 0 | FB26: 0 | FC26: 0 | FD26: 0 | FE26: 0 | FF26: 0 | FG26: 0 | FH26: 0 | FI26: 0 | FJ26: 0 | FK26: 0 | FL26: 0 | FM26: 0 | FN26: 0 | FO26: 0 | FP26: 0 | FQ26: 0 | FR26: 0 | FS26: 0 | FT26: 0 | FU26: 0 | FV26: 0 | FW26: 0 | FX26: 0 | FY26: 0 | FZ26: 0 | GA26: 0 | GB26: 0 | GC26: 0 | GD26: 0 | GE26: 0 | GF26: 0 | GG26: 0 | GH26: 0 | GI26: 0 | GJ26: 0 | GK26: 0 | GL26: 0 | GM26: 0 | GN26: 0 | GO26: 0 | GP26: 0 | GQ26: 0 | GR26: 0 | GS26: 0 | GT26: 0 | GU26: 0 | GV26: 0 | GW26: 0 | GX26: 0 | GY26: 0 | GZ26: 0 | HA26: 0 | HB26: 0 | HC26: 0 | HD26: 0 | HE26: 0 | HF26: 0 | HG26: 0 | HH26: 0 | HI26: 0 | HJ26: 0 | HK26: 0 | HL26: 0 | HM26: 0 | HN26: 0 | HO26: 0 | HP26: 0 | HQ26: 0 | HR26: 0 | HS26: 0 | HT26: 0 | HU26: 0 | HV26: 0 | HW26: 0 | HX26: 0 | HY26: 0 | HZ26: 0 | IA26: 1 | IB26: 6 | IC26: 0 | ID26: 0 | IE26: 0 | IF26: 0 | IG26: 0 | IH26: 0 | II26: 0 | IJ26: 0 | IK26: 0 | IL26: 5 | IM26: 1 | IN26: 4
A27: LUCIANO CASTILLO COLONNA | B27: AYABACA | C27: 200201 | D27: 1913 | E27: CHINCHIN | F27: I-1 | G27: AYABACA | H27: NINGUN CLAS | I27: AYABACA | J27: AYABACA | K27: SALUD LUCIANO CASTILLO COLONNA | L27: 4 | M27: 0 | N27: 0 | O27: 0 | P27: 0 | Q27: 0 | R27: 0 | S27: 0 | T27: 0 | U27: 0 | V27: 0 | W27: 0 | X27: 0 | Y27: 0 | Z27: 0 | AA27: 0 | AB27: 0 | AC27: 0 | AD27: 0 | AE27: 0 | AF27: 0 | AG27: 0 | AH27: 0 | AI27: 0 | AJ27: 0 | AK27: 0 | AL27: 0 | AM27: 0 | AN27: 0 | AO27: 0 | AP27: 0 | AQ27: 0 | AR27: 0 | AS27: 0 | AT27: 0 | AU27: 0 | AV27: 0 | AW27: 0 | AX27: 0 | AY27: 0 | AZ27: 0 | BA27: 0 | BB27: 0 | BC27: 0 | BD27: 0 | BE27: 0 | BF27: 0 | BG27: 0 | BH27: 0 | BI27: 0 | BJ27: 0 | BK27: 0 | BL27: 0 | BM27: 0 | BN27: 0 | BO27: 0 | BP27: 0 | BQ27: 0 | BR27: 0 | BS27: 0 | BT27: 0 | BU27: 0 | BV27: 0 | BW27: 0 | BX27: 0 | BY27: 0 | BZ27: 0 | CA27: 0 | CB27: 0 | CC27: 0 | CD27: 0 | CE27: 0 | CF27: 0 | CG27: 0 | CH27: 0 | CI27: 0 | CJ27: 0 | CK27: 0 | CL27: 0 | CM27: 0 | CN27: 0 | CO27: 0 | CP27: 0 | CQ27: 0 | CR27: 0 | CS27: 0 | CT27: 0 | CU27: 0 | CV27: 0 | CW27: 0 | CX27: 0 | CY27: 0 | CZ27: 0 | DA27: 0 | DB27: 0 | DC27: 0 | DD27: 0 | DE27: 0 | DF27: 0 | DG27: 0 | DH27: 0 | DI27: 0 | DJ27: 0 | DK27: 0 | DL27: 0 | DM27: 0 | DN27: 0 | DO27: 0 | DP27: 0 | DQ27: 0 | DR27: 0 | DS27: 0 | DT27: 0 | DU27: 0 | DV27: 0 | DW27: 0 | DX27: 0 | DY27: 0 | DZ27: 0 | EA27: 0 | EB27: 0 | EC27: 0 | ED27: 0 | EE27: 0 | EF27: 0 | EG27: 0 | EH27: 0 | EI27: 0 | EJ27: 0 | EK27: 0 | EL27: 0 | EM27: 0 | EN27: 0 | EO27: 0 | EP27: 0 | EQ27: 0 | ER27: 0 | ES27: 0 | ET27: 0 | EU27: 0 | EV27: 0 | EW27: 0 | EX27: 0 | EY27: 0 | EZ27: 0 | FA27: 0 | FB27: 0 | FC27: 0 | FD27: 0 | FE27: 0 | FF27: 0 | FG27: 0 | FH27: 0 | FI27: 0 | FJ27: 0 | FK27: 0 | FL27: 0 | FM27: 0 | FN27: 0 | FO27: 0 | FP27: 0 | FQ27: 0 | FR27: 0 | FS27: 0 | FT27: 0 | FU27: 0 | FV27: 0 | FW27: 0 | FX27: 0 | FY27: 0 | FZ27: 0 | GA27: 0 | GB27: 0 | GC27: 0 | GD27: 0 | GE27: 0 | GF27: 0 | GG27: 0 | GH27: 0 | GI27: 0 | GJ27: 0 | GK27: 0 | GL27: 0 | GM27: 0 | GN27: 0 | GO27: 0 | GP27: 0 | GQ27: 0 | GR27: 0 | GS27: 0 | GT27: 0 | GU27: 0 | GV27: 0 | GW27: 0 | GX27: 0 | GY27: 0 | GZ27: 0 | HA27: 0 | HB27: 0 | HC27: 0 | HD27: 0 | HE27: 0 | HF27: 0 | HG27: 0 | HH27: 0 | HI27: 0 | HJ27: 0 | HK27: 0 | HL27: 0 | HM27: 0 | HN27: 0 | HO27: 0 | HP27: 0 | HQ27: 0 | HR27: 0 | HS27: 0 | HT27: 0 | HU27: 0 | HV27: 0 | HW27: 0 | HX27: 0 | HY27: 0 | HZ27: 0 | IA27: 0 | IB27: 0 | IC27: 0 | ID27: 0 | IE27: 0 | IF27: 0 | IG27: 0 | IH27: 0 | II27: 0 | IJ27: 0 | IK27: 0 | IL27: 0 | IM27: 0 | IN27: 0
A28: LUCIANO CASTILLO COLONNA | B28: AYABACA | C28: 200201 | D28: 1913 | E28: CHINCHIN | F28: I-1 | G28: AYABACA | H28: NINGUN CLAS | I28: AYABACA | J28: AYABACA | K28: SALUD LUCIANO CASTILLO COLONNA | L28: 8 | M28: 0 | N28: 0 | O28: 0 | P28: 0 | Q28: 3 | R28: 0 | S28: 4 | T28: 3 | U28: 1 | V28: 0 | W28: 0 | X28: 0 | Y28: 0 | Z28: 0 | AA28: 0 | AB28: 0 | AC28: 0 | AD28: 0 | AE28: 0 | AF28: 0 | AG28: 0 | AH28: 0 | AI28: 0 | AJ28: 0 | AK28: 0 | AL28: 0 | AM28: 0 | AN28: 4 | AO28: 0 | AP28: 0 | AQ28: 0 | AR28: 4 | AS28: 0 | AT28: 0 | AU28: 0 | AV28: 0 | AW28: 3 | AX28: 2 | AY28: 4 | AZ28: 0 | BA28: 4 | BB28: 4 | BC28: 0 | BD28: 0 | BE28: 4 | BF28: 0 | BG28: 0 | BH28: 0 | BI28: 0 | BJ28: 0 | BK28: 0 | BL28: 0 | BM28: 0 | BN28: 0 | BO28: 0 | BP28: 0 | BQ28: 0 | BR28: 0 | BS28: 0 | BT28: 6 | BU28: 2 | BV28: 1 | BW28: 1 | BX28: 2 | BY28: 1 | BZ28: 0 | CA28: 0 | CB28: 0 | CC28: 0 | CD28: 0 | CE28: 0 | CF28: 0 | CG28: 0 | CH28: 0 | CI28: 0 | CJ28: 0 | CK28: 0 | CL28: 0 | CM28: 0 | CN28: 0 | CO28: 0 | CP28: 0 | CQ28: 0 | CR28: 0 | CS28: 0 | CT28: 0 | CU28: 0 | CV28: 0 | CW28: 0 | CX28: 0 | CY28: 0 | CZ28: 0 | DA28: 0 | DB28: 0 | DC28: 0 | DD28: 0 | DE28: 0 | DF28: 0 | DG28: 0 | DH28: 4 | DI28: 0 | DJ28: 4 | DK28: 0 | DL28: 4 | DM28: 4 | DN28: 0 | DO28: 0 | DP28: 0 | DQ28: 0 | DR28: 0 | DS28: 0 | DT28: 0 | DU28: 0 | DV28: 0 | DW28: 0 | DX28: 0 | DY28: 0 | DZ28: 0 | EA28: 0 | EB28: 0 | EC28: 4 | ED28: 0 | EE28: 0 | EF28: 0 | EG28: 0 | EH28: 0 | EI28: 0 | EJ28: 0 | EK28: 0 | EL28: 0 | EM28: 0 | EN28: 0 | EO28: 0 | EP28: 0 | EQ28: 0 | ER28: 0 | ES28: 0 | ET28: 0 | EU28: 0 | EV28: 0 | EW28: 0 | EX28: 0 | EY28: 0 | EZ28: 0 | FA28: 0 | FB28: 0 | FC28: 0 | FD28: 0 | FE28: 0 | FF28: 0 | FG28: 0 | FH28: 0 | FI28: 0 | FJ28: 0 | FK28: 0 | FL28: 0 | FM28: 0 | FN28: 0 | FO28: 0 | FP28: 0 | FQ28: 0 | FR28: 0 | FS28: 0 | FT28: 0 | FU28: 0 | FV28: 0 | FW28: 0 | FX28: 0 | FY28: 0 | FZ28: 0 | GA28: 0 | GB28: 0 | GC28: 0 | GD28: 0 | GE28: 0 | GF28: 0 | GG28: 0 | GH28: 0 | GI28: 0 | GJ28: 0 | GK28: 0 | GL28: 0 | GM28: 0 | GN28: 0 | GO28: 0 | GP28: 0 | GQ28: 0 | GR28: 0 | GS28: 0 | GT28: 0 | GU28: 0 | GV28: 0 | GW28: 0 | GX28: 0 | GY28: 0 | GZ28: 0 | HA28: 0 | HB28: 0 | HC28: 0 | HD28: 0 | HE28: 0 | HF28: 0 | HG28: 0 | HH28: 0 | HI28: 0 | HJ28: 0 | HK28: 0 | HL28: 0 | HM28: 0 | HN28: 0 | HO28: 0 | HP28: 0 | HQ28: 0 | HR28: 0 | HS28: 0 | HT28: 0 | HU28: 0 | HV28: 0 | HW28: 0 | HX28: 0 | HY28: 0 | HZ28: 0 | IA28: 0 | IB28: 0 | IC28: 0 | ID28: 0 | IE28: 0 | IF28: 0 | IG28: 0 | IH28: 0 | II28: 2 | IJ28: 0 | IK28: 0 | IL28: 0 | IM28: 0 | IN28: 0
A29: LUCIANO CASTILLO COLONNA | B29: AYABACA | C29: 200201 | D29: 1914 | E29: OLLEROS | F29: I-2 | G29: AYABACA | H29: NINGUN CLAS | I29: AYABACA | J29: AYABACA | K29: SALUD LUCIANO CASTILLO COLONNA | L29: 2 | M29: 0 | N29: 0 | O29: 0 | P29: 0 | Q29: 0 | R29: 0 | S29: 0 | T29: 0 | U29: 0 | V29: 0 | W29: 0 | X29: 0 | Y29: 0 | Z29: 0 | AA29: 1 | AB29: 1 | AC29: 0 | AD29: 0 | AE29: 0 | AF29: 0 | AG29: 0 | AH29: 0 | AI29: 0 | AJ29: 0 | AK29: 0 | AL29: 0 | AM29: 0 | AN29: 0 | AO29: 0 | AP29: 0 | AQ29: 0 | AR29: 0 | AS29: 0 | AT29: 0 | AU29: 0 | AV29: 0 | AW29: 0 | AX29: 0 | AY29: 0 | AZ29: 0 | BA29: 0 | BB29: 0 | BC29: 0 | BD29: 0 | BE29: 0 | BF29: 0 | BG29: 0 | BH29: 0 | BI29: 0 | BJ29: 0 | BK29: 0 | BL29: 0 | BM29: 0 | BN29: 0 | BO29: 0 | BP29: 0 | BQ29: 0 | BR29: 0 | BS29: 0 | BT29: 0 | BU29: 0 | BV29: 0 | BW29: 0 | BX29: 0 | BY29: 0 | BZ29: 0 | CA29: 0 | CB29: 0 | CC29: 0 | CD29: 0 | CE29: 0 | CF29: 0 | CG29: 0 | CH29: 0 | CI29: 0 | CJ29: 0 | CK29: 0 | CL29: 0 | CM29: 0 | CN29: 0 | CO29: 0 | CP29: 0 | CQ29: 0 | CR29: 0 | CS29: 0 | CT29: 0 | CU29: 0 | CV29: 0 | CW29: 1 | CX29: 0 | CY29: 0 | CZ29: 0 | DA29: 0 | DB29: 0 | DC29: 0 | DD29: 0 | DE29: 0 | DF29: 0 | DG29: 1 | DH29: 8 | DI29: 8 | DJ29: 0 | DK29: 0 | DL29: 0 | DM29: 0 | DN29: 0 | DO29: 0 | DP29: 0 | DQ29: 0 | DR29: 1 | DS29: 1 | DT29: 0 | DU29: 0 | DV29: 0 | DW29: 0 | DX29: 1 | DY29: 0 | DZ29: 0 | EA29: 0 | EB29: 0 | EC29: 0 | ED29: 0 | EE29: 0 | EF29: 0 | EG29: 0 | EH29: 1 | EI29: 0 | EJ29: 0 | EK29: 0 | EL29: 0 | EM29: 0 | EN29: 0 | EO29: 0 | EP29: 0 | EQ29: 0 | ER29: 0 | ES29: 0 | ET29: 0 | EU29: 0 | EV29: 0 | EW29: 0 | EX29: 0 | EY29: 0 | EZ29: 0 | FA29: 0 | FB29: 0 | FC29: 0 | FD29: 0 | FE29: 0 | FF29: 0 | FG29: 0 | FH29: 0 | FI29: 0 | FJ29: 0 | FK29: 0 | FL29: 0 | FM29: 0 | FN29: 0 | FO29: 0 | FP29: 0 | FQ29: 0 | FR29: 0 | FS29: 0 | FT29: 0 | FU29: 0 | FV29: 0 | FW29: 0 | FX29: 0 | FY29: 0 | FZ29: 0 | GA29: 0 | GB29: 0 | GC29: 0 | GD29: 0 | GE29: 0 | GF29: 0 | GG29: 0 | GH29: 0 | GI29: 0 | GJ29: 0 | GK29: 0 | GL29: 0 | GM29: 0 | GN29: 0 | GO29: 0 | GP29: 0 | GQ29: 0 | GR29: 0 | GS29: 0 | GT29: 0 | GU29: 0 | GV29: 0 | GW29: 0 | GX29: 0 | GY29: 0 | GZ29: 0 | HA29: 0 | HB29: 0 | HC29: 0 | HD29: 0 | HE29: 0 | HF29: 0 | HG29: 0 | HH29: 0 | HI29: 0 | HJ29: 0 | HK29: 0 | HL29: 0 | HM29: 0 | HN29: 0 | HO29: 0 | HP29: 0 | HQ29: 0 | HR29: 0 | HS29: 0 | HT29: 0 | HU29: 0 | HV29: 0 | HW29: 0 | HX29: 0 | HY29: 0 | HZ29: 0 | IA29: 2 | IB29: 0 | IC29: 0 | ID29: 0 | IE29: 0 | IF29: 0 | IG29: 0 | IH29: 0 | II29: 0 | IJ29: 0 | IK29: 0 | IL29: 5 | IM29: 1 | IN29: 4
A30: LUCIANO CASTILLO COLONNA | B30: AYABACA | C30: 200201 | D30: 1914 | E30: OLLEROS | F30: I-2 | G30: AYABACA | H30: NINGUN CLAS | I30: AYABACA | J30: AYABACA | K30: SALUD LUCIANO CASTILLO COLONNA | L30: 3 | M30: 0 | N30: 1 | O30: 0 | P30: 0 | Q30: 9 | R30: 0 | S30: 9 | T30: 9 | U30: 0 | V30: 0 | W30: 0 | X30: 0 | Y30: 0 | Z30: 0 | AA30: 0 | AB30: 0 | AC30: 1 | AD30: 0 | AE30: 0 | AF30: 0 | AG30: 0 | AH30: 0 | AI30: 0 | AJ30: 0 | AK30: 0 | AL30: 0 | AM30: 0 | AN30: 9 | AO30: 0 | AP30: 0 | AQ30: 0 | AR30: 9 | AS30: 5 | AT30: 0 | AU30: 0 | AV30: 0 | AW30: 9 | AX30: 0 | AY30: 0 | AZ30: 0 | BA30: 0 | BB30: 0 | BC30: 0 | BD30: 0 | BE30: 0 | BF30: 0 | BG30: 0 | BH30: 0 | BI30: 0 | BJ30: 0 | BK30: 0 | BL30: 0 | BM30: 0 | BN30: 0 | BO30: 0 | BP30: 0 | BQ30: 0 | BR30: 0 | BS30: 0 | BT30: 0 | BU30: 0 | BV30: 0 | BW30: 0 | BX30: 0 | BY30: 0 | BZ30: 0 | CA30: 7 | CB30: 0 | CC30: 0 | CD30: 0 | CE30: 0 | CF30: 0 | CG30: 0 | CH30: 0 | CI30: 0 | CJ30: 0 | CK30: 0 | CL30: 0 | CM30: 0 | CN30: 0 | CO30: 0 | CP30: 0 | CQ30: 0 | CR30: 0 | CS30: 0 | CT30: 0 | CU30: 0 | CV30: 0 | CW30: 0 | CX30: 0 | CY30: 0 | CZ30: 0 | DA30: 0 | DB30: 0 | DC30: 0 | DD30: 0 | DE30: 0 | DF30: 0 | DG30: 10 | DH30: 12 | DI30: 12 | DJ30: 0 | DK30: 0 | DL30: 0 | DM30: 9 | DN30: 0 | DO30: 0 | DP30: 0 | DQ30: 9 | DR30: 1 | DS30: 1 | DT30: 0 | DU30: 0 | DV30: 0 | DW30: 0 | DX30: 0 | DY30: 0 | DZ30: 0 | EA30: 0 | EB30: 0 | EC30: 0 | ED30: 0 | EE30: 0 | EF30: 0 | EG30: 0 | EH30: 0 | EI30: 0 | EJ30: 0 | EK30: 0 | EL30: 0 | EM30: 0 | EN30: 0 | EO30: 0 | EP30: 0 | EQ30: 0 | ER30: 0 | ES30: 0 | ET30: 0 | EU30: 0 | EV30: 0 | EW30: 0 | EX30: 0 | EY30: 0 | EZ30: 0 | FA30: 0 | FB30: 0 | FC30: 0 | FD30: 0 | FE30: 0 | FF30: 0 | FG30: 0 | FH30: 0 | FI30: 0 | FJ30: 0 | FK30: 0 | FL30: 0 | FM30: 0 | FN30: 0 | FO30: 0 | FP30: 0 | FQ30: 0 | FR30: 0 | FS30: 0 | FT30: 0 | FU30: 0 | FV30: 0 | FW30: 0 | FX30: 0 | FY30: 0 | FZ30: 0 | GA30: 0 | GB30: 0 | GC30: 0 | GD30: 0 | GE30: 0 | GF30: 0 | GG30: 0 | GH30: 0 | GI30: 0 | GJ30: 0 | GK30: 0 | GL30: 0 | GM30: 0 | GN30: 0 | GO30: 0 | GP30: 0 | GQ30: 0 | GR30: 0 | GS30: 0 | GT30: 0 | GU30: 0 | GV30: 0 | GW30: 0 | GX30: 0 | GY30: 0 | GZ30: 0 | HA30: 0 | HB30: 0 | HC30: 0 | HD30: 0 | HE30: 0 | HF30: 0 | HG30: 0 | HH30: 0 | HI30: 0 | HJ30: 0 | HK30: 0 | HL30: 0 | HM30: 0 | HN30: 0 | HO30: 0 | HP30: 0 | HQ30: 0 | HR30: 0 | HS30: 2 | HT30: 0 | HU30: 0 | HV30: 0 | HW30: 3 | HX30: 0 | HY30: 0 | HZ30: 0 | IA30: 1 | IB30: 0 | IC30: 0 | ID30: 0 | IE30: 1 | IF30: 0 | IG30: 0 | IH30: 0 | II30: 0 | IJ30: 0 | IK30: 0 | IL30: 12 | IM30: 2 | IN30: 10
A31: LUCIANO CASTILLO COLONNA | B31: AYABACA | C31: 200201 | D31: 1914 | E31: OLLEROS | F31: I-2 | G31: AYABACA | H31: NINGUN CLAS | I31: AYABACA | J31: AYABACA | K31: SALUD LUCIANO CASTILLO COLONNA | L31: 5 | M31: 0 | N31: 0 | O31: 0 | P31: 0 | Q31: 15 | R31: 5 | S31: 22 | T31: 5 | U31: 4 | V31: 5 | W31: 0 | X31: 0 | Y31: 0 | Z31: 0 | AA31: 0 | AB31: 0 | AC31: 0 | AD31: 0 | AE31: 0 | AF31: 0 | AG31: 0 | AH31: 0 | AI31: 0 | AJ31: 0 | AK31: 0 | AL31: 0 | AM31: 0 | AN31: 22 | AO31: 0 | AP31: 0 | AQ31: 0 | AR31: 22 | AS31: 16 | AT31: 0 | AU31: 0 | AV31: 0 | AW31: 12 | AX31: 4 | AY31: 5 | AZ31: 0 | BA31: 5 | BB31: 5 | BC31: 5 | BD31: 0 | BE31: 0 | BF31: 0 | BG31: 0 | BH31: 0 | BI31: 0 | BJ31: 0 | BK31: 0 | BL31: 0 | BM31: 0 | BN31: 0 | BO31: 0 | BP31: 0 | BQ31: 0 | BR31: 0 | BS31: 0 | BT31: 0 | BU31: 0 | BV31: 0 | BW31: 0 | BX31: 0 | BY31: 0 | BZ31: 0 | CA31: 11 | CB31: 0 | CC31: 0 | CD31: 0 | CE31: 0 | CF31: 0 | CG31: 0 | CH31: 0 | CI31: 0 | CJ31: 0 | CK31: 0 | CL31: 0 | CM31: 0 | CN31: 0 | CO31: 0 | CP31: 0 | CQ31: 0 | CR31: 0 | CS31: 0 | CT31: 0 | CU31: 0 | CV31: 0 | CW31: 0 | CX31: 0 | CY31: 0 | CZ31: 0 | DA31: 0 | DB31: 0 | DC31: 0 | DD31: 0 | DE31: 0 | DF31: 0 | DG31: 16 | DH31: 17 | DI31: 17 | DJ31: 6 | DK31: 0 | DL31: 6 | DM31: 22 | DN31: 1 | DO31: 1 | DP31: 0 | DQ31: 13 | DR31: 0 | DS31: 0 | DT31: 1 | DU31: 3 | DV31: 0 | DW31: 0 | DX31: 4 | DY31: 5 | DZ31: 0 | EA31: 0 | EB31: 0 | EC31: 2 | ED31: 0 | EE31: 0 | EF31: 0 | EG31: 0 | EH31: 0 | EI31: 0 | EJ31: 0 | EK31: 0 | EL31: 0 | EM31: 0 | EN31: 0 | EO31: 0 | EP31: 0 | EQ31: 0 | ER31: 0 | ES31: 0 | ET31: 0 | EU31: 0 | EV31: 0 | EW31: 0 | EX31: 0 | EY31: 0 | EZ31: 0 | FA31: 0 | FB31: 0 | FC31: 0 | FD31: 0 | FE31: 0 | FF31: 0 | FG31: 0 | FH31: 0 | FI31: 0 | FJ31: 0 | FK31: 0 | FL31: 0 | FM31: 0 | FN31: 0 | FO31: 0 | FP31: 0 | FQ31: 0 | FR31: 0 | FS31: 0 | FT31: 0 | FU31: 0 | FV31: 0 | FW31: 0 | FX31: 0 | FY31: 0 | FZ31: 0 | GA31: 0 | GB31: 0 | GC31: 0 | GD31: 0 | GE31: 0 | GF31: 0 | GG31: 0 | GH31: 0 | GI31: 0 | GJ31: 0 | GK31: 0 | GL31: 0 | GM31: 0 | GN31: 0 | GO31: 0 | GP31: 0 | GQ31: 0 | GR31: 0 | GS31: 0 | GT31: 0 | GU31: 0 | GV31: 0 | GW31: 0 | GX31: 0 | GY31: 0 | GZ31: 0 | HA31: 0 | HB31: 0 | HC31: 0 | HD31: 0 | HE31: 0 | HF31: 0 | HG31: 0 | HH31: 0 | HI31: 0 | HJ31: 0 | HK31: 0 | HL31: 0 | HM31: 0 | HN31: 0 | HO31: 0 | HP31: 0 | HQ31: 0 | HR31: 0 | HS31: 0 | HT31: 0 | HU31: 0 | HV31: 0 | HW31: 0 | HX31: 0 | HY31: 0 | HZ31: 0 | IA31: 0 | IB31: 0 | IC31: 0 | ID31: 0 | IE31: 0 | IF31: 0 | IG31: 0 | IH31: 0 | II31: 1 | IJ31: 3 | IK31: 0 | IL31: 1 | IM31: 1 | IN31: 0
A32: II-1 | B32: TALARA | C32: 200701 | D32: 12243 | E32: HOSPITAL II TALARA | F32: S/C | G32: PARIÑAS | H32: NINGUN CLAS | I32: NO PERTENECE A NINGUNA RED | J32: NO PERTENECE A NINGUNA MICRORED | K32: ESSALUD | L32: 7 | M32: 0 | N32: 0 | O32: 0 | P32: 0 | Q32: 0 | R32: 0 | S32: 0 | T32: 0 | U32: 0 | V32: 0 | W32: 0 | X32: 0 | Y32: 0 | Z32: 0 | AA32: 0 | AB32: 0 | AC32: 0 | AD32: 0 | AE32: 0 | AF32: 0 | AG32: 0 | AH32: 0 | AI32: 0 | AJ32: 0 | AK32: 0 | AL32: 0 | AM32: 0 | AN32: 0 | AO32: 0 | AP32: 0 | AQ32: 0 | AR32: 0 | AS32: 0 | AT32: 0 | AU32: 0 | AV32: 0 | AW32: 0 | AX32: 0 | AY32: 0 | AZ32: 0 | BA32: 0 | BB32: 0 | BC32: 0 | BD32: 0 | BE32: 0 | BF32: 0 | BG32: 0 | BH32: 0 | BI32: 0 | BJ32: 0 | BK32: 0 | BL32: 0 | BM32: 0 | BN32: 0 | BO32: 0 | BP32: 0 | BQ32: 0 | BR32: 0 | BS32: 1 | BT32: 0 | BU32: 0 | BV32: 0 | BW32: 0 | BX32: 0 | BY32: 0 | BZ32: 0 | CA32: 0 | CB32: 0 | CC32: 0 | CD32: 0 | CE32: 0 | CF32: 0 | CG32: 0 | CH32: 0 | CI32: 0 | CJ32: 0 | CK32: 0 | CL32: 0 | CM32: 0 | CN32: 0 | CO32: 0 | CP32: 0 | CQ32: 0 | CR32: 0 | CS32: 0 | CT32: 0 | CU32: 0 | CV32: 0 | CW32: 0 | CX32: 0 | CY32: 0 | CZ32: 0 | DA32: 0 | DB32: 0 | DC32: 0 | DD32: 0 | DE32: 0 | DF32: 0 | DG32: 0 | DH32: 0 | DI32: 0 | DJ32: 0 | DK32: 0 | DL32: 0 | DM32: 0 | DN32: 0 | DO32: 0 | DP32: 0 | DQ32: 0 | DR32: 0 | DS32: 0 | DT32: 0 | DU32: 0 | DV32: 0 | DW32: 0 | DX32: 0 | DY32: 0 | DZ32: 0 | EA32: 0 | EB32: 0 | EC32: 0 | ED32: 0 | EE32: 0 | EF32: 0 | EG32: 0 | EH32: 0 | EI32: 0 | EJ32: 0 | EK32: 0 | EL32: 0 | EM32: 0 | EN32: 0 | EO32: 0 | EP32: 0 | EQ32: 0 | ER32: 0 | ES32: 0 | ET32: 0 | EU32: 0 | EV32: 0 | EW32: 0 | EX32: 0 | EY32: 0 | EZ32: 0 | FA32: 0 | FB32: 0 | FC32: 0 | FD32: 0 | FE32: 0 | FF32: 0 | FG32: 0 | FH32: 0 | FI32: 0 | FJ32: 0 | FK32: 0 | FL32: 0 | FM32: 0 | FN32: 0 | FO32: 0 | FP32: 0 | FQ32: 0 | FR32: 0 | FS32: 0 | FT32: 0 | FU32: 0 | FV32: 0 | FW32: 0 | FX32: 0 | FY32: 0 | FZ32: 0 | GA32: 0 | GB32: 0 | GC32: 0 | GD32: 0 | GE32: 0 | GF32: 0 | GG32: 0 | GH32: 0 | GI32: 0 | GJ32: 0 | GK32: 0 | GL32: 0 | GM32: 0 | GN32: 0 | GO32: 0 | GP32: 0 | GQ32: 0 | GR32: 0 | GS32: 0 | GT32: 0 | GU32: 0 | GV32: 0 | GW32: 0 | GX32: 0 | GY32: 0 | GZ32: 0 | HA32: 0 | HB32: 0 | HC32: 0 | HD32: 0 | HE32: 0 | HF32: 0 | HG32: 0 | HH32: 0 | HI32: 0 | HJ32: 0 | HK32: 0 | HL32: 0 | HM32: 0 | HN32: 0 | HO32: 0 | HP32: 0 | HQ32: 0 | HR32: 0 | HS32: 0 | HT32: 0 | HU32: 0 | HV32: 0 | HW32: 0 | HX32: 0 | HY32: 0 | HZ32: 0 | IA32: 0 | IB32: 0 | IC32: 0 | ID32: 0 | IE32: 0 | IF32: 0 | IG32: 0 | IH32: 0 | II32: 0 | IJ32: 0 | IK32: 0 | IL32: 0 | IM32: 0 | IN32: 0
A33: III-1 | B33: PIURA | C33: 200104 | D33: 15230 | E33: HOSPITAL III JOSE CAYETANO HEREDIA | F33: S/C | G33: CASTILLA | H33: NINGUN CLAS | I33: NO PERTENECE A NINGUNA RED | J33: NO PERTENECE A NINGUNA MICRORED | K33: ESSALUD | L33: 4 | M33: 0 | N33: 0 | O33: 0 | P33: 0 | Q33: 0 | R33: 0 | S33: 0 | T33: 0 | U33: 0 | V33: 0 | W33: 0 | X33: 0 | Y33: 0 | Z33: 0 | AA33: 0 | AB33: 0 | AC33: 0 | AD33: 0 | AE33: 0 | AF33: 0 | AG33: 0 | AH33: 0 | AI33: 0 | AJ33: 0 | AK33: 0 | AL33: 0 | AM33: 0 | AN33: 0 | AO33: 0 | AP33: 0 | AQ33: 0 | AR33: 0 | AS33: 0 | AT33: 0 | AU33: 0 | AV33: 0 | AW33: 0 | AX33: 0 | AY33: 0 | AZ33: 0 | BA33: 0 | BB33: 0 | BC33: 0 | BD33: 0 | BE33: 0 | BF33: 0 | BG33: 0 | BH33: 0 | BI33: 0 | BJ33: 0 | BK33: 0 | BL33: 0 | BM33: 0 | BN33: 0 | BO33: 0 | BP33: 0 | BQ33: 0 | BR33: 0 | BS33: 0 | BT33: 0 | BU33: 0 | BV33: 0 | BW33: 0 | BX33: 0 | BY33: 0 | BZ33: 0 | CA33: 0 | CB33: 0 | CC33: 0 | CD33: 0 | CE33: 0 | CF33: 0 | CG33: 0 | CH33: 0 | CI33: 0 | CJ33: 0 | CK33: 0 | CL33: 0 | CM33: 0 | CN33: 0 | CO33: 0 | CP33: 0 | CQ33: 0 | CR33: 0 | CS33: 0 | CT33: 0 | CU33: 0 | CV33: 0 | CW33: 0 | CX33: 0 | CY33: 0 | CZ33: 0 | DA33: 0 | DB33: 0 | DC33: 0 | DD33: 0 | DE33: 0 | DF33: 0 | DG33: 0 | DH33: 0 | DI33: 0 | DJ33: 0 | DK33: 0 | DL33: 0 | DM33: 0 | DN33: 0 | DO33: 0 | DP33: 0 | DQ33: 0 | DR33: 0 | DS33: 0 | DT33: 0 | DU33: 0 | DV33: 0 | DW33: 0 | DX33: 0 | DY33: 0 | DZ33: 0 | EA33: 0 | EB33: 0 | EC33: 0 | ED33: 0 | EE33: 0 | EF33: 0 | EG33: 0 | EH33: 0 | EI33: 0 | EJ33: 0 | EK33: 0 | EL33: 0 | EM33: 0 | EN33: 0 | EO33: 0 | EP33: 0 | EQ33: 0 | ER33: 0 | ES33: 0 | ET33: 0 | EU33: 0 | EV33: 0 | EW33: 0 | EX33: 0 | EY33: 0 | EZ33: 0 | FA33: 0 | FB33: 0 | FC33: 0 | FD33: 0 | FE33: 0 | FF33: 0 | FG33: 0 | FH33: 0 | FI33: 0 | FJ33: 0 | FK33: 0 | FL33: 0 | FM33: 0 | FN33: 0 | FO33: 0 | FP33: 0 | FQ33: 0 | FR33: 0 | FS33: 0 | FT33: 0 | FU33: 0 | FV33: 0 | FW33: 0 | FX33: 0 | FY33: 0 | FZ33: 0 | GA33: 0 | GB33: 0 | GC33: 0 | GD33: 0 | GE33: 0 | GF33: 0 | GG33: 0 | GH33: 0 | GI33: 0 | GJ33: 0 | GK33: 0 | GL33: 0 | GM33: 0 | GN33: 0 | GO33: 0 | GP33: 0 | GQ33: 0 | GR33: 0 | GS33: 0 | GT33: 0 | GU33: 0 | GV33: 0 | GW33: 0 | GX33: 0 | GY33: 0 | GZ33: 0 | HA33: 0 | HB33: 0 | HC33: 0 | HD33: 0 | HE33: 0 | HF33: 0 | HG33: 0 | HH33: 0 | HI33: 0 | HJ33: 0 | HK33: 0 | HL33: 0 | HM33: 0 | HN33: 0 | HO33: 0 | HP33: 0 | HQ33: 0 | HR33: 0 | HS33: 0 | HT33: 0 | HU33: 0 | HV33: 0 | HW33: 0 | HX33: 0 | HY33: 0 | HZ33: 0 | IA33: 0 | IB33: 0 | IC33: 0 | ID33: 0 | IE33: 0 | IF33: 0 | IG33: 0 | IH33: 0 | II33: 0 | IJ33: 0 | IK33: 0 | IL33: 0 | IM33: 0 | IN33: 0
A34: LUCIANO CASTILLO COLONNA | B34: AYABACA | C34: 200201 | D34: 1912 | E34: TAPAL | F34: I-2 | G34: AYABACA | H34: NINGUN CLAS | I34: AYABACA | J34: AYABACA | K34: SALUD LUCIANO CASTILLO COLONNA | L34: 1 | M34: 0 | N34: 0 | O34: 0 | P34: 0 | Q34: 0 | R34: 0 | S34: 11 | T34: 6 | U34: 2 | V34: 3 | W34: 0 | X34: 0 | Y34: 0 | Z34: 0 | AA34: 0 | AB34: 0 | AC34: 0 | AD34: 0 | AE34: 0 | AF34: 0 | AG34: 0 | AH34: 0 | AI34: 0 | AJ34: 0 | AK34: 0 | AL34: 0 | AM34: 0 | AN34: 11 | AO34: 0 | AP34: 0 | AQ34: 0 | AR34: 11 | AS34: 0 | AT34: 0 | AU34: 0 | AV34: 0 | AW34: 0 | AX34: 0 | AY34: 4 | AZ34: 0 | BA34: 4 | BB34: 4 | BC34: 0 | BD34: 0 | BE34: 4 | BF34: 0 | BG34: 0 | BH34: 0 | BI34: 0 | BJ34: 0 | BK34: 0 | BL34: 0 | BM34: 0 | BN34: 0 | BO34: 0 | BP34: 0 | BQ34: 0 | BR34: 0 | BS34: 0 | BT34: 0 | BU34: 0 | BV34: 0 | BW34: 0 | BX34: 0 | BY34: 0 | BZ34: 0 | CA34: 0 | CB34: 1 | CC34: 0 | CD34: 0 | CE34: 0 | CF34: 0 | CG34: 0 | CH34: 0 | CI34: 0 | CJ34: 0 | CK34: 0 | CL34: 0 | CM34: 0 | CN34: 0 | CO34: 0 | CP34: 0 | CQ34: 0 | CR34: 0 | CS34: 0 | CT34: 0 | CU34: 0 | CV34: 0 | CW34: 0 | CX34: 0 | CY34: 0 | CZ34: 0 | DA34: 0 | DB34: 0 | DC34: 0 | DD34: 0 | DE34: 0 | DF34: 0 | DG34: 11 | DH34: 11 | DI34: 11 | DJ34: 9 | DK34: 0 | DL34: 9 | DM34: 10 | DN34: 0 | DO34: 0 | DP34: 0 | DQ34: 8 | DR34: 10 | DS34: 0 | DT34: 0 | DU34: 0 | DV34: 0 | DW34: 0 | DX34: 0 | DY34: 0 | DZ34: 0 | EA34: 0 | EB34: 0 | EC34: 1 | ED34: 0 | EE34: 0 | EF34: 0 | EG34: 0 | EH34: 0 | EI34: 0 | EJ34: 0 | EK34: 0 | EL34: 0 | EM34: 0 | EN34: 0 | EO34: 0 | EP34: 0 | EQ34: 0 | ER34: 0 | ES34: 0 | ET34: 0 | EU34: 0 | EV34: 0 | EW34: 0 | EX34: 0 | EY34: 0 | EZ34: 0 | FA34: 0 | FB34: 0 | FC34: 0 | FD34: 0 | FE34: 0 | FF34: 0 | FG34: 0 | FH34: 0 | FI34: 0 | FJ34: 0 | FK34: 0 | FL34: 0 | FM34: 0 | FN34: 0 | FO34: 0 | FP34: 0 | FQ34: 0 | FR34: 0 | FS34: 0 | FT34: 0 | FU34: 0 | FV34: 0 | FW34: 0 | FX34: 0 | FY34: 0 | FZ34: 0 | GA34: 0 | GB34: 0 | GC34: 0 | GD34: 0 | GE34: 0 | GF34: 0 | GG34: 0 | GH34: 0 | GI34: 0 | GJ34: 0 | GK34: 0 | GL34: 0 | GM34: 0 | GN34: 0 | GO34: 0 | GP34: 0 | GQ34: 0 | GR34: 0 | GS34: 0 | GT34: 0 | GU34: 0 | GV34: 0 | GW34: 0 | GX34: 0 | GY34: 0 | GZ34: 0 | HA34: 0 | HB34: 0 | HC34: 0 | HD34: 0 | HE34: 0 | HF34: 0 | HG34: 0 | HH34: 0 | HI34: 0 | HJ34: 0 | HK34: 0 | HL34: 0 | HM34: 0 | HN34: 0 | HO34: 0 | HP34: 0 | HQ34: 0 | HR34: 0 | HS34: 0 | HT34: 0 | HU34: 0 | HV34: 0 | HW34: 0 | HX34: 0 | HY34: 0 | HZ34: 0 | IA34: 0 | IB34: 0 | IC34: 0 | ID34: 0 | IE34: 0 | IF34: 0 | IG34: 0 | IH34: 0 | II34: 0 | IJ34: 0 | IK34: 0 | IL34: 12 | IM34: 3 | IN34: 9
A35: LUCIANO CASTILLO COLONNA | B35: AYABACA | C35: 200201 | D35: 1912 | E35: TAPAL | F35: I-2 | G35: AYABACA | H35: NINGUN CLAS | I35: AYABACA | J35: AYABACA | K35: SALUD LUCIANO CASTILLO COLONNA | L35: 8 | M35: 0 | N35: 0 | O35: 0 | P35: 0 | Q35: 0 | R35: 0 | S35: 5 | T35: 3 | U35: 2 | V35: 0 | W35: 0 | X35: 0 | Y35: 0 | Z35: 0 | AA35: 0 | AB35: 0 | AC35: 0 | AD35: 0 | AE35: 0 | AF35: 0 | AG35: 0 | AH35: 0 | AI35: 0 | AJ35: 0 | AK35: 0 | AL35: 0 | AM35: 0 | AN35: 5 | AO35: 0 | AP35: 0 | AQ35: 0 | AR35: 5 | AS35: 0 | AT35: 0 | AU35: 0 | AV35: 0 | AW35: 0 | AX35: 0 | AY35: 0 | AZ35: 0 | BA35: 0 | BB35: 0 | BC35: 0 | BD35: 0 | BE35: 0 | BF35: 0 | BG35: 0 | BH35: 0 | BI35: 0 | BJ35: 0 | BK35: 0 | BL35: 0 | BM35: 0 | BN35: 0 | BO35: 0 | BP35: 0 | BQ35: 0 | BR35: 0 | BS35: 0 | BT35: 0 | BU35: 3 | BV35: 0 | BW35: 0 | BX35: 1 | BY35: 0 | BZ35: 0 | CA35: 0 | CB35: 0 | CC35: 0 | CD35: 0 | CE35: 0 | CF35: 0 | CG35: 0 | CH35: 0 | CI35: 0 | CJ35: 0 | CK35: 0 | CL35: 0 | CM35: 0 | CN35: 0 | CO35: 0 | CP35: 0 | CQ35: 0 | CR35: 0 | CS35: 0 | CT35: 0 | CU35: 0 | CV35: 0 | CW35: 0 | CX35: 0 | CY35: 0 | CZ35: 0 | DA35: 0 | DB35: 0 | DC35: 1 | DD35: 0 | DE35: 0 | DF35: 1 | DG35: 5 | DH35: 5 | DI35: 5 | DJ35: 2 | DK35: 0 | DL35: 2 | DM35: 5 | DN35: 0 | DO35: 0 | DP35: 0 | DQ35: 6 | DR35: 5 | DS35: 0 | DT35: 0 | DU35: 0 | DV35: 0 | DW35: 0 | DX35: 0 | DY35: 0 | DZ35: 0 | EA35: 0 | EB35: 0 | EC35: 2 | ED35: 0 | EE35: 0 | EF35: 0 | EG35: 0 | EH35: 0 | EI35: 0 | EJ35: 0 | EK35: 0 | EL35: 0 | EM35: 0 | EN35: 0 | EO35: 0 | EP35: 0 | EQ35: 0 | ER35: 0 | ES35: 0 | ET35: 0 | EU35: 0 | EV35: 0 | EW35: 0 | EX35: 0 | EY35: 0 | EZ35: 0 | FA35: 0 | FB35: 0 | FC35: 0 | FD35: 0 | FE35: 0 | FF35: 0 | FG35: 0 | FH35: 0 | FI35: 0 | FJ35: 0 | FK35: 0 | FL35: 0 | FM35: 0 | FN35: 0 | FO35: 0 | FP35: 0 | FQ35: 0 | FR35: 0 | FS35: 0 | FT35: 0 | FU35: 0 | FV35: 0 | FW35: 0 | FX35: 0 | FY35: 0 | FZ35: 0 | GA35: 0 | GB35: 0 | GC35: 0 | GD35: 0 | GE35: 0 | GF35: 0 | GG35: 0 | GH35: 0 | GI35: 0 | GJ35: 0 | GK35: 0 | GL35: 0 | GM35: 0 | GN35: 0 | GO35: 0 | GP35: 0 | GQ35: 0 | GR35: 0 | GS35: 0 | GT35: 0 | GU35: 0 | GV35: 0 | GW35: 0 | GX35: 0 | GY35: 0 | GZ35: 0 | HA35: 0 | HB35: 0 | HC35: 0 | HD35: 0 | HE35: 0 | HF35: 0 | HG35: 0 | HH35: 0 | HI35: 0 | HJ35: 0 | HK35: 0 | HL35: 0 | HM35: 0 | HN35: 0 | HO35: 0 | HP35: 0 | HQ35: 0 | HR35: 0 | HS35: 0 | HT35: 0 | HU35: 0 | HV35: 0 | HW35: 0 | HX35: 0 | HY35: 0 | HZ35: 0 | IA35: 0 | IB35: 0 | IC35: 0 | ID35: 0 | IE35: 0 | IF35: 0 | IG35: 0 | IH35: 0 | II35: 0 | IJ35: 0 | IK35: 0 | IL35: 0 | IM35: 0 | IN35: 0
A36: LUCIANO CASTILLO COLONNA | B36: AYABACA | C36: 200201 | D36: 1913 | E36: CHINCHIN | F36: I-1 | G36: AYABACA | H36: NINGUN CLAS | I36: AYABACA | J36: AYABACA | K36: SALUD LUCIANO CASTILLO COLONNA | L36: 7 | M36: 0 | N36: 0 | O36: 0 | P36: 0 | Q36: 2 | R36: 1 | S36: 2 | T36: 1 | U36: 0 | V36: 1 | W36: 0 | X36: 0 | Y36: 0 | Z36: 0 | AA36: 0 | AB36: 0 | AC36: 0 | AD36: 0 | AE36: 0 | AF36: 0 | AG36: 0 | AH36: 0 | AI36: 0 | AJ36: 0 | AK36: 0 | AL36: 0 | AM36: 0 | AN36: 2 | AO36: 0 | AP36: 0 | AQ36: 0 | AR36: 2 | AS36: 0 | AT36: 0 | AU36: 0 | AV36: 0 | AW36: 1 | AX36: 0 | AY36: 1 | AZ36: 0 | BA36: 1 | BB36: 1 | BC36: 0 | BD36: 0 | BE36: 1 | BF36: 0 | BG36: 0 | BH36: 0 | BI36: 0 | BJ36: 0 | BK36: 0 | BL36: 0 | BM36: 0 | BN36: 0 | BO36: 0 | BP36: 0 | BQ36: 0 | BR36: 0 | BS36: 0 | BT36: 1 | BU36: 0 | BV36: 1 | BW36: 0 | BX36: 0 | BY36: 0 | BZ36: 0 | CA36: 0 | CB36: 0 | CC36: 0 | CD36: 0 | CE36: 0 | CF36: 0 | CG36: 0 | CH36: 0 | CI36: 0 | CJ36: 0 | CK36: 0 | CL36: 0 | CM36: 0 | CN36: 0 | CO36: 0 | CP36: 0 | CQ36: 0 | CR36: 0 | CS36: 0 | CT36: 0 | CU36: 0 | CV36: 0 | CW36: 0 | CX36: 0 | CY36: 0 | CZ36: 0 | DA36: 0 | DB36: 0 | DC36: 0 | DD36: 0 | DE36: 0 | DF36: 0 | DG36: 0 | DH36: 1 | DI36: 0 | DJ36: 1 | DK36: 0 | DL36: 1 | DM36: 2 | DN36: 0 | DO36: 0 | DP36: 0 | DQ36: 0 | DR36: 0 | DS36: 0 | DT36: 0 | DU36: 0 | DV36: 0 | DW36: 0 | DX36: 0 | DY36: 0 | DZ36: 0 | EA36: 0 | EB36: 0 | EC36: 1 | ED36: 0 | EE36: 0 | EF36: 0 | EG36: 0 | EH36: 0 | EI36: 0 | EJ36: 0 | EK36: 0 | EL36: 0 | EM36: 0 | EN36: 0 | EO36: 0 | EP36: 0 | EQ36: 0 | ER36: 0 | ES36: 0 | ET36: 0 | EU36: 0 | EV36: 0 | EW36: 0 | EX36: 0 | EY36: 0 | EZ36: 0 | FA36: 0 | FB36: 0 | FC36: 0 | FD36: 0 | FE36: 0 | FF36: 0 | FG36: 0 | FH36: 0 | FI36: 0 | FJ36: 0 | FK36: 0 | FL36: 0 | FM36: 0 | FN36: 0 | FO36: 0 | FP36: 0 | FQ36: 0 | FR36: 0 | FS36: 0 | FT36: 0 | FU36: 0 | FV36: 0 | FW36: 0 | FX36: 0 | FY36: 0 | FZ36: 0 | GA36: 0 | GB36: 0 | GC36: 0 | GD36: 0 | GE36: 0 | GF36: 0 | GG36: 0 | GH36: 0 | GI36: 0 | GJ36: 0 | GK36: 0 | GL36: 0 | GM36: 0 | GN36: 0 | GO36: 0 | GP36: 0 | GQ36: 0 | GR36: 0 | GS36: 0 | GT36: 0 | GU36: 0 | GV36: 0 | GW36: 0 | GX36: 0 | GY36: 0 | GZ36: 0 | HA36: 0 | HB36: 0 | HC36: 0 | HD36: 0 | HE36: 0 | HF36: 0 | HG36: 0 | HH36: 0 | HI36: 0 | HJ36: 0 | HK36: 0 | HL36: 0 | HM36: 0 | HN36: 0 | HO36: 0 | HP36: 0 | HQ36: 0 | HR36: 0 | HS36: 0 | HT36: 0 | HU36: 0 | HV36: 0 | HW36: 0 | HX36: 0 | HY36: 0 | HZ36: 0 | IA36: 0 | IB36: 0 | IC36: 0 | ID36: 0 | IE36: 0 | IF36: 0 | IG36: 0 | IH36: 0 | II36: 0 | IJ36: 0 | IK36: 0 | IL36: 0 | IM36: 0 | IN36: 0
A37: LUCIANO CASTILLO COLONNA | B37: AYABACA | C37: 200201 | D37: 1914 | E37: OLLEROS | F37: I-2 | G37: AYABACA | H37: NINGUN CLAS | I37: AYABACA | J37: AYABACA | K37: SALUD LUCIANO CASTILLO COLONNA | L37: 1 | M37: 0 | N37: 1 | O37: 0 | P37: 0 | Q37: 0 | R37: 0 | S37: 0 | T37: 0 | U37: 0 | V37: 0 | W37: 0 | X37: 0 | Y37: 0 | Z37: 0 | AA37: 1 | AB37: 0 | AC37: 0 | AD37: 0 | AE37: 0 | AF37: 0 | AG37: 0 | AH37: 0 | AI37: 0 | AJ37: 0 | AK37: 0 | AL37: 0 | AM37: 0 | AN37: 0 | AO37: 0 | AP37: 0 | AQ37: 0 | AR37: 0 | AS37: 0 | AT37: 0 | AU37: 0 | AV37: 0 | AW37: 0 | AX37: 0 | AY37: 0 | AZ37: 0 | BA37: 0 | BB37: 0 | BC37: 0 | BD37: 0 | BE37: 0 | BF37: 0 | BG37: 0 | BH37: 0 | BI37: 0 | BJ37: 0 | BK37: 0 | BL37: 0 | BM37: 0 | BN37: 0 | BO37: 0 | BP37: 0 | BQ37: 0 | BR37: 0 | BS37: 0 | BT37: 0 | BU37: 0 | BV37: 0 | BW37: 0 | BX37: 0 | BY37: 0 | BZ37: 0 | CA37: 0 | CB37: 0 | CC37: 0 | CD37: 0 | CE37: 0 | CF37: 0 | CG37: 0 | CH37: 0 | CI37: 0 | CJ37: 0 | CK37: 0 | CL37: 0 | CM37: 0 | CN37: 0 | CO37: 0 | CP37: 0 | CQ37: 0 | CR37: 0 | CS37: 0 | CT37: 0 | CU37: 0 | CV37: 0 | CW37: 0 | CX37: 0 | CY37: 0 | CZ37: 0 | DA37: 0 | DB37: 0 | DC37: 0 | DD37: 0 | DE37: 0 | DF37: 0 | DG37: 0 | DH37: 5 | DI37: 5 | DJ37: 0 | DK37: 0 | DL37: 0 | DM37: 0 | DN37: 0 | DO37: 0 | DP37: 0 | DQ37: 0 | DR37: 1 | DS37: 1 | DT37: 0 | DU37: 0 | DV37: 0 | DW37: 0 | DX37: 1 | DY37: 0 | DZ37: 0 | EA37: 0 | EB37: 0 | EC37: 0 | ED37: 0 | EE37: 0 | EF37: 0 | EG37: 0 | EH37: 1 | EI37: 0 | EJ37: 0 | EK37: 0 | EL37: 0 | EM37: 0 | EN37: 0 | EO37: 0 | EP37: 0 | EQ37: 0 | ER37: 0 | ES37: 0 | ET37: 0 | EU37: 0 | EV37: 0 | EW37: 0 | EX37: 0 | EY37: 0 | EZ37: 0 | FA37: 0 | FB37: 0 | FC37: 0 | FD37: 0 | FE37: 0 | FF37: 0 | FG37: 0 | FH37: 0 | FI37: 0 | FJ37: 0 | FK37: 0 | FL37: 0 | FM37: 0 | FN37: 0 | FO37: 0 | FP37: 0 | FQ37: 0 | FR37: 0 | FS37: 0 | FT37: 0 | FU37: 0 | FV37: 0 | FW37: 0 | FX37: 0 | FY37: 0 | FZ37: 0 | GA37: 0 | GB37: 0 | GC37: 0 | GD37: 0 | GE37: 0 | GF37: 0 | GG37: 0 | GH37: 0 | GI37: 0 | GJ37: 0 | GK37: 0 | GL37: 0 | GM37: 0 | GN37: 0 | GO37: 0 | GP37: 0 | GQ37: 0 | GR37: 0 | GS37: 0 | GT37: 0 | GU37: 0 | GV37: 0 | GW37: 0 | GX37: 0 | GY37: 0 | GZ37: 0 | HA37: 0 | HB37: 0 | HC37: 0 | HD37: 0 | HE37: 0 | HF37: 0 | HG37: 0 | HH37: 0 | HI37: 0 | HJ37: 0 | HK37: 0 | HL37: 0 | HM37: 0 | HN37: 0 | HO37: 0 | HP37: 0 | HQ37: 0 | HR37: 0 | HS37: 0 | HT37: 0 | HU37: 0 | HV37: 0 | HW37: 0 | HX37: 0 | HY37: 0 | HZ37: 0 | IA37: 1 | IB37: 0 | IC37: 0 | ID37: 0 | IE37: 0 | IF37: 0 | IG37: 0 | IH37: 0 | II37: 0 | IJ37: 0 | IK37: 0 | IL37: 5 | IM37: 2 | IN37: 3
A38: LUCIANO CASTILLO COLONNA | B38: AYABACA | C38: 200201 | D38: 1915 | E38: ARAGOTO | F38: I-2 | G38: AYABACA | H38: NINGUN CLAS | I38: AYABACA | J38: AYABACA | K38: SALUD LUCIANO CASTILLO COLONNA | L38: 2 | M38: 0 | N38: 0 | O38: 0 | P38: 0 | Q38: 2 | R38: 0 | S38: 6 | T38: 3 | U38: 2 | V38: 0 | W38: 0 | X38: 0 | Y38: 0 | Z38: 0 | AA38: 0 | AB38: 0 | AC38: 0 | AD38: 0 | AE38: 0 | AF38: 0 | AG38: 0 | AH38: 0 | AI38: 0 | AJ38: 0 | AK38: 0 | AL38: 0 | AM38: 0 | AN38: 0 | AO38: 0 | AP38: 0 | AQ38: 0 | AR38: 0 | AS38: 0 | AT38: 0 | AU38: 0 | AV38: 0 | AW38: 0 | AX38: 0 | AY38: 0 | AZ38: 0 | BA38: 0 | BB38: 0 | BC38: 0 | BD38: 0 | BE38: 0 | BF38: 0 | BG38: 0 | BH38: 0 | BI38: 0 | BJ38: 0 | BK38: 0 | BL38: 0 | BM38: 0 | BN38: 0 | BO38: 0 | BP38: 0 | BQ38: 0 | BR38: 0 | BS38: 0 | BT38: 0 | BU38: 2 | BV38: 0 | BW38: 0 | BX38: 0 | BY38: 0 | BZ38: 0 | CA38: 4 | CB38: 0 | CC38: 0 | CD38: 0 | CE38: 0 | CF38: 0 | CG38: 0 | CH38: 0 | CI38: 0 | CJ38: 0 | CK38: 0 | CL38: 0 | CM38: 0 | CN38: 0 | CO38: 0 | CP38: 0 | CQ38: 0 | CR38: 0 | CS38: 0 | CT38: 0 | CU38: 0 | CV38: 0 | CW38: 0 | CX38: 0 | CY38: 0 | CZ38: 0 | DA38: 0 | DB38: 0 | DC38: 0 | DD38: 0 | DE38: 0 | DF38: 0 | DG38: 0 | DH38: 0 | DI38: 6 | DJ38: 5 | DK38: 0 | DL38: 5 | DM38: 0 | DN38: 0 | DO38: 0 | DP38: 0 | DQ38: 6 | DR38: 0 | DS38: 0 | DT38: 0 | DU38: 0 | DV38: 0 | DW38: 0 | DX38: 0 | DY38: 0 | DZ38: 0 | EA38: 0 | EB38: 0 | EC38: 4 | ED38: 0 | EE38: 0 | EF38: 2 | EG38: 0 | EH38: 0 | EI38: 2 | EJ38: 0 | EK38: 0 | EL38: 0 | EM38: 0 | EN38: 0 | EO38: 0 | EP38: 0 | EQ38: 0 | ER38: 0 | ES38: 0 | ET38: 0 | EU38: 0 | EV38: 0 | EW38: 0 | EX38: 0 | EY38: 0 | EZ38: 0 | FA38: 0 | FB38: 0 | FC38: 0 | FD38: 2 | FE38: 0 | FF38: 0 | FG38: 0 | FH38: 0 | FI38: 0 | FJ38: 0 | FK38: 0 | FL38: 0 | FM38: 0 | FN38: 0 | FO38: 0 | FP38: 0 | FQ38: 0 | FR38: 0 | FS38: 0 | FT38: 0 | FU38: 0 | FV38: 0 | FW38: 0 | FX38: 0 | FY38: 0 | FZ38: 0 | GA38: 0 | GB38: 0 | GC38: 0 | GD38: 0 | GE38: 0 | GF38: 0 | GG38: 0 | GH38: 0 | GI38: 0 | GJ38: 0 | GK38: 0 | GL38: 0 | GM38: 0 | GN38: 0 | GO38: 0 | GP38: 0 | GQ38: 0 | GR38: 0 | GS38: 0 | GT38: 0 | GU38: 0 | GV38: 0 | GW38: 0 | GX38: 0 | GY38: 0 | GZ38: 0 | HA38: 0 | HB38: 0 | HC38: 0 | HD38: 0 | HE38: 0 | HF38: 0 | HG38: 0 | HH38: 0 | HI38: 0 | HJ38: 0 | HK38: 0 | HL38: 0 | HM38: 0 | HN38: 0 | HO38: 0 | HP38: 0 | HQ38: 0 | HR38: 0 | HS38: 0 | HT38: 0 | HU38: 0 | HV38: 0 | HW38: 0 | HX38: 0 | HY38: 0 | HZ38: 0 | IA38: 0 | IB38: 0 | IC38: 0 | ID38: 0 | IE38: 0 | IF38: 0 | IG38: 0 | IH38: 0 | II38: 0 | IJ38: 0 | IK38: 0 | IL38: 7 | IM38: 2 | IN38: 5
A39: LUCIANO CASTILLO COLONNA | B39: AYABACA | C39: 200201 | D39: 1911 | E39: AYABACA | F39: I-4 | G39: AYABACA | H39: NINGUN CLAS | I39: AYABACA | J39: AYABACA | K39: SALUD LUCIANO CASTILLO COLONNA | L39: 7 | M39: 0 | N39: 0 | O39: 1 | P39: 1 | Q39: 4 | R39: 0 | S39: 4 | T39: 3 | U39: 0 | V39: 0 | W39: 0 | X39: 0 | Y39: 0 | Z39: 0 | AA39: 1 | AB39: 1 | AC39: 0 | AD39: 0 | AE39: 0 | AF39: 0 | AG39: 3 | AH39: 1 | AI39: 1 | AJ39: 0 | AK39: 0 | AL39: 0 | AM39: 0 | AN39: 3 | AO39: 0 | AP39: 0 | AQ39: 0 | AR39: 3 | AS39: 0 | AT39: 0 | AU39: 0 | AV39: 0 | AW39: 1 | AX39: 1 | AY39: 1 | AZ39: 0 | BA39: 2 | BB39: 3 | BC39: 3 | BD39: 0 | BE39: 0 | BF39: 5 | BG39: 6 | BH39: 0 | BI39: 0 | BJ39: 0 | BK39: 0 | BL39: 0 | BM39: 0 | BN39: 0 | BO39: 0 | BP39: 0 | BQ39: 0 | BR39: 0 | BS39: 0 | BT39: 6 | BU39: 0 | BV39: 0 | BW39: 0 | BX39: 0 | BY39: 0 | BZ39: 0 | CA39: 0 | CB39: 1 | CC39: 0 | CD39: 0 | CE39: 0 | CF39: 0 | CG39: 1 | CH39: 0 | CI39: 0 | CJ39: 0 | CK39: 0 | CL39: 0 | CM39: 0 | CN39: 0 | CO39: 0 | CP39: 0 | CQ39: 0 | CR39: 0 | CS39: 0 | CT39: 0 | CU39: 0 | CV39: 1 | CW39: 0 | CX39: 0 | CY39: 0 | CZ39: 0 | DA39: 0 | DB39: 0 | DC39: 0 | DD39: 0 | DE39: 0 | DF39: 0 | DG39: 2 | DH39: 0 | DI39: 1 | DJ39: 33 | DK39: 0 | DL39: 33 | DM39: 4 | DN39: 0 | DO39: 0 | DP39: 0 | DQ39: 0 | DR39: 0 | DS39: 2 | DT39: 0 | DU39: 0 | DV39: 0 | DW39: 0 | DX39: 0 | DY39: 0 | DZ39: 0 | EA39: 0 | EB39: 0 | EC39: 24 | ED39: 13 | EE39: 26 | EF39: 0 | EG39: 0 | EH39: 0 | EI39: 0 | EJ39: 0 | EK39: 0 | EL39: 0 | EM39: 0 | EN39: 0 | EO39: 0 | EP39: 0 | EQ39: 0 | ER39: 0 | ES39: 0 | ET39: 0 | EU39: 0 | EV39: 0 | EW39: 0 | EX39: 0 | EY39: 0 | EZ39: 0 | FA39: 0 | FB39: 0 | FC39: 0 | FD39: 0 | FE39: 0 | FF39: 0 | FG39: 0 | FH39: 0 | FI39: 0 | FJ39: 0 | FK39: 0 | FL39: 0 | FM39: 0 | FN39: 0 | FO39: 0 | FP39: 0 | FQ39: 0 | FR39: 0 | FS39: 0 | FT39: 0 | FU39: 0 | FV39: 0 | FW39: 0 | FX39: 0 | FY39: 0 | FZ39: 0 | GA39: 0 | GB39: 0 | GC39: 0 | GD39: 0 | GE39: 0 | GF39: 0 | GG39: 0 | GH39: 0 | GI39: 0 | GJ39: 0 | GK39: 0 | GL39: 0 | GM39: 0 | GN39: 0 | GO39: 0 | GP39: 0 | GQ39: 0 | GR39: 0 | GS39: 0 | GT39: 0 | GU39: 0 | GV39: 0 | GW39: 0 | GX39: 0 | GY39: 0 | GZ39: 0 | HA39: 0 | HB39: 0 | HC39: 0 | HD39: 0 | HE39: 0 | HF39: 0 | HG39: 0 | HH39: 0 | HI39: 0 | HJ39: 0 | HK39: 0 | HL39: 0 | HM39: 0 | HN39: 0 | HO39: 0 | HP39: 0 | HQ39: 0 | HR39: 0 | HS39: 0 | HT39: 0 | HU39: 0 | HV39: 0 | HW39: 0 | HX39: 0 | HY39: 0 | HZ39: 0 | IA39: 2 | IB39: 0 | IC39: 0 | ID39: 0 | IE39: 0 | IF39: 0 | IG39: 0 | IH39: 0 | II39: 1 | IJ39: 0 | IK39: 0 | IL39: 11 | IM39: 5 | IN39: 6
A40: LUCIANO CASTILLO COLONNA | B40: AYABACA | C40: 200201 | D40: 1912 | E40: TAPAL | F40: I-2 | G40: AYABACA | H40: NINGUN CLAS | I40: AYABACA | J40: AYABACA | K40: SALUD LUCIANO CASTILLO COLONNA | L40: 4 | M40: 0 | N40: 0 | O40: 0 | P40: 0 | Q40: 0 | R40: 0 | S40: 13 | T40: 5 | U40: 5 | V40: 3 | W40: 0 | X40: 0 | Y40: 0 | Z40: 0 | AA40: 0 | AB40: 0 | AC40: 0 | AD40: 0 | AE40: 0 | AF40: 0 | AG40: 0 | AH40: 0 | AI40: 0 | AJ40: 0 | AK40: 0 | AL40: 0 | AM40: 0 | AN40: 13 | AO40: 0 | AP40: 0 | AQ40: 0 | AR40: 13 | AS40: 0 | AT40: 0 | AU40: 0 | AV40: 0 | AW40: 0 | AX40: 0 | AY40: 3 | AZ40: 0 | BA40: 3 | BB40: 3 | BC40: 0 | BD40: 0 | BE40: 3 | BF40: 0 | BG40: 0 | BH40: 0 | BI40: 0 | BJ40: 0 | BK40: 0 | BL40: 0 | BM40: 0 | BN40: 0 | BO40: 0 | BP40: 0 | BQ40: 0 | BR40: 0 | BS40: 0 | BT40: 0 | BU40: 0 | BV40: 1 | BW40: 1 | BX40: 1 | BY40: 0 | BZ40: 0 | CA40: 0 | CB40: 1 | CC40: 0 | CD40: 0 | CE40: 0 | CF40: 0 | CG40: 0 | CH40: 0 | CI40: 0 | CJ40: 0 | CK40: 0 | CL40: 0 | CM40: 0 | CN40: 0 | CO40: 0 | CP40: 0 | CQ40: 0 | CR40: 0 | CS40: 0 | CT40: 0 | CU40: 0 | CV40: 0 | CW40: 0 | CX40: 0 | CY40: 0 | CZ40: 0 | DA40: 0 | DB40: 0 | DC40: 0 | DD40: 0 | DE40: 0 | DF40: 0 | DG40: 14 | DH40: 12 | DI40: 13 | DJ40: 8 | DK40: 0 | DL40: 8 | DM40: 13 | DN40: 1 | DO40: 1 | DP40: 0 | DQ40: 8 | DR40: 12 | DS40: 0 | DT40: 1 | DU40: 1 | DV40: 0 | DW40: 0 | DX40: 1 | DY40: 0 | DZ40: 0 | EA40: 0 | EB40: 0 | EC40: 0 | ED40: 0 | EE40: 0 | EF40: 0 | EG40: 0 | EH40: 0 | EI40: 0 | EJ40: 0 | EK40: 0 | EL40: 0 | EM40: 0 | EN40: 0 | EO40: 0 | EP40: 0 | EQ40: 0 | ER40: 0 | ES40: 0 | ET40: 0 | EU40: 0 | EV40: 0 | EW40: 0 | EX40: 0 | EY40: 0 | EZ40: 0 | FA40: 0 | FB40: 0 | FC40: 0 | FD40: 0 | FE40: 0 | FF40: 0 | FG40: 0 | FH40: 0 | FI40: 0 | FJ40: 0 | FK40: 0 | FL40: 0 | FM40: 0 | FN40: 0 | FO40: 0 | FP40: 0 | FQ40: 0 | FR40: 0 | FS40: 0 | FT40: 0 | FU40: 0 | FV40: 0 | FW40: 0 | FX40: 0 | FY40: 0 | FZ40: 0 | GA40: 0 | GB40: 0 | GC40: 0 | GD40: 0 | GE40: 0 | GF40: 0 | GG40: 0 | GH40: 0 | GI40: 0 | GJ40: 0 | GK40: 0 | GL40: 0 | GM40: 0 | GN40: 0 | GO40: 0 | GP40: 0 | GQ40: 0 | GR40: 0 | GS40: 0 | GT40: 0 | GU40: 0 | GV40: 0 | GW40: 0 | GX40: 0 | GY40: 0 | GZ40: 0 | HA40: 0 | HB40: 0 | HC40: 0 | HD40: 0 | HE40: 0 | HF40: 0 | HG40: 0 | HH40: 0 | HI40: 0 | HJ40: 0 | HK40: 0 | HL40: 0 | HM40: 0 | HN40: 0 | HO40: 0 | HP40: 0 | HQ40: 0 | HR40: 0 | HS40: 0 | HT40: 0 | HU40: 0 | HV40: 0 | HW40: 0 | HX40: 0 | HY40: 0 | HZ40: 0 | IA40: 0 | IB40: 0 | IC40: 0 | ID40: 0 | IE40: 0 | IF40: 0 | IG40: 0 | IH40: 0 | II40: 0 | IJ40: 0 | IK40: 1 | IL40: 0 | IM40: 0 | IN40: 0
A41: LUCIANO CASTILLO COLONNA | B41: AYABACA | C41: 200201 | D41: 1913 | E41: CHINCHIN | F41: I-1 | G41: AYABACA | H41: NINGUN CLAS | I41: AYABACA | J41: AYABACA | K41: SALUD LUCIANO CASTILLO COLONNA | L41: 2 | M41: 0 | N41: 0 | O41: 0 | P41: 0 | Q41: 2 | R41: 0 | S41: 2 | T41: 0 | U41: 0 | V41: 0 | W41: 0 | X41: 0 | Y41: 0 | Z41: 0 | AA41: 0 | AB41: 0 | AC41: 0 | AD41: 0 | AE41: 0 | AF41: 0 | AG41: 0 | AH41: 0 | AI41: 0 | AJ41: 0 | AK41: 0 | AL41: 0 | AM41: 0 | AN41: 2 | AO41: 0 | AP41: 0 | AQ41: 0 | AR41: 2 | AS41: 0 | AT41: 0 | AU41: 0 | AV41: 0 | AW41: 0 | AX41: 0 | AY41: 0 | AZ41: 0 | BA41: 0 | BB41: 0 | BC41: 0 | BD41: 0 | BE41: 2 | BF41: 0 | BG41: 0 | BH41: 0 | BI41: 0 | BJ41: 0 | BK41: 0 | BL41: 0 | BM41: 0 | BN41: 0 | BO41: 0 | BP41: 0 | BQ41: 0 | BR41: 0 | BS41: 0 | BT41: 0 | BU41: 0 | BV41: 0 | BW41: 0 | BX41: 0 | BY41: 0 | BZ41: 0 | CA41: 2 | CB41: 0 | CC41: 0 | CD41: 0 | CE41: 0 | CF41: 0 | CG41: 0 | CH41: 0 | CI41: 0 | CJ41: 0 | CK41: 0 | CL41: 0 | CM41: 0 | CN41: 0 | CO41: 0 | CP41: 0 | CQ41: 0 | CR41: 0 | CS41: 0 | CT41: 0 | CU41: 0 | CV41: 0 | CW41: 0 | CX41: 0 | CY41: 0 | CZ41: 0 | DA41: 0 | DB41: 0 | DC41: 0 | DD41: 0 | DE41: 0 | DF41: 0 | DG41: 0 | DH41: 2 | DI41: 2 | DJ41: 2 | DK41: 0 | DL41: 2 | DM41: 0 | DN41: 0 | DO41: 0 | DP41: 0 | DQ41: 0 | DR41: 0 | DS41: 0 | DT41: 0 | DU41: 0 | DV41: 0 | DW41: 0 | DX41: 0 | DY41: 0 | DZ41: 0 | EA41: 0 | EB41: 0 | EC41: 2 | ED41: 0 | EE41: 0 | EF41: 0 | EG41: 0 | EH41: 0 | EI41: 0 | EJ41: 0 | EK41: 0 | EL41: 0 | EM41: 0 | EN41: 0 | EO41: 0 | EP41: 0 | EQ41: 0 | ER41: 0 | ES41: 0 | ET41: 0 | EU41: 0 | EV41: 0 | EW41: 0 | EX41: 0 | EY41: 0 | EZ41: 0 | FA41: 0 | FB41: 0 | FC41: 0 | FD41: 0 | FE41: 0 | FF41: 0 | FG41: 0 | FH41: 0 | FI41: 0 | FJ41: 0 | FK41: 0 | FL41: 0 | FM41: 0 | FN41: 0 | FO41: 0 | FP41: 0 | FQ41: 0 | FR41: 0 | FS41: 0 | FT41: 0 | FU41: 0 | FV41: 0 | FW41: 0 | FX41: 0 | FY41: 0 | FZ41: 0 | GA41: 0 | GB41: 0 | GC41: 0 | GD41: 0 | GE41: 0 | GF41: 0 | GG41: 0 | GH41: 0 | GI41: 0 | GJ41: 0 | GK41: 0 | GL41: 0 | GM41: 0 | GN41: 0 | GO41: 0 | GP41: 0 | GQ41: 0 | GR41: 0 | GS41: 0 | GT41: 0 | GU41: 0 | GV41: 0 | GW41: 0 | GX41: 0 | GY41: 0 | GZ41: 0 | HA41: 0 | HB41: 0 | HC41: 0 | HD41: 0 | HE41: 0 | HF41: 0 | HG41: 0 | HH41: 0 | HI41: 0 | HJ41: 0 | HK41: 0 | HL41: 0 | HM41: 0 | HN41: 0 | HO41: 0 | HP41: 0 | HQ41: 0 | HR41: 0 | HS41: 0 | HT41: 0 | HU41: 0 | HV41: 0 | HW41: 0 | HX41: 0 | HY41: 0 | HZ41: 0 | IA41: 0 | IB41: 0 | IC41: 0 | ID41: 0 | IE41: 0 | IF41: 0 | IG41: 0 | IH41: 0 | II41: 0 | IJ41: 0 | IK41: 0 | IL41: 0 | IM41: 0 | IN41: 0
A42: LUCIANO CASTILLO COLONNA | B42: AYABACA | C42: 200201 | D42: 1913 | E42: CHINCHIN | F42: I-1 | G42: AYABACA | H42: NINGUN CLAS | I42: AYABACA | J42: AYABACA | K42: SALUD LUCIANO CASTILLO COLONNA | L42: 3 | M42: 0 | N42: 0 | O42: 0 | P42: 0 | Q42: 2 | R42: 0 | S42: 2 | T42: 2 | U42: 0 | V42: 0 | W42: 0 | X42: 0 | Y42: 0 | Z42: 0 | AA42: 0 | AB42: 0 | AC42: 0 | AD42: 0 | AE42: 0 | AF42: 0 | AG42: 0 | AH42: 0 | AI42: 0 | AJ42: 0 | AK42: 0 | AL42: 0 | AM42: 0 | AN42: 2 | AO42: 0 | AP42: 0 | AQ42: 0 | AR42: 2 | AS42: 0 | AT42: 0 | AU42: 0 | AV42: 0 | AW42: 1 | AX42: 0 | AY42: 0 | AZ42: 0 | BA42: 0 | BB42: 0 | BC42: 0 | BD42: 0 | BE42: 2 | BF42: 0 | BG42: 0 | BH42: 0 | BI42: 0 | BJ42: 0 | BK42: 0 | BL42: 0 | BM42: 0 | BN42: 0 | BO42: 0 | BP42: 0 | BQ42: 0 | BR42: 0 | BS42: 0 | BT42: 0 | BU42: 0 | BV42: 0 | BW42: 0 | BX42: 0 | BY42: 0 | BZ42: 0 | CA42: 2 | CB42: 0 | CC42: 0 | CD42: 0 | CE42: 0 | CF42: 0 | CG42: 0 | CH42: 0 | CI42: 0 | CJ42: 0 | CK42: 0 | CL42: 0 | CM42: 0 | CN42: 0 | CO42: 0 | CP42: 0 | CQ42: 0 | CR42: 0 | CS42: 0 | CT42: 0 | CU42: 0 | CV42: 0 | CW42: 0 | CX42: 0 | CY42: 0 | CZ42: 0 | DA42: 0 | DB42: 0 | DC42: 0 | DD42: 0 | DE42: 0 | DF42: 0 | DG42: 0 | DH42: 2 | DI42: 0 | DJ42: 2 | DK42: 0 | DL42: 2 | DM42: 0 | DN42: 2 | DO42: 0 | DP42: 0 | DQ42: 0 | DR42: 0 | DS42: 0 | DT42: 2 | DU42: 0 | DV42: 0 | DW42: 0 | DX42: 0 | DY42: 0 | DZ42: 0 | EA42: 0 | EB42: 0 | EC42: 2 | ED42: 0 | EE42: 0 | EF42: 0 | EG42: 0 | EH42: 0 | EI42: 0 | EJ42: 0 | EK42: 0 | EL42: 0 | EM42: 0 | EN42: 0 | EO42: 0 | EP42: 0 | EQ42: 0 | ER42: 0 | ES42: 0 | ET42: 0 | EU42: 0 | EV42: 0 | EW42: 0 | EX42: 0 | EY42: 0 | EZ42: 0 | FA42: 0 | FB42: 0 | FC42: 0 | FD42: 0 | FE42: 0 | FF42: 0 | FG42: 0 | FH42: 0 | FI42: 0 | FJ42: 0 | FK42: 0 | FL42: 0 | FM42: 0 | FN42: 0 | FO42: 0 | FP42: 0 | FQ42: 0 | FR42: 0 | FS42: 0 | FT42: 0 | FU42: 0 | FV42: 0 | FW42: 0 | FX42: 0 | FY42: 0 | FZ42: 0 | GA42: 0 | GB42: 0 | GC42: 0 | GD42: 0 | GE42: 0 | GF42: 0 | GG42: 0 | GH42: 0 | GI42: 0 | GJ42: 0 | GK42: 0 | GL42: 0 | GM42: 0 | GN42: 0 | GO42: 0 | GP42: 0 | GQ42: 0 | GR42: 0 | GS42: 0 | GT42: 0 | GU42: 0 | GV42: 0 | GW42: 0 | GX42: 0 | GY42: 0 | GZ42: 0 | HA42: 0 | HB42: 0 | HC42: 0 | HD42: 0 | HE42: 0 | HF42: 0 | HG42: 0 | HH42: 0 | HI42: 0 | HJ42: 0 | HK42: 0 | HL42: 0 | HM42: 0 | HN42: 0 | HO42: 0 | HP42: 0 | HQ42: 0 | HR42: 0 | HS42: 0 | HT42: 0 | HU42: 0 | HV42: 0 | HW42: 0 | HX42: 0 | HY42: 0 | HZ42: 0 | IA42: 0 | IB42: 0 | IC42: 0 | ID42: 0 | IE42: 0 | IF42: 0 | IG42: 0 | IH42: 0 | II42: 0 | IJ42: 0 | IK42: 0 | IL42: 0 | IM42: 0 | IN42: 0
A43: LUCIANO CASTILLO COLONNA | B43: AYABACA | C43: 200201 | D43: 1913 | E43: CHINCHIN | F43: I-1 | G43: AYABACA | H43: NINGUN CLAS | I43: AYABACA | J43: AYABACA | K43: SALUD LUCIANO CASTILLO COLONNA | L43: 5 | M43: 0 | N43: 0 | O43: 0 | P43: 0 | Q43: 1 | R43: 0 | S43: 1 | T43: 1 | U43: 0 | V43: 0 | W43: 0 | X43: 0 | Y43: 0 | Z43: 0 | AA43: 0 | AB43: 0 | AC43: 0 | AD43: 0 | AE43: 0 | AF43: 0 | AG43: 0 | AH43: 0 | AI43: 0 | AJ43: 0 | AK43: 0 | AL43: 0 | AM43: 0 | AN43: 1 | AO43: 0 | AP43: 0 | AQ43: 0 | AR43: 1 | AS43: 0 | AT43: 0 | AU43: 0 | AV43: 0 | AW43: 1 | AX43: 0 | AY43: 0 | AZ43: 0 | BA43: 0 | BB43: 0 | BC43: 0 | BD43: 0 | BE43: 1 | BF43: 0 | BG43: 0 | BH43: 0 | BI43: 0 | BJ43: 0 | BK43: 0 | BL43: 0 | BM43: 0 | BN43: 0 | BO43: 0 | BP43: 0 | BQ43: 0 | BR43: 0 | BS43: 0 | BT43: 0 | BU43: 0 | BV43: 0 | BW43: 0 | BX43: 0 | BY43: 0 | BZ43: 0 | CA43: 1 | CB43: 0 | CC43: 0 | CD43: 0 | CE43: 0 | CF43: 0 | CG43: 0 | CH43: 0 | CI43: 0 | CJ43: 0 | CK43: 0 | CL43: 0 | CM43: 0 | CN43: 0 | CO43: 0 | CP43: 0 | CQ43: 0 | CR43: 0 | CS43: 0 | CT43: 0 | CU43: 0 | CV43: 0 | CW43: 0 | CX43: 0 | CY43: 0 | CZ43: 0 | DA43: 0 | DB43: 0 | DC43: 0 | DD43: 0 | DE43: 0 | DF43: 0 | DG43: 0 | DH43: 1 | DI43: 0 | DJ43: 1 | DK43: 0 | DL43: 1 | DM43: 0 | DN43: 1 | DO43: 1 | DP43: 0 | DQ43: 0 | DR43: 0 | DS43: 0 | DT43: 0 | DU43: 1 | DV43: 0 | DW43: 0 | DX43: 0 | DY43: 0 | DZ43: 0 | EA43: 0 | EB43: 0 | EC43: 1 | ED43: 0 | EE43: 0 | EF43: 0 | EG43: 0 | EH43: 0 | EI43: 0 | EJ43: 0 | EK43: 0 | EL43: 0 | EM43: 0 | EN43: 0 | EO43: 0 | EP43: 0 | EQ43: 0 | ER43: 0 | ES43: 0 | ET43: 0 | EU43: 0 | EV43: 0 | EW43: 0 | EX43: 0 | EY43: 0 | EZ43: 0 | FA43: 0 | FB43: 0 | FC43: 0 | FD43: 0 | FE43: 0 | FF43: 0 | FG43: 0 | FH43: 0 | FI43: 0 | FJ43: 0 | FK43: 0 | FL43: 0 | FM43: 0 | FN43: 0 | FO43: 0 | FP43: 0 | FQ43: 0 | FR43: 0 | FS43: 0 | FT43: 0 | FU43: 0 | FV43: 0 | FW43: 0 | FX43: 0 | FY43: 0 | FZ43: 0 | GA43: 0 | GB43: 0 | GC43: 0 | GD43: 0 | GE43: 0 | GF43: 0 | GG43: 0 | GH43: 0 | GI43: 0 | GJ43: 0 | GK43: 0 | GL43: 0 | GM43: 0 | GN43: 0 | GO43: 0 | GP43: 0 | GQ43: 0 | GR43: 0 | GS43: 0 | GT43: 0 | GU43: 0 | GV43: 0 | GW43: 0 | GX43: 0 | GY43: 0 | GZ43: 0 | HA43: 0 | HB43: 0 | HC43: 0 | HD43: 0 | HE43: 0 | HF43: 0 | HG43: 0 | HH43: 0 | HI43: 0 | HJ43: 0 | HK43: 0 | HL43: 0 | HM43: 0 | HN43: 0 | HO43: 0 | HP43: 0 | HQ43: 0 | HR43: 0 | HS43: 0 | HT43: 0 | HU43: 0 | HV43: 0 | HW43: 0 | HX43: 0 | HY43: 0 | HZ43: 0 | IA43: 0 | IB43: 0 | IC43: 0 | ID43: 0 | IE43: 0 | IF43: 0 | IG43: 0 | IH43: 0 | II43: 0 | IJ43: 0 | IK43: 0 | IL43: 0 | IM43: 0 | IN43: 0
A44: LUCIANO CASTILLO COLONNA | B44: AYABACA | C44: 200201 | D44: 1913 | E44: CHINCHIN | F44: I-1 | G44: AYABACA | H44: NINGUN CLAS | I44: AYABACA | J44: AYABACA | K44: SALUD LUCIANO CASTILLO COLONNA | L44: 6 | M44: 0 | N44: 0 | O44: 0 | P44: 0 | Q44: 2 | R44: 0 | S44: 2 | T44: 2 | U44: 0 | V44: 0 | W44: 0 | X44: 0 | Y44: 0 | Z44: 0 | AA44: 0 | AB44: 0 | AC44: 0 | AD44: 0 | AE44: 0 | AF44: 0 | AG44: 0 | AH44: 0 | AI44: 0 | AJ44: 0 | AK44: 0 | AL44: 0 | AM44: 0 | AN44: 2 | AO44: 0 | AP44: 0 | AQ44: 0 | AR44: 2 | AS44: 0 | AT44: 0 | AU44: 0 | AV44: 0 | AW44: 2 | AX44: 0 | AY44: 0 | AZ44: 0 | BA44: 0 | BB44: 0 | BC44: 0 | BD44: 0 | BE44: 2 | BF44: 0 | BG44: 0 | BH44: 0 | BI44: 0 | BJ44: 0 | BK44: 0 | BL44: 0 | BM44: 0 | BN44: 0 | BO44: 0 | BP44: 0 | BQ44: 0 | BR44: 0 | BS44: 0 | BT44: 0 | BU44: 0 | BV44: 0 | BW44: 1 | BX44: 0 | BY44: 0 | BZ44: 3 | CA44: 2 | CB44: 0 | CC44: 0 | CD44: 0 | CE44: 0 | CF44: 0 | CG44: 0 | CH44: 0 | CI44: 0 | CJ44: 0 | CK44: 0 | CL44: 0 | CM44: 0 | CN44: 0 | CO44: 0 | CP44: 0 | CQ44: 0 | CR44: 0 | CS44: 0 | CT44: 0 | CU44: 0 | CV44: 0 | CW44: 0 | CX44: 0 | CY44: 0 | CZ44: 0 | DA44: 0 | DB44: 0 | DC44: 0 | DD44: 0 | DE44: 0 | DF44: 0 | DG44: 0 | DH44: 2 | DI44: 0 | DJ44: 2 | DK44: 0 | DL44: 2 | DM44: 0 | DN44: 2 | DO44: 2 | DP44: 0 | DQ44: 0 | DR44: 0 | DS44: 0 | DT44: 2 | DU44: 2 | DV44: 0 | DW44: 0 | DX44: 0 | DY44: 0 | DZ44: 0 | EA44: 0 | EB44: 0 | EC44: 2 | ED44: 0 | EE44: 0 | EF44: 0 | EG44: 0 | EH44: 0 | EI44: 0 | EJ44: 0 | EK44: 0 | EL44: 0 | EM44: 0 | EN44: 0 | EO44: 0 | EP44: 0 | EQ44: 0 | ER44: 0 | ES44: 0 | ET44: 0 | EU44: 0 | EV44: 0 | EW44: 0 | EX44: 0 | EY44: 0 | EZ44: 0 | FA44: 0 | FB44: 0 | FC44: 0 | FD44: 0 | FE44: 0 | FF44: 0 | FG44: 0 | FH44: 0 | FI44: 0 | FJ44: 0 | FK44: 0 | FL44: 0 | FM44: 0 | FN44: 0 | FO44: 0 | FP44: 0 | FQ44: 0 | FR44: 0 | FS44: 0 | FT44: 0 | FU44: 0 | FV44: 0 | FW44: 0 | FX44: 0 | FY44: 0 | FZ44: 0 | GA44: 0 | GB44: 0 | GC44: 0 | GD44: 0 | GE44: 0 | GF44: 0 | GG44: 0 | GH44: 0 | GI44: 0 | GJ44: 0 | GK44: 0 | GL44: 0 | GM44: 0 | GN44: 0 | GO44: 0 | GP44: 0 | GQ44: 0 | GR44: 0 | GS44: 0 | GT44: 0 | GU44: 0 | GV44: 0 | GW44: 0 | GX44: 0 | GY44: 0 | GZ44: 0 | HA44: 0 | HB44: 0 | HC44: 0 | HD44: 0 | HE44: 0 | HF44: 0 | HG44: 0 | HH44: 0 | HI44: 0 | HJ44: 0 | HK44: 0 | HL44: 0 | HM44: 0 | HN44: 0 | HO44: 0 | HP44: 0 | HQ44: 0 | HR44: 0 | HS44: 0 | HT44: 0 | HU44: 0 | HV44: 0 | HW44: 0 | HX44: 0 | HY44: 0 | HZ44: 0 | IA44: 0 | IB44: 0 | IC44: 0 | ID44: 0 | IE44: 0 | IF44: 0 | IG44: 0 | IH44: 0 | II44: 0 | IJ44: 0 | IK44: 0 | IL44: 0 | IM44: 0 | IN44: 0
A45: LUCIANO CASTILLO COLONNA | B45: AYABACA | C45: 200201 | D45: 1914 | E45: OLLEROS | F45: I-2 | G45: AYABACA | H45: NINGUN CLAS | I45: AYABACA | J45: AYABACA | K45: SALUD LUCIANO CASTILLO COLONNA | L45: 4 | M45: 0 | N45: 3 | O45: 0 | P45: 0 | Q45: 6 | R45: 0 | S45: 12 | T45: 6 | U45: 6 | V45: 0 | W45: 0 | X45: 0 | Y45: 0 | Z45: 0 | AA45: 0 | AB45: 0 | AC45: 1 | AD45: 0 | AE45: 0 | AF45: 0 | AG45: 0 | AH45: 0 | AI45: 0 | AJ45: 0 | AK45: 0 | AL45: 0 | AM45: 0 | AN45: 12 | AO45: 0 | AP45: 0 | AQ45: 0 | AR45: 12 | AS45: 4 | AT45: 0 | AU45: 0 | AV45: 0 | AW45: 5 | AX45: 0 | AY45: 0 | AZ45: 0 | BA45: 0 | BB45: 0 | BC45: 0 | BD45: 0 | BE45: 0 | BF45: 0 | BG45: 0 | BH45: 0 | BI45: 0 | BJ45: 0 | BK45: 0 | BL45: 0 | BM45: 0 | BN45: 0 | BO45: 0 | BP45: 0 | BQ45: 0 | BR45: 1 | BS45: 0 | BT45: 0 | BU45: 0 | BV45: 0 | BW45: 0 | BX45: 0 | BY45: 0 | BZ45: 0 | CA45: 6 | CB45: 0 | CC45: 0 | CD45: 0 | CE45: 0 | CF45: 0 | CG45: 0 | CH45: 0 | CI45: 0 | CJ45: 0 | CK45: 0 | CL45: 0 | CM45: 0 | CN45: 0 | CO45: 0 | CP45: 0 | CQ45: 1 | CR45: 1 | CS45: 2 | CT45: 0 | CU45: 0 | CV45: 0 | CW45: 0 | CX45: 0 | CY45: 0 | CZ45: 0 | DA45: 0 | DB45: 0 | DC45: 0 | DD45: 0 | DE45: 0 | DF45: 0 | DG45: 6 | DH45: 9 | DI45: 10 | DJ45: 8 | DK45: 0 | DL45: 8 | DM45: 13 | DN45: 0 | DO45: 0 | DP45: 0 | DQ45: 6 | DR45: 1 | DS45: 1 | DT45: 0 | DU45: 0 | DV45: 0 | DW45: 0 | DX45: 0 | DY45: 7 | DZ45: 0 | EA45: 0 | EB45: 0 | EC45: 8 | ED45: 0 | EE45: 0 | EF45: 0 | EG45: 0 | EH45: 0 | EI45: 0 | EJ45: 0 | EK45: 0 | EL45: 0 | EM45: 0 | EN45: 0 | EO45: 0 | EP45: 0 | EQ45: 0 | ER45: 0 | ES45: 0 | ET45: 0 | EU45: 0 | EV45: 0 | EW45: 0 | EX45: 0 | EY45: 0 | EZ45: 0 | FA45: 0 | FB45: 0 | FC45: 0 | FD45: 0 | FE45: 0 | FF45: 0 | FG45: 0 | FH45: 0 | FI45: 0 | FJ45: 0 | FK45: 0 | FL45: 0 | FM45: 0 | FN45: 0 | FO45: 0 | FP45: 0 | FQ45: 0 | FR45: 0 | FS45: 0 | FT45: 0 | FU45: 0 | FV45: 0 | FW45: 0 | FX45: 0 | FY45: 0 | FZ45: 0 | GA45: 0 | GB45: 0 | GC45: 0 | GD45: 0 | GE45: 0 | GF45: 0 | GG45: 0 | GH45: 0 | GI45: 0 | GJ45: 0 | GK45: 0 | GL45: 0 | GM45: 0 | GN45: 0 | GO45: 0 | GP45: 0 | GQ45: 0 | GR45: 0 | GS45: 0 | GT45: 0 | GU45: 0 | GV45: 0 | GW45: 0 | GX45: 0 | GY45: 0 | GZ45: 0 | HA45: 0 | HB45: 0 | HC45: 0 | HD45: 0 | HE45: 0 | HF45: 0 | HG45: 0 | HH45: 0 | HI45: 0 | HJ45: 0 | HK45: 0 | HL45: 0 | HM45: 0 | HN45: 0 | HO45: 0 | HP45: 0 | HQ45: 0 | HR45: 0 | HS45: 0 | HT45: 0 | HU45: 0 | HV45: 0 | HW45: 1 | HX45: 0 | HY45: 0 | HZ45: 0 | IA45: 1 | IB45: 0 | IC45: 0 | ID45: 0 | IE45: 0 | IF45: 0 | IG45: 0 | IH45: 0 | II45: 0 | IJ45: 0 | IK45: 0 | IL45: 5 | IM45: 4 | IN45: 1
